Workbook

Sheet LDC Info
AA3: Algoma Power Inc.
AA4: Atikokan Hydro Inc.
AA5: Attawapiskat Power Corporation
AA6: Bluewater Power Distribution Corporation
AA7: Brant County Power Inc.
AA8: Brantford Power Inc.
AA9: Burlington Hydro Inc.
AA10: Cambridge and North Dumfries Hydro Inc.
AA11: Canadian Niagara Power Inc.
AA12: Centre Wellington Hydro Ltd.
AA13: Chapleau Public Utilities Corporation
D14: Utility Name | E14: Ottawa River Power Corporation | AA14: COLLUS PowerStream Corp.
AA15: Cooperative Hydro Embrun Inc.
D16: Assigned EB Number | E16: EB-2014-0105 | AA16: E.L.K. Energy Inc.
AA17: Enersource Hydro Mississauga Inc.
D18: Name of Contact and Title | E18: Jane Donnelly | AA18: Entegrus Powerlines Inc.
AA19: EnWin Utilities Ltd.
D20: Phone Number | E20: 613-732-3687 | AA20: Erie Thames Powerlines Corporation
AA21: Espanola Regional Hydro Distribution Corporation
D22: Email Address | E22: jdonnelly@orpowercorp.com | AA22: Essex Powerlines Corporation
AA23: Festival Hydro Inc.
D24: Test Year | E24: 2016 | AA24: Fort Albany Power Corporation
AA25: Fort Frances Power Corporation
D26: Bridge Year | E26: =IF(ISBLANK(E24), "", E24-1) -> 2015 | AA26: Greater Sudbury Hydro Inc.
AA27: Grimsby Power Inc.
D28: Last Rebasing Year | E28: 2010 | AA28: Guelph Hydro Electric Systems Inc.
AA29: Haldimand County Hydro Inc.
A30: Identify the accounting standard used for the test year | AA30: Halton Hills Hydro Inc.
E31: MIFRS | AA31: Hearst Power Distribution Company Limited
AA32: Horizon Utilities Corporation
A33: Did you update your depreciation and capitalization policies? | AA33: Hydro 2000 Inc.
E34: Yes | AA34: Hydro Hawkesbury Inc.
AA35: Hydro One Brampton Networks Inc.
A36: When did you update your depreciation and capitalization policies? | AA36: Hydro One Networks Inc.
E37: 2001-01-01 | F37: 2013 | AA37: Hydro One Remote Communities Inc.
AA38: Hydro Ottawa Limited
A39: Identify the year that the applicant has adopted or is expected to adopt IFRS for financial reporting purposes | AA39: Innpower Corporation
E40: 2015 or Later | AA40: Kashechewan Power Corporation
AA41: Kenora Hydro Electric Corporation Ltd.
AA42: Kingston Hydro Corporation
A43: Are you applying for cost recovery for the test and/or future year(s) for Green Energy initiatives? | AA43: Kitchener-Wilmot Hydro Inc.
E44: No | AA44: Lakefront Utilities Inc.
AA45: Lakeland Power Distribution Ltd.
A46: ="Is " & E14 & " an embedded distributor?" -> Is Ottawa River Power Corporation an embedded distributor? | E46: Yes | AA46: London Hydro Inc.
AA47: Midland Power Utility Corporation
AA48: Milton Hydro Distribution Inc.
B49: Notes | AA49: Newmarket-Tay Power Distribution Ltd.
AA50: Niagara Peninsula Energy Inc.
C51: Pale green cells represent input cells. | AA51: Niagara-on-the-Lake Hydro Inc.
AA52: Norfolk Power Distribution Inc.
C53: Pale blue cells represent drop-down lists. The applicant should select the appropriate item from the drop-down list. | AA53: North Bay Hydro Distribution Limited
AA54: Northern Ontario Wires Inc.
C55: White cells contain fixed values, automatically generated values or formulae. | AA55: Oakville Hydro Electricity Distribution Inc.
AA56: Orangeville Hydro Limited
AA57: Orillia Power Distribution Corporation
AA58: Oshawa PUC Networks Inc.
AA59: Ottawa River Power Corporation
AA60: Peterborough Distribution Incorporated
AA61: PowerStream Inc.
AA62: PUC Distribution Inc.
AA63: Renfrew Hydro Inc.
AA64: Rideau St. Lawrence Distribution Inc.
AA65: Sioux Lookout Hydro Inc.
AA66: St. Thomas Energy Inc.
AA67: Thunder Bay Hydro Electricity Distribution Inc.
AA68: Tillsonburg Hydro Inc.
AA69: Toronto Hydro-Electric System Limited
AA70: Veridian Connections Inc.
AA71: Wasaga Distribution Inc.
AA72: Waterloo North Hydro Inc.
AA73: Welland Hydro-Electric System Corp.
AA74: Wellington North Power Inc.
AA75: West Coast Huron Energy Inc.
AA76: Westario Power Inc.
AA77: Whitby Hydro Electric Corporation
AA78: Woodstock Hydro Services Inc.

Sheet Index
A15: 1 | B15: LDC Information Sheet | E15: 28 | F15: App.2-G: Service Reliability Indicators
A16: 2 | B16: Index | E16: 29 | F16: App.2-H: Other Operating Revenue
A17: 3 | B17: Cost of Service Application Flowchart | E17: 30 | F17: App.2-I: Load Forecast CDM Adjustment Workform
A18: 4 | B18: List of Key References | E18: 31 | F18: App.2-IA: Actual and Forecast Load and Customer Data
A19: 5 | B19: App.2-AA: Capital Projects Table | E19: 32 | F19: App.2-JA: OM&A Summary Analysis
A20: 6 | B20: App.2-AB: Capital Expenditures | E20: 33 | F20: App.2-JB: Recoverable OM&A Cost Driver Table
A21: 7 | B21: App. 2-AC: Customer Engagement Worksheet | E21: 34 | F21: App.2-JC: OM&A Programs Table
A22: 8 | B22: App.2-B: General Accounting Instructions | E22: 35 | F22: App.2-K: Employee Costs
A23: 9 | B23: App.2-BA: Fixed Asset Continuity Schedule | E23: 36 | F23: App.2-L: Recoverable OM&A Cost per Customer and per FTE
A24: 10 | B24: Appendix 2-BB: Service Life Comparison | E24: 37 | F24: App.2-M: Regulatory Costs Schedule
A25: 11 | B25: App.2-CA: 2012 Depreciation and Amortization Expense (Old CGAAP) | E25: 38 | F25: App.2-N: Shared Servcies and Corporate Cost Allocation
A26: 12 | B26: App.2-CB: 2012 Depreciation and Amortization Expense (New CGAAP) | E26: 39 | F26: App.2-OA: Capital Structure and Cost of Capital
A27: 13 | B27: App.2-CC: 2013 Depreciation and Amortization Expense (New CGAAP) | E27: 40 | F27: App.2-OB: Debt Instruments
A28: 14 | B28: App.2-CD: 2014 Depreciation and Amortization Expense (MIFRS) | E28: 41 | F28: App.2-P: Cost Allocation
A29: 15 | B29: App.2-CE: 2015 Depreciation and Amortization Expense (MIFRS) | E29: 42 | F29: App.2-PA: New Rate Design Policy For Residential Customers
A30: 16 | B30: App.2-CF: 2015 Depreciation and Amortization Expense (MIFRS) | E30: 43 | F30: App.2-Q: Cost of Serving Embedded Distributor(s)
A31: 17 | B31: App.2-CG: 2013 Depreciation and Amortization Expense (Old CGAAP) | E31: 44 | F31: App.2-R: Loss Factors
A32: 18 | B32: App.2-CH: 2013 Depreciation and Amortization Expense (New CGAAP) | E32: 45 | F32: App.2-S: Stranded Meter Treatment
A33: 19 | B33: App.2-CI: 2014 Depreciation and Amortization Expense (MIFRS) | E33: 46 | F33: App.2-TA: Account 1592, PILs and Tax Variances
A34: 20 | B34: App.2-CJ: 2015 Depreciation and Amortization Expense (MIFRS) | E34: 47 | F34: App.2-TB: Account 1592, HST-OVAT Input Tax Credits
A35: 21 | B35: App.2-CK: 2016 Depreciation and Amortization Expense (MIFRS) | E35: 48 | F35: App.2-U: One-Time Incremental IFRS Transition Costs
A36: 22 | B36: App.2-D: Overhead Expenses | E36: 49 | F36: App.2-V: Revenue Reconciliation
A37: 23 | B37: App.2-EA: Account 1575 PP&E Deferral Account (2015 IFRS Adopters) | E37: 50 | F37: App.2-W: Bill Impacts
A38: 24 | B38: App.2-EB: Account 1576 - Accounting Changes Under CGAAP (2012 Changes) | E38: 51 | F38: App.2-Y: Transition to MIFRS Summary Impact
A39: 25 | B39: App.2-EC: Account 1576 - Accounting Changes Under CGAAP (2013 Changes) | E39: 52 | F39: App. 2-Z: Tariff Schedule
A40: 26 | B40: App.2-FA: Renewable Generation Connection Investment Summary
A41: 27 | B41: App.2-FB: Calculation of Renewable Generation Connection Direct Benefits/Provincial Amount: Renewable Enabling Improvement Investments
A42: 28 | B42: App.2-FC: Calculation of Renewable Generation Connection Direct Benefits/Provincial Amount: Renewable Expansion Investments

Sheet COS Flowchart
B4: Cost of Service Rate Application Schematic
B6: The Cost of Service Rate Application Schematic is a flowchart appended to Chapter 2 of the Filing Requirements as a guide for the components of an application and how demand and costs interrelate to derive the revenue requirement and then how the revenue requirement is allocated between classes and through fixed/variable splits to derive rates that will be compensatory for the annual revenue requirement, based on the the forecasted demand. There is no form to be filled out; therefore, this Schedule is not required to be filed.

Sheet List of Key References
B3: List of Key References
A5: A list of key references for understanding the Filing Requirements has been embedded in the document below. To access the list of references and associated hyperlinks double-click the icon below.

Sheet App.2-AA_Capital Projects 2010
A9: Capital Projects Table
A10: 2010
A12: Reporting Basis | B12: Reporting Basis | D12: CGAAP | E12: CGAAP | F12: CGAAP | G12: CGAAP | H12: CGAAP | I12: CGAAP | J12: CGAAP | K12: CGAAP | L12: CGAAP | M12: CGAAP | N12: CGAAP | O12: CGAAP | P12: CGAAP | Q12: CGAAP | R12: CGAAP | S12: CGAAP | T12: CGAAP
A13: Projects | B13: Projects | C13: USoA | D13: 1830 | E13: 1835 | F13: 1840 | G13: 1845 | H13: 1850 | I13: 1855 | J13: 1820 | K13: 1860 | L13: 1808 | M13: 1915 | N13: 1920 | O13: 1925 | P13: 1930 | Q13: 1940 | R13: 1955 | S13: 1980 | T13: Total
A15: System Access | B15: System Access
B16: New Services | I16: 60456 | T16: =SUM(D16:S16) -> 60456
B17: Logan Subdivision - Ketch Construction | G17: 3290 | I17: 3950 | T17: 7240
B18: New Service on Minto St. - Beachburg | D18: 1310 | E18: 441 | I18: 621 | T18: 2372
B19: Line Extension 3 Fern Gully Lane Beachburg | D19: 1364 | E19: 1512 | I19: 995 | T19: 3871
A20: C | B20: Shepard St. Pump Station Upgrade | T20: 0
B21: 351 Matheson Dr - Townhouses | G21: 3655 | I21: 225 | T21: 3880
B22: Blakely St Townhouses - Ryan Habraken Carpentry | G22: 3320 | I22: 808 | T22: 4128
A23: C | B23: Integrated Health Centre | I23: 639 | T23: 639
A24: X | B24: Microfit Connection | I24: 786 | T24: 786
A25: X | B25: Hydro One Networks - Walmart Tap | D25: 43897 | T25: 43897
A26: C | B26: Enerdu - APT Service | G26: 5937 | I26: 1487 | T26: 7424
B27: Transformers | H27: 100224.54 | T27: 60897
B28: Meters | K28: =9313+1123 -> 10436 | T28: 10436
A31: Total System Access | B31: Total System Access | D31: =SUM(D16:D30) -> 46571 | E31: =SUM(E16:E30) -> 1953 | F31: 0 | G31: 16202 | H31: 100224.54 | I31: 69967 | J31: 0 | K31: 10436 | L31: 0 | M31: 0 | N31: 0 | O31: 0 | P31: 0 | Q31: 0 | R31: 0 | S31: 0 | T31: 206026
A34: System Renewal | B34: System Renewal | D34: =$D$13 -> 1830 | E34: =$E$13 -> 1835 | F34: =$F$13 -> 1840 | G34: =$G$13 -> 1845 | H34: =$H$13 -> 1850 | I34: =$I$13 -> 1855 | J34: =$J$13 -> 1820 | K34: =$K$13 -> 1860 | L34: =+L13 -> 1808 | M34: =+M13 -> 1915 | N34: =+N13 -> 1920 | O34: =$O$13 -> 1925 | P34: =$P$13 -> 1930 | Q34: =+Q13 -> 1940 | R34: =+R13 -> 1955 | S34: =+S13 -> 1980 | T34: =$T$13 -> Total
B35: Minor Capital Betterments | D35: 10406 | E35: 26036 | I35: 4045 | T35: =SUM(D35:S35) -> 40487
A36: Renewal | B36: Farm St @ Almonte Lane Relocation | D36: 2008 | E36: 8234 | T36: =SUM(D36:S36) -> 10242
B37: Ottawa Street | E37: 31240 | I37: 10616 | T37: 41856
B38: Sub-Station 1 in Almonte Rebuild | J38: 135131 | T38: 135131
B39: River Road - Bus Betterment | E39: 549 | I39: 50 | T39: 599
B40: Replace Poles/Secondary Transformer - Craig St | E40: 8388 | T40: 8388
B41: Remove Lines - Bell St. and Angus Campbell Drive | D41: 6386 | E41: 15341 | F41: 39667 | G41: 59547 | T41: 120941
B42: Morris St - Extension | E42: 7100 | T42: 7100
B43: Quarry Road - City Yard | D43: 5791 | E43: 1771 | I43: 299 | T43: 7861
B44: Replace Pole & Transfer Backlot - 498 Cecelia St | I44: 724 | T44: 724
B45: Install Transformer - 40 Watchorn Rd Beachburg | D45: 1581 | E45: 815 | I45: 1032 | T45: 3428
B46: Florence St. 44KV Airbrake Switch | D46: 11140 | E46: 15922 | I46: 8630 | T46: 35692
B47: Replace NRTC 35' with ORPC 40' Pole - 59 Robertson Rd | D47: 843 | E47: 498 | I47: 567 | T47: 1908
B48: Moffat St. Betterment 623 to 698 | D48: 12217 | E48: 16260 | I48: 6386 | T48: 34863
B49: Alexander St. Rebuild | D49: 6186 | E49: 1693 | F49: 926 | I49: 437 | T49: 9242
B50: Beachburg Road Line Upgrade | D50: 14089 | E50: 9787 | I50: 266 | T50: 24142
B51: Substation 4 -Pole Storage Building | J51: 31317 | T51: 31317
A52: Sub-Total System Renewal | B52: =A52 -> Sub-Total System Renewal | D52: =SUM(D35:D51) -> 70647 | E52: =SUM(E35:E51) -> 143634 | F52: 40593 | G52: 59547 | H52: 0 | I52: 33052 | J52: 166448 | K52: 0 | L52: 0 | M52: 0 | N52: 0 | O52: 0 | P52: 0 | Q52: 0 | R52: 0 | S52: 0 | T52: 513921
A55: System Service | B55: System Service | D55: 1830 | E55: 1835 | F55: 1840 | G55: 1845 | H55: 1850 | I55: 1855 | J55: 1820 | K55: 1860 | L55: 1808 | M55: 1915 | N55: 1920 | O55: 1925 | P55: 1930 | Q55: 1940 | R55: 1955 | S55: 1980 | T55: =$T$13 -> Total
B56: Project Title
B57: Project Title
B58: Project Title
B59: Project Title
B60: Project Title
B61: Project Title
B62: Project Title
B63: Project Title
B64: Project Title
B65: Project Title
B66: Project Title
B67: Project Title
B68: Project Title
B69: Project Title
B70: Project Title
A71: Sub-Total System Service | B71: =A71 -> Sub-Total System Service | D71: =SUM(D56:D70) -> 0 | E71: =SUM(E56:E70) -> 0 | F71: 0 | G71: 0 | H71: 0 | I71: 0 | J71: 0 | K71: 0 | L71: 0 | M71: 0 | N71: 0 | O71: 0 | P71: 0 | Q71: 0 | R71: 0 | S71: 0 | T71: 0
A74: General Plant | B74: General Plant | D74: 1830 | E74: 1835 | F74: 1840 | G74: 1845 | H74: 1850 | I74: 1855 | J74: 1820 | K74: 1860 | L74: 1808 | M74: 1915 | N74: 1920 | O74: 1925 | P74: 1930 | Q74: 1940 | R74: 1955 | S74: 1980 | T74: =$T$13 -> Total
B75: Building Accesibility | L75: 14386.46 | T75: =SUM(D75:S75) -> 14386.46
B76: Upgrade office furniture for service department | M76: 5883 | T76: =SUM(D76:S76) -> 5883
B77: Upgrade two PC's from 2003 | N77: 2297 | T77: 2297
B78: Hansen Software | O78: 1050 | T78: 1050
B79: TCG Computers | O79: 2450 | T79: 2450
B80: BTS- Accpac Upgrade | O80: 1585 | T80: 1585
B81: Third Octet | O81: 7109 | T81: 7109
B82: 2010 Radial Boom Line Truck | P82: 277694.84 | T82: 277694.84
B83: Miscellaneous Small Tools | Q83: 2335 | T83: 2335
B84: Upgrade of radio system | R84: 5658 | T84: 5658
B85: Scada Computer and System Upgrade | S85: 64230 | T85: 64230
A87: Sub-Total General Plant | B87: =A87 -> Sub-Total General Plant | D87: =SUM(D75:D86) -> 0 | E87: =SUM(E75:E86) -> 0 | F87: 0 | G87: 0 | H87: 0 | I87: 0 | J87: 0 | K87: 0 | L87: 14386.46 | M87: 5883 | N87: 2297 | O87: 12194 | P87: 277694.84 | Q87: 2335 | R87: 5658 | S87: 64230 | T87: 384678.3
A89: Total Capital Expenditures | D89: =D31+D52+D71+D87 -> 117218 | E89: 145587 | F89: 40593 | G89: 75749 | H89: 100224.54 | I89: 103019 | J89: 166448 | K89: 10436 | L89: 14386.46 | M89: 5883 | N89: 2297 | O89: 12194 | P89: 277694.84 | Q89: 2335 | R89: 5658 | S89: 64230 | T89: 1104625.3
S90: Including Cap Contribution | T90: ='App.2-BA_Fixed Asset Cont'!E69 -> 979369.65
S91: Excluding Cap Contributions | T91: =SUM('App.2-BA_Fixed Asset Cont'!E17:E51) -> 1104624.35

Sheet App.2-AA_Capital Projects 2011
A9: Capital Projects Table
A10: 2011
A12: Reporting Basis | B12: Reporting Basis | D12: CGAAP | E12: CGAAP | F12: CGAAP | G12: CGAAP | H12: CGAAP | I12: CGAAP | J12: CGAAP | K12: CGAAP | L12: CGAAP | M12: CGAAP | N12: CGAAP | O12: CGAAP | P12: CGAAP | Q12: CGAAP | R12: CGAAP
A13: Projects | B13: Projects | C13: USoA | D13: 1830 | E13: 1835 | F13: 1840 | G13: 1845 | H13: 1850 | I13: 1855 | J13: 1820 | K13: 1860 | L13: 1808 | M13: 1915 | N13: 1920 | O13: 1925 | P13: 1930 | Q13: 1940 | R13: Total
A15: System Access | B15: System Access
A16: 0012 | B16: New Services | I16: 33106 | K16: 5018 | R16: =SUM(D16:Q16) -> 38124
A17: 1351 | B17: MicroFit Connections | K17: 1223.66 | R17: =SUM(D17:Q17) -> 1223.66
A18: 1357 | B18: Enerdu Apartment | H18: 13959 | R18: 13959
A19: 1391 | B19: Ottawa Street | E19: 312 | G19: 42103 | H19: 2545.59 | I19: 31791 | K19: 1445.54 | R19: 78197.13
A20: 1393 | B20: Patterson St - Line Extension | D20: 27821 | R20: 27821
A21: 1401 | B21: Equators Grind | H21: 13562 | R21: 13562
A22: 1402 | B22: Almonte Mews - Anne St - Townhouse project | D22: 1609 | E22: 1643 | G22: 28927 | H22: 1413 | I22: 121 | K22: 293.35 | R22: 34006.35
A23: 1417 | B23: Noik @ Bell St - 12 Townhouses - Ken Siegel | G23: 2096 | I23: 2883 | R23: 4979
A24: 1430 | B24: 375 Country St, - 18 Unit Apt. | K24: 1329.43 | R24: 1329.43
A25: 1434 | B25: New Algonquin College | F25: 54240 | H25: 746.31 | K25: 1383.45 | R25: 56369.76
A26: 1445 | B26: Hyde Park Condominium - Jamieson St. | D26: 126 | E26: 3825 | G26: 1202 | H26: 2872.75 | R26: 8025.75
A27: 1453 | B27: Rondeau Electric Mackay St | D27: 1310 | E27: 1472 | G27: 5587 | R27: 8369
A28: 1453 | B28: Crozier Electric. | D28: 2616 | E28: 3084 | H28: 2064.04 | R28: 7764.04
B29: Transformers | H29: 75699 | R29: 75699
A30: Total System Access | B30: Total System Access | D30: =SUM(D14:D29) -> 33482 | E30: =SUM(E14:E29) -> 10336 | F30: 54240 | G30: 79915 | H30: 112861.69 | I30: 67901 | J30: 0 | K30: 10693.43 | L30: 0 | M30: 0 | N30: 0 | O30: 0 | P30: 0 | Q30: 0 | R30: =SUM(R14:R29) -> 369429.12
A33: System Renewal | B33: System Renewal | D33: 1830 | E33: 1835 | F33: 1840 | G33: 1845 | H33: 1850 | I33: 1855 | J33: 1820 | K33: 1860 | L33: 1808 | M33: 1915 | N33: 1920 | O33: 1925 | P33: 1930 | Q33: 1940 | R33: Total
A34: 0027 | B34: Minor Capital Betterments | D34: 15928 | E34: 16372 | H34: 5167.22 | I34: 900 | R34: =SUM(D34:Q34) -> 38367.22
A35: 1016 | B35: Ottawa Street | E35: 3213 | H35: 3798.01 | I35: 16765 | R35: =SUM(D35:Q35) -> 23776.01
A36: 1352 | B36: Alexander St Rebuild | D36: 1750 | E36: 31718 | F36: 4642 | G36: 19589 | H36: 3753.75 | I36: 438 | K36: 595.15 | R36: 62485.9
A37: 1353 | B37: Beachburg Road Line Upgrade | D37: 8105 | E37: 44971 | H37: 2354.83 | I37: 4367 | R37: 59797.83
A38: 1358 | B38: Line Upgrade - Laurier Ave | D38: 5325 | E38: 6389 | I38: 4045 | R38: 15759
A39: 1396 | B39: Ellis Avenue Line Upgrade | D39: 5605 | E39: 8029 | I39: 100 | R39: 13734
A40: 1399 | B40: Replace Feeder Cables in Substation #3 | H40: 1560.09 | J40: 18919 | R40: 20479.09
A41: 1433 | B41: Cassidy's Transfer Service Upgrade Warehouse 1001 Mackay St | D41: 218 | I41: 1114 | R41: 1332
A42: 1456 | B42: Substation 4 Storage Building | J42: 27438 | R42: 27438
B43: Substation 7 - New Batteries | J43: 10250 | R43: 10250
B44: Substation 1 in Almonte - Completion | J44: 34006 | R44: 34006
R45: 0
A46: Sub-Total System Renewal | B46: Sub-Total System Renewal | D46: =SUM(D34:D44) -> 36931 | E46: =SUM(E34:E44) -> 110692 | F46: 4642 | G46: 19589 | H46: 16633.9 | I46: 27729 | J46: 90613 | K46: 595.15 | L46: 0 | M46: 0 | N46: 0 | O46: 0 | P46: 0 | Q46: 0 | R46: =SUM(R34:R45) -> 307425.05
A49: System Service | B49: System Service | D49: 1830 | E49: 1835 | F49: 1840 | G49: 1845 | H49: 1850 | I49: 1855 | J49: 1820 | K49: 1860 | L49: 1808 | M49: 1915 | N49: 1920 | O49: 1925 | P49: 1930 | Q49: 1940 | R49: Total
B50: Project Title | R50: =SUM(D50:Q50) -> 0
B51: Project Title | R51: =SUM(D51:Q51) -> 0
B52: Project Title | R52: 0
B53: Project Title | R53: 0
B54: Project Title | R54: 0
B55: Project Title | R55: 0
B56: Project Title | R56: 0
B57: Project Title | R57: 0
A58: Sub-Total System Service | B58: Sub-Total System Service | D58: =SUM(D50:D57) -> 0 | E58: =SUM(E50:E57) -> 0 | F58: 0 | G58: 0 | H58: 0 | I58: 0 | J58: 0 | K58: 0 | L58: 0 | M58: 0 | N58: 0 | O58: 0 | P58: 0 | Q58: 0 | R58: 0
A61: General Plant | B61: General Plant | D61: 1830 | E61: 1835 | F61: 1840 | G61: 1845 | H61: 1850 | I61: 1855 | J61: 1820 | K61: 1860 | L61: 1808 | M61: 1915 | N61: 1920 | O61: 1925 | P61: 1930 | Q61: 1940 | R61: Total
B62: Building Accessibility | L62: 5349 | R62: =SUM(D62:Q62) -> 5349
B63: New Roof | L63: 8830 | R63: =SUM(D63:Q63) -> 8830
B64: Renovate downstairs washroom | L64: 4428 | R64: 4428
B65: Office Chairs | M65: 2572 | R65: 2572
B66: 2011 Chevrolet Pickup Truck - Almonte | P66: 28088 | R66: 28088
B67: Harris | O67: 4500 | R67: 4500
B68: Other Software | O68: 4148.02 | R68: 4148.02
B69: Miscellaneous Small Tools | Q69: 5113.61 | R69: 5113.61
B70: Computer Hardware | N70: 8336.17 | R70: 8336.17
R71: 0
A72: Sub-Total General Plant | B72: Sub-Total General Plant | D72: =SUM(D62:D71) -> 0 | E72: =SUM(E62:E71) -> 0 | F72: 0 | G72: 0 | H72: 0 | I72: 0 | J72: 0 | K72: 0 | L72: 18607 | M72: 2572 | N72: 8336.17 | O72: 8648.02 | P72: 28088 | Q72: 5113.61 | R72: 71364.8
A74: Reconciliation to yearly additions | D74: N/A | E74: N/A
A75: Variance to yearly additions | D75: =D30+D46+D58+D72 -> 70413 | E75: =E30+E46+E58+E72 -> 121028 | F75: 58882 | G75: 99504 | H75: 129495.59 | I75: 95630 | J75: 90613 | K75: 11288.58 | L75: 18607 | M75: 2572 | N75: 8336.17 | O75: 8648.02 | P75: 28088 | Q75: 5113.61 | R75: 748218.97
Q76: Including Cap Contribution | R76: ='App.2-BA_Fixed Asset Cont'!E138 -> 494206.31
Q77: Excluding Cap Contributions | R77: =SUM('App.2-BA_Fixed Asset Cont'!E85:E121) -> 748217.8

Sheet App.2-AA_Capital Projects 2012
A9: Capital Projects Table
A10: 2012
A12: Reporting Basis | B12: Reporting Basis | D12: CGAAP | E12: CGAAP | F12: CGAAP | G12: CGAAP | H12: CGAAP | I12: CGAAP | J12: CGAAP | K12: CGAAP | L12: CGAAP | M12: CGAAP | N12: CGAAP | O12: CGAAP | P12: CGAAP | Q12: CGAAP | R12: CGAAP
A13: Projects | B13: Projects | C13: USoA | D13: 1830 | E13: 1835 | F13: 1840 | G13: 1845 | H13: 1850 | I13: 1855 | J13: 1820 | K13: 1860 | L13: 1808 | M13: 1925 | N13: 1930 | O13: 1940 | P13: 1955 | Q13: 1980 | R13: Total
A15: System Access | B15: System Access
A16: 0012 | B16: New Services | I16: 43699.86 | K16: 4333 | R16: =SUM(D16:Q16) -> 48032.86
A17: 1353 | B17: Beachburg Line Extension | H17: 1870 | R17: =SUM(D17:Q17) -> 1870
A18: 1402 | B18: Almonte Mews - Anne St - Townhouse project | I18: 966.67 | K18: 128.92 | R18: 1095.59
A19: 1430 | B19: Noik @ Bell St - 12 Townhouses - Ken Siegel | F19: 550 | G19: 2528 | R19: 3078
A20: 1434 | B20: New Algonquin College | F20: 569.41 | H20: 18188.4 | K20: 477.47 | R20: 19235.28
A21: 1435 | B21: Frank Neighbour Street Extension | F21: 729.66 | G21: 2735 | R21: 3464.66
A22: 1445 | B22: Hyde Park Condominium - Jamieson St. | G22: 11235.38 | H22: 21394.39 | K22: 514.13 | R22: 33143.9
A23: 1452 | B23: Rondeau Electric Mackay St | G23: 6875.77 | H23: 11682 | R23: 18557.77
A24: 1453 | B24: Crozier Electric. | E24: 538 | H24: 4286.67 | R24: 4824.67
A25: 1505 | B25: Holiday Inn Suites - Good Night Hotel Inc | F25: 586 | G25: 5840 | H25: 391 | K25: 500.9 | R25: 7317.9
A26: 1530 | B26: LCBO - 1050 Pembroke St E - MARNAC Developement | D26: 3664 | E26: 4515 | H26: 3293.88 | K26: 793.63 | R26: 12266.51
A27: 1532 | B27: Lakeridge Trail Phase Ph 2 Poleline Extension | D27: 6304 | E27: 11052 | H27: 1404.58 | R27: 18760.58
A28: 1536 | B28: CW Homes - 559 Nelson St - Townhomes | F28: 1210 | R28: 1210
A29: 1539 | B29: Poleline Extension - Fern Gulley Lane | D29: 3244 | E29: 1761 | H29: 1347.25 | R29: 6352.25
A30: 1541 | B30: Seigel Developement - Bell & Patricia St | D30: 4820 | H30: 38 | I30: 111 | R30: 4969
A31: 1543 | B31: Reginal Homes - Mill Run Phase 1A | G31: 9654 | H31: 1160.66 | I31: 916 | R31: 11730.66
B32: ???? | E32: 18227 | R32: 18227
B33: Transformers | H33: 17048 | R33: 17048
R34: 0
A36: Total System Access | B36: Total System Access | D36: =SUM(D16:D34) -> 18032 | E36: =SUM(E16:E34) -> 36093 | F36: 3645.07 | G36: 38868.15 | H36: 82104.83 | I36: 45693.53 | J36: 0 | K36: 6748.05 | L36: 0 | M36: 0 | N36: 0 | O36: 0 | P36: 0 | Q36: 0 | R36: 231184.63
A39: System Renewal | B39: System Renewal | D39: 1830 | E39: 1835 | F39: 1840 | G39: 1845 | H39: 1850 | I39: 1855 | J39: 1820 | K39: 1860 | L39: 1808 | M39: 1925 | N39: 1930 | O39: 1940 | P39: 1955 | Q39: 1980 | R39: Total
A40: 0027 | B40: Minor Capital Betterments | D40: 25215 | E40: 67202 | H40: 20176.77 | I40: 3474 | K40: 17847.5 | R40: =SUM(D40:Q40) -> 133915.27
A41: 1011 | B41: Energy Retrofit at Substation 1 | J41: 4460 | R41: =SUM(D41:Q41) -> 4460
A42: 1490 | B42: Fraser St. Reconductoring | E42: 307 | R42: 307
A43: 1491 | B43: Maple St. Reconductoring | D43: 6258 | E43: 55694 | H43: 2489.5 | I43: 911 | R43: 65352.5
A44: 1497 | B44: Martin St. Betterment | D44: 64 | R44: 64
A45: 1500 | B45: Pole Replacement on Coolidge - Fire - Behind 247 Mackenzie | D45: 1380 | E45: 2119 | R45: 3499
A46: 1515 | B46: Replace Poles & Reconductor - Pemb W & Renfrew St | D46: 5882 | E46: 2093 | H46: 3592.34 | R46: 11567.34
A47: 1523 | B47: Replace 44 KV Pole - Angus Campbell Dr | D47: 3947 | E47: 1470 | G47: 5091 | R47: 10508
A48: 1525 | B48: Repole 44Kv Line From Superior Elec To Quarry | D48: 27525 | E48: 49690 | H48: 9865.47 | R48: 87080.47
A49: 1548 | B49: Install Transformer at Mikes Garage in Killaloe | H49: 1495 | R49: 1495
B50: Killaloe Reclosure | E50: 24875 | R50: 24875
B51: Battery Packs Sub 3 & 7 | J51: 1717.33 | R51: 1717.33
R52: 0
A53: Sub-Total System Renewal | B53: Sub-Total System Renewal | D53: =SUM(D40:D52) -> 70271 | E53: =SUM(E40:E52) -> 203450 | F53: 0 | G53: 5091 | H53: 37619.08 | I53: 4385 | J53: 6177.33 | K53: 17847.5 | L53: 0 | M53: 0 | N53: 0 | O53: 0 | P53: 0 | Q53: 0 | R53: 344840.91
A56: System Service | B56: System Service | D56: 1830 | E56: 1835 | F56: 1840 | G56: 1845 | H56: 1850 | I56: 1855 | J56: 1820 | K56: 1860 | L56: 1808 | M56: 1925 | N56: 1930 | O56: 1940 | P56: 1955 | Q56: 1980 | R56: Total
B57: Project Title
B58: Project Title
B59: Project Title
B60: Project Title
B61: Project Title
B62: Project Title
B63: Project Title
B64: Project Title
A65: Sub-Total System Service | B65: Sub-Total System Service | D65: 0 | E65: 0 | F65: 0 | G65: 0 | H65: 0 | I65: 0 | J65: 0 | K65: 0 | M65: 0 | N65: 0 | R65: 0
A68: General Plant | B68: General Plant | D68: 1830 | E68: 1835 | F68: 1840 | G68: 1845 | H68: 1850 | I68: 1855 | J68: 1820 | K68: 1860 | L68: 1808 | M68: 1925 | N68: 1930 | O68: 1940 | P68: 1955 | Q68: 1980 | R68: Total
B69: Front Office Washroom | L69: 12844.2 | R69: 12844.2
B70: Heat Exchanger | L70: 7423.92 | R70: 7423.92
B71: Pave between buildings | L71: 4100 | R71: 4100
B72: New Front Entrance - Accessibility Entrance | L72: 29978.81 | R72: 29978.81
B73: Roof Repair | L73: 5813 | R73: 5813
B74: Annual PC replacement | M74: 5308 | R74: 5308
B75: Chipper | N75: 41500 | R75: 41500
B76: Backhoe | N76: 57000 | R76: 57000
B77: 2012 Dodge Grand Caravan | N77: 27191 | R77: 27191
B78: Rebuild Engine 2005 International 4400 - Almonte | N78: 7585 | R78: 7585
B79: Reel Trailer | N79: 12127 | R79: 12127
B80: Miscellaneous Small Tools | O80: 12398.51 | R80: 12398.51
B81: Communication Equipment | P81: 1574.33 | R81: 1574.33
B82: Scada Equipment | Q82: 4116 | R82: 4116
R83: 0
R84: 0
R85: 0
A86: Sub-Total General Plant | B86: Sub-Total General Plant | D86: 0 | E86: 0 | F86: 0 | G86: 0 | H86: 0 | I86: 0 | J86: 0 | K86: 0 | L86: 60159.93 | M86: 5308 | N86: 145403 | O86: 12398.51 | P86: 1574.33 | Q86: 4116 | R86: 228959.77
A88: Total Capital Expenditures | D88: 88303 | E88: 239543 | F88: 3645.07 | G88: 43959.15 | H88: 138057.76 | I88: 50078.53 | J88: 6177.33 | K88: 23542.17 | L88: 60159.93 | M88: 5308 | N88: 145403 | O88: 12398.51 | P88: 1574.33 | Q88: 4116 | R88: =+R86+R53+R36 -> 804985.31
Q89: Including Cap Contribution | R89: ='App.2-BA_Fixed Asset Cont'!E205 -> 457682.72
Q90: Excluding Cap Contributions | R90: =SUM('App.2-BA_Fixed Asset Cont'!E154:E189) -> 804986.61

Sheet App.2-AA_Capital Projects 2013
A9: Capital Projects Table
A10: 2013
A12: Reporting Basis | B12: Reporting Basis | D12: CGAAP | E12: CGAAP | F12: CGAAP | G12: CGAAP | H12: CGAAP | I12: CGAAP | J12: CGAAP | K12: CGAAP | L12: CGAAP | M12: CGAAP | N12: CGAAP | O12: CGAAP | P12: CGAAP | Q12: CGAAP | R12: CGAAP | S12: CGAAP | T12: CGAAP
A13: Projects | B13: Projects | C13: USoA | D13: 1830 | E13: 1835 | F13: 1840 | G13: 1845 | H13: 1850 | I13: 1855 | J13: 1820 | K13: 1860 | L13: 1808 | M13: 1915 | N13: 1920 | O13: 1925 | P13: 1930 | Q13: 1940 | R13: 1955 | S13: 1980 | T13: Total
A15: System Access | B15: System Access
A16: 0012 | B16: New Services | I16: 35845.84 | K16: 7266 | T16: =SUM(D16:S16) -> 43111.84
A17: 1402 | B17: Almonte Mews - Anne St - Townhouse project | I17: 4288 | K17: 619.57 | T17: =SUM(D17:S17) -> 4907.57
A18: 1541 | B18: Seigel Developement - Bell & Patricia St | D18: 6295 | H18: 47005 | I18: 39605 | T18: 92905
A19: 1543 | B19: Reginal Homes - Mill Run Phase 1A , | D19: 4141 | E19: 5045 | F19: 736 | G19: 24754 | H19: 772 | I19: 26842 | K19: 256.5 | T19: 62546.5
A20: 1550 | B20: Creek Side Towns - Novatech Engineering | D20: 2401 | F20: 118 | I20: 4359 | K20: 914.53 | T20: 7792.53
A21: 1600 | B21: Everett St - 3 Unit Townhouse. | I21: 340 | T21: 340
A22: 1615 | B22: Watchorn Drive Line Extension | D22: 14730 | E22: 14282 | H22: 2124 | I22: 2986 | T22: 34122
A23: 1627 | B23: Vera Cres; Install 2 Polls - Jeff Johnson | D23: 2435 | E23: 2774 | T23: 5209
A24: 1635 | B24: Lowe Court - Beachburg | D24: 3062 | E24: 3088 | T24: 6150
B25: Transformers | H25: 45858 | T25: 45858
A27: Total System Access | B27: Total System Access | D27: =SUM(D15:D24) -> 33064 | E27: 25189 | F27: 854 | G27: 24754 | H27: 49901 | I27: 114265.84 | J27: 0 | K27: 9056.6 | L27: 0 | M27: 0 | N27: 0 | O27: 0 | P27: 0 | Q27: 0 | R27: 0 | S27: 0 | T27: =SUM(T15:T25) -> 302942.44
A30: System Renewal | B30: System Renewal | D30: =$D$13 -> 1830 | E30: =$E$13 -> 1835 | F30: =$F$13 -> 1840 | G30: =$G$13 -> 1845 | H30: =$H$13 -> 1850 | I30: =$I$13 -> 1855 | J30: =$J$13 -> 1820 | K30: =$K$13 -> 1860 | L30: =+L13 -> 1808 | M30: =+M13 -> 1915 | N30: =+N13 -> 1920 | O30: =$O$13 -> 1925 | P30: =$P$13 -> 1930 | Q30: =+Q13 -> 1940 | R30: =+R13 -> 1955 | S30: =+S13 -> 1980 | T30: =$T$13 -> Total
A31: 0027 | B31: Minor Capital Betterments | D31: 13709 | E31: 37961 | H31: 18652 | I31: =1631+880 -> 2511 | K31: 223.62 | T31: =SUM(D31:S31) -> 73056.62
A32: 1490 | B32: Fraser St. Reconductoring | E32: 89235 | T32: =SUM(D32:S32) -> 89235
A33: 1491 | B33: Maple St. Reconductoring | D33: 135 | T33: 135
A34: 1497 | B34: Martin St. Betterment | D34: 75333 | E34: 16465 | I34: 523 | T34: 92321
A35: 1515 | B35: Replace 3 Poles & Reconductor - Pemb W & Renfrew St | E35: 6976 | H35: 2611 | I35: 1388 | T35: 10975
A36: 1525 | B36: Repole 44Kv Line From Superior Elec To Quarry | E36: 6638 | T36: 6638
A37: 1559 | B37: Mackay St - 44 KV Ecress Sub #4 | D37: 30107 | E37: 30440 | F37: 1210 | G37: 9106 | H37: 1008 | T37: 71871
A38: 1598 | B38: Beachburg Fire - 1888 Beachburg Rd (15 KVA Transformer) | D38: 2815 | E38: 3590 | H38: 1735 | I38: 304 | T38: 8444
A39: 1630 | B39: Replace 3 44 KV Poles McKenzie St | D39: 6297 | E39: 8138 | T39: 14435
B40: Substation 2 | J40: 40093 | T40: 40093
T41: 0
A42: Sub-Total System Renewal | B42: =A42 -> Sub-Total System Renewal | D42: =SUM(D31:D40) -> 128396 | E42: =SUM(E31:E40) -> 199443 | F42: 1210 | G42: 9106 | H42: 24006 | I42: 4726 | J42: 40093 | K42: 223.62 | L42: 0 | M42: 0 | N42: 0 | O42: 0 | P42: 0 | Q42: 0 | R42: 0 | S42: 0 | T42: =SUM(T31:T40) -> 407203.62
A45: System Service | B45: System Service | D45: 1830 | E45: 1835 | F45: 1840 | G45: 1845 | H45: 1850 | I45: 1855 | J45: 1820 | K45: 1860 | L45: 1808 | M45: 1915 | N45: 1920 | O45: 1925 | P45: 1930 | Q45: 1940 | R45: 1955 | S45: 1980 | T45: =$T$13 -> Total
B46: Project Title
B47: Project Title
B48: Project Title
B49: Project Title
B50: Project Title
B51: Project Title
B52: Project Title
A53: Sub-Total System Service | B53: =A53 -> Sub-Total System Service | D53: =SUM(D46:D52) -> 0 | E53: =SUM(E46:E52) -> 0 | F53: 0 | G53: 0 | H53: 0 | I53: 0 | J53: 0 | K53: 0 | L53: 0 | M53: 0 | N53: 0 | O53: 0 | P53: 0 | Q53: 0 | R53: 0 | S53: 0 | T53: 0
A56: General Plant | B56: General Plant | D56: 1830 | E56: 1835 | F56: 1840 | G56: 1845 | H56: 1850 | I56: 1855 | J56: 1820 | K56: 1860 | L56: 1808 | M56: 1915 | N56: 1920 | O56: 1925 | P56: 1930 | Q56: 1940 | R56: 1945 | S56: 1980 | T56: =$T$13 -> Total
B57: Doors for Garage | L57: 11963 | T57: =SUM(D57:S57) -> 11963
B58: Overhead Walkway between Buildings | L58: 41323 | T58: =SUM(D58:S58) -> 41323
B59: Install accessible washroom, new shower area and men's washroom and lunch room area | L59: 40459 | T59: 40459
B60: Office Chairs | M60: 1388 | T60: 1388
B61: Computer Hardware | N61: 28127.21 | T61: 28127.21
B62: Harris - Upgrade to new version | O62: 46620 | T62: 46620
B63: 2014 Dodge Ram | P63: 25170 | T63: 25170
B64: 2013 Ford F150 1/2 Ton | P64: 30746 | T64: 30746
B65: 2014 Double Bucket Material Handler Truck | P65: 401326 | T65: 401326
B66: Miscellaneous Small Tools | Q66: 6273 | T66: 6273
B67: Measurement and Testing Equipment | Q67: 12104 | R67: 18090 | S67: 503 | T67: 30697
A69: Sub-Total General Plant | B69: =A69 -> Sub-Total General Plant | D69: =SUM(D57:D67) -> 0 | E69: =SUM(E57:E67) -> 0 | F69: 0 | G69: 0 | H69: 0 | I69: 0 | J69: 0 | K69: 0 | L69: 93745 | M69: 1388 | N69: 28127.21 | O69: 46620 | P69: 457242 | Q69: 18377 | R69: 18090 | S69: 503 | T69: =SUM(D69:S69) -> 664092.21
A71: Total Capital Expenditures | D71: =D27+D42+D53+D69 -> 161460 | E71: 224632 | F71: 2064 | G71: 33860 | H71: 73907 | I71: 118991.84 | J71: 40093 | K71: 9280.22 | L71: 93745 | M71: 1388 | N71: 28127.21 | O71: 46620 | P71: 457242 | Q71: 18377 | R71: 18090 | S71: 503 | T71: 1374238.27
S72: Including Cap Contribution | T72: ='App.2-BA_Fixed Asset Cont'!E272 -> 1339021.1
S73: Excluding Cap Contributions | T73: =SUM('App.2-BA_Fixed Asset Cont'!E222:E256) -> 1374238

Sheet App.2-AA_Capital Projects 2014
A9: Capital Projects Table
A10: 2014
A12: Reporting Basis | B12: Reporting Basis | D12: CGAAP | E12: CGAAP | F12: CGAAP | G12: CGAAP | H12: CGAAP | I12: CGAAP | J12: CGAAP | K12: CGAAP | L12: CGAAP | M12: CGAAP | N12: CGAAP | O12: CGAAP | P12: CGAAP | Q12: CGAAP | R12: CGAAP | S12: CGAAP | T12: CGAAP
A13: Projects | B13: Projects | C13: USoA | D13: 1830 | E13: 1835 | F13: 1840 | G13: 1845 | H13: 1850 | I13: 1855 | J13: 1820 | K13: 1860 | L13: 1808 | M13: 1915 | N13: 1920 | O13: 1925 | P13: 1930 | Q13: 1940 | R13: 1955 | S13: 1980 | T13: Total
A15: System Access | B15: System Access
A16: 12 | B16: New Services - Capital | H16: =30913-290 -> 30623 | I16: =29815.69+9913-132+290 -> 39886.69 | K16: =16426.91+132 -> 16558.91 | T16: =SUM(D16:S16) -> 87068.6
A17: 1351 | B17: Micro Fit Connections | K17: 1984 | T17: =SUM(D17:S17) -> 1984
A18: 1402 | B18: Anne St Townhouses | I18: 1935.14 | K18: 315.08 | T18: 2250.22
A19: 1537 | B19: Noik Drive - 12 unit Apt | H19: 889.5 | I19: 443.53 | T19: 1333.03
A20: 1541 | B20: Seigel Dev - Bell & Patricia St | G20: 5672.83 | H20: 41.4 | T20: 5714.23
A21: 1640 | B21: OPP Detachment - Install UG Primary XLPE Cable | F21: =2046.48+7093 -> 9139.48 | G21: =22645.04-7093 -> 15552.04 | H21: 21089.45 | K21: 97.87 | T21: 45878.84
A22: 1657 | B22: Fibre - Install duct from SW16 to OPP Building | F22: 1370.33 | T22: 1370.33
A23: 1661 | B23: Watchorn U/G Line Extension - Load Transfer | F23: 28289.97 | G23: 7500.55 | H23: 6128.07 | I23: 4113.83 | T23: 46032.42
A24: 1668 | B24: Mill Run - Phase 1 B Developement | F24: 676.69 | G24: 69022.02 | H24: 11715.28 | I24: 21184.68 | K24: 340.88 | T24: 102939.55
A25: 1704 | B25: U/G Services - Townhouses - 329-339 Matheson Dr | I25: 3110.63 | T25: 3110.63
A26: 1705 | B26: New Gas Station - Almonte | H26: 14469.85 | I26: 537.51 | K26: 111.22 | T26: 15118.58
A27: 1706 | B27: Almonte - New Transformer Bank - Spring St Pumping Station | H27: 15598.67 | I27: 465.31 | K27: 110.36 | T27: 16174.34
A28: 1712 | B28: Install Transformer Bank - Stinson Paul Martin Drive | H28: 7541.31 | I28: 343.61 | K28: 175 | T28: 8059.92
A29: 1720 | B29: Rd Crossing - McKenzie St Development | D29: =1012.57+112 -> 1124.57 | E29: 537.96 | T29: 1662.53
A30: 1721 | B30: Construct Line - Loadtransfer Cust. @ 68 Watchorn Rd | D30: 1006.5 | E30: 726.34 | T30: 1732.84
A32: Total System Access | B32: Total System Access | D32: =SUM(D15:D30) -> 2131.07 | E32: =SUM(E15:E30) -> 1264.3 | F32: 39476.47 | G32: 97747.44 | H32: 108096.53 | I32: 72020.93 | J32: 0 | K32: 19693.32 | L32: 0 | M32: 0 | N32: 0 | O32: 0 | P32: 0 | Q32: 0 | R32: 0 | S32: 0 | T32: =SUM(T15:T30) -> 340430.06
A35: System Renewal | B35: System Renewal | D35: 1830 | E35: 1835 | F35: 1840 | G35: 1845 | H35: 1850 | I35: 1855 | J35: 1820 | K35: 1860 | L35: 1808 | M35: 1915 | N35: 1920 | O35: 1925 | P35: 1930 | Q35: 1940 | R35: 1955 | S35: 1980 | T35: Total
T36: =SUM(D36:S36) -> 0
A37: 27 | B37: Minor Capital Betterments | D37: =20780.26-112 -> 20668.26 | E37: =54905.59+112+1998 -> 57015.59 | H37: =24559.07-1998 -> 22561.07 | I37: 146.2 | J37: 1185.94 | T37: =SUM(D37:S37) -> 101577.06
A38: 1490 | B38: Fraser St - Reconductoring | E38: 52559.22 | T38: 52559.22
A39: 1497 | B39: Martin St Betterment | D39: 1477.36 | E39: 82137.54 | H39: 2975.91 | I39: 33.86 | T39: 86624.67
A40: 1644 | B40: Replace Defective UG Riser Pole - 240 Reynolds Ave | D40: 1456.11 | E40: 799.55 | G40: 1259.85 | T40: 3515.51
A41: 1648 | B41: Almonte 44 KV Betterment Hwy 15 to Sub #2 | D41: 28283.83 | E41: 33451.51 | T41: 61735.34
A42: 1650 | B42: Robertson Rd Rebuild - Beachburg | D42: 14504.61 | E42: 38207.05 | H42: 5814.96 | I42: 2854.45 | J42: 3589.61 | T42: 64970.68
A43: 1651 | B43: Install 35" Guy Stub Pole Anchor & Transfer - 968 Reynolds A | D43: 768.28 | T43: 768.28
A44: 1653 | B44: Replace Transformer 75 Kva to 50 Kva - 386 Morris St | H44: 6018.96 | T44: 6018.96
A45: 1656 | B45: Reroute Primary - International Drive | F45: 1569.32 | G45: 8122.63 | H45: 4342.3 | J45: 172 | T45: 14206.25
A46: 1660 | B46: Reconductor McGee St With 4/0 / 1/0 Bus | E46: 15628.09 | H46: 1004.46 | I46: 353.12 | T46: 16985.67
A47: 1672 | B47: Install OH 120V Secondary - Bell St | E47: 1854.46 | T47: 1854.46
A48: 1673 | B48: Replace 2 Poles & Transfer @ Cameron St | D48: 2354.97 | E48: 2479.51 | T48: 4834.48
A49: 1678 | B49: Reinsulate 15 KV Line - Bennet & Julien St | E49: 8966.84 | T49: 8966.84
A50: 1703 | B50: Fraser St - 5 KV -Convert to Armless Construction | E50: 3690 | T50: 3690
A51: 1711 | B51: Install 44 KV Switches - 260 Fraser St | E51: 3575 | T51: 3575
A52: 1715 | B52: Install 2 45' Poles - John St @ Ryan St Killaloe | D52: 2818.8 | E52: 1154.54 | T52: 3973.34
A53: 1719 | B53: Upgrade Secondary Conductor - Everett St | E53: 2989 | T53: 2989
B54: Sub 3 Ground Grid | J54: 10468 | T54: 10468
B55: Sub 6 Ground Grid | J55: 10468 | T55: 10468
T56: 0
T57: 0
T58: 0
T59: 0
T60: 0
A61: Sub-Total System Renewal | B61: Sub-Total System Renewal | D61: =SUM(D36:D59) -> 72332.22 | E61: 304507.9 | F61: 1569.32 | G61: 9382.48 | H61: 42717.66 | I61: 3387.63 | J61: 25883.55 | K61: 0 | L61: 0 | M61: 0 | N61: 0 | O61: 0 | P61: 0 | Q61: 0 | R61: 0 | S61: 0 | T61: 459780.76
A64: System Service | B64: System Service | D64: 1830 | E64: 1835 | F64: 1840 | G64: 1845 | H64: 1850 | I64: 1855 | J64: 1820 | K64: 1860 | L64: 1808 | M64: 1915 | N64: 1920 | O64: 1925 | P64: 1930 | Q64: 1940 | R64: 1955 | S64: 1980 | T64: Total
A65: 1647 | B65: Replace Collectors in Almonte With Pole Mount Colle | K65: 12215.84 | T65: =SUM(D65:S65) -> 12215.84
A66: 1652 | B66: Install New Viper Mount Reclosure - Mill St Killaloe | E66: 35561.57 | I66: 4875.84 | T66: 40437.41
A67: 1709 | B67: SUB 2 - Rebuild | D67: 267.13 | E67: 3265.67 | F67: 2834.9 | G67: =9928.61+58972 -> 68900.61 | H67: =31614.92-25000+661 -> 7275.92 | J67: =87427+25000-661-59014 -> 52752 | T67: 135296.23
A68: 1725 | B68: Subs 2 & 3 - Inspection and Testing - Almonte | J68: 28828 | T68: 28828
T69: 0
T70: 0
A72: Sub-Total System Service | B72: Sub-Total System Service | D72: =SUM(D65:D71) -> 267.13 | E72: =SUM(E65:E71) -> 38827.24 | F72: 2834.9 | G72: 68900.61 | H72: 7275.92 | I72: 4875.84 | J72: 81580 | K72: 12215.84 | L72: 0 | M72: 0 | N72: 0 | O72: 0 | P72: 0 | Q72: 0 | R72: 0 | S72: 0 | T72: =SUM(T65:T71) -> 216777.48
A75: General Plant | B75: General Plant | D75: 1830 | E75: 1835 | F75: 1840 | G75: 1845 | H75: 1850 | I75: 1855 | J75: 1820 | K75: 1860 | L75: 1808 | M75: 1915 | N75: 1920 | O75: 1925 | P75: 1930 | Q75: 1940 | R75: 1955 | S75: 1980 | T75: Total
B76: Men's Wshrm Accessability | L76: 11740.48 | T76: =SUM(D76:S76) -> 11740.48
B77: Garage Work | L77: 12989.12 | T77: =SUM(D77:S77) -> 12989.12
B78: Office Desk & Chairs | M78: 3337 | T78: 3337
B79: Computer Hardware: Printers, Desktops | N79: 10556.86 | T79: 10556.86
B80: Computer Software - CIS | O80: 28560 | T80: 28560
B81: Computer Software - Finance, Mapping | O81: 12406.71 | T81: 12406.71
B82: Forklift Purchase | P82: 16400 | T82: 16400
B83: Ford C-Max - Service Vehicle Purchase | P83: 28236 | T83: 28236
B84: Utility Trailer | P84: 8970 | T84: 8970
B85: Final Material for Double Bucket Truck | P85: 5273.43 | T85: 5273.43
B86: Small Tools | Q86: 39977.4 | T86: 39977.4
B87: Communication Equip | R87: 2147.6 | T87: 2147.6
B88: System Supervisory Equp | S88: 611.33 | T88: 611.33
T90: 0
A91: Sub-Total General Plant | B91: Sub-Total General Plant | D91: =SUM(D76:D90) -> 0 | E91: =SUM(E76:E90) -> 0 | F91: 0 | G91: 0 | H91: 0 | I91: 0 | J91: 0 | K91: 0 | L91: 24729.6 | M91: 3337 | N91: 10556.86 | O91: 40966.71 | P91: 58879.43 | Q91: 39977.4 | R91: 2147.6 | S91: 611.33 | T91: 181205.93
A93: Total Capital Expenditures | D93: =D32+D61+D72+D91 -> 74730.42 | E93: 344599.44 | F93: 43880.69 | G93: 176030.53 | H93: 158090.11 | I93: 80284.4 | J93: 107463.55 | K93: 31909.16 | L93: 24729.6 | M93: 3337 | N93: 10556.86 | O93: 40966.71 | P93: 58879.43 | Q93: 39977.4 | R93: 2147.6 | S93: 611.33 | T93: 1198194.23
S94: Including Cap Contribution | T94: ='App.2-BA_Fixed Asset Cont'!E341 -> 1049402
S95: Excluding Cap Contributions | T95: =SUM('App.2-BA_Fixed Asset Cont'!E292:E326) -> 1198194
D97: ='App.2-BA_Fixed Asset Cont'!$E300 -> 74730 | E97: ='App.2-BA_Fixed Asset Cont'!$E301 -> 344599 | F97: ='App.2-BA_Fixed Asset Cont'!$E302 -> 43881 | G97: ='App.2-BA_Fixed Asset Cont'!$E303 -> 176031 | H97: ='App.2-BA_Fixed Asset Cont'!$E304 -> 158090 | I97: ='App.2-BA_Fixed Asset Cont'!$E305 -> 80284 | J97: ='App.2-BA_Fixed Asset Cont'!E298 -> 107464 | K97: ='App.2-BA_Fixed Asset Cont'!E307 -> 31909 | L97: ='App.2-BA_Fixed Asset Cont'!E295 -> 24730 | M97: ='App.2-BA_Fixed Asset Cont'!E311 -> 3337 | N97: ='App.2-BA_Fixed Asset Cont'!E315 -> 10557 | O97: ='App.2-BA_Fixed Asset Cont'!E292 -> 40967 | P97: ='App.2-BA_Fixed Asset Cont'!E316 -> 58879 | Q97: ='App.2-BA_Fixed Asset Cont'!E318 -> 39977 | R97: ='App.2-BA_Fixed Asset Cont'!E321 -> 2148 | S97: ='App.2-BA_Fixed Asset Cont'!E326 -> 611 | T97: =SUM(D97:S97) -> 1198194
D98: =D93-D97 -> 0.42 | E98: =E93-E97 -> 0.44 | F98: -0.31 | G98: -0.47 | H98: 0.11 | I98: 0.4 | J98: -0.45 | K98: 0.16 | L98: -0.4 | M98: 0 | N98: -0.14 | O98: -0.29 | P98: 0.43 | Q98: 0.4 | R98: -0.4 | S98: 0.33

Sheet App.2-AA_Capital Projects 2015
A9: Capital Projects Table
A10: 2015
A12: Reporting Basis | B12: Reporting Basis | D12: CGAAP | E12: CGAAP | F12: CGAAP | G12: CGAAP | H12: CGAAP | I12: CGAAP | J12: CGAAP | K12: CGAAP | L12: CGAAP | M12: CGAAP | N12: CGAAP | O12: CGAAP | P12: CGAAP | Q12: CGAAP | R12: CGAAP | S12: CGAAP | T12: CGAAP
A13: Projects | B13: Projects | C13: USoA | D13: 1830 | E13: 1835 | F13: 1840 | G13: 1845 | H13: 1850 | I13: 1855 | J13: 1820 | K13: 1860 | L13: 1808 | M13: 1915 | N13: 1920 | O13: 1925 | P13: 1930 | Q13: 1940 | R13: 1955 | S13: 1980 | T13: Total
A15: System Access | B15: System Access | T15: =SUM(D15:S15) -> 0
A16: 0012 | B16: New Services | D16: 20000 | E16: 60000 | F16: 53000 | G16: 100000 | H16: 80000 | I16: 35000 | K16: 10000 | T16: =SUM(D16:S16) -> 358000
A17: 4 | B17: Commercial | D17: 10000 | E17: 30000 | F17: 20000 | G17: 50000 | H17: 42500 | I17: 15500 | K17: 5000 | T17: 173000
A18: 5 | B18: Scattered Residential Pembroke | E18: 20000 | G18: 15000 | H18: 8000 | I18: 25500 | K18: 4500 | T18: 73000
A19: 5.1 | B19: Scattered Residential Beachburg | E19: 5000 | G19: 13650 | H19: 2000 | I19: 5000 | K19: 1500 | T19: 27150
A20: 5.2 | B20: Scattered Residential Killaloe | E20: 5000 | H20: 2000 | I20: 5000 | K20: 1500 | T20: 13500
A21: 5.3 | B21: Scattered Residential Almonte | E21: 15000 | H21: 6000 | I21: 15000 | K21: 3000 | T21: 39000
T22: 0
A23: Total System Access | B23: Total System Access | D23: =SUM(D15:D21) -> 30000 | E23: 135000 | F23: 73000 | G23: 178650 | H23: 140500 | I23: 101000 | J23: 0 | K23: 25500 | L23: 0 | M23: 0 | N23: 0 | O23: 0 | P23: 0 | Q23: 0 | R23: 0 | S23: 0 | T23: 683650
A26: System Renewal | B26: System Renewal | D26: 1830 | E26: 1835 | F26: 1840 | G26: 1845 | H26: 1850 | I26: 1855 | J26: 1820 | K26: 1860 | L26: 1808 | M26: 1915 | N26: 1920 | O26: 1925 | P26: 1930 | Q26: 1940 | R26: 1955 | S26: 1980 | T26: Total
B27: Scattered Pole replacement Pembroke | D27: 43000 | H27: 5500 | T27: =SUM(D27:S27) -> 48500
B28: Scattered Pole replacement Almonte | D28: 15000 | H28: 2000 | T28: =SUM(D28:S28) -> 17000
B29: Scattered Pole replacement Beachburg | D29: 4000 | H29: 1000 | T29: 5000
B30: Scattered Pole replacement Killaloe | D30: 4000 | H30: 1000 | T30: 5000
B31: Minor Capital Betterments Pembroke | D31: =37200-5380 -> 31820 | E31: 43000 | G31: 30000 | H31: 19000 | T31: 123820
B32: Minor Capital Betterments Almonte | D32: 24000 | E32: 25000 | G32: 25000 | H32: 12000 | T32: 86000
B33: Minor Capital Betterments Beachburg | D33: =1500 -> 1500 | E33: 3500 | G33: 5000 | H33: 3000 | T33: 13000
B34: Minor Capital Betterments Killaloe | D34: 1500 | E34: 3500 | G34: 5000 | H34: 3000 | T34: 13000
B35: Fisher St. to Trafalgar | D35: 0 | T35: 0
B36: Sub 4 Behind Remi Auto | D36: 0 | J36: 10000 | T36: 10000
B37: Sub 2 44 kV cement Pole | D37: 0 | T37: 0
B38: Pembroke Substation Condition Assessment | J38: 20000 | T38: 20000
T39: 0
B40: Substation Testing and assesment | J40: 14500 | T40: 14500
B41: Sub 3 Replace Pole structure at station entrance | D41: 0 | T41: 0
B42: Pembroke roads | F42: 0 | G42: 0 | H42: 0 | T42: 0
B43: Replace cedar poles at Mackay | D43: 0 | T43: 0
B44: Replace Bell poles | E44: 0 | T44: 0
B45: Meters | K45: 49500 | T45: 49500
T46: 0
T47: 0
A48: Sub-Total System Renewal | B48: =A48 -> Sub-Total System Renewal | D48: =SUM(D27:D46) -> 124820 | E48: =SUM(E27:E46) -> 75000 | F48: 0 | G48: 65000 | H48: 46500 | I48: 0 | J48: 44500 | K48: 49500 | L48: 0 | M48: 0 | N48: 0 | O48: 0 | P48: 0 | Q48: 0 | R48: 0 | S48: 0 | T48: 405320
A51: System Service | B51: System Service | D51: 1830 | E51: 1835 | F51: 1840 | G51: 1845 | H51: 1850 | I51: 1855 | J51: 1820 | K51: 1860 | L51: 1808 | M51: 1915 | N51: 1920 | O51: 1925 | P51: 1930 | Q51: 1940 | R51: 1955 | S51: 1980 | T51: Total
B52: Substation 3 | J52: 40000 | S52: 0 | T52: =SUM(D52:S52) -> 40000
B53: Almonte Sub 2 & 3 | J53: 30000 | S53: 0 | T53: =SUM(D53:S53) -> 30000
B54: Substation 6 | J54: 25000 | S54: 7000 | T54: =SUM(D54:S54) -> 32000
T55: =SUM(D55:S55) -> 0
E56: 0 | T56: 0
O57: 0 | T57: 0
J58: 0 | T58: 0
E59: 0 | T59: 0
T60: 0
A61: Sub-Total System Service | B61: =A61 -> Sub-Total System Service | D61: =SUM(D52:D60) -> 0 | E61: 0 | F61: 0 | G61: 0 | H61: 0 | I61: 0 | J61: 95000 | K61: 0 | L61: 0 | M61: 0 | N61: 0 | O61: 0 | P61: 0 | Q61: 0 | R61: 0 | S61: 7000 | T61: 102000
A64: General Plant | B64: General Plant | D64: 1830 | E64: 1835 | F64: 1840 | G64: 1845 | H64: 1850 | I64: 1855 | J64: 1820 | K64: 1860 | L64: 1808 | M64: 1915 | N64: 1920 | O64: 1925 | P64: 1930 | Q64: 1940 | R64: 1955 | S64: 1980 | T64: Total
B65: Doors for Stores | L65: 10000 | T65: =SUM(D65:S65) -> 10000
B66: Fire Alarm | L66: 38000 | T66: =SUM(D66:S66) -> 38000
B67: Garage Roof | L67: 20000 | T67: 20000
B68: Garage floor | L68: 13000 | T68: 13000
B69: Office Furniture front office | M69: 5000 | T69: 5000
B70: PC Upgrade | N70: 10000 | T70: 10000
B71: Misc Software Upgrades | O71: 34000 | T71: 34000
B72: Office façade | L72: 25000 | T72: 25000
B73: 2016 RBD downpayment | P73: 36000 | T73: 36000
B74: #28 van | P74: 25000 | T74: 25000
B75: Miscellaneous Small Tools | Q75: 10000 | T75: 10000
B76: Radios | R76: 1200 | T76: 1200
B77: Scada Equipment | S77: 15500 | T77: 15500
A78: Sub-Total General Plant | B78: =A78 -> Sub-Total General Plant | D78: =SUM(D65:D77) -> 0 | E78: 0 | F78: 0 | G78: 0 | H78: 0 | I78: 0 | J78: 0 | K78: 0 | L78: 106000 | M78: 5000 | N78: 10000 | O78: 34000 | P78: 61000 | Q78: 10000 | R78: 1200 | S78: 15500 | T78: 242700
A80: Total Capital Expenditures | D80: =D23+D48+D61+D78 -> 154820 | E80: 210000 | F80: 73000 | G80: 243650 | H80: 187000 | I80: 101000 | J80: 139500 | K80: 75000 | L80: 106000 | M80: 5000 | N80: 10000 | O80: 34000 | P80: 61000 | Q80: 10000 | R80: 1200 | S80: 22500 | T80: 1433670
S81: Including Cap Contribution | T81: ='App.2-BA_Fixed Asset Cont'!E411 -> 1109670
S82: Excluding Cap Contributions | T82: =SUM('App.2-BA_Fixed Asset Cont'!E361:E398) -> 1433670
D84: ='App.2-BA_Fixed Asset Cont'!$E369 -> 154820 | E84: ='App.2-BA_Fixed Asset Cont'!$E370 -> 210000 | F84: ='App.2-BA_Fixed Asset Cont'!$E371 -> 73000 | G84: ='App.2-BA_Fixed Asset Cont'!$E372 -> 243650 | H84: ='App.2-BA_Fixed Asset Cont'!$E373 -> 187000 | I84: ='App.2-BA_Fixed Asset Cont'!$E374 -> 101000 | J84: ='App.2-BA_Fixed Asset Cont'!E367 -> 139500 | K84: =SUM('App.2-BA_Fixed Asset Cont'!E375:E376) -> 75000 | L84: ='App.2-BA_Fixed Asset Cont'!E364 -> 106000 | M84: ='App.2-BA_Fixed Asset Cont'!E380 -> 5000 | N84: ='App.2-BA_Fixed Asset Cont'!E384 -> 10000 | O84: ='App.2-BA_Fixed Asset Cont'!E361 -> 34000 | P84: ='App.2-BA_Fixed Asset Cont'!E385 -> 61000 | Q84: ='App.2-BA_Fixed Asset Cont'!E387 -> 10000 | R84: ='App.2-BA_Fixed Asset Cont'!E390 -> 1200 | S84: ='App.2-BA_Fixed Asset Cont'!E395 -> 22500 | T84: =SUM(D84:S84) -> 1433670
D85: =D80-D84 -> 0 | E85: =E80-E84 -> 0 | F85: 0 | G85: 0 | H85: 0 | I85: 0 | J85: 0 | K85: 0 | L85: 0 | M85: 0 | N85: 0 | O85: 0 | P85: 0 | Q85: 0 | R85: 0 | S85: 0

Sheet App.2-AA_Capital Projects 2016
A9: Capital Projects Table
A10: 2015
A12: Reporting Basis | B12: Reporting Basis | D12: CGAAP | E12: CGAAP | F12: CGAAP | G12: CGAAP | H12: CGAAP | I12: CGAAP | J12: CGAAP | K12: CGAAP | L12: CGAAP | M12: CGAAP | N12: CGAAP | O12: CGAAP | P12: CGAAP | Q12: CGAAP | R12: CGAAP | S12: CGAAP | T12: CGAAP
A13: Projects | B13: Projects | C13: USoA | D13: 1830 | E13: 1835 | F13: 1840 | G13: 1845 | H13: 1850 | I13: 1855 | J13: 1820 | K13: 1860 | L13: 1808 | M13: 1915 | N13: 1920 | O13: 1925 | P13: 1930 | Q13: 1940 | R13: 1955 | S13: 1980 | T13: Total
A15: System Access | B15: System Access
B16: Scattered Residential Development Conductors | E16: 20500 | T16: =SUM(E16:S16) -> 20500
B17: Scattered Residential Development Poles | D17: 17500 | T17: =SUM(E17:S17) -> 0
B18: Scattered Residential Development Service wire | I18: 50500 | T18: 50500
B19: Scattered Residential Development Smart Meters Residential | K19: 10500 | T19: 10500
B20: Scattered Residential Development Transformers | H20: 18000 | T20: 18000
B21: Various Almonte Subdivisions | G21: 70650 | T21: 70650
B22: Various Almonte Subdivisions Services | I22: 31500 | T22: 31500
B23: Various Almonte Subdivisions Smart Meters Residential | K23: 10700 | T23: 10700
B24: Various Commercial Development Metering | K24: 7500 | T24: 7500
B25: Various Commercial Development OH Conductor | E25: 11000 | T25: 11000
B26: Various Commercial Development Poles | D26: 7000 | T26: 0
B27: Various Commercial Development Transformers | H27: 57000 | T27: 57000
B28: Various Commercial Development UG Cable | G28: 18000 | T28: 18000
B29: Various Pembroke Subdivisions | G29: 75000 | T29: 75000
B30: Various Pembroke Subdivisions Services | I30: 19000 | T30: 19000
B31: Various Pembroke Subdivisions Smart Meters Residential | K31: 14000 | T31: 14000
B32: Various Subdivision Transformers | H32: 62500 | T32: 62500
T33: 0
A34: Total System Access | B34: Total System Access | D34: =SUM(D16:D32) -> 24500 | E34: =SUM(E16:E32) -> 31500 | F34: 0 | G34: 163650 | H34: 137500 | I34: 101000 | J34: 0 | K34: 42700 | L34: 0 | M34: 0 | N34: 0 | O34: 0 | P34: 0 | Q34: 0 | R34: 0 | S34: 0 | T34: 476350
A37: System Renewal | B37: System Renewal | D37: 1830 | E37: 1835 | F37: 1840 | G37: 1845 | H37: 1850 | I37: 1855 | J37: 1820 | K37: 1860 | L37: 1808 | M37: 1915 | N37: 1920 | O37: 1925 | P37: 1930 | Q37: 1940 | R37: 1955 | S37: 1980 | T37: Total
B38: Pembroke Substation testing | J38: 29000 | T38: =SUM(E38:S38) -> 29000
B39: Pole Replacement | D39: 46000 | T39: =SUM(D39:S39) -> 46000
B40: Pole Replacement - Line betterments | D40: 14200 | T40: =SUM(D40:S40) -> 14200
B41: Pole Replacement - Line betterments | D41: 14200 | T41: 14200
B42: Pole Replacement - Line betterments | D42: 11700 | T42: 11700
B43: Pole Replacement - Line betterments conductors | E43: 44500 | T43: 44500
B44: Pole replacement Bell Killaloe | T44: 0
B45: Transformer replacement Program | H45: =15000+9500 -> 24500 | T45: 24500
B46: Pole Replacement | T46: 0
B47: Pole Replacement - Line betterments transformers | H47: 10000 | T47: 10000
T48: 0
A49: Sub-Total System Renewal | B49: =A49 -> Sub-Total System Renewal | D49: =SUM(D39:D48) -> 86100 | E49: =SUM(E39:E48) -> 44500 | F49: 0 | G49: 0 | H49: 34500 | I49: 0 | J49: =SUM(J38:J48) -> 29000 | K49: 0 | L49: 0 | M49: 0 | N49: 0 | O49: 0 | P49: 0 | Q49: 0 | R49: 0 | S49: 0 | T49: =SUM(T38:T48) -> 194100
A52: System Service | B52: System Service | D52: 1830 | E52: 1835 | F52: 1840 | G52: 1845 | H52: 1850 | I52: 1855 | J52: 1820 | K52: 1860 | L52: 1808 | M52: 1915 | N52: 1920 | O52: 1925 | P52: 1930 | Q52: 1940 | R52: 1955 | S52: 1980 | T52: Total
B53: Almonte MS-2 44 kV conductor upgrades | E53: 58100 | T53: =SUM(E53:S53) -> 58100
B54: Engineering Studies | J54: 86000 | T54: 86000
B55: Almonte MS-2 44 kV pole upgrades | D55: 27100 | T55: 0
B56: Almonte Feeder MS-2 (2F2) conductor upgrades | T56: 0
B57: Almonte Feeder Reclosing relay MS 2 | E57: 24300 | T57: 24300
B58: Almonte Feeder Reclosing relay MS 3 | E58: 18500 | T58: 18500
B59: Almonte MS 3 feeder cables | E59: 14300 | T59: 14300
B60: Electronic Protective relays | J60: 16500 | T60: 16500
B61: Scada upgrade | S61: 45000 | T61: 45000
B62: Outage Management System | S62: 78000 | T62: 78000
B63: Pembroke MS 6 Ground Grid | J63: 12000 | T63: 12000
B64: Pembroke MS 6 Ground Grid | J64: 50000 | T64: 50000
B65: Pembroke Substation MS 2 | L65: 38000 | T65: 38000
B66: SCADA connections Almonte MS-1 | S66: 7000 | T66: 7000
A68: Sub-Total System Service | B68: =A68 -> Sub-Total System Service | D68: =SUM(D53:D67) -> 27100 | E68: =SUM(E53:E67) -> 115200 | F68: 0 | G68: 0 | H68: 0 | I68: 0 | J68: 164500 | K68: 0 | L68: 38000 | M68: 0 | N68: 0 | O68: 0 | P68: 0 | Q68: 0 | R68: 0 | S68: 130000 | T68: 447700
A71: General Plant | B71: General Plant | D71: 1830 | E71: 1835 | F71: 1840 | G71: 1845 | H71: 1850 | I71: 1855 | J71: 1820 | K71: 1860 | L71: 1808 | M71: 1915 | N71: 1920 | O71: 1925 | P71: 1930 | Q71: 1940 | R71: 1955 | S71: 1980 | T71: Total
B72: Misc Small Tools | Q72: 10000 | T72: =SUM(E72:S72) -> 10000
B73: Misc Software Upgrades | O73: 9000 | T73: 9000
B74: Misc Software Upgrades | O74: 10000 | T74: 10000
B75: Mobile radio | R75: 1200 | T75: 1200
B76: PC Upgrade | N76: 10000 | T76: 10000
B77: Replacement Furniture | M77: 8000 | T77: 8000
B78: Transportation Equipment | P78: 300000 | T78: 300000
B79: Transportation Equipment | P79: 28000 | T79: 28000
T80: 0
A82: Sub-Total General Plant | B82: =A82 -> Sub-Total General Plant | D82: =SUM(D72:D80) -> 0 | E82: =SUM(E72:E80) -> 0 | F82: 0 | G82: 0 | H82: 0 | I82: 0 | J82: 0 | K82: 0 | L82: 0 | M82: 8000 | N82: 10000 | O82: 19000 | P82: 328000 | Q82: 10000 | R82: 1200 | S82: 0 | T82: 376200
A84: Total Capital Expenditures | D84: =D34+D49+D68+D82 -> 137700 | E84: =E34+E49+E68+E82 -> 191200 | F84: 0 | G84: 163650 | H84: 172000 | I84: 101000 | J84: 193500 | K84: 42700 | L84: 38000 | M84: 8000 | N84: 10000 | O84: 19000 | P84: 328000 | Q84: 10000 | R84: 1200 | S84: 130000 | T84: =SUM(D84:S84) -> 1545950
S85: Including Cap Contribution | T85: ='App.2-BA_Fixed Asset Cont'!E482 -> 1245950
S86: Excluding Cap Contributions | T86: =SUM('App.2-BA_Fixed Asset Cont'!E432:E469) -> 1545950 | U86: =+T84-T86 -> 0
D88: ='App.2-BA_Fixed Asset Cont'!$E440 -> 137700 | E88: ='App.2-BA_Fixed Asset Cont'!$E441 -> 191200 | F88: ='App.2-BA_Fixed Asset Cont'!$E442 -> 0 | G88: ='App.2-BA_Fixed Asset Cont'!$E443 -> 163650 | H88: ='App.2-BA_Fixed Asset Cont'!$E444 -> 172000 | I88: ='App.2-BA_Fixed Asset Cont'!$E445 -> 101000 | J88: ='App.2-BA_Fixed Asset Cont'!E438 -> 193500 | K88: =SUM('App.2-BA_Fixed Asset Cont'!E446:E447) -> 42700 | L88: ='App.2-BA_Fixed Asset Cont'!E435 -> 38000 | M88: ='App.2-BA_Fixed Asset Cont'!E451 -> 8000 | N88: ='App.2-BA_Fixed Asset Cont'!E455 -> 10000 | O88: ='App.2-BA_Fixed Asset Cont'!E432 -> 19000 | P88: ='App.2-BA_Fixed Asset Cont'!E456 -> 328000 | Q88: ='App.2-BA_Fixed Asset Cont'!E458 -> 10000 | R88: ='App.2-BA_Fixed Asset Cont'!E461 -> 1200 | S88: ='App.2-BA_Fixed Asset Cont'!E466 -> 130000 | T88: =SUM(D88:S88) -> 1545950
D89: =D84-D88 -> 0 | E89: =E84-E88 -> 0 | F89: 0 | G89: 0 | H89: 0 | I89: 0 | J89: 0 | K89: 0 | L89: 0 | M89: 0 | N89: 0 | O89: 0 | P89: 0 | Q89: 0 | R89: 0 | S89: 0

Sheet App.2-AB_Capital Expenditures
S1: File Number: | U1: =EBNUMBER -> EB-2014-0105
S2: Exhibit:
S3: Tab:
S4: Schedule:
S5: Page:
S7: Date:
A9: Appendix 2-AB
A10: Table 2 - Capital Expenditure Summary from Chapter 5 Consolidated Distribution System Plan Filing Requirements
A12: First year of Forecast Period: | B12: =TestYear -> 2016
A13: CATEGORY | B13: Historical Period (previous plan1 & actual) | Q13: Forecast Period (planned)
B14: =E14-1 -> 2011 | E14: =H14-1 -> 2012 | H14: =K14-1 -> 2013 | K14: =N14-1 -> 2014 | N14: =Q14-1 -> 2015 | Q14: =B12 -> 2016 | R14: =Q14+1 -> 2017 | S14: =R14+1 -> 2018 | T14: 2019 | U14: 2020
B15: Plan | C15: Actual | D15: Var | E15: Plan | F15: Actual | G15: Var | H15: Plan | I15: Actual | J15: Var | K15: Plan | L15: Actual | M15: Var | N15: Plan | O15: Actual2 | P15: Var
B16: $ '000 | D16: % | E16: $ '000 | G16: % | H16: $ '000 | J16: % | K16: $ '000 | M16: % | N16: $ '000 | P16: % | Q16: $ '000
A17: System Access | C17: 369429 | D17: =IF(ISERROR((C17-B17)/B17),"--",(C17-B17)/B17) -> -- | F17: 231185 | G17: =IF(ISERROR((F17-E17)/E17),"--",(F17-E17)/E17) -> -- | I17: 302943 | J17: =IF(ISERROR((I17-H17)/H17),"--",(I17-H17)/H17) -> -- | L17: 340430 | M17: =IF(ISERROR((L17-K17)/K17),"--",(L17-K17)/K17) -> -- | O17: 500850 | P17: =IF(ISERROR((O17-N17)/N17),"--",(O17-N17)/N17) -> -- | Q17: 500850 | R17: 452200 | S17: 392700 | T17: 392700 | U17: 395000
A18: System Renewal | C18: 307425 | D18: =IF(ISERROR((C18-B18)/B18),"--",(C18-B18)/B18) -> -- | F18: 344841 | G18: =IF(ISERROR((F18-E18)/E18),"--",(F18-E18)/E18) -> -- | I18: 407204 | J18: =IF(ISERROR((I18-H18)/H18),"--",(I18-H18)/H18) -> -- | L18: 459780 | M18: =IF(ISERROR((L18-K18)/K18),"--",(L18-K18)/K18) -> -- | O18: 449820 | P18: =IF(ISERROR((O18-N18)/N18),"--",(O18-N18)/N18) -> -- | Q18: 194100 | R18: 248750 | S18: 193200 | T18: 193200 | U18: 195000
A19: System Service | D19: -- | G19: -- | J19: -- | L19: 216819 | M19: -- | O19: 270800 | P19: -- | Q19: 474800 | R19: 345849 | S19: 573650 | T19: 293200 | U19: 350000
A20: General Plant | C20: 71365 | D20: -- | F20: 228860 | G20: -- | I20: 664092 | J20: -- | L20: 181206 | M20: -- | O20: 212200 | P20: -- | Q20: 376200 | R20: 255200 | S20: 116200 | T20: 134200 | U20: 140000
A21: TOTAL EXPENDITURE | B21: =SUM(B17:B20) -> 0 | C21: =SUM(C17:C20) -> 748219 | D21: -- | E21: 0 | F21: 804886 | G21: -- | H21: 0 | I21: 1374239 | J21: -- | K21: 0 | L21: 1198235 | M21: -- | N21: 0 | O21: 1433670 | P21: -- | Q21: 1545950 | R21: 1301999 | S21: 1275750 | T21: 1013300 | U21: =SUM(U17:U20) -> 1080000
A22: System O&M | D22: -- | G22: -- | J22: -- | M22: -- | P22: --
A24: Notes to the Table:
A25: 1. Historical “previous plan” data is not required unless a plan has previously been filed
A26: 2. Indicate the number of months of 'actual' data included in the last year of the Historical Period (normally a 'bridge' year):
A28: Explanatory Notes on Variances (complete only if applicable)
A29: Notes on shifts in forecast vs. historical budgets by category
A32: Notes on year over year Plan vs. Actual variances for Total Expenditures
A35: Notes on Plan vs. Actual variance trends for individual expenditure categories

Sheet App. 2-AC_Customer Engagement
B1: File Number: | C1: =EBNUMBER -> EB-2014-0105
B2: Exhibit:
B3: Tab:
B4: Schedule:
B5: Page:
B7: Date:
A9: Appendix 2-AC
A10: Customer Engagement Activities Summary
A12: Provide a list of customer engagement activities | B12: Provide a list of customer needs and preferences identified through each engagement activity | C12: Actions taken to respond to identified needs and preferences. If no action was taken, explain why.
A13: Town Hall Meeting | B13: No needs and preferences expressed by customers. | C13: No action required
A14: Facebook/Twitter | B14: More communication required during outages | C14: Updates are put on website, facebook and twitter
A15: Spoke to Community Groups including Municipal Councils | B15: More communication required | C15: Speaking to other interest groups as well.
A16: Home Workshops | B16: No needs and preferences expressed by customers. | C16: No action required
A17: Visited Local Schools | B17: No needs and preferences expressed by customers. | C17: No action required
A45: Note: Use "ALT-ENTER" to go to the next line within a cell

Sheet App.2-B_Acct Instructions
A1: General Instructions to MIFRS Appendices
A2: Types of Schedules to File
A4: The purpose of this tab is to provide general instructions. The specific instructions to each appendix are listed in footnotes of each appendix.
A6: The typical applicant is expected to have made capitalization and depreciation policy changes under CGAAP as permitted by the Board on January 1, 2012 or mandated by the Board by January 1, 2013, and adopted IFRS for reporting purposes on January 1, 2015 (transition date January 1, 2014). In general, applicants under the two scenarios should provide the following information in the appendices:
E9: Accounting Policy Changes in 2012 and Adopted IFRS in 2015 | F9: Accounting Policy Changes in 2013 and Adopted IFRS in 2015
E10: (Date of Transition to IFRS 2014)
A11: Information to be filed in 2016 CoS Application | B11: 2016 | C11: Test | E11: MIFRS | F11: MIFRS
B12: 2015 | C12: Bridge | E12: MIFRS | F12: MIFRS
B13: 2014 | C13: Historical | E13: MIFRS and Revised CGAAP* | F13: MIFRS and Revised CGAAP*
B14: 2013 | C14: Historical | E14: Revised CGAAP | F14: CGAAP and Revised CGAAP
B15: 2012 | C15: Historical | E15: CGAAP and Revised CGAAP | F15: CGAAP
B16: 2011 and Prior | C16: Historical | E16: CGAAP | F16: CGAAP
A18: 1) For the year that the applicant implemented changes to its capitalization and depreciation policies (2012 or 2013), the applicant must file two appendices, one before and one after the policy changes.
A21: 2) For the transition year (2014), the applicant may file two appendices, one under Revised CGAAP and one under MIFRS, depending on the materiality of impacts. See the specific instructions under each appendix below for further details.
A26: Appendix 2-BA - Fixed Asset Schedule
A28: Applicants are to provide Appendix 2-BA in accordance with the years and corresponding accounting standards noted in the above table to provide a year over year continuity in fixed assets.
A29: *For the transition year (2014), the applicant should file two appendices, one under Revised CGAAP and one under MIFRS if the change between Revised CGAAP and MIFRS is material. If the change from the accounting standards is not material, the applicant may choose to only provide one appendix under MIFRS. However, the applicant must also indicate the fixed asset net book value balance under Revised CGAAP, the total dollar value of the change and explain why it is not material.
A33: Regulatory Gross Assets of Property, Plant and Equipment
A35: For an applicant that adopted IFRS on January 1, 2015 for financial reporting purposes, the applicant must establish the continuity of historic cost by using the December 31, 2013 regulatory gross assets of property, plant and equipment as the opening January 1, 2014 regulatory gross assets. The applicant must provide schedules (including Appendix 2-BA, Fixed Asset Continuity Schedule) which must identify the following details to substantiate the continuity of historic cost for regulatory purposes:
A38: · December 31, 2013 regulatory gross assets of property, plant and equipment, by asset class; and
A39: · January 1, 2014 regulatory gross assets of property, plant and equipment, by asset class.
A41: Accumulated Depreciation
A43: For an applicant that adopted IFRS on January 1, 2015 for financial reporting purposes, the applicant must establish the continuity of historic cost by using the December 31, 2013 regulatory accumulated depreciation as the opening January 1, 2014 regulatory accumulated depreciation. The applicant must provide schedules (including Appendix 2-BA, Fixed Asset Continuity Schedule) which must identify the following details to substantiate the continuity of historic cost for regulatory purposes:
A46: · December 31, 2013 regulatory accumulated depreciation, by asset class; and
A47: · January 1, 2014 regulatory accumulated depreciation, by asset class.
A49: Appendix 2-C - Depreciation and Amortization
A51: Applicants are to provide Appendix 2-C starting in the year capitalization and depreciation policy changes were implemented in accordance with the years and corresponding accounting standards listed in the above table.
A52: If an applicant changed capitalization and depreciation policies effective January 1, 2012 and adopted IFRS for reporting purposes effective January 1, 2015, the applicant must complete Appendix 2-CA to 2-CF (inclusive).
A53: If an applicant changed capitalization and depreciation policies effective January 1, 2013 and adopted IFRS for reporting purposes effective January 1, 2015, the applicant must complete Appendix 2-CG to 2-CK (inclusive).
A54: *Depreciation accounting policy changes were mandated by the Board by January 1, 2013. These accounting changes should be implemented consistent with the Board’s regulatory accounting policies as set out for MIFRS as contained in the Report of the Board, Transition to International Financial Reporting Standards (EB-2008-0408), the Depreciation Study for Use by Electricity Distributors (EB-2010-0178) and the Revised 2012 Accounting Procedures Handbook for Electricity Distributors. In general, no further changes to an applicant's depreciation policy (i.e. assets' service lives) are expected after the Board mandated changes by January 1, 2013. The set of Appendix CA to CK assumes this to be the case. If the applicant has made any changes to its depreciation policy subsequent to the Board mandated changes, applicants must identify the change, explain the nature of the change, the reason for the change, quantify the impact of the change, and quantify the depreciation expense before and after the change.
A57: Appendix 2-E - Account 1575, IFRS-CGAAP Transitional PP&E Amounts (2-EA), Account 1576, Accounting Changes Under CGAAP (2-EB, 2-EC)
A59: If an applicant changed capitalization and depreciation policies effective January 1, 2012 and adopted IFRS for reporting purposes effective January 1, 2015, the applicant must complete Appendix 2-EA and 2-EB. If the applicant did not make any further PP&E accounting policy changes beyond the capitalization and depreciation policy changes as permitted by the Board on January 1, 2012 (i.e. no further changes made on transition to IFRS), the applicant must indicate this and does not need to complete Appendix 2-EA.
A61: If an applicant changed capitalization and depreciation policies effective January 1, 2013 and adopted IFRS for reporting purposes effective January 1, 2015, the applicant must complete Appendix 2-EA and 2-EC. If the applicant did not make any further PP&E accounting policy changes beyond the capitalization and depreciation policy changes as mandated by the Board by January 1, 2013 (i.e. no further changes made on transition to IFRS), the applicant must indicate this and does not need to complete Appendix 2-EA.
A63: Please refer to section 2.12.4 and 2.12.5 of the Filing Requirements for further details.
A65: Appendix 2-YA - Summary of Impacts to Revenue Requirement from Transition to MIFRS
A67: For applicants adopting MIFRS, the applicants must provide a summary of the dollar impacts of MIFRS to each component of the revenue requirement (e.g. rate base, operating costs, etc), including the overall impact on the proposed revenue requirement. Accordingly, the applicants must identify financial differences and resulting revenue requirement impacts arising from the adoption of MIFRS as compared to CGAAP prior to capitalization and depreciation policy changes.

Sheet App.2-BA_Fixed Asset Cont
L1: File Number: | M1: =EBNUMBER -> EB-2014-0105
L2: Exhibit:
L3: Tab:
L4: Schedule:
L5: Page:
L7: Date:
A9: Appendix 2-BA
A10: Fixed Asset Continuity Schedule 1
E13: Year | F13: 2010 | G13: Former CGAAP - without changes to the policies
D15: Cost | J15: Accumulated Depreciation
A16: CCA Class | B16: OEB | C16: Description | D16: Opening Balance | E16: Additions | F16: Disposals | G16: Closing Balance | I16: Opening Balance | J16: Additions | K16: Disposals | L16: Closing Balance | M16: Net Book Value | O16: AVG Gross Bal | P16: AVG AccDep
A17: 12 | B17: 1611 | C17: Computer Software (Formally known as Account 1925) | D17: 293410.74 | E17: 12194 | G17: =D17+E17+F17 -> 305604.74 | I17: -193749.62 | J17: -99860.87 | L17: =I17+J17+K17 -> -293610.49 | M17: =G17+L17 -> 11994.25 | O17: =AVERAGE(G17,D17) -> 299507.74 | P17: =AVERAGE(L17,I17) -> -243680.055
A18: CEC | B18: 1612 | C18: Land Rights (Formally known as Account 1906 and 1806) | D18: 10808.84 | G18: =D18+E18+F18 -> 10808.84 | I18: -6721 | J18: -335 | L18: =I18+J18+K18 -> -7056 | M18: =G18+L18 -> 3752.84 | O18: 10808.84 | P18: -6888.5
A19: N/A | B19: 1805 | C19: Land | D19: 130499.26 | G19: =D19+E19+F19 -> 130499.26 | L19: =I19+J19+K19 -> 0 | M19: 130499.26 | O19: 130499.26 | P19: 0
A20: 47 | B20: 1808 | C20: Buildings | D20: 453549.71 | E20: 14386 | G20: =D20+E20+F20 -> 467935.71 | I20: -247903 | J20: -8652.52 | L20: =I20+J20+K20 -> -256555.52 | M20: 211380.19 | O20: 460742.71 | P20: -252229.26
A21: 13 | B21: 1810 | C21: Leasehold Improvements | G21: 0 | L21: 0 | M21: 0 | O21: 0 | P21: 0
A22: 47 | B22: 1815 | C22: Transformer Station Equipment >50 kV | G22: 0 | L22: 0 | M22: 0 | O22: 0 | P22: 0
A23: 47 | B23: 1820 | C23: Distribution Station Equipment <50 kV | D23: 2563070.89 | E23: 166448 | G23: 2729518.89 | I23: -1644838.69 | J23: -54438.91 | L23: -1699277.6 | M23: 1030241.29 | O23: 2646294.89 | P23: -1672058.145
A24: 47 | B24: 1825 | C24: Storage Battery Equipment | G24: 0 | L24: 0 | M24: 0 | O24: 0 | P24: 0
A25: 47 | B25: 1830 | C25: Poles, Towers & Fixtures | D25: 8107720.38 | E25: 117217.95 | G25: 8224938.33 | I25: -5835293 | J25: -262546 | L25: -6097839 | M25: 2127099.33 | O25: 8166329.355 | P25: -5966566
A26: 47 | B26: 1835 | C26: Overhead Conductors & Devices | D26: 2430844.33 | E26: 145586.4 | G26: 2576430.73 | I26: -545720 | J26: -80770.38 | L26: -626490.38 | M26: 1949940.35 | O26: 2503637.53 | P26: -586105.19
A27: 47 | B27: 1840 | C27: Underground Conduit | D27: 2933508.47 | E27: 40594 | G27: 2974102.47 | I27: -1985939.84 | J27: -110863.32 | L27: -2096803.16 | M27: 877299.31 | O27: 2953805.47 | P27: -2041371.5
A28: 47 | B28: 1845 | C28: Underground Conductors & Devices | D28: 330338.84 | E28: 75749 | G28: 406087.84 | I28: -57662.48 | J28: -14728.55 | L28: -72391.03 | M28: 333696.81 | O28: 368213.34 | P28: -65026.755
A29: 47 | B29: 1850 | C29: Line Transformers | D29: 3522771.87 | E29: 60897 | G29: 3583668.87 | I29: -1988166.77 | J29: -127509.01 | L29: -2115675.78 | M29: 1467993.09 | O29: 3553220.37 | P29: -2051921.275
A30: 47 | B30: 1855 | C30: Services (Overhead & Underground) | D30: 875350.1 | E30: 103019 | G30: 978369.1 | I30: -160436.77 | J30: -34294.34 | L30: -194731.11 | M30: 783637.99 | O30: 926859.6 | P30: -177583.94
A31: 47 | B31: 1860 | C31: Meters | D31: 671911.43 | E31: 10436 | F31: -588700.34 | G31: 93647.09 | I31: -391108.94 | J31: -2226.35 | K31: 357001.04 | L31: -36334.25 | M31: 57312.84 | O31: 382779.26 | P31: -213721.595
A32: 47 | B32: 1860 | C32: Meters (Smart Meters) | G32: 0 | L32: 0 | M32: 0 | O32: 0 | P32: 0
A33: N/A | B33: 1905 | C33: Land | G33: 0 | L33: 0 | M33: 0 | O33: 0 | P33: 0
A34: 47 | B34: 1908 | C34: Buildings & Fixtures | G34: 0 | L34: 0 | M34: 0 | O34: 0 | P34: 0
A35: 13 | B35: 1910 | C35: Leasehold Improvements | G35: 0 | L35: 0 | M35: 0 | O35: 0 | P35: 0
A36: 8 | B36: 1915 | C36: Office Furniture & Equipment (10 years) | D36: 122774.43 | E36: 5883 | F36: -668 | G36: 127989.43 | I36: -116712.13 | J36: -2202.9 | K36: 668.52 | L36: -118246.51 | M36: 9742.92 | O36: 125381.93 | P36: -117479.32
A37: 8 | B37: 1915 | C37: Office Furniture & Equipment (5 years) | G37: 0 | L37: 0 | M37: 0 | O37: 0 | P37: 0
A38: 10 | B38: 1920 | C38: Computer Equipment - Hardware | G38: 0 | L38: 0 | M38: 0 | O38: 0 | P38: 0
A39: 45 | B39: 1920 | C39: Computer Equip.-Hardware(Post Mar. 22/04) | G39: 0 | L39: 0 | M39: 0 | O39: 0 | P39: 0
A40: 45.1 | B40: 1920 | C40: Computer Equip.-Hardware(Post Mar. 19/07) | D40: 320010.29 | E40: 2297 | G40: 322307.29 | I40: -296709.61 | J40: -21208.96 | L40: -317918.57 | M40: 4388.72 | O40: 321158.79 | P40: -307314.09
A41: 10 | B41: 1930 | C41: Transportation Equipment | D41: 1593934.71 | E41: 277694 | F41: -178877 | G41: 1692751.71 | I41: -1322217.21 | J41: -82260.75 | K41: 178877.46 | L41: -1225600.5 | M41: 467151.21 | O41: 1643343.21 | P41: -1273908.855
A42: 8 | B42: 1935 | C42: Stores Equipment | D42: 1761.26 | G42: 1761.26 | I42: -1761 | L42: -1761 | M42: 0.26 | O42: 1761.26 | P42: -1761
A43: 8 | B43: 1940 | C43: Tools, Shop & Garage Equipment | D43: 234048.66 | E43: 2335 | G43: 236383.66 | I43: -205669.75 | J43: -7280 | L43: -212949.75 | M43: 23433.91 | O43: 235216.16 | P43: -209309.75
A44: 8 | B44: 1945 | C44: Measurement & Testing Equipment | G44: 0 | L44: 0 | M44: 0 | O44: 0 | P44: 0
A45: 8 | B45: 1950 | C45: Power Operated Equipment | G45: 0 | L45: 0 | M45: 0 | O45: 0 | P45: 0
A46: 8 | B46: 1955 | C46: Communications Equipment | D46: 29543.89 | E46: 5658 | G46: 35201.89 | I46: -29543.89 | J46: -565.81 | L46: -30109.7 | M46: 5092.19 | O46: 32372.89 | P46: -29826.795
A47: 8 | B47: 1955 | C47: Communication Equipment (Smart Meters) | G47: 0 | L47: 0 | M47: 0 | O47: 0 | P47: 0
A48: 8 | B48: 1960 | C48: Miscellaneous Equipment | G48: =D48+E48+F48 -> 0 | L48: 0 | M48: 0 | O48: 0 | P48: 0
A49: 47 | B49: 1970 | C49: Load Management Controls Customer Premises | D49: 254912 | G49: =D49+E49+F49 -> 254912 | I49: -251593.73 | J49: -839.35 | L49: -252433.08 | M49: 2478.92 | O49: 254912 | P49: -252013.405
A50: 47 | B50: 1975 | C50: Load Management Controls Utility Premises | D50: 64873.19 | G50: =D50+E50+F50 -> 64873.19 | I50: -64873 | L50: -64873 | M50: 0.19 | O50: 64873.19 | P50: -64873
A51: 47 | B51: 1980 | C51: System Supervisor Equipment | D51: 502268.44 | E51: 64230 | G51: =D51+E51+F51 -> 566498.44 | I51: -480823.79 | J51: -16225.59 | L51: -497049.38 | M51: 69449.06 | O51: 534383.44 | P51: -488936.585
A52: 47 | B52: 1985 | C52: Miscellaneous Fixed Assets | D52: 0 | E52: 0 | F52: 0 | G52: =D52+E52+F52 -> 0 | L52: 0 | M52: 0 | O52: 0 | P52: 0
A53: 47 | B53: 1990 | C53: Other Tangible Property | G53: =D53+E53+F53 -> 0 | L53: 0 | M53: 0 | O53: 0 | P53: 0
A54: 47 | B54: 1995 | C54: Contributions & Grants | D54: -1278491.21 | E54: -125254.7 | G54: -1403745.91 | I54: 245977 | J54: 73942.21 | L54: 319919.21 | M54: -1083826.7 | O54: -1341118.56 | P54: 282948.105
B55: etc. | D55: 0 | E55: 0 | F55: 0 | G55: 0 | I55: 0 | J55: 0 | K55: 0 | L55: 0 | M55: 0 | O55: 0 | P55: 0
B56: etc. | D56: 0 | E56: 0 | F56: 0 | G56: 0 | I56: 0 | J56: 0 | K56: 0 | L56: 0 | M56: 0 | O56: 0 | P56: 0
B57: etc. | D57: 0 | E57: 0 | F57: 0 | G57: 0 | I57: 0 | J57: 0 | K57: 0 | L57: 0 | M57: 0 | O57: 0 | P57: 0
B58: etc. | D58: 0 | E58: 0 | F58: 0 | G58: 0 | I58: 0 | J58: 0 | K58: 0 | L58: 0 | M58: 0 | O58: 0 | P58: 0
B59: etc. | D59: 0 | E59: 0 | F59: 0 | G59: 0 | I59: 0 | J59: 0 | K59: 0 | L59: 0 | M59: 0 | O59: 0 | P59: 0
B60: etc. | D60: 0 | E60: 0 | F60: 0 | G60: 0 | I60: 0 | J60: 0 | K60: 0 | L60: 0 | M60: 0 | O60: 0 | P60: 0
B61: etc. | D61: 0 | E61: 0 | F61: 0 | G61: 0 | I61: 0 | J61: 0 | K61: 0 | L61: 0 | M61: 0 | O61: 0 | P61: 0
B62: etc. | D62: 0 | E62: 0 | F62: 0 | G62: 0 | I62: 0 | J62: 0 | K62: 0 | L62: 0 | M62: 0 | O62: 0 | P62: 0
B63: etc. | D63: 0 | E63: 0 | F63: 0 | G63: 0 | I63: 0 | J63: 0 | K63: 0 | L63: 0 | M63: 0 | O63: 0 | P63: 0
B64: etc. | D64: 0 | E64: 0 | F64: 0 | G64: 0 | I64: 0 | J64: 0 | K64: 0 | L64: 0 | M64: 0 | O64: 0 | P64: 0
D65: 0 | E65: 0 | F65: 0 | G65: 0 | I65: 0 | J65: 0 | K65: 0 | L65: 0 | M65: 0 | O65: 0 | P65: 0
C66: Sub-Total | D66: =SUM(D17:D65) -> 24169420.52 | E66: =SUM(E17:E65) -> 979369.65 | F66: =SUM(F17:F65) -> -768245.34 | G66: 24380544.83 | I66: -15581467.22 | J66: =SUM(J17:J65) -> -852866.4 | K66: 536547.02 | L66: -15897786.6 | M66: 8482758.23 | O66: =SUM(O17:O65) -> 24274982.68 | P66: =SUM(P17:P65) -> -15739626.91
C67: Less Socialized Renewable Energy Generation Investments (input as negative)Less Socialized Renewable Energy Generation Investments (input as negative) | G67: =D67+E67+F67 -> 0 | L67: =I67+J67+K67 -> 0 | M67: =G67+L67 -> 0
C68: Less Other Non Rate-Regulated Utility Assets (input as negative)Less Other Non Rate-Regulated Utility Assets (input as negative) | G68: 0 | L68: =I68+J68+K68 -> 0 | M68: =G68+L68 -> 0
C69: Total PP&E | D69: =SUM(D66:D68) -> 24169420.52 | E69: =SUM(E66:E68) -> 979369.65 | F69: =SUM(F66:F68) -> -768245.34 | G69: =SUM(G66:G68) -> 24380544.83 | I69: =SUM(I66:I68) -> -15581467.22 | J69: =SUM(J66:J68) -> -852866.4 | K69: =SUM(K66:K68) -> 536547.02 | L69: =SUM(L66:L68) -> -15897786.6 | M69: =SUM(M66:M68) -> 8482758.23
C70: Depreciation Expense adj. from gain or loss on the retirement of assets (pool of like assets)
C71: Total | J71: =J69+J70 -> -852866.4
G73: Less: Fully Allocated Depreciation
A74: 10 | C74: Transportation | G74: Transportation | J74: 41946.655
A75: 8 | C75: Stores Equipment | G75: Stores Equipment | J75: 3326.11
A76: 8 | C76: Tools, Shop | G76: Tools, Shop
A77: 8 | C77: Meas/Testing | G77: Meas/Testing
A78: 8 | C78: Communication | G78: Communication
G79: Net Depreciation | J79: =J71+J74+J78+J75+J76+J77 -> -807593.635
E81: Year | F81: 2011 | G81: Former CGAAP - without changes to the policies
D83: Cost | J83: Accumulated Depreciation
A84: CCA Class | B84: OEB | C84: Description | D84: Opening Balance | E84: Additions | F84: Disposals | G84: Closing Balance | I84: Opening Balance | J84: Additions | K84: Disposals | L84: Closing Balance | M84: Net Book Value | O84: AVG Gross Bal | P84: AVG AccDep
A85: 12 | B85: 1611 | C85: Computer Software (Formally known as Account 1925) | D85: =G17 -> 305604.74 | E85: 8648 | G85: =D85+E85+F85 -> 314252.74 | I85: =L17 -> -293610.49 | J85: -7338.48 | L85: =I85+J85+K85 -> -300948.97 | M85: =G85+L85 -> 13303.77 | O85: =AVERAGE(G85,D85) -> 309928.74 | P85: =AVERAGE(L85,I85) -> -297279.73
A86: CEC | B86: 1612 | C86: Land Rights (Formally known as Account 1906 and 1806) | D86: 10808.84 | G86: =D86+E86+F86 -> 10808.84 | I86: -7056 | J86: -335 | L86: =I86+J86+K86 -> -7391 | M86: =G86+L86 -> 3417.84 | O86: 10808.84 | P86: -7223.5
A87: N/A | B87: 1805 | C87: Land | D87: 130499.26 | G87: =D87+E87+F87 -> 130499.26 | I87: 0 | L87: =I87+J87+K87 -> 0 | M87: 130499.26 | O87: 130499.26 | P87: 0
A88: 47 | B88: 1808 | C88: Buildings | D88: 467935.71 | E88: 18607 | G88: =D88+E88+F88 -> 486542.71 | I88: -256555.52 | J88: -8512.69 | L88: =I88+J88+K88 -> -265068.21 | M88: 221474.5 | O88: 477239.21 | P88: -260811.865
A89: 13 | B89: 1810 | C89: Leasehold Improvements | D89: 0 | G89: 0 | I89: 0 | L89: 0 | M89: 0 | O89: 0 | P89: 0
A90: 47 | B90: 1815 | C90: Transformer Station Equipment >50 kV | D90: 0 | G90: 0 | I90: 0 | L90: 0 | M90: 0 | O90: 0 | P90: 0
A91: 47 | B91: 1820 | C91: Distribution Station Equipment <50 kV | D91: 2729518.89 | E91: 90613 | G91: 2820131.89 | I91: -1699277.6 | J91: -58620.62 | L91: -1757898.22 | M91: 1062233.67 | O91: 2774825.39 | P91: -1728587.91
A92: 47 | B92: 1825 | C92: Storage Battery Equipment | D92: 0 | G92: 0 | I92: 0 | L92: 0 | M92: 0 | O92: 0 | P92: 0
A93: 47 | B93: 1830 | C93: Poles, Towers & Fixtures | D93: 8224938.33 | E93: 70412 | G93: 8295350.33 | I93: -6097839 | J93: -232996.87 | L93: -6330835.87 | M93: 1964514.46 | O93: 8260144.33 | P93: -6214337.435
A94: 47 | B94: 1835 | C94: Overhead Conductors & Devices | D94: 2576430.73 | E94: 121027 | G94: 2697457.73 | I94: -626490.38 | J94: -104944.9 | L94: -731435.28 | M94: 1966022.45 | O94: 2636944.23 | P94: -678962.83
A95: 47 | B95: 1840 | C95: Underground Conduit | D95: 2974102.47 | E95: 58881 | G95: 3032983.47 | I95: -2096803.16 | J95: -104470.73 | L95: -2201273.89 | M95: 831709.58 | O95: 3003542.97 | P95: -2149038.525
A96: 47 | B96: 1845 | C96: Underground Conductors & Devices | D96: 406087.84 | E96: 99504 | G96: 505591.84 | I96: -72391.03 | J96: -17487 | L96: -89878.03 | M96: 415713.81 | O96: 455839.84 | P96: -81134.53
A97: 47 | B97: 1850 | C97: Line Transformers | D97: 3583668.87 | E97: 129496.48 | G97: 3713165.35 | I97: -2115675.78 | J97: -108607 | L97: -2224282.78 | M97: 1488882.57 | O97: 3648417.11 | P97: -2169979.28
A98: 47 | B98: 1855 | C98: Services (Overhead & Underground) | D98: 978369.1 | E98: 95630 | G98: 1073999.1 | I98: -194731.11 | J98: -40330 | L98: -235061.11 | M98: 838937.99 | O98: 1026184.1 | P98: -214896.11
A99: 47 | B99: 1860 | C99: Meters | D99: 93647.09 | E99: 11289.32 | F99: -39732 | G99: 65204.41 | I99: -36334.25 | J99: -1500 | K99: 28655 | L99: -9179.25 | M99: 56025.16 | O99: 79425.75 | P99: -22756.75
A100: 47 | B100: 1860 | C100: Meters (Smart Meters) | D100: 0 | G100: 0 | I100: 0 | L100: 0 | M100: 0 | O100: 0 | P100: 0
A101: N/A | B101: 1905 | C101: Land | D101: 0 | G101: 0 | I101: 0 | L101: 0 | M101: 0 | O101: 0 | P101: 0
A102: 47 | B102: 1908 | C102: Buildings & Fixtures | D102: 0 | G102: 0 | I102: 0 | L102: 0 | M102: 0 | O102: 0 | P102: 0
A103: 13 | B103: 1910 | C103: Leasehold Improvements | D103: 0 | G103: 0 | I103: 0 | L103: 0 | M103: 0 | O103: 0 | P103: 0
A104: 8 | B104: 1915 | C104: Office Furniture & Equipment (10 years) | D104: 127989.43 | E104: 2572 | G104: 130561.43 | I104: -118246.51 | J104: -2682.68 | L104: -120929.19 | M104: 9632.24 | O104: 129275.43 | P104: -119587.85
A105: 8 | B105: 1915 | C105: Office Furniture & Equipment (5 years) | D105: 0 | G105: 0 | I105: 0 | L105: 0 | M105: 0 | O105: 0 | P105: 0
A106: 10 | B106: 1920 | C106: Computer Equipment - Hardware | D106: 0 | G106: 0 | I106: 0 | L106: 0 | M106: 0 | O106: 0 | P106: 0
A107: 45 | B107: 1920 | C107: Computer Equip.-Hardware(Post Mar. 22/04) | D107: 0 | G107: 0 | I107: 0 | L107: 0 | M107: 0 | O107: 0 | P107: 0
A108: 45.1 | B108: 1920 | C108: Computer Equip.-Hardware(Post Mar. 19/07) | D108: 322307.29 | E108: 8336 | G108: 330643.29 | I108: -317918.57 | J108: -4629 | L108: -322547.57 | M108: 8095.72 | O108: 326475.29 | P108: -320233.07
A109: 10 | B109: 1930 | C109: Transportation Equipment | D109: 1692751.71 | E109: 28088 | F109: -21450 | G109: 1699389.71 | I109: -1225600.5 | J109: -103527 | K109: 21449.88 | L109: -1307677.62 | M109: 391712.09 | O109: 1696070.71 | P109: -1266639.06
A110: 8 | B110: 1935 | C110: Stores Equipment | D110: 1761.26 | G110: 1761.26 | I110: -1761 | L110: -1761 | M110: 0.26 | O110: 1761.26 | P110: -1761
A111: 8 | B111: 1940 | C111: Tools, Shop & Garage Equipment | D111: 236383.66 | E111: 5114 | G111: 241497.66 | I111: -212949.75 | J111: -6648 | L111: -219597.75 | M111: 21899.91 | O111: 238940.66 | P111: -216273.75
A112: 8 | B112: 1945 | C112: Measurement & Testing Equipment | D112: 0 | G112: 0 | I112: 0 | L112: 0 | M112: 0 | O112: 0 | P112: 0
A113: 8 | B113: 1950 | C113: Power Operated Equipment | D113: 0 | G113: 0 | I113: 0 | L113: 0 | M113: 0 | O113: 0 | P113: 0
A114: 8 | B114: 1955 | C114: Communications Equipment | D114: 35201.89 | G114: 35201.89 | I114: -30109.7 | J114: -1131.62 | L114: -31241.32 | M114: 3960.57 | O114: 35201.89 | P114: -30675.51
A115: 8 | B115: 1955 | C115: Communication Equipment (Smart Meters) | D115: 0 | G115: 0 | I115: 0 | L115: 0 | M115: 0 | O115: 0 | P115: 0
A116: 8 | B116: 1960 | C116: Miscellaneous Equipment | D116: 0 | G116: 0 | I116: 0 | L116: 0 | M116: 0 | O116: 0 | P116: 0
A117: 47 | B117: 1970 | C117: Load Management Controls Customer Premises | D117: 254912 | G117: 254912 | I117: -252433.08 | J117: -839.35 | L117: -253272.43 | M117: 1639.57 | O117: 254912 | P117: -252852.755
A118: 47 | B118: 1975 | C118: Load Management Controls Utility Premises | D118: 64873.19 | G118: 64873.19 | I118: -64873 | L118: -64873 | M118: 0.19 | O118: 64873.19 | P118: -64873
A119: 47 | B119: 1980 | C119: System Supervisor Equipment | D119: 566498.44 | G119: 566498.44 | I119: -497049.38 | J119: -26710 | L119: -523759.38 | M119: 42739.06 | O119: 566498.44 | P119: -510404.38
A120: 47 | B120: 1985 | C120: Miscellaneous Fixed Assets | D120: 0 | G120: 0 | I120: 0 | L120: 0 | M120: 0 | O120: 0 | P120: 0
A121: 47 | B121: 1990 | C121: Other Tangible Property | D121: 0 | G121: 0 | I121: 0 | L121: 0 | M121: 0 | O121: 0 | P121: 0
A122: 47 | B122: 1995 | C122: Contributions & Grants | D122: -1403745.91 | E122: -254011.49 | G122: -1657757.4 | I122: 319919.21 | J122: 58443.5 | L122: 378362.71 | M122: -1279394.69 | O122: -1530751.655 | P122: 349140.96
B123: etc. | D123: 0 | E123: 0 | F123: 0 | G123: 0 | I123: 0 | J123: 0 | K123: 0 | L123: 0 | M123: 0 | O123: 0 | P123: 0
B124: etc. | D124: =G55 -> 0 | E124: 0 | F124: 0 | G124: 0 | I124: =L55 -> 0 | J124: 0 | K124: 0 | L124: 0 | M124: 0 | O124: 0 | P124: 0
B125: etc. | D125: 0 | E125: 0 | F125: 0 | G125: 0 | I125: 0 | J125: 0 | K125: 0 | L125: 0 | M125: 0 | O125: 0 | P125: 0
B126: etc. | D126: 0 | E126: 0 | F126: 0 | G126: 0 | I126: 0 | J126: 0 | K126: 0 | L126: 0 | M126: 0 | O126: 0 | P126: 0
B127: etc. | D127: 0 | E127: 0 | F127: 0 | G127: 0 | I127: 0 | J127: 0 | K127: 0 | L127: 0 | M127: 0 | O127: 0 | P127: 0
B128: etc. | D128: 0 | E128: 0 | F128: 0 | G128: 0 | I128: 0 | J128: 0 | K128: 0 | L128: 0 | M128: 0 | O128: 0 | P128: 0
B129: etc. | D129: 0 | E129: 0 | F129: 0 | G129: 0 | I129: 0 | J129: 0 | K129: 0 | L129: 0 | M129: 0 | O129: 0 | P129: 0
B130: etc. | D130: 0 | E130: 0 | F130: 0 | G130: 0 | I130: 0 | J130: 0 | K130: 0 | L130: 0 | M130: 0 | O130: 0 | P130: 0
B131: etc. | D131: 0 | E131: 0 | F131: 0 | G131: 0 | I131: 0 | J131: 0 | K131: 0 | L131: 0 | M131: 0 | O131: 0 | P131: 0
B132: etc. | D132: 0 | E132: 0 | F132: 0 | G132: 0 | I132: 0 | J132: 0 | K132: 0 | L132: 0 | M132: 0 | O132: 0 | P132: 0
B133: etc. | D133: 0 | E133: 0 | F133: 0 | G133: 0 | I133: 0 | J133: 0 | K133: 0 | L133: 0 | M133: 0 | O133: 0 | P133: 0
D134: =G65 -> 0 | E134: 0 | F134: 0 | G134: =D134+E134+F134 -> 0 | I134: =L65 -> 0 | J134: 0 | K134: 0 | L134: 0 | M134: =G134-L134 -> 0 | O134: 0 | P134: 0
C135: Sub-Total | D135: =SUM(D85:D134) -> 24380544.83 | E135: =SUM(E85:E134) -> 494206.31 | F135: =SUM(F85:F134) -> -61182 | G135: =SUM(G85:G134) -> 24813569.14 | I135: =SUM(I85:I134) -> -15897786.6 | J135: =SUM(J85:J134) -> -772867.44 | K135: =SUM(K85:K134) -> 50104.88 | L135: =SUM(L85:L134) -> -16620549.16 | M135: =SUM(M85:M134) -> 8193019.98 | O135: =SUM(O85:O134) -> 24597056.99 | P135: =SUM(P85:P134) -> -16259167.88
C136: Less Socialized Renewable Energy Generation Investments (input as negative)Less Socialized Renewable Energy Generation Investments (input as negative) | G136: =D136+E136+F136 -> 0 | L136: =I136+J136+K136 -> 0 | M136: =G136+L136 -> 0
C137: Less Other Non Rate-Regulated Utility Assets (input as negative)Less Other Non Rate-Regulated Utility Assets (input as negative) | G137: =D137+E137+F137 -> 0 | L137: =I137+J137+K137 -> 0 | M137: =G137+L137 -> 0
C138: Total PP&E | D138: =SUM(D135:D137) -> 24380544.83 | E138: =SUM(E135:E137) -> 494206.31 | F138: =SUM(F135:F137) -> -61182 | G138: =SUM(G135:G137) -> 24813569.14 | I138: =SUM(I135:I137) -> -15897786.6 | J138: =SUM(J135:J137) -> -772867.44 | K138: =SUM(K135:K137) -> 50104.88 | L138: =SUM(L135:L137) -> -16620549.16 | M138: =SUM(M135:M137) -> 8193019.98
C139: Depreciation Expense adj. from gain or loss on the retirement of assets (pool of like assets)
C140: Total | J140: =J138+J139 -> -772867.44
G142: Less: Fully Allocated Depreciation
A143: 10 | C143: Transportation | G143: Transportation | J143: 51763.5
A144: 8 | C144: Stores Equipment | G144: Stores Equipment | J144: 3324
A145: 8 | C145: Tools, Shop | G145: Tools, Shop
A146: 8 | C146: Meas/Testing | G146: Meas/Testing
A147: 8 | C147: Communication | G147: Communication
G148: Net Depreciation | J148: =J140+J143+J147+J144+J145+J146 -> -717779.94
E150: Year | F150: 2012 | G150: Former CGAAP - without changes to the policies
D152: Cost | J152: Accumulated Depreciation
A153: CCA Class | B153: OEB | C153: Description | D153: Opening Balance | E153: Additions | F153: Disposals | G153: Closing Balance | I153: Opening Balance | J153: Additions | K153: Disposals | L153: Closing Balance | M153: Net Book Value | O153: AVG Gross Bal | P153: AVG AccDep
A154: 12 | B154: 1611 | C154: Computer Software (Formally known as Account 1925) | D154: =G85 -> 314252.74 | G154: =D154+E154+F154 -> 314252.74 | I154: =L85 -> -300948.97 | J154: -6972.44 | L154: =I154+J154+K154 -> -307921.41 | M154: 6331.33 | O154: =AVERAGE(G154,D154) -> 314252.74 | P154: =AVERAGE(L154,I154) -> -304435.19
A155: CEC | B155: 1612 | C155: Land Rights (Formally known as Account 1906 and 1806) | D155: 10808.84 | G155: =D155+E155+F155 -> 10808.84 | I155: -7391 | J155: -335 | L155: =I155+J155+K155 -> -7726 | M155: 3082.84 | O155: 10808.84 | P155: -7558.5
A156: N/A | B156: 1805 | C156: Land | D156: 130499.26 | G156: =D156+E156+F156 -> 130499.26 | I156: 0 | J156: 0 | L156: =I156+J156+K156 -> 0 | M156: 130499.26 | O156: 130499.26 | P156: 0
A157: 47 | B157: 1808 | C157: Buildings | D157: 486542.71 | E157: 60160 | G157: =D157+E157+F157 -> 546702.71 | I157: -265068.21 | J157: -10088.04 | L157: =I157+J157+K157 -> -275156.25 | M157: 271546.46 | O157: 516622.71 | P157: -270112.23
A158: 13 | B158: 1810 | C158: Leasehold Improvements | D158: 0 | G158: 0 | I158: 0 | L158: 0 | M158: 0 | O158: 0 | P158: 0
A159: 47 | B159: 1815 | C159: Transformer Station Equipment >50 kV | D159: 0 | G159: 0 | I159: 0 | L159: 0 | M159: 0 | O159: 0 | P159: 0
A160: 47 | B160: 1820 | C160: Distribution Station Equipment <50 kV | D160: 2820131.89 | E160: 6177 | G160: 2826308.89 | I160: -1757898.22 | J160: -59953.03 | L160: -1817851.25 | M160: 1008457.64 | O160: 2823220.39 | P160: -1787874.735
A161: 47 | B161: 1825 | C161: Storage Battery Equipment | D161: 0 | G161: 0 | I161: 0 | L161: 0 | M161: 0 | O161: 0 | P161: 0
A162: 47 | B162: 1830 | C162: Poles, Towers & Fixtures | D162: 8295350.33 | E162: 88303 | G162: 8383653.33 | I162: -6330835.87 | J162: -206071.97 | L162: -6536907.84 | M162: 1846745.49 | O162: 8339501.83 | P162: -6433871.855
A163: 47 | B163: 1835 | C163: Overhead Conductors & Devices | D163: 2697457.73 | E163: 239543.24 | G163: 2937000.97 | I163: -731435.28 | J163: -108052.47 | L163: -839487.75 | M163: 2097513.22 | O163: 2817229.35 | P163: -785461.515
A164: 47 | B164: 1840 | C164: Underground Conduit | D164: 3032983.47 | E164: 3645 | G164: 3036628.47 | I164: -2201273.89 | J164: -101990.07 | L164: -2303263.96 | M164: 733364.51 | O164: 3034805.97 | P164: -2252268.925
A165: 47 | B165: 1845 | C165: Underground Conductors & Devices | D165: 505591.84 | E165: 43959 | G165: 549550.84 | I165: -89878.03 | J165: -19280.84 | L165: -109158.87 | M165: 440391.97 | O165: 527571.34 | P165: -99518.45
A166: 47 | B166: 1850 | C166: Line Transformers | D166: 3713165.35 | E166: 119724.37 | G166: 3832889.72 | I166: -2224282.78 | J166: -108004.1 | L166: -2332286.88 | M166: 1500602.84 | O166: 3773027.535 | P166: -2278284.83
A167: 47 | B167: 1855 | C167: Services (Overhead & Underground) | D167: 1073999.1 | E167: 50079 | G167: 1124078.1 | I167: -235061.11 | J167: -41941.81 | L167: -277002.92 | M167: 847075.18 | O167: 1099038.6 | P167: -256032.015
A168: 47 | B168: 1860 | C168: Meters | D168: 65204.41 | E168: 24596 | G168: 89800.41 | I168: -9179.25 | J168: -2189.23 | L168: -11368.48 | M168: 78431.93 | O168: 77502.41 | P168: -10273.865
A169: 47 | B169: 1860 | C169: Meters (Smart Meters) | D169: 0 | G169: 0 | I169: 0 | L169: 0 | M169: 0 | O169: 0 | P169: 0
A170: N/A | B170: 1905 | C170: Land | D170: 0 | G170: 0 | I170: 0 | L170: 0 | M170: 0 | O170: 0 | P170: 0
A171: 47 | B171: 1908 | C171: Buildings & Fixtures | D171: 0 | G171: 0 | I171: 0 | L171: 0 | M171: 0 | O171: 0 | P171: 0
A172: 13 | B172: 1910 | C172: Leasehold Improvements | D172: 0 | G172: 0 | I172: 0 | L172: 0 | M172: 0 | O172: 0 | P172: 0
A173: 8 | B173: 1915 | C173: Office Furniture & Equipment (10 years) | D173: 130561.43 | G173: 130561.43 | I173: -120929.19 | J173: -2538.7 | L173: -123467.89 | M173: 7093.54 | O173: 130561.43 | P173: -122198.54
A174: 8 | B174: 1915 | C174: Office Furniture & Equipment (5 years) | D174: 0 | G174: 0 | I174: 0 | L174: 0 | M174: 0 | O174: 0 | P174: 0
A175: 10 | B175: 1920 | C175: Computer Equipment - Hardware | D175: 0 | G175: 0 | I175: 0 | L175: 0 | M175: 0 | O175: 0 | P175: 0
A176: 45 | B176: 1920 | C176: Computer Equip.-Hardware(Post Mar. 22/04) | D176: 0 | G176: 0 | I176: 0 | L176: 0 | M176: 0 | O176: 0 | P176: 0
A177: 45.1 | B177: 1920 | C177: Computer Equip.-Hardware(Post Mar. 19/07) | D177: 330643.29 | E177: 5308 | G177: 335951.29 | I177: -322547.57 | J177: -4428.93 | L177: -326976.5 | M177: 8974.79 | O177: 333297.29 | P177: -324762.035
A178: 10 | B178: 1930 | C178: Transportation Equipment | D178: 1699389.71 | E178: 145403 | F178: -24248 | G178: 1820544.71 | I178: -1307677.62 | J178: -90647.9 | K178: 24248 | L178: -1374077.52 | M178: 446467.19 | O178: 1759967.21 | P178: -1340877.57
A179: 8 | B179: 1935 | C179: Stores Equipment | D179: 1761.26 | G179: 1761.26 | I179: -1761 | L179: -1761 | M179: 0.26 | O179: 1761.26 | P179: -1761
A180: 8 | B180: 1940 | C180: Tools, Shop & Garage Equipment | D180: 241497.66 | E180: 12399 | G180: 253896.66 | I180: -219597.75 | J180: -7117.93 | L180: -226715.68 | M180: 27180.98 | O180: 247697.16 | P180: -223156.715
A181: 8 | B181: 1945 | C181: Measurement & Testing Equipment | D181: 0 | G181: 0 | I181: 0 | L181: 0 | M181: 0 | O181: 0 | P181: 0
A182: 8 | B182: 1950 | C182: Power Operated Equipment | D182: 0 | G182: 0 | I182: 0 | L182: 0 | M182: 0 | O182: 0 | P182: 0
A183: 8 | B183: 1955 | C183: Communications Equipment | D183: 35201.89 | E183: 1574 | G183: 36775.89 | I183: -31241.32 | J183: -1289.05 | L183: -32530.37 | M183: 4245.52 | O183: 35988.89 | P183: -31885.845
A184: 8 | B184: 1955 | C184: Communication Equipment (Smart Meters) | D184: 0 | G184: 0 | I184: 0 | L184: 0 | M184: 0 | O184: 0 | P184: 0
A185: 8 | B185: 1960 | C185: Miscellaneous Equipment | D185: 0 | G185: =D185+E185+F185 -> 0 | I185: 0 | L185: 0 | M185: 0 | O185: 0 | P185: 0
A186: 47 | B186: 1970 | C186: Load Management Controls Customer Premises | D186: 254912 | G186: =D186+E186+F186 -> 254912 | I186: -253272.43 | J186: -839 | L186: -254111.43 | M186: 800.57 | O186: 254912 | P186: -253691.93
A187: 47 | B187: 1975 | C187: Load Management Controls Utility Premises | D187: 64873.19 | G187: 64873.19 | I187: -64873 | L187: -64873 | M187: 0.19 | O187: 64873.19 | P187: -64873
A188: 47 | B188: 1980 | C188: System Supervisor Equipment | D188: 566498.44 | E188: 4116 | G188: 570614.44 | I188: -523759.38 | J188: -23613.62 | L188: -547373 | M188: 23241.44 | O188: 568556.44 | P188: -535566.19
A189: 47 | B189: 1985 | C189: Miscellaneous Fixed Assets | D189: 0 | G189: 0 | I189: 0 | L189: 0 | M189: 0 | O189: 0 | P189: 0
A190: 47 | B190: 1990 | C190: Other Tangible Property | D190: 0 | G190: 0 | I190: 0 | L190: 0 | M190: 0 | O190: 0 | P190: 0
A191: 47 | B191: 1995 | C191: Contributions & Grants | D191: -1657757.4 | E191: -347303.89 | G191: -2005061.29 | I191: 378362.71 | J191: 65959.95 | L191: 444322.66 | M191: -1560738.63 | O191: -1831409.345 | P191: 411342.685
B192: etc. | E192: 0 | F192: 0 | G192: 0 | J192: 0 | K192: 0 | L192: 0 | M192: 0 | O192: 0 | P192: 0
B193: etc. | E193: 0 | F193: 0 | G193: 0 | J193: 0 | K193: 0 | L193: 0 | M193: 0 | O193: 0 | P193: 0
B194: etc. | E194: 0 | F194: 0 | G194: 0 | J194: 0 | K194: 0 | L194: 0 | M194: 0 | O194: 0 | P194: 0
B195: etc. | E195: 0 | F195: 0 | G195: 0 | J195: 0 | K195: 0 | L195: 0 | M195: 0 | O195: 0 | P195: 0
B196: etc. | E196: 0 | F196: 0 | G196: 0 | J196: 0 | K196: 0 | L196: 0 | M196: 0 | O196: 0 | P196: 0
B197: etc. | E197: 0 | F197: 0 | G197: 0 | J197: 0 | K197: 0 | L197: 0 | M197: 0 | O197: 0 | P197: 0
B198: etc. | E198: 0 | F198: 0 | G198: 0 | J198: 0 | K198: 0 | L198: 0 | M198: 0 | O198: 0 | P198: 0
B199: etc. | E199: 0 | F199: 0 | G199: 0 | J199: 0 | K199: 0 | L199: =I199+J199+K199 -> 0 | M199: 0 | O199: 0 | P199: 0
B200: etc. | E200: 0 | F200: 0 | G200: 0 | J200: 0 | K200: 0 | L200: =I200+J200+K200 -> 0 | M200: 0 | O200: 0 | P200: 0
B201: etc. | E201: 0 | F201: 0 | G201: 0 | J201: 0 | K201: 0 | L201: 0 | M201: 0 | O201: 0 | P201: 0
C202: Sub-Total | D202: =SUM(D154:D201) -> 24813569.14 | E202: =SUM(E154:E201) -> 457682.72 | F202: -24248 | G202: =SUM(G154:G201) -> 25247003.86 | I202: =SUM(I154:I201) -> -16620549.16 | J202: =SUM(J154:J201) -> -729394.18 | K202: =SUM(K154:K201) -> 24248 | L202: =SUM(L154:L201) -> -17325695.34 | M202: =SUM(M154:M201) -> 7921308.52 | O202: =SUM(O154:O201) -> 25030286.5 | P202: =SUM(P154:P201) -> -16973122.25
C203: Less Socialized Renewable Energy Generation Investments (input as negative)Less Socialized Renewable Energy Generation Investments (input as negative) | G203: =D203+E203+F203 -> 0 | L203: =I203+J203+K203 -> 0 | M203: =G203+L203 -> 0
C204: Less Other Non Rate-Regulated Utility Assets (input as negative)Less Other Non Rate-Regulated Utility Assets (input as negative) | G204: =D204+E204+F204 -> 0 | L204: =I204+J204+K204 -> 0 | M204: =G204+L204 -> 0
C205: Total PP&E | D205: =SUM(D202:D204) -> 24813569.14 | E205: =SUM(E202:E204) -> 457682.72 | F205: =SUM(F202:F204) -> -24248 | G205: =SUM(G202:G204) -> 25247003.86 | I205: =SUM(I202:I204) -> -16620549.16 | J205: =SUM(J202:J204) -> -729394.18 | K205: =SUM(K202:K204) -> 24248 | L205: =SUM(L202:L204) -> -17325695.34 | M205: =SUM(M202:M204) -> 7921308.52
C206: Depreciation Expense adj. from gain or loss on the retirement of assets (pool of like assets)
C207: Total | J207: =J205+J206 -> -729394.18
G209: Less: Fully Allocated Depreciation
A210: 10 | C210: Transportation | G210: Transportation | J210: 45269.6112
A211: 8 | C211: Stores Equipment | G211: Stores Equipment | J211: 3559
A212: 8 | C212: Tools, Shop | G212: Tools, Shop
... 266 more rows

Sheet Appendix 2-BB Service Life
M1: File Number: | O1: 0
M2: Exhibit:
M3: Tab:
M4: Schedule:
M5: Page:
M7: Date:
A9: Appendix 2-BB
A10: Service Life Comparison
A11: Table F-1 from Kinetrics Report1
A14: Table F-1 from Kinetrics Report1
C18: Asset Details | F18: Useful Life | J18: USoA Account Number | K18: USoA Account Description | L18: Current | N18: Proposed
A19: Parent* | B19: # | C19: Category| Component | Type | F19: MIN UL | G19: TUL | H19: MAX UL | L19: Years | M19: Rate | N19: Years | O19: Rate
A20: OH | B20: 1 | C20: Fully Dressed Wood Poles | D20: Overall | F20: 35 | G20: 45 | H20: 75 | J20: 1830 | K20: Poles, Towers and Fixtures | L20: 25 | M20: =IF(ISERROR(1/L20), "", 1/L20) -> 0.04 | N20: 40 | O20: =IF(ISERROR(1/N20), "", 1/N20) -> 0.025
D21: Cross Arm | E21: Wood | F21: 20 | G21: 40 | H21: 55 | J21: 1830 | K21: Poles, Towers and Fixtures | L21: 25 | M21: =IF(ISERROR(1/L21), "", 1/L21) -> 0.04 | N21: 40 | O21: =IF(ISERROR(1/N21), "", 1/N21) -> 0.025
E22: Steel | F22: 30 | G22: 70 | H22: 95 | J22: 1830 | K22: Poles, Towers and Fixtures | L22: 25 | M22: 0.04 | N22: 40 | O22: 0.025
B23: 2 | C23: Fully Dressed Concrete Poles | D23: Overall | F23: 50 | G23: 60 | H23: 80 | J23: 1830 | K23: Poles, Towers and Fixtures | L23: 25 | M23: 0.04 | N23: 40 | O23: 0.025
D24: Cross Arm | E24: Wood | F24: 20 | G24: 40 | H24: 55 | J24: 1830 | K24: Poles, Towers and Fixtures | L24: 25 | M24: 0.04 | N24: 40 | O24: 0.025
E25: Steel | F25: 30 | G25: 70 | H25: 95 | J25: 1830 | K25: Poles, Towers and Fixtures | L25: 25 | M25: 0.04 | N25: 40 | O25: 0.025
B26: 3 | C26: Fully Dressed Steel Poles | D26: Overall | F26: 60 | G26: 60 | H26: 80 | J26: N/A
D27: Cross Arm | E27: Wood | F27: 20 | G27: 40 | H27: 55 | J27: N/A
E28: Steel | F28: 30 | G28: 70 | H28: 95 | J28: N/A
B29: 4 | C29: OH Line Switch | F29: 30 | G29: 45 | H29: 55 | J29: 1835 | K29: Overhead Conductors & Devices | L29: 25 | M29: 0.04 | N29: 40 | O29: 0.025
B30: 5 | C30: OH Line Switch Motor | F30: 15 | G30: 25 | H30: 25 | J30: 1835 | K30: Overhead Conductors & Devices | L30: 25 | M30: 0.04 | N30: 20 | O30: 0.05
B31: 6 | C31: OH Line Switch RTU | F31: 15 | G31: 20 | H31: 20 | J31: 1835 | K31: Overhead Conductors & Devices | L31: 25 | M31: 0.04 | N31: 20 | O31: 0.05
B32: 7 | C32: OH Integral Switches | F32: 35 | G32: 45 | H32: 60 | J32: 1835 | K32: Overhead Conductors & Devices | L32: 25 | M32: 0.04 | N32: 40 | O32: 0.025
B33: 8 | C33: OH Conductors | F33: 50 | G33: 60 | H33: 75 | J33: 1835 | K33: Overhead Conductors & Devices | L33: 25 | M33: 0.04 | N33: 60 | O33: 0.01666666667
B34: 9 | C34: OH Transformers & Voltage Regulators | F34: 30 | G34: 40 | H34: 60 | J34: 1850 | K34: Line Transformers | L34: 25 | M34: 0.04 | N34: 40 | O34: 0.025
B35: 10 | C35: OH Shunt Capacitor Banks | F35: 25 | G35: 30 | H35: 40 | J35: N/A
B36: 11 | C36: Reclosers | F36: 25 | G36: 40 | H36: 55 | J36: N/A
A37: TS & MS | B37: 12 | C37: Power Transformers | D37: Overall | F37: 30 | G37: 45 | H37: 60 | J37: 1850 | K37: Line Transformers | L37: 25 | M37: 0.04 | N37: 40 | O37: 0.025
D38: Bushing | F38: 10 | G38: 20 | H38: 30
D39: Tap Changer | F39: 20 | G39: 30 | H39: 60
B40: 13 | C40: Station Service Transformer | F40: 30 | G40: 45 | H40: 55
B41: 14 | C41: Station Grounding Transformer | F41: 30 | G41: 40 | H41: 40
B42: 15 | C42: Station DC System | D42: Overall | F42: 10 | G42: 20 | H42: 30
D43: Battery Bank | F43: 10 | G43: 15 | H43: 15 | J43: 1820 | K43: Distribution Station Equipment | L43: 30 | M43: 0.03333333333 | N43: 20 | O43: 0.05
D44: Charger | F44: 20 | G44: 20 | H44: 30 | J44: 1820 | K44: Distribution Station Equipment | L44: 30 | M44: 0.03333333333 | N44: 20 | O44: 0.05
B45: 16 | C45: Station Metal Clad Switchgear | D45: Overall | F45: 30 | G45: 40 | H45: 60 | J45: 1820 | K45: Distribution Station Equipment | L45: 25 | M45: 0.04 | N45: 40 | O45: 0.025
D46: Removable Breaker | F46: 25 | G46: 40 | H46: 60
B47: 17 | C47: Station Independent Breakers | F47: 35 | G47: 45 | H47: 65
B48: 18 | C48: Station Switch | F48: 30 | G48: 50 | H48: 60
B49: 19 | C49: Electromechanical Relays | F49: 25 | G49: 35 | H49: 50
B50: 20 | C50: Solid State Relays | F50: 10 | G50: 30 | H50: 45 | J50: 1820 | K50: Distribution Station Equipment | L50: 25 | M50: 0.04 | N50: 30 | O50: 0.03333333333
B51: 21 | C51: Digital & Numeric Relays | F51: 15 | G51: 20 | H51: 20
B52: 22 | C52: Rigid Busbars | F52: 30 | G52: 55 | H52: 60
B53: 23 | C53: Steel Structure | F53: 35 | G53: 50 | H53: 90
A54: UG | B54: 24 | C54: Primary Paper Insulated Lead Covered (PILC) Cables | F54: 60 | G54: 65 | H54: 75 | J54: N/A
B55: 25 | C55: Primary Ethylene-Propylene Rubber (EPR) Cables | F55: 20 | G55: 25 | H55: 25 | J55: 1845 | K55: Underground Conductors & Devices | L55: 25 | M55: 0.04 | N55: 40 | O55: 0.025
B56: 26 | C56: Primary Non-Tree Retardant (TR) Cross Linked Polyethylene (XLPE) Cables Direct BuriedPrimary Non-Tree Retardant (TR) Cross Linked Polyethylene (XLPE) Cables Direct BuriedPrimary Non-Tree Retardant (TR) Cross Linked Polyethylene (XLPE) Cables Direct BuriedPrimary Non-Tree Retardant (TR) Cross Linked Polyethylene (XLPE) Cables Direct Buried | F56: 20 | G56: 25 | H56: 30 | J56: 1845 | K56: Underground Conductors & Devices | L56: 25 | M56: 0.04 | N56: 40 | O56: 0.025
B57: 27 | C57: Primary Non-TR XLPE Cables in Duct | F57: 20 | G57: 25 | H57: 30 | J57: 1845 | K57: Underground Conductors & Devices | L57: 25 | M57: 0.04 | N57: 40 | O57: 0.025
B58: 28 | C58: Primary TR XLPE Cables Direct Buried | F58: 25 | G58: 30 | H58: 35 | J58: 1845 | K58: Underground Conductors & Devices | L58: 25 | M58: 0.04 | N58: 40 | O58: 0.025
B59: 29 | C59: Primary TR XLPE Cables in Duct | F59: 35 | G59: 40 | H59: 55 | J59: 1845 | K59: Underground Conductors & Devices | L59: 25 | M59: 0.04 | N59: 40 | O59: 0.025
B60: 30 | C60: Secondary PILC Cables | F60: 70 | G60: 75 | H60: 80 | J60: N/A
B61: 31 | C61: Secondary Cables Direct Buried | F61: 25 | G61: 35 | H61: 40 | J61: 1855 | K61: Services | L61: 25 | M61: 0.04 | N61: 60 | O61: 0.01666666667
B62: 32 | C62: Secondary Cables in Duct | F62: 35 | G62: 40 | H62: 60 | J62: 1855 | K62: Services | L62: 25 | M62: 0.04 | N62: 60 | O62: 0.01666666667
B63: 33 | C63: Network Tranformers | D63: Overall | F63: 20 | G63: 35 | H63: 50 | J63: N/A
D64: Protector | F64: 20 | G64: 35 | H64: 40 | J64: N/A
B65: 34 | C65: Pad-Mounted Transformers | F65: 25 | G65: 40 | H65: 45 | J65: 1850 | K65: Line Transformers | L65: 25 | M65: 0.04 | N65: 40 | O65: 0.025
B66: 35 | C66: Submersible/Vault Transformers | F66: 25 | G66: 35 | H66: 45 | J66: 1850 | K66: Line Transformers | L66: 25 | M66: 0.04 | N66: 40 | O66: 0.025
B67: 36 | C67: UG Foundation | F67: 35 | G67: 55 | H67: 70 | J67: 1840 | K67: Underground Conduit | L67: 25 | M67: 0.04 | N67: 60 | O67: 0.01666666667
B68: 37 | C68: UG Vaults | D68: Overall | F68: 40 | G68: 60 | H68: 80 | J68: N/A
D69: Roof | F69: 20 | G69: 30 | H69: 45 | J69: N/A
B70: 38 | C70: UG Vault Switches | F70: 20 | G70: 35 | H70: 50 | J70: 1845 | K70: Underground Conductors & Devices | L70: 25 | M70: 0.04 | N70: 30 | O70: 0.03333333333
B71: 39 | C71: Pad-Mounted Switchgear | F71: 20 | G71: 30 | H71: 45 | J71: 1845 | K71: Underground Conductors & Devices | L71: 25 | M71: 0.04 | N71: 30 | O71: 0.03333333333
B72: 40 | C72: Ducts | F72: 30 | G72: 50 | H72: 85 | J72: 1840 | K72: Underground Conduit | L72: 25 | M72: 0.04 | N72: 60 | O72: 0.01666666667
B73: 41 | C73: Concrete Encased Duct Banks | F73: 35 | G73: 55 | H73: 80 | J73: 1840 | K73: Underground Conduit | L73: 25 | M73: 0.04 | N73: 60 | O73: 0.01666666667
B74: 42 | C74: Cable Chambers | F74: 50 | G74: 60 | H74: 80 | J74: 1840 | K74: Underground Conduit | L74: 25 | M74: 0.04 | N74: 60 | O74: 0.01666666667
A75: S | B75: 43 | C75: Remote SCADA | F75: 15 | G75: 20 | H75: 30
A78: Table F-2 from Kinetrics Report1
C80: Asset Details | F80: Useful Life Range | J80: USoA Account Number | K80: USoA Account Description | L80: Current | N80: Proposed
B81: # | C81: Category| Component | Type | L81: Years | M81: Rate | N81: Years | O81: Rate
B82: 1 | C82: Office Equipment | F82: 5-15 | J82: 1915 | K82: Office Furniture & Equipment | L82: 10 | M82: =IF(ISERROR(1/L82), "", 1/L82) -> 0.1 | N82: 10 | O82: =IF(ISERROR(1/N82), "", 1/N82) -> 0.1
B83: 2 | C83: Vehicles | D83: Trucks & Buckets | F83: 5-15 | J83: 1930 | K83: Transportation Equipment | L83: 8 | M83: =IF(ISERROR(1/L83), "", 1/L83) -> 0.125 | N83: 15 | O83: =IF(ISERROR(1/N83), "", 1/N83) -> 0.06666666667
D84: Trailers | F84: 5-20 | J84: 1930 | K84: Transportation Equipment | L84: 8 | M84: 0.125 | N84: 20 | O84: 0.05
D85: Vans | F85: 5-10 | J85: 1930 | K85: Transportation Equipment | L85: 5 | M85: 0.2 | N85: 12 | O85: 0.08333333333
B86: 3 | C86: Administrative Buildings | F86: 50-75 | J86: 200/201 | K86: Building & Fixtures | L86: 1950-05-01 | M86: 5.43951262e-05 | N86: 1950-05-01 | O86: 5.43951262e-05
B87: 4 | C87: Leasehold Improvements | F87: Lease dependent | J87: N/A | L87: 0 | N87: 0
B88: 5 | C88: Station Buildings | D88: Station Buildings | F88: 50-75 | J88: 1808 | K88: Building & Fixtures | L88: 50 | M88: 0.02 | N88: 50 | O88: 0.02
D89: Parking | F89: 25-30 | J89: 1808 | K89: Building & Fixtures | L89: 30 | M89: 0.03333333333 | N89: 30 | O89: 0.03333333333
D90: Fence | F90: 25-60 | J90: 1808 | K90: Building & Fixtures | L90: 25 | M90: 0.04 | N90: 25 | O90: 0.04
D91: Roof | F91: 20-30 | J91: 1808 | K91: Building & Fixtures | L91: 20 | M91: 0.05 | N91: 20 | O91: 0.05
B92: 6 | C92: Computer Equipment | D92: Hardware | F92: 3-5 | J92: 1920 | K92: Computer Equipment - Hardware | L92: 5 | M92: 0.2 | N92: 5 | O92: 0.2
D93: Software | F93: 2-5 | J93: 1925 | K93: Computer Equipment - Software | L93: 5 | M93: 0.2 | N93: 5 | O93: 0.2
B94: 7 | C94: Equipment | D94: Power Operated | F94: 5-10 | J94: N/A
D95: Stores | F95: 5-10 | J95: 1935 | K95: Stores Equipment | L95: 10 | M95: 0.1 | N95: 10 | O95: 0.1
D96: Tools, Shop, Garage Equipment | F96: 5-10 | J96: 1940 | K96: Tools, Shops Garage Equipment | L96: 10 | M96: 0.1 | N96: 10 | O96: 0.1
D97: Measurement & Testing Equipment | F97: 5-10 | J97: 1945 | K97: Measurement and Testing Equipment | L97: 10 | M97: 0.1 | N97: 10 | O97: 0.1
B98: 8 | C98: Communication | D98: Towers | F98: 60-70 | J98: 1955 | K98: Communication Equipment | L98: 10 | M98: 0.1 | N98: 10 | O98: 0.1
D99: Wireless | F99: 2-10 | J99: 1955 | K99: Communication Equipment | L99: 10 | M99: 0.1 | N99: 10 | O99: 0.1
B100: 9 | C100: Residential Energy Meters | F100: 25-35 | J100: 1860 | K100: Meters | L100: 25 | M100: 0.04 | N100: 15 | O100: 0.06666666667
B101: 10 | C101: Industrial/Commercial Energy Meters | F101: 25-35 | J101: 1860 | K101: Meters | N101: 20 | O101: 0.05
B102: 11 | C102: Wholesale Energy Meters | F102: 15-30 | J102: N/A
B103: 12 | C103: Current & Potential Transformer (CT & PT) | F103: 35-50 | J103: 1860 | K103: Meters | N103: 45 | O103: 0.02222222222
B104: 13 | C104: Smart Meters | F104: 5-15 | J104: 1860 | K104: Meters | L104: 15 | M104: 0.06666666667 | N104: 15 | O104: 0.06666666667
B105: 14 | C105: Repeaters - Smart Metering | F105: 10-15 | J105: 1915 | K105: Office Furniture & Equipment | L105: 5 | M105: 0.2 | N105: 5 | O105: 0.2
B106: 15 | C106: Data Collectors - Smart Metering | F106: 15-20 | J106: 1915 | K106: Office Furniture & Equipment | L106: 5 | M106: 0.2 | N106: 5 | O106: 0.2
A109: * TS & MS = Transformer and Municipal Stations UG = Underground Systems S = Monitoring and Control Systems
A111: Note 1: | B111: Tables F-1 and F-2 above are to be used as a reference in order to complete columns J, K, L and N.
B112: See pages 17-19 of Kinetrics Report

Sheet App.2-CA_OldCGAAP_DepExp_2012 (hidden)
K1: File Number: | L1: =EBNUMBER -> EB-2014-0105
K2: Exhibit:
K3: Tab:
K4: Schedule:
K5: Page:
K7: Date:
A9: Appendix 2-CA
A10: Depreciation and Amortization Expense
B11: Assumes the applicant made capitalization and depreciation expense accounting policy changes under CGAAP effective January 1, 2012 and has adopted IFRS for financial reporting purposes effective January 1, 2015.
C13: Year | D13: 2012 | E13: Former CGAAP
A15: Account | B15: Description | C15: Opening Regulatory Gross PP&E as at Jan 1, 2012 | D15: Less Fully Depreciated | E15: Net for Depreciation | F15: Additions | G15: Total for Depreciation 1 | H15: Years | I15: Depreciation Rate | J15: Depreciation Expense | K15: 2012 Depreciation Expense per Appendix 2-BA Fixed Assets, Column J (l) | L15: Variance 2
C16: (a) | D16: (b) | E16: (c) | F16: (d) | G16: (e) = (c) + ½ x (d) | H16: (f) | I16: (g) = 1 / (f) | J16: (h) = (e) / (f) | L16: (m) = (h) - (l)
A17: 1611 | B17: Computer Software (Formally known as Account 1925) | E17: =C17-D17 -> 0 | G17: =E17+0.5*F17 -> 0 | I17: =IF(H17=0,0,1/H17) -> 0 | J17: =IF(H17=0,0,G17/H17) -> 0 | L17: =IF(ISERROR(+J17-K17), 0, +J17-K17) -> 0
A18: 1612 | B18: Land Rights (Formally known as Account 1906) | E18: =C18-D18 -> 0 | G18: =E18+0.5*F18 -> 0 | I18: 0 | J18: 0 | L18: 0
A19: 1805 | B19: Land | E19: 0 | G19: 0 | I19: 0 | J19: 0 | L19: 0
A20: 1808 | B20: Buildings | E20: 0 | G20: 0 | I20: 0 | J20: 0 | L20: 0
A21: 1810 | B21: Leasehold Improvements | E21: 0 | G21: 0 | I21: 0 | J21: 0 | L21: 0
A22: 1815 | B22: Transformer Station Equipment >50 kV | E22: 0 | G22: 0 | I22: 0 | J22: 0 | L22: 0
A23: 1820 | B23: Distribution Station Equipment <50 kV | E23: 0 | G23: 0 | I23: 0 | J23: 0 | L23: 0
A24: 1825 | B24: Storage Battery Equipment | E24: 0 | G24: 0 | I24: 0 | J24: 0 | L24: 0
A25: 1830 | B25: Poles, Towers & Fixtures | E25: 0 | G25: 0 | I25: 0 | J25: 0 | L25: 0
A26: 1835 | B26: Overhead Conductors & Devices | E26: 0 | G26: 0 | I26: 0 | J26: 0 | L26: 0
A27: 1840 | B27: Underground Conduit | E27: 0 | G27: 0 | I27: 0 | J27: 0 | L27: 0
A28: 1845 | B28: Underground Conductors & Devices | E28: 0 | G28: 0 | I28: 0 | J28: 0 | L28: 0
A29: 1850 | B29: Line Transformers | E29: 0 | G29: 0 | I29: 0 | J29: 0 | L29: 0
A30: 1855 | B30: Services (Overhead & Underground) | E30: 0 | G30: 0 | I30: 0 | J30: 0 | L30: 0
A31: 1860 | B31: Meters | E31: 0 | G31: 0 | I31: 0 | J31: 0 | L31: 0
A32: 1860 | B32: Meters (Smart Meters) | E32: 0 | G32: 0 | I32: 0 | J32: 0 | L32: 0
A33: 1905 | B33: Land | E33: 0 | G33: 0 | I33: 0 | J33: 0 | L33: 0
A34: 1908 | B34: Buildings & Fixtures | E34: 0 | G34: 0 | I34: 0 | J34: 0 | L34: 0
A35: 1910 | B35: Leasehold Improvements | E35: 0 | G35: 0 | I35: 0 | J35: 0 | L35: 0
A36: 1915 | B36: Office Furniture & Equipment (10 years) | E36: 0 | G36: 0 | I36: 0 | J36: 0 | L36: 0
A37: 1915 | B37: Office Furniture & Equipment (5 years) | E37: 0 | G37: 0 | I37: 0 | J37: 0 | L37: 0
A38: 1920 | B38: Computer Equipment - Hardware | E38: 0 | G38: 0 | I38: 0 | J38: 0 | L38: 0
A39: 1920 | B39: Computer Equip.-Hardware(Post Mar. 22/04) | E39: 0 | G39: 0 | I39: 0 | J39: 0 | L39: 0
A40: 1920 | B40: Computer Equip.-Hardware(Post Mar. 19/07) | E40: 0 | G40: 0 | I40: 0 | J40: 0 | L40: 0
A41: 1930 | B41: Transportation Equipment | E41: 0 | G41: 0 | I41: 0 | J41: 0 | L41: 0
A42: 1935 | B42: Stores Equipment | E42: 0 | G42: 0 | I42: 0 | J42: 0 | L42: 0
A43: 1940 | B43: Tools, Shop & Garage Equipment | E43: 0 | G43: 0 | I43: 0 | J43: 0 | L43: 0
A44: 1945 | B44: Measurement & Testing Equipment | E44: 0 | G44: 0 | I44: 0 | J44: 0 | L44: 0
A45: 1950 | B45: Power Operated Equipment | E45: 0 | G45: 0 | I45: 0 | J45: 0 | L45: 0
A46: 1955 | B46: Communications Equipment | E46: 0 | G46: 0 | I46: 0 | J46: 0 | L46: 0
A47: 1955 | B47: Communication Equipment (Smart Meters) | E47: 0 | G47: 0 | I47: 0 | J47: 0 | L47: 0
A48: 1960 | B48: Miscellaneous Equipment | E48: 0 | G48: 0 | I48: 0 | J48: 0 | L48: 0
A49: 1970 | B49: Load Management Controls Customer Premises | E49: 0 | G49: 0 | I49: 0 | J49: 0 | L49: 0
A50: 1975 | B50: Load Management Controls Utility Premises | E50: 0 | G50: 0 | I50: 0 | J50: 0 | L50: 0
A51: 1980 | B51: System Supervisor Equipment | E51: 0 | G51: 0 | I51: 0 | J51: 0 | L51: 0
A52: 1985 | B52: Miscellaneous Fixed Assets | E52: 0 | G52: 0 | I52: 0 | J52: 0 | L52: 0
A53: 1990 | B53: Other Tangible Property | E53: 0 | G53: 0 | I53: 0 | J53: 0 | L53: 0
A54: 1995 | B54: Contributions & Grants | E54: 0 | G54: 0 | I54: 0 | J54: 0 | L54: 0
B55: Total | C55: =SUM(C17:C54) -> 0 | D55: =SUM(D17:D54) -> 0 | E55: =SUM(E17:E54) -> 0 | F55: =SUM(F17:F54) -> 0 | G55: =SUM(G17:G54) -> 0 | J55: =SUM(J17:J54) -> 0 | K55: =SUM(K17:K54) -> 0 | L55: =SUM(L17:L54) -> 0
A57: Notes:
A59: 1 | B59: Board policy of the "half-year" rule - the applicant must ensure that additions in the year attract a half-year depreciation expense in the first year. Deviations from this standard practice must be supported in the application.
A60: 2 | B60: The applicant must provide an explanation of material variances in evidence.
A62: General | B62: Applicants must provide a breakdown of depreciation and amortization expense in the above format for all relevant accounts. Asset Retirement Obligations (AROs), depreciation and accretion expense should be disclosed separately consistent with the Notes of historical Audited Financial Statements.

Sheet App.2-CB_NewCGAAP_DepExp_2012 (hidden)
N1: File Number: | O1: =EBNUMBER -> EB-2014-0105
N2: Exhibit:
N3: Tab:
N4: Schedule:
N5: Page:
N7: Date:
A9: Appendix 2-CB
A10: Depreciation and Amortization Expense
A11: Assumes the applicant made capitalization and depreciation expense accounting policy changes under CGAAP effective January 1, 2012 and has adopted IFRS for financial reporting purposes effective January 1, 2015.
C13: Year | D13: 2012 | E13: Revised CGAAP
A15: Account | B15: Description | C15: Opening NBV as at Jan 1, 2012 5 | D15: Additions | E15: Average Remaining Life of Opening NBV 4 | F15: Years (new additions only) 3 | G15: Depreciation Rate on New Additions | H15: Depreciation Expense on Opening NBV | I15: Depreciation Expense on Additions 1 | J15: 2012 Depreciation Expense | K15: 2012 Depreciation Expense per Appendix 2-BA Fixed Assets, Column J (l) | L15: Variance 2 | M15: Depreciation Expense on 2012 Full Year Additions | N15: Less Depreciation Expense on Assets Fully Depreciated during the year (o) | O15: 2012 Full Year Depreciation 6
C16: (a) | D16: (d) | E16: (i) | F16: (f) | G16: (g) = 1 / (f) | H16: (j) = (a) / (i) | I16: (h)=((d)*0.5)/(f) | J16: (k) = (j) + (h) | L16: (m) = (k) - (l) | M16: (n) = (d)/(f) | O16: (p) = (j) + (n) - (o)
A17: 1611 | B17: Computer Software (Formally known as Account 1925) | G17: =IF(F17=0,0,1/F17) -> 0 | H17: =IF(E17=0,0,+C17/E17) -> 0 | I17: =IF(F17=0,0,+(D17*0.5)/F17) -> 0 | J17: =IF(ISERROR(+H17+I17), 0, +H17+I17) -> 0 | L17: =IF(ISERROR(+J17-K17), 0, +J17-K17) -> 0 | M17: =IF(F17=0,0,+(D17)/F17) -> 0 | O17: =IF(ISERROR(+M17+H17-N17), 0, +M17+H17-N17) -> 0
A18: 1612 | B18: Land Rights (Formally known as Account 1906) | G18: 0 | H18: 0 | I18: 0 | J18: 0 | L18: 0 | M18: 0 | O18: =IF(ISERROR(+M18+H18-N18), 0, +M18+H18-N18) -> 0
A19: 1805 | B19: Land | G19: 0 | H19: 0 | I19: 0 | J19: 0 | L19: 0 | M19: 0 | O19: 0
A20: 1808 | B20: Buildings | G20: 0 | H20: 0 | I20: 0 | J20: 0 | L20: 0 | M20: 0 | O20: 0
A21: 1810 | B21: Leasehold Improvements | G21: 0 | H21: 0 | I21: 0 | J21: 0 | L21: 0 | M21: 0 | O21: 0
A22: 1815 | B22: Transformer Station Equipment >50 kV | G22: 0 | H22: 0 | I22: 0 | J22: 0 | L22: 0 | M22: 0 | O22: 0
A23: 1820 | B23: Distribution Station Equipment <50 kV | G23: 0 | H23: 0 | I23: 0 | J23: 0 | L23: 0 | M23: 0 | O23: 0
A24: 1825 | B24: Storage Battery Equipment | G24: 0 | H24: 0 | I24: 0 | J24: 0 | L24: 0 | M24: 0 | O24: 0
A25: 1830 | B25: Poles, Towers & Fixtures | G25: 0 | H25: 0 | I25: 0 | J25: 0 | L25: 0 | M25: 0 | O25: 0
A26: 1835 | B26: Overhead Conductors & Devices | G26: 0 | H26: 0 | I26: 0 | J26: 0 | L26: 0 | M26: 0 | O26: 0
A27: 1840 | B27: Underground Conduit | G27: 0 | H27: 0 | I27: 0 | J27: 0 | L27: 0 | M27: 0 | O27: 0
A28: 1845 | B28: Underground Conductors & Devices | G28: 0 | H28: 0 | I28: 0 | J28: 0 | L28: 0 | M28: 0 | O28: 0
A29: 1850 | B29: Line Transformers | G29: 0 | H29: 0 | I29: 0 | J29: 0 | L29: 0 | M29: 0 | O29: 0
A30: 1855 | B30: Services (Overhead & Underground) | G30: 0 | H30: 0 | I30: 0 | J30: 0 | L30: 0 | M30: 0 | O30: 0
A31: 1860 | B31: Meters | G31: 0 | H31: 0 | I31: 0 | J31: 0 | L31: 0 | M31: 0 | O31: 0
A32: 1860 | B32: Meters (Smart Meters) | G32: 0 | H32: 0 | I32: 0 | J32: 0 | L32: 0 | M32: 0 | O32: 0
A33: 1905 | B33: Land | G33: 0 | H33: 0 | I33: 0 | J33: 0 | L33: 0 | M33: 0 | O33: 0
A34: 1908 | B34: Buildings & Fixtures | G34: 0 | H34: 0 | I34: 0 | J34: 0 | L34: 0 | M34: 0 | O34: 0
A35: 1910 | B35: Leasehold Improvements | G35: 0 | H35: 0 | I35: 0 | J35: 0 | L35: 0 | M35: 0 | O35: 0
A36: 1915 | B36: Office Furniture & Equipment (10 years) | G36: 0 | H36: 0 | I36: 0 | J36: 0 | L36: 0 | M36: 0 | O36: 0
A37: 1915 | B37: Office Furniture & Equipment (5 years) | G37: 0 | H37: 0 | I37: 0 | J37: 0 | L37: 0 | M37: 0 | O37: 0
A38: 1920 | B38: Computer Equipment - Hardware | G38: 0 | H38: 0 | I38: 0 | J38: 0 | L38: 0 | M38: 0 | O38: 0
A39: 1920 | B39: Computer Equip.-Hardware(Post Mar. 22/04) | G39: 0 | H39: 0 | I39: 0 | J39: 0 | L39: 0 | M39: 0 | O39: 0
A40: 1920 | B40: Computer Equip.-Hardware(Post Mar. 19/07) | G40: 0 | H40: 0 | I40: 0 | J40: 0 | L40: 0 | M40: 0 | O40: 0
A41: 1930 | B41: Transportation Equipment | G41: 0 | H41: 0 | I41: 0 | J41: 0 | L41: 0 | M41: 0 | O41: 0
A42: 1935 | B42: Stores Equipment | G42: 0 | H42: 0 | I42: 0 | J42: 0 | L42: 0 | M42: 0 | O42: 0
A43: 1940 | B43: Tools, Shop & Garage Equipment | G43: 0 | H43: 0 | I43: 0 | J43: 0 | L43: 0 | M43: 0 | O43: 0
A44: 1945 | B44: Measurement & Testing Equipment | G44: 0 | H44: 0 | I44: 0 | J44: 0 | L44: 0 | M44: 0 | O44: 0
A45: 1950 | B45: Power Operated Equipment | G45: 0 | H45: 0 | I45: 0 | J45: 0 | L45: 0 | M45: 0 | O45: 0
A46: 1955 | B46: Communications Equipment | G46: 0 | H46: 0 | I46: 0 | J46: 0 | L46: 0 | M46: 0 | O46: 0
A47: 1955 | B47: Communication Equipment (Smart Meters) | G47: 0 | H47: 0 | I47: 0 | J47: 0 | L47: 0 | M47: 0 | O47: 0
A48: 1960 | B48: Miscellaneous Equipment | G48: 0 | H48: 0 | I48: 0 | J48: 0 | L48: 0 | M48: 0 | O48: 0
A49: 1970 | B49: Load Management Controls Customer Premises | G49: 0 | H49: 0 | I49: 0 | J49: 0 | L49: 0 | M49: 0 | O49: 0
A50: 1975 | B50: Load Management Controls Utility Premises | G50: 0 | H50: 0 | I50: 0 | J50: 0 | L50: 0 | M50: 0 | O50: 0
A51: 1980 | B51: System Supervisor Equipment | G51: 0 | H51: 0 | I51: 0 | J51: 0 | L51: 0 | M51: 0 | O51: 0
A52: 1985 | B52: Miscellaneous Fixed Assets | G52: 0 | H52: 0 | I52: 0 | J52: 0 | L52: 0 | M52: 0 | O52: 0
A53: 1990 | B53: Other Tangible Property | G53: 0 | H53: 0 | I53: 0 | J53: 0 | L53: 0 | M53: 0 | O53: 0
A54: 1995 | B54: Contributions & Grants | G54: 0 | H54: 0 | I54: 0 | J54: 0 | L54: 0 | M54: 0 | O54: 0
B55: Total | C55: =SUM(C17:C54) -> 0 | D55: =SUM(D17:D54) -> 0 | H55: =SUM(H17:H54) -> 0 | I55: 0 | J55: 0 | K55: 0 | L55: 0 | M55: 0 | N55: 0 | O55: 0
A57: Notes:
A59: 1 | B59: Board policy of the "half-year" rule - the applicant must ensure that additions in the year attract a half-year depreciation expense in the first year. Deviations from this standard practice must be supported in the application.
A60: 2 | B60: The applicant must provide an explanation of material variances in evidence.
A61: 3 | B61: The applicant should ensure that the years for new additions of assets are the asset useful lives determined by management in accordance with the Board's regulatory accounting policies. The capitalization and depreciation expense accounting changes should be implemented consistent with the Board’s regulatory accounting policies as set out for modified IFRS as contained in the Report of the Board, Transition to International Financial Reporting Standards, EB-2008-0408, the Kinectrics Report, and the Revised 2012 Accounting Procedures Handbook for Electricity Distributors (“APH”).
A62: 4 | B62: A recalculation should be performed to determine the average remaining life of opening balance of assets (i.e. excluding 2012 additions) under the change in policies under CGAAP. For example, Asset A had a useful life of 20 years under CGAAP without the change in policies. On January 1, 2012, the effective date of the changes in policies, Asset A was 3 years depreciated. As a result, Asset A would have a remaining service life of 17 years (20 years less 3 years) as of January 1, 2012. Due to making the change in policies under CGAAP, management re-assessed the asset useful lives and concluded that the revised useful life of Asset A is now 30 years. Therefore, the average remaining useful life of the opening balance of Asset A is determined to be 27 years (30 years less 3 years) under the revised CGAAP as of January 1, 2012.
A63: 5 | B63: NBV must exclude assets still on the books but which have been fully amortized or depreciated.
A64: 6 | B64: This column refers to the calculated full year depreciation but excludes the depreciation expense on assets fully depreciated during the year. This column is used for the purpose of calculating depreciation expense in the following year on the next worksheet.
A66: General: | B66: Applicants must provide a breakdown of depreciation and amortization expense in the above format for all relevant accounts. Asset Retirement Obligations (AROs), depreciation and accretion expense should be disclosed separately consistent with the Notes of historical Audited Financial Statements.

Sheet App.2-CC_NewCGAAP_DepExp_2013 (hidden)
J1: File Number: | K1: =EBNUMBER -> EB-2014-0105
J2: Exhibit:
J3: Tab:
J4: Schedule:
J5: Page:
J7: Date:
A9: Appendix 2-CC
A10: Depreciation and Amortization Expense
A11: Assumes the applicant made capitalization and depreciation expense accounting policy changes under CGAAP effective January 1, 2012 and has adopted IFRS for financial reporting purposes effective January 1, 2015.
C13: 2013 | D13: Revised CGAAP
A15: Account | B15: Description | C15: Additions | D15: Years (new additions only) | E15: Depreciation Rate on New Additions | F15: 2013 Depreciation Expense 1 | G15: 2013 Depreciation Expense per Apppendix 2-BA Fixed Assets, Column J (l) | H15: Variance 2 | I15: Depreciation Expense on 2013 Full Year Additions | J15: Less Depreciation Expense on Assets Fully Depreciated during the year (o) | K15: 2013 Full Year Depreciation 3
C16: (d) | D16: (f) | E16: (g) = 1 / (f) | F16: (h)=2012 Full Year Deprecation + ((d)*0.5)/(f) | H16: (m) = (h) - (l) | I16: (n)=((d))/(f) | K16: (p) = 2012 Full Year Depreciation + (n) - (o)
A17: 1611 | B17: Computer Software (Formally known as Account 1925) | E17: =IF(D17=0,0,1/D17) -> 0 | F17: =IF(D17=0,+'App.2-CB_NewCGAAP_DepExp_2012'!O17,+'App.2-CB_NewCGAAP_DepExp_2012'!O17+((C17*0.5)/D17)) -> 0 | H17: =IF(ISERROR(+F17-G17), 0, +F17-G17) -> 0 | I17: =IF(D17=0,0,+(C17)/D17) -> 0 | K17: =IF(ISERROR(+I17+'App.2-CB_NewCGAAP_DepExp_2012'!O17-J17), 0, +I17+'App.2-CB_NewCGAAP_DepExp_2012'!O17-J17) -> 0
A18: 1612 | B18: Land Rights (Formally known as Account 1906) | E18: 0 | F18: =IF(D18=0,+'App.2-CB_NewCGAAP_DepExp_2012'!O18,+'App.2-CB_NewCGAAP_DepExp_2012'!O18+((C18*0.5)/D18)) -> 0 | H18: 0 | I18: 0 | K18: =IF(ISERROR(+I18+'App.2-CB_NewCGAAP_DepExp_2012'!O18-J18), 0, +I18+'App.2-CB_NewCGAAP_DepExp_2012'!O18-J18) -> 0
A19: 1805 | B19: Land | E19: 0 | F19: =IF(D19=0,+'App.2-CB_NewCGAAP_DepExp_2012'!O19,+'App.2-CB_NewCGAAP_DepExp_2012'!O19+((C19*0.5)/D19)) -> 0 | H19: 0 | I19: 0 | K19: =IF(ISERROR(+I19+'App.2-CB_NewCGAAP_DepExp_2012'!O19-J19), 0, +I19+'App.2-CB_NewCGAAP_DepExp_2012'!O19-J19) -> 0
A20: 1808 | B20: Buildings | E20: 0 | F20: =IF(D20=0,+'App.2-CB_NewCGAAP_DepExp_2012'!O20,+'App.2-CB_NewCGAAP_DepExp_2012'!O20+((C20*0.5)/D20)) -> 0 | H20: 0 | I20: 0 | K20: =IF(ISERROR(+I20+'App.2-CB_NewCGAAP_DepExp_2012'!O20-J20), 0, +I20+'App.2-CB_NewCGAAP_DepExp_2012'!O20-J20) -> 0
A21: 1810 | B21: Leasehold Improvements | E21: 0 | F21: =IF(D21=0,+'App.2-CB_NewCGAAP_DepExp_2012'!O21,+'App.2-CB_NewCGAAP_DepExp_2012'!O21+((C21*0.5)/D21)) -> 0 | H21: 0 | I21: 0 | K21: =IF(ISERROR(+I21+'App.2-CB_NewCGAAP_DepExp_2012'!O21-J21), 0, +I21+'App.2-CB_NewCGAAP_DepExp_2012'!O21-J21) -> 0
A22: 1815 | B22: Transformer Station Equipment >50 kV | E22: 0 | F22: =IF(D22=0,+'App.2-CB_NewCGAAP_DepExp_2012'!O22,+'App.2-CB_NewCGAAP_DepExp_2012'!O22+((C22*0.5)/D22)) -> 0 | H22: 0 | I22: 0 | K22: =IF(ISERROR(+I22+'App.2-CB_NewCGAAP_DepExp_2012'!O22-J22), 0, +I22+'App.2-CB_NewCGAAP_DepExp_2012'!O22-J22) -> 0
A23: 1820 | B23: Distribution Station Equipment <50 kV | E23: 0 | F23: =IF(D23=0,+'App.2-CB_NewCGAAP_DepExp_2012'!O23,+'App.2-CB_NewCGAAP_DepExp_2012'!O23+((C23*0.5)/D23)) -> 0 | H23: 0 | I23: 0 | K23: =IF(ISERROR(+I23+'App.2-CB_NewCGAAP_DepExp_2012'!O23-J23), 0, +I23+'App.2-CB_NewCGAAP_DepExp_2012'!O23-J23) -> 0
A24: 1825 | B24: Storage Battery Equipment | E24: 0 | F24: =IF(D24=0,+'App.2-CB_NewCGAAP_DepExp_2012'!O24,+'App.2-CB_NewCGAAP_DepExp_2012'!O24+((C24*0.5)/D24)) -> 0 | H24: 0 | I24: 0 | K24: =IF(ISERROR(+I24+'App.2-CB_NewCGAAP_DepExp_2012'!O24-J24), 0, +I24+'App.2-CB_NewCGAAP_DepExp_2012'!O24-J24) -> 0
A25: 1830 | B25: Poles, Towers & Fixtures | E25: 0 | F25: =IF(D25=0,+'App.2-CB_NewCGAAP_DepExp_2012'!O25,+'App.2-CB_NewCGAAP_DepExp_2012'!O25+((C25*0.5)/D25)) -> 0 | H25: 0 | I25: 0 | K25: =IF(ISERROR(+I25+'App.2-CB_NewCGAAP_DepExp_2012'!O25-J25), 0, +I25+'App.2-CB_NewCGAAP_DepExp_2012'!O25-J25) -> 0
A26: 1835 | B26: Overhead Conductors & Devices | E26: 0 | F26: =IF(D26=0,+'App.2-CB_NewCGAAP_DepExp_2012'!O26,+'App.2-CB_NewCGAAP_DepExp_2012'!O26+((C26*0.5)/D26)) -> 0 | H26: 0 | I26: 0 | K26: =IF(ISERROR(+I26+'App.2-CB_NewCGAAP_DepExp_2012'!O26-J26), 0, +I26+'App.2-CB_NewCGAAP_DepExp_2012'!O26-J26) -> 0
A27: 1840 | B27: Underground Conduit | E27: 0 | F27: =IF(D27=0,+'App.2-CB_NewCGAAP_DepExp_2012'!O27,+'App.2-CB_NewCGAAP_DepExp_2012'!O27+((C27*0.5)/D27)) -> 0 | H27: 0 | I27: 0 | K27: =IF(ISERROR(+I27+'App.2-CB_NewCGAAP_DepExp_2012'!O27-J27), 0, +I27+'App.2-CB_NewCGAAP_DepExp_2012'!O27-J27) -> 0
A28: 1845 | B28: Underground Conductors & Devices | E28: 0 | F28: =IF(D28=0,+'App.2-CB_NewCGAAP_DepExp_2012'!O28,+'App.2-CB_NewCGAAP_DepExp_2012'!O28+((C28*0.5)/D28)) -> 0 | H28: 0 | I28: 0 | K28: =IF(ISERROR(+I28+'App.2-CB_NewCGAAP_DepExp_2012'!O28-J28), 0, +I28+'App.2-CB_NewCGAAP_DepExp_2012'!O28-J28) -> 0
A29: 1850 | B29: Line Transformers | E29: 0 | F29: =IF(D29=0,+'App.2-CB_NewCGAAP_DepExp_2012'!O29,+'App.2-CB_NewCGAAP_DepExp_2012'!O29+((C29*0.5)/D29)) -> 0 | H29: 0 | I29: 0 | K29: =IF(ISERROR(+I29+'App.2-CB_NewCGAAP_DepExp_2012'!O29-J29), 0, +I29+'App.2-CB_NewCGAAP_DepExp_2012'!O29-J29) -> 0
A30: 1855 | B30: Services (Overhead & Underground) | E30: 0 | F30: =IF(D30=0,+'App.2-CB_NewCGAAP_DepExp_2012'!O30,+'App.2-CB_NewCGAAP_DepExp_2012'!O30+((C30*0.5)/D30)) -> 0 | H30: 0 | I30: 0 | K30: =IF(ISERROR(+I30+'App.2-CB_NewCGAAP_DepExp_2012'!O30-J30), 0, +I30+'App.2-CB_NewCGAAP_DepExp_2012'!O30-J30) -> 0
A31: 1860 | B31: Meters | E31: 0 | F31: =IF(D31=0,+'App.2-CB_NewCGAAP_DepExp_2012'!O31,+'App.2-CB_NewCGAAP_DepExp_2012'!O31+((C31*0.5)/D31)) -> 0 | H31: 0 | I31: 0 | K31: =IF(ISERROR(+I31+'App.2-CB_NewCGAAP_DepExp_2012'!O31-J31), 0, +I31+'App.2-CB_NewCGAAP_DepExp_2012'!O31-J31) -> 0
A32: 1860 | B32: Meters (Smart Meters) | E32: 0 | F32: =IF(D32=0,+'App.2-CB_NewCGAAP_DepExp_2012'!O32,+'App.2-CB_NewCGAAP_DepExp_2012'!O32+((C32*0.5)/D32)) -> 0 | H32: 0 | I32: 0 | K32: =IF(ISERROR(+I32+'App.2-CB_NewCGAAP_DepExp_2012'!O32-J32), 0, +I32+'App.2-CB_NewCGAAP_DepExp_2012'!O32-J32) -> 0
A33: 1905 | B33: Land | E33: 0 | F33: =IF(D33=0,+'App.2-CB_NewCGAAP_DepExp_2012'!O33,+'App.2-CB_NewCGAAP_DepExp_2012'!O33+((C33*0.5)/D33)) -> 0 | H33: 0 | I33: 0 | K33: =IF(ISERROR(+I33+'App.2-CB_NewCGAAP_DepExp_2012'!O33-J33), 0, +I33+'App.2-CB_NewCGAAP_DepExp_2012'!O33-J33) -> 0
A34: 1908 | B34: Buildings & Fixtures | E34: 0 | F34: =IF(D34=0,+'App.2-CB_NewCGAAP_DepExp_2012'!O34,+'App.2-CB_NewCGAAP_DepExp_2012'!O34+((C34*0.5)/D34)) -> 0 | H34: 0 | I34: 0 | K34: =IF(ISERROR(+I34+'App.2-CB_NewCGAAP_DepExp_2012'!O34-J34), 0, +I34+'App.2-CB_NewCGAAP_DepExp_2012'!O34-J34) -> 0
A35: 1910 | B35: Leasehold Improvements | E35: 0 | F35: =IF(D35=0,+'App.2-CB_NewCGAAP_DepExp_2012'!O35,+'App.2-CB_NewCGAAP_DepExp_2012'!O35+((C35*0.5)/D35)) -> 0 | H35: 0 | I35: 0 | K35: =IF(ISERROR(+I35+'App.2-CB_NewCGAAP_DepExp_2012'!O35-J35), 0, +I35+'App.2-CB_NewCGAAP_DepExp_2012'!O35-J35) -> 0
A36: 1915 | B36: Office Furniture & Equipment (10 years) | E36: 0 | F36: =IF(D36=0,+'App.2-CB_NewCGAAP_DepExp_2012'!O36,+'App.2-CB_NewCGAAP_DepExp_2012'!O36+((C36*0.5)/D36)) -> 0 | H36: 0 | I36: 0 | K36: =IF(ISERROR(+I36+'App.2-CB_NewCGAAP_DepExp_2012'!O36-J36), 0, +I36+'App.2-CB_NewCGAAP_DepExp_2012'!O36-J36) -> 0
A37: 1915 | B37: Office Furniture & Equipment (5 years) | E37: 0 | F37: =IF(D37=0,+'App.2-CB_NewCGAAP_DepExp_2012'!O37,+'App.2-CB_NewCGAAP_DepExp_2012'!O37+((C37*0.5)/D37)) -> 0 | H37: 0 | I37: 0 | K37: =IF(ISERROR(+I37+'App.2-CB_NewCGAAP_DepExp_2012'!O37-J37), 0, +I37+'App.2-CB_NewCGAAP_DepExp_2012'!O37-J37) -> 0
A38: 1920 | B38: Computer Equipment - Hardware | E38: 0 | F38: =IF(D38=0,+'App.2-CB_NewCGAAP_DepExp_2012'!O38,+'App.2-CB_NewCGAAP_DepExp_2012'!O38+((C38*0.5)/D38)) -> 0 | H38: 0 | I38: 0 | K38: =IF(ISERROR(+I38+'App.2-CB_NewCGAAP_DepExp_2012'!O38-J38), 0, +I38+'App.2-CB_NewCGAAP_DepExp_2012'!O38-J38) -> 0
A39: 1920 | B39: Computer Equip.-Hardware(Post Mar. 22/04) | E39: 0 | F39: =IF(D39=0,+'App.2-CB_NewCGAAP_DepExp_2012'!O39,+'App.2-CB_NewCGAAP_DepExp_2012'!O39+((C39*0.5)/D39)) -> 0 | H39: 0 | I39: 0 | K39: =IF(ISERROR(+I39+'App.2-CB_NewCGAAP_DepExp_2012'!O39-J39), 0, +I39+'App.2-CB_NewCGAAP_DepExp_2012'!O39-J39) -> 0
A40: 1920 | B40: Computer Equip.-Hardware(Post Mar. 19/07) | E40: 0 | F40: =IF(D40=0,+'App.2-CB_NewCGAAP_DepExp_2012'!O40,+'App.2-CB_NewCGAAP_DepExp_2012'!O40+((C40*0.5)/D40)) -> 0 | H40: 0 | I40: 0 | K40: =IF(ISERROR(+I40+'App.2-CB_NewCGAAP_DepExp_2012'!O40-J40), 0, +I40+'App.2-CB_NewCGAAP_DepExp_2012'!O40-J40) -> 0
A41: 1930 | B41: Transportation Equipment | E41: 0 | F41: =IF(D41=0,+'App.2-CB_NewCGAAP_DepExp_2012'!O41,+'App.2-CB_NewCGAAP_DepExp_2012'!O41+((C41*0.5)/D41)) -> 0 | H41: 0 | I41: 0 | K41: =IF(ISERROR(+I41+'App.2-CB_NewCGAAP_DepExp_2012'!O41-J41), 0, +I41+'App.2-CB_NewCGAAP_DepExp_2012'!O41-J41) -> 0
A42: 1935 | B42: Stores Equipment | E42: 0 | F42: =IF(D42=0,+'App.2-CB_NewCGAAP_DepExp_2012'!O42,+'App.2-CB_NewCGAAP_DepExp_2012'!O42+((C42*0.5)/D42)) -> 0 | H42: 0 | I42: 0 | K42: =IF(ISERROR(+I42+'App.2-CB_NewCGAAP_DepExp_2012'!O42-J42), 0, +I42+'App.2-CB_NewCGAAP_DepExp_2012'!O42-J42) -> 0
A43: 1940 | B43: Tools, Shop & Garage Equipment | E43: 0 | F43: =IF(D43=0,+'App.2-CB_NewCGAAP_DepExp_2012'!O43,+'App.2-CB_NewCGAAP_DepExp_2012'!O43+((C43*0.5)/D43)) -> 0 | H43: 0 | I43: 0 | K43: =IF(ISERROR(+I43+'App.2-CB_NewCGAAP_DepExp_2012'!O43-J43), 0, +I43+'App.2-CB_NewCGAAP_DepExp_2012'!O43-J43) -> 0
A44: 1945 | B44: Measurement & Testing Equipment | E44: 0 | F44: =IF(D44=0,+'App.2-CB_NewCGAAP_DepExp_2012'!O44,+'App.2-CB_NewCGAAP_DepExp_2012'!O44+((C44*0.5)/D44)) -> 0 | H44: 0 | I44: 0 | K44: =IF(ISERROR(+I44+'App.2-CB_NewCGAAP_DepExp_2012'!O44-J44), 0, +I44+'App.2-CB_NewCGAAP_DepExp_2012'!O44-J44) -> 0
A45: 1950 | B45: Power Operated Equipment | E45: 0 | F45: =IF(D45=0,+'App.2-CB_NewCGAAP_DepExp_2012'!O45,+'App.2-CB_NewCGAAP_DepExp_2012'!O45+((C45*0.5)/D45)) -> 0 | H45: 0 | I45: 0 | K45: =IF(ISERROR(+I45+'App.2-CB_NewCGAAP_DepExp_2012'!O45-J45), 0, +I45+'App.2-CB_NewCGAAP_DepExp_2012'!O45-J45) -> 0
A46: 1955 | B46: Communications Equipment | E46: 0 | F46: =IF(D46=0,+'App.2-CB_NewCGAAP_DepExp_2012'!O46,+'App.2-CB_NewCGAAP_DepExp_2012'!O46+((C46*0.5)/D46)) -> 0 | H46: 0 | I46: 0 | K46: =IF(ISERROR(+I46+'App.2-CB_NewCGAAP_DepExp_2012'!O46-J46), 0, +I46+'App.2-CB_NewCGAAP_DepExp_2012'!O46-J46) -> 0
A47: 1955 | B47: Communication Equipment (Smart Meters) | E47: 0 | F47: =IF(D47=0,+'App.2-CB_NewCGAAP_DepExp_2012'!O47,+'App.2-CB_NewCGAAP_DepExp_2012'!O47+((C47*0.5)/D47)) -> 0 | H47: 0 | I47: 0 | K47: =IF(ISERROR(+I47+'App.2-CB_NewCGAAP_DepExp_2012'!O47-J47), 0, +I47+'App.2-CB_NewCGAAP_DepExp_2012'!O47-J47) -> 0
A48: 1960 | B48: Miscellaneous Equipment | E48: 0 | F48: =IF(D48=0,+'App.2-CB_NewCGAAP_DepExp_2012'!O48,+'App.2-CB_NewCGAAP_DepExp_2012'!O48+((C48*0.5)/D48)) -> 0 | H48: 0 | I48: 0 | K48: =IF(ISERROR(+I48+'App.2-CB_NewCGAAP_DepExp_2012'!O48-J48), 0, +I48+'App.2-CB_NewCGAAP_DepExp_2012'!O48-J48) -> 0
A49: 1970 | B49: Load Management Controls Customer Premises | E49: 0 | F49: =IF(D49=0,+'App.2-CB_NewCGAAP_DepExp_2012'!O49,+'App.2-CB_NewCGAAP_DepExp_2012'!O49+((C49*0.5)/D49)) -> 0 | H49: 0 | I49: 0 | K49: =IF(ISERROR(+I49+'App.2-CB_NewCGAAP_DepExp_2012'!O49-J49), 0, +I49+'App.2-CB_NewCGAAP_DepExp_2012'!O49-J49) -> 0
A50: 1975 | B50: Load Management Controls Utility Premises | E50: 0 | F50: =IF(D50=0,+'App.2-CB_NewCGAAP_DepExp_2012'!O50,+'App.2-CB_NewCGAAP_DepExp_2012'!O50+((C50*0.5)/D50)) -> 0 | H50: 0 | I50: 0 | K50: =IF(ISERROR(+I50+'App.2-CB_NewCGAAP_DepExp_2012'!O50-J50), 0, +I50+'App.2-CB_NewCGAAP_DepExp_2012'!O50-J50) -> 0
A51: 1980 | B51: System Supervisor Equipment | E51: 0 | F51: =IF(D51=0,+'App.2-CB_NewCGAAP_DepExp_2012'!O51,+'App.2-CB_NewCGAAP_DepExp_2012'!O51+((C51*0.5)/D51)) -> 0 | H51: 0 | I51: 0 | K51: =IF(ISERROR(+I51+'App.2-CB_NewCGAAP_DepExp_2012'!O51-J51), 0, +I51+'App.2-CB_NewCGAAP_DepExp_2012'!O51-J51) -> 0
A52: 1985 | B52: Miscellaneous Fixed Assets | E52: 0 | F52: =IF(D52=0,+'App.2-CB_NewCGAAP_DepExp_2012'!O52,+'App.2-CB_NewCGAAP_DepExp_2012'!O52+((C52*0.5)/D52)) -> 0 | H52: 0 | I52: 0 | K52: =IF(ISERROR(+I52+'App.2-CB_NewCGAAP_DepExp_2012'!O52-J52), 0, +I52+'App.2-CB_NewCGAAP_DepExp_2012'!O52-J52) -> 0
A53: 1990 | B53: Other Tangible Property | E53: 0 | F53: =IF(D53=0,+'App.2-CB_NewCGAAP_DepExp_2012'!O53,+'App.2-CB_NewCGAAP_DepExp_2012'!O53+((C53*0.5)/D53)) -> 0 | H53: 0 | I53: 0 | K53: =IF(ISERROR(+I53+'App.2-CB_NewCGAAP_DepExp_2012'!O53-J53), 0, +I53+'App.2-CB_NewCGAAP_DepExp_2012'!O53-J53) -> 0
A54: 1995 | B54: Contributions & Grants | E54: 0 | F54: =IF(D54=0,+'App.2-CB_NewCGAAP_DepExp_2012'!O54,+'App.2-CB_NewCGAAP_DepExp_2012'!O54+((C54*0.5)/D54)) -> 0 | H54: 0 | I54: 0 | K54: =IF(ISERROR(+I54+'App.2-CB_NewCGAAP_DepExp_2012'!O54-J54), 0, +I54+'App.2-CB_NewCGAAP_DepExp_2012'!O54-J54) -> 0
B55: Total | C55: =SUM(C17:C54) -> 0 | F55: =SUM(F17:F54) -> 0 | G55: 0 | H55: 0 | I55: 0 | J55: 0 | K55: 0
A57: Notes:
A58: 1 | B58: Board policy of the "half-year" rule - the applicant must ensure that additions in the year attract a half-year depreciation expense in the first year. Deviations from this standard practice must be supported in the application.
A59: 2 | B59: The applicant must provide an explanation of material variances in evidence.
A60: 3 | B60: This column refers to the calculated full year depreciation but excludes the depreciation expense on assets fully depreciated during the year. This column is used for the purpose of calculating depreciation expense in the following year on the next worksheet.
A62: General: | B62: Applicants must provide a breakdown of depreciation and amortization expense in the above format for all relevant accounts. Asset Retirement Obligations (AROs), depreciation and accretion expense should be disclosed separately consistent with the Notes of historical Audited Financial Statements.

Sheet App.2-CD_MIFRS_DepExp_2014 (hidden)
J1: File Number: | K1: =EBNUMBER -> EB-2014-0105
J2: Exhibit:
J3: Tab:
J4: Schedule:
J5: Page:
J7: Date:
A9: Appendix 2-CD
A10: Depreciation and Amortization Expense
A11: Assumes the applicant made capitalization and depreciation expense accounting policy changes under CGAAP effective January 1, 2012 and has adopted IFRS for financial reporting purposes effective January 1, 2015.
E13: 2014 | F13: MIFRS
A15: Account | B15: Description | C15: Additions | D15: Years (new additions only) | E15: Depreciation Rate on New Additions | F15: 2014 Depreciation Expense 1 | G15: 2014 Depreciation Expense per Apppendix 2-BA Fixed Assets, Column J (l) | H15: Variance 2 | I15: Depreciation Expense on 2014 Full Year Additions | J15: Less Depreciation Expense on Assets Fully Depreciated during the year (o) | K15: 2014 Full Year Depreciation 3
C16: (d) | D16: (f) | E16: (g) = 1 / (f) | F16: (h)=2013 Full Year Deprecation + ((d)*0.5)/(f) | H16: (m) = (h) - (l) | I16: (n)=((d))/(f) | K16: (p) = 2013 Full Year Depreciation + (n) - (o)
A17: 1611 | B17: Computer Software (Formally known as Account 1925) | E17: =IF(D17=0,0,1/D17) -> 0 | F17: =IF(D17=0,+'App.2-CC_NewCGAAP_DepExp_2013'!K17,+'App.2-CC_NewCGAAP_DepExp_2013'!K17+((C17*0.5)/D17)) -> 0 | H17: =IF(ISERROR(+F17-G17), 0, +F17-G17) -> 0 | I17: =IF(D17=0,0,+(C17)/D17) -> 0 | K17: =IF(ISERROR(+I17+'App.2-CC_NewCGAAP_DepExp_2013'!K17-J17), 0, +I17+'App.2-CC_NewCGAAP_DepExp_2013'!K17-J17) -> 0
A18: 1612 | B18: Land Rights (Formally known as Account 1906) | E18: 0 | F18: =IF(D18=0,+'App.2-CC_NewCGAAP_DepExp_2013'!K18,+'App.2-CC_NewCGAAP_DepExp_2013'!K18+((C18*0.5)/D18)) -> 0 | H18: 0 | I18: =IF(D18=0,0,+(C18)/D18) -> 0 | K18: =IF(ISERROR(+I18+'App.2-CC_NewCGAAP_DepExp_2013'!K18-J18), 0, +I18+'App.2-CC_NewCGAAP_DepExp_2013'!K18-J18) -> 0
A19: 1805 | B19: Land | E19: 0 | F19: =IF(D19=0,+'App.2-CC_NewCGAAP_DepExp_2013'!K19,+'App.2-CC_NewCGAAP_DepExp_2013'!K19+((C19*0.5)/D19)) -> 0 | H19: 0 | I19: 0 | K19: =IF(ISERROR(+I19+'App.2-CC_NewCGAAP_DepExp_2013'!K19-J19), 0, +I19+'App.2-CC_NewCGAAP_DepExp_2013'!K19-J19) -> 0
A20: 1808 | B20: Buildings | E20: 0 | F20: =IF(D20=0,+'App.2-CC_NewCGAAP_DepExp_2013'!K20,+'App.2-CC_NewCGAAP_DepExp_2013'!K20+((C20*0.5)/D20)) -> 0 | H20: 0 | I20: 0 | K20: =IF(ISERROR(+I20+'App.2-CC_NewCGAAP_DepExp_2013'!K20-J20), 0, +I20+'App.2-CC_NewCGAAP_DepExp_2013'!K20-J20) -> 0
A21: 1810 | B21: Leasehold Improvements | E21: 0 | F21: =IF(D21=0,+'App.2-CC_NewCGAAP_DepExp_2013'!K21,+'App.2-CC_NewCGAAP_DepExp_2013'!K21+((C21*0.5)/D21)) -> 0 | H21: 0 | I21: 0 | K21: =IF(ISERROR(+I21+'App.2-CC_NewCGAAP_DepExp_2013'!K21-J21), 0, +I21+'App.2-CC_NewCGAAP_DepExp_2013'!K21-J21) -> 0
A22: 1815 | B22: Transformer Station Equipment >50 kV | E22: 0 | F22: =IF(D22=0,+'App.2-CC_NewCGAAP_DepExp_2013'!K22,+'App.2-CC_NewCGAAP_DepExp_2013'!K22+((C22*0.5)/D22)) -> 0 | H22: 0 | I22: 0 | K22: =IF(ISERROR(+I22+'App.2-CC_NewCGAAP_DepExp_2013'!K22-J22), 0, +I22+'App.2-CC_NewCGAAP_DepExp_2013'!K22-J22) -> 0
A23: 1820 | B23: Distribution Station Equipment <50 kV | E23: 0 | F23: =IF(D23=0,+'App.2-CC_NewCGAAP_DepExp_2013'!K23,+'App.2-CC_NewCGAAP_DepExp_2013'!K23+((C23*0.5)/D23)) -> 0 | H23: 0 | I23: 0 | K23: =IF(ISERROR(+I23+'App.2-CC_NewCGAAP_DepExp_2013'!K23-J23), 0, +I23+'App.2-CC_NewCGAAP_DepExp_2013'!K23-J23) -> 0
A24: 1825 | B24: Storage Battery Equipment | E24: 0 | F24: =IF(D24=0,+'App.2-CC_NewCGAAP_DepExp_2013'!K24,+'App.2-CC_NewCGAAP_DepExp_2013'!K24+((C24*0.5)/D24)) -> 0 | H24: 0 | I24: 0 | K24: =IF(ISERROR(+I24+'App.2-CC_NewCGAAP_DepExp_2013'!K24-J24), 0, +I24+'App.2-CC_NewCGAAP_DepExp_2013'!K24-J24) -> 0
A25: 1830 | B25: Poles, Towers & Fixtures | E25: 0 | F25: =IF(D25=0,+'App.2-CC_NewCGAAP_DepExp_2013'!K25,+'App.2-CC_NewCGAAP_DepExp_2013'!K25+((C25*0.5)/D25)) -> 0 | H25: 0 | I25: 0 | K25: =IF(ISERROR(+I25+'App.2-CC_NewCGAAP_DepExp_2013'!K25-J25), 0, +I25+'App.2-CC_NewCGAAP_DepExp_2013'!K25-J25) -> 0
A26: 1835 | B26: Overhead Conductors & Devices | E26: 0 | F26: =IF(D26=0,+'App.2-CC_NewCGAAP_DepExp_2013'!K26,+'App.2-CC_NewCGAAP_DepExp_2013'!K26+((C26*0.5)/D26)) -> 0 | H26: 0 | I26: 0 | K26: =IF(ISERROR(+I26+'App.2-CC_NewCGAAP_DepExp_2013'!K26-J26), 0, +I26+'App.2-CC_NewCGAAP_DepExp_2013'!K26-J26) -> 0
A27: 1840 | B27: Underground Conduit | E27: 0 | F27: =IF(D27=0,+'App.2-CC_NewCGAAP_DepExp_2013'!K27,+'App.2-CC_NewCGAAP_DepExp_2013'!K27+((C27*0.5)/D27)) -> 0 | H27: 0 | I27: 0 | K27: =IF(ISERROR(+I27+'App.2-CC_NewCGAAP_DepExp_2013'!K27-J27), 0, +I27+'App.2-CC_NewCGAAP_DepExp_2013'!K27-J27) -> 0
A28: 1845 | B28: Underground Conductors & Devices | E28: 0 | F28: =IF(D28=0,+'App.2-CC_NewCGAAP_DepExp_2013'!K28,+'App.2-CC_NewCGAAP_DepExp_2013'!K28+((C28*0.5)/D28)) -> 0 | H28: 0 | I28: 0 | K28: =IF(ISERROR(+I28+'App.2-CC_NewCGAAP_DepExp_2013'!K28-J28), 0, +I28+'App.2-CC_NewCGAAP_DepExp_2013'!K28-J28) -> 0
A29: 1850 | B29: Line Transformers | E29: 0 | F29: =IF(D29=0,+'App.2-CC_NewCGAAP_DepExp_2013'!K29,+'App.2-CC_NewCGAAP_DepExp_2013'!K29+((C29*0.5)/D29)) -> 0 | H29: 0 | I29: 0 | K29: =IF(ISERROR(+I29+'App.2-CC_NewCGAAP_DepExp_2013'!K29-J29), 0, +I29+'App.2-CC_NewCGAAP_DepExp_2013'!K29-J29) -> 0
A30: 1855 | B30: Services (Overhead & Underground) | E30: 0 | F30: =IF(D30=0,+'App.2-CC_NewCGAAP_DepExp_2013'!K30,+'App.2-CC_NewCGAAP_DepExp_2013'!K30+((C30*0.5)/D30)) -> 0 | H30: 0 | I30: 0 | K30: =IF(ISERROR(+I30+'App.2-CC_NewCGAAP_DepExp_2013'!K30-J30), 0, +I30+'App.2-CC_NewCGAAP_DepExp_2013'!K30-J30) -> 0
A31: 1860 | B31: Meters | E31: 0 | F31: =IF(D31=0,+'App.2-CC_NewCGAAP_DepExp_2013'!K31,+'App.2-CC_NewCGAAP_DepExp_2013'!K31+((C31*0.5)/D31)) -> 0 | H31: 0 | I31: 0 | K31: =IF(ISERROR(+I31+'App.2-CC_NewCGAAP_DepExp_2013'!K31-J31), 0, +I31+'App.2-CC_NewCGAAP_DepExp_2013'!K31-J31) -> 0
A32: 1860 | B32: Meters (Smart Meters) | E32: 0 | F32: =IF(D32=0,+'App.2-CC_NewCGAAP_DepExp_2013'!K32,+'App.2-CC_NewCGAAP_DepExp_2013'!K32+((C32*0.5)/D32)) -> 0 | H32: 0 | I32: 0 | K32: =IF(ISERROR(+I32+'App.2-CC_NewCGAAP_DepExp_2013'!K32-J32), 0, +I32+'App.2-CC_NewCGAAP_DepExp_2013'!K32-J32) -> 0
A33: 1905 | B33: Land | E33: 0 | F33: =IF(D33=0,+'App.2-CC_NewCGAAP_DepExp_2013'!K33,+'App.2-CC_NewCGAAP_DepExp_2013'!K33+((C33*0.5)/D33)) -> 0 | H33: 0 | I33: 0 | K33: =IF(ISERROR(+I33+'App.2-CC_NewCGAAP_DepExp_2013'!K33-J33), 0, +I33+'App.2-CC_NewCGAAP_DepExp_2013'!K33-J33) -> 0
A34: 1908 | B34: Buildings & Fixtures | E34: 0 | F34: =IF(D34=0,+'App.2-CC_NewCGAAP_DepExp_2013'!K34,+'App.2-CC_NewCGAAP_DepExp_2013'!K34+((C34*0.5)/D34)) -> 0 | H34: 0 | I34: 0 | K34: =IF(ISERROR(+I34+'App.2-CC_NewCGAAP_DepExp_2013'!K34-J34), 0, +I34+'App.2-CC_NewCGAAP_DepExp_2013'!K34-J34) -> 0
A35: 1910 | B35: Leasehold Improvements | E35: 0 | F35: =IF(D35=0,+'App.2-CC_NewCGAAP_DepExp_2013'!K35,+'App.2-CC_NewCGAAP_DepExp_2013'!K35+((C35*0.5)/D35)) -> 0 | H35: 0 | I35: 0 | K35: =IF(ISERROR(+I35+'App.2-CC_NewCGAAP_DepExp_2013'!K35-J35), 0, +I35+'App.2-CC_NewCGAAP_DepExp_2013'!K35-J35) -> 0
A36: 1915 | B36: Office Furniture & Equipment (10 years) | E36: 0 | F36: =IF(D36=0,+'App.2-CC_NewCGAAP_DepExp_2013'!K36,+'App.2-CC_NewCGAAP_DepExp_2013'!K36+((C36*0.5)/D36)) -> 0 | H36: 0 | I36: 0 | K36: =IF(ISERROR(+I36+'App.2-CC_NewCGAAP_DepExp_2013'!K36-J36), 0, +I36+'App.2-CC_NewCGAAP_DepExp_2013'!K36-J36) -> 0
A37: 1915 | B37: Office Furniture & Equipment (5 years) | E37: 0 | F37: =IF(D37=0,+'App.2-CC_NewCGAAP_DepExp_2013'!K37,+'App.2-CC_NewCGAAP_DepExp_2013'!K37+((C37*0.5)/D37)) -> 0 | H37: 0 | I37: 0 | K37: =IF(ISERROR(+I37+'App.2-CC_NewCGAAP_DepExp_2013'!K37-J37), 0, +I37+'App.2-CC_NewCGAAP_DepExp_2013'!K37-J37) -> 0
A38: 1920 | B38: Computer Equipment - Hardware | E38: 0 | F38: =IF(D38=0,+'App.2-CC_NewCGAAP_DepExp_2013'!K38,+'App.2-CC_NewCGAAP_DepExp_2013'!K38+((C38*0.5)/D38)) -> 0 | H38: 0 | I38: 0 | K38: =IF(ISERROR(+I38+'App.2-CC_NewCGAAP_DepExp_2013'!K38-J38), 0, +I38+'App.2-CC_NewCGAAP_DepExp_2013'!K38-J38) -> 0
A39: 1920 | B39: Computer Equip.-Hardware(Post Mar. 22/04) | E39: 0 | F39: =IF(D39=0,+'App.2-CC_NewCGAAP_DepExp_2013'!K39,+'App.2-CC_NewCGAAP_DepExp_2013'!K39+((C39*0.5)/D39)) -> 0 | H39: 0 | I39: 0 | K39: =IF(ISERROR(+I39+'App.2-CC_NewCGAAP_DepExp_2013'!K39-J39), 0, +I39+'App.2-CC_NewCGAAP_DepExp_2013'!K39-J39) -> 0
A40: 1920 | B40: Computer Equip.-Hardware(Post Mar. 19/07) | E40: 0 | F40: =IF(D40=0,+'App.2-CC_NewCGAAP_DepExp_2013'!K40,+'App.2-CC_NewCGAAP_DepExp_2013'!K40+((C40*0.5)/D40)) -> 0 | H40: 0 | I40: 0 | K40: =IF(ISERROR(+I40+'App.2-CC_NewCGAAP_DepExp_2013'!K40-J40), 0, +I40+'App.2-CC_NewCGAAP_DepExp_2013'!K40-J40) -> 0
A41: 1930 | B41: Transportation Equipment | E41: 0 | F41: =IF(D41=0,+'App.2-CC_NewCGAAP_DepExp_2013'!K41,+'App.2-CC_NewCGAAP_DepExp_2013'!K41+((C41*0.5)/D41)) -> 0 | H41: 0 | I41: 0 | K41: =IF(ISERROR(+I41+'App.2-CC_NewCGAAP_DepExp_2013'!K41-J41), 0, +I41+'App.2-CC_NewCGAAP_DepExp_2013'!K41-J41) -> 0
A42: 1935 | B42: Stores Equipment | E42: 0 | F42: =IF(D42=0,+'App.2-CC_NewCGAAP_DepExp_2013'!K42,+'App.2-CC_NewCGAAP_DepExp_2013'!K42+((C42*0.5)/D42)) -> 0 | H42: 0 | I42: 0 | K42: =IF(ISERROR(+I42+'App.2-CC_NewCGAAP_DepExp_2013'!K42-J42), 0, +I42+'App.2-CC_NewCGAAP_DepExp_2013'!K42-J42) -> 0
A43: 1940 | B43: Tools, Shop & Garage Equipment | E43: 0 | F43: =IF(D43=0,+'App.2-CC_NewCGAAP_DepExp_2013'!K43,+'App.2-CC_NewCGAAP_DepExp_2013'!K43+((C43*0.5)/D43)) -> 0 | H43: 0 | I43: 0 | K43: =IF(ISERROR(+I43+'App.2-CC_NewCGAAP_DepExp_2013'!K43-J43), 0, +I43+'App.2-CC_NewCGAAP_DepExp_2013'!K43-J43) -> 0
A44: 1945 | B44: Measurement & Testing Equipment | E44: 0 | F44: =IF(D44=0,+'App.2-CC_NewCGAAP_DepExp_2013'!K44,+'App.2-CC_NewCGAAP_DepExp_2013'!K44+((C44*0.5)/D44)) -> 0 | H44: 0 | I44: 0 | K44: =IF(ISERROR(+I44+'App.2-CC_NewCGAAP_DepExp_2013'!K44-J44), 0, +I44+'App.2-CC_NewCGAAP_DepExp_2013'!K44-J44) -> 0
A45: 1950 | B45: Power Operated Equipment | E45: 0 | F45: =IF(D45=0,+'App.2-CC_NewCGAAP_DepExp_2013'!K45,+'App.2-CC_NewCGAAP_DepExp_2013'!K45+((C45*0.5)/D45)) -> 0 | H45: 0 | I45: 0 | K45: =IF(ISERROR(+I45+'App.2-CC_NewCGAAP_DepExp_2013'!K45-J45), 0, +I45+'App.2-CC_NewCGAAP_DepExp_2013'!K45-J45) -> 0
A46: 1955 | B46: Communications Equipment | E46: 0 | F46: =IF(D46=0,+'App.2-CC_NewCGAAP_DepExp_2013'!K46,+'App.2-CC_NewCGAAP_DepExp_2013'!K46+((C46*0.5)/D46)) -> 0 | H46: 0 | I46: 0 | K46: =IF(ISERROR(+I46+'App.2-CC_NewCGAAP_DepExp_2013'!K46-J46), 0, +I46+'App.2-CC_NewCGAAP_DepExp_2013'!K46-J46) -> 0
A47: 1955 | B47: Communication Equipment (Smart Meters) | E47: 0 | F47: =IF(D47=0,+'App.2-CC_NewCGAAP_DepExp_2013'!K47,+'App.2-CC_NewCGAAP_DepExp_2013'!K47+((C47*0.5)/D47)) -> 0 | H47: 0 | I47: 0 | K47: =IF(ISERROR(+I47+'App.2-CC_NewCGAAP_DepExp_2013'!K47-J47), 0, +I47+'App.2-CC_NewCGAAP_DepExp_2013'!K47-J47) -> 0
A48: 1960 | B48: Miscellaneous Equipment | E48: 0 | F48: =IF(D48=0,+'App.2-CC_NewCGAAP_DepExp_2013'!K48,+'App.2-CC_NewCGAAP_DepExp_2013'!K48+((C48*0.5)/D48)) -> 0 | H48: 0 | I48: 0 | K48: =IF(ISERROR(+I48+'App.2-CC_NewCGAAP_DepExp_2013'!K48-J48), 0, +I48+'App.2-CC_NewCGAAP_DepExp_2013'!K48-J48) -> 0
A49: 1970 | B49: Load Management Controls Customer Premises | E49: 0 | F49: =IF(D49=0,+'App.2-CC_NewCGAAP_DepExp_2013'!K49,+'App.2-CC_NewCGAAP_DepExp_2013'!K49+((C49*0.5)/D49)) -> 0 | H49: 0 | I49: 0 | K49: =IF(ISERROR(+I49+'App.2-CC_NewCGAAP_DepExp_2013'!K49-J49), 0, +I49+'App.2-CC_NewCGAAP_DepExp_2013'!K49-J49) -> 0
A50: 1975 | B50: Load Management Controls Utility Premises | E50: 0 | F50: =IF(D50=0,+'App.2-CC_NewCGAAP_DepExp_2013'!K50,+'App.2-CC_NewCGAAP_DepExp_2013'!K50+((C50*0.5)/D50)) -> 0 | H50: 0 | I50: 0 | K50: =IF(ISERROR(+I50+'App.2-CC_NewCGAAP_DepExp_2013'!K50-J50), 0, +I50+'App.2-CC_NewCGAAP_DepExp_2013'!K50-J50) -> 0
A51: 1980 | B51: System Supervisor Equipment | E51: 0 | F51: =IF(D51=0,+'App.2-CC_NewCGAAP_DepExp_2013'!K51,+'App.2-CC_NewCGAAP_DepExp_2013'!K51+((C51*0.5)/D51)) -> 0 | H51: 0 | I51: 0 | K51: =IF(ISERROR(+I51+'App.2-CC_NewCGAAP_DepExp_2013'!K51-J51), 0, +I51+'App.2-CC_NewCGAAP_DepExp_2013'!K51-J51) -> 0
A52: 1985 | B52: Miscellaneous Fixed Assets | E52: 0 | F52: =IF(D52=0,+'App.2-CC_NewCGAAP_DepExp_2013'!K52,+'App.2-CC_NewCGAAP_DepExp_2013'!K52+((C52*0.5)/D52)) -> 0 | H52: 0 | I52: 0 | K52: =IF(ISERROR(+I52+'App.2-CC_NewCGAAP_DepExp_2013'!K52-J52), 0, +I52+'App.2-CC_NewCGAAP_DepExp_2013'!K52-J52) -> 0
A53: 1990 | B53: Other Tangible Property | E53: 0 | F53: =IF(D53=0,+'App.2-CC_NewCGAAP_DepExp_2013'!K53,+'App.2-CC_NewCGAAP_DepExp_2013'!K53+((C53*0.5)/D53)) -> 0 | H53: 0 | I53: 0 | K53: =IF(ISERROR(+I53+'App.2-CC_NewCGAAP_DepExp_2013'!K53-J53), 0, +I53+'App.2-CC_NewCGAAP_DepExp_2013'!K53-J53) -> 0
A54: 1995 | B54: Contributions & Grants | E54: =IF(D54=0,0,1/D54) -> 0 | F54: =IF(D54=0,+'App.2-CC_NewCGAAP_DepExp_2013'!K54,+'App.2-CC_NewCGAAP_DepExp_2013'!K54+((C54*0.5)/D54)) -> 0 | H54: 0 | I54: 0 | K54: =IF(ISERROR(+I54+'App.2-CC_NewCGAAP_DepExp_2013'!K54-J54), 0, +I54+'App.2-CC_NewCGAAP_DepExp_2013'!K54-J54) -> 0
B55: Total | C55: =SUM(C17:C54) -> 0 | F55: =SUM(F17:F54) -> 0 | G55: 0 | H55: 0 | I55: 0 | J55: 0 | K55: 0
B56: Depreciation exp. adj. from gain or loss on the retirement of assets (pool of like assets)
B57: Total Depreciation Expense | F57: =+F56+F55 -> 0
A59: Notes:
A60: 1 | B60: Board policy of the "half-year" rule - the applicant must ensure that additions in the year attract a half-year depreciation expense in the first year. Deviations from this standard practice must be supported in the application.
A61: 2 | B61: The applicant must provide an explanation of material variances in evidence.
A62: 3 | B62: This column refers to the calculated full year depreciation but excludes the depreciation expense on assets fully depreciated during the year. This column is used for the purpose of calculating depreciation expense in the following year on the next worksheet.
A64: General: | B64: Applicants must provide a breakdown of depreciation and amortization expense in the above format for all relevant accounts. Asset Retirement Obligations (AROs), depreciation and accretion expense should be disclosed separately consistent with the Notes of historical Audited Financial Statements.

Sheet App.2-CE_MIFRS_DepExp_2015 (hidden)
G1: File Number: | H1: =EBNUMBER -> EB-2014-0105
G2: Exhibit:
G3: Tab:
G4: Schedule:
G5: Page:
G7: Date:
A9: Appendix 2-CE
A10: Depreciation and Amortization Expense
A11: Assumes the applicant made capitalization and depreciation expense accounting policy changes under CGAAP effective January 1, 2012 and has adopted IFRS for financial reporting purposes effective January 1, 2015.
C13: 2015 | D13: MIFRS
A15: Account | B15: Description | C15: Additions | D15: Years (new additions only) | E15: Depreciation Rate on New Additions | F15: 2015 Depreciation Expense 1 | G15: 2015 Depreciation Expense per Appendix 2-BA Fixed Assets, Column J (l) | H15: Variance 2 | I15: Depreciation Expense on 2015 Full Year Additions | J15: Less Depreciation Expense on Assets Fully Depreciated during the year (o) | K15: 2015 Full Year Depreciation 3
C16: (d) | D16: (f) | E16: (g) = 1 / (f) | F16: (h)=2014 Full Year Depreciation + ((d)*0.5)/(f) | H16: (m) = (h) - (l) | I16: (n)=((d))/(f) | K16: (p) = 2014 Full Year Depreciation + (n) - (o)
A17: 1611 | B17: Computer Software (Formally known as Account 1925) | E17: =IF(D17=0,0,1/D17) -> 0 | F17: =IF(D17=0,'App.2-CD_MIFRS_DepExp_2014'!K17,+'App.2-CD_MIFRS_DepExp_2014'!K17+((C17*0.5)/D17)) -> 0 | H17: =IF(ISERROR(+F17-G17), 0, +F17-G17) -> 0 | I17: =IF(D17=0,0,+(C17)/D17) -> 0 | K17: =IF(ISERROR(+I17+'App.2-CD_MIFRS_DepExp_2014'!K17-J17), 0, +I17+'App.2-CD_MIFRS_DepExp_2014'!K17-J17) -> 0
A18: 1612 | B18: Land Rights (Formally known as Account 1906) | E18: 0 | F18: =IF(D18=0,'App.2-CD_MIFRS_DepExp_2014'!K18,+'App.2-CD_MIFRS_DepExp_2014'!K18+((C18*0.5)/D18)) -> 0 | H18: 0 | I18: =IF(D18=0,0,+(C18)/D18) -> 0 | K18: =IF(ISERROR(+I18+'App.2-CD_MIFRS_DepExp_2014'!K18-J18), 0, +I18+'App.2-CD_MIFRS_DepExp_2014'!K18-J18) -> 0
A19: 1805 | B19: Land | E19: 0 | F19: =IF(D19=0,'App.2-CD_MIFRS_DepExp_2014'!K19,+'App.2-CD_MIFRS_DepExp_2014'!K19+((C19*0.5)/D19)) -> 0 | H19: 0 | I19: 0 | K19: =IF(ISERROR(+I19+'App.2-CD_MIFRS_DepExp_2014'!K19-J19), 0, +I19+'App.2-CD_MIFRS_DepExp_2014'!K19-J19) -> 0
A20: 1808 | B20: Buildings | E20: 0 | F20: =IF(D20=0,'App.2-CD_MIFRS_DepExp_2014'!K20,+'App.2-CD_MIFRS_DepExp_2014'!K20+((C20*0.5)/D20)) -> 0 | H20: 0 | I20: 0 | K20: =IF(ISERROR(+I20+'App.2-CD_MIFRS_DepExp_2014'!K20-J20), 0, +I20+'App.2-CD_MIFRS_DepExp_2014'!K20-J20) -> 0
A21: 1810 | B21: Leasehold Improvements | E21: 0 | F21: =IF(D21=0,'App.2-CD_MIFRS_DepExp_2014'!K21,+'App.2-CD_MIFRS_DepExp_2014'!K21+((C21*0.5)/D21)) -> 0 | H21: 0 | I21: 0 | K21: =IF(ISERROR(+I21+'App.2-CD_MIFRS_DepExp_2014'!K21-J21), 0, +I21+'App.2-CD_MIFRS_DepExp_2014'!K21-J21) -> 0
A22: 1815 | B22: Transformer Station Equipment >50 kV | E22: 0 | F22: =IF(D22=0,'App.2-CD_MIFRS_DepExp_2014'!K22,+'App.2-CD_MIFRS_DepExp_2014'!K22+((C22*0.5)/D22)) -> 0 | H22: 0 | I22: 0 | K22: =IF(ISERROR(+I22+'App.2-CD_MIFRS_DepExp_2014'!K22-J22), 0, +I22+'App.2-CD_MIFRS_DepExp_2014'!K22-J22) -> 0
A23: 1820 | B23: Distribution Station Equipment <50 kV | E23: 0 | F23: =IF(D23=0,'App.2-CD_MIFRS_DepExp_2014'!K23,+'App.2-CD_MIFRS_DepExp_2014'!K23+((C23*0.5)/D23)) -> 0 | H23: 0 | I23: 0 | K23: =IF(ISERROR(+I23+'App.2-CD_MIFRS_DepExp_2014'!K23-J23), 0, +I23+'App.2-CD_MIFRS_DepExp_2014'!K23-J23) -> 0
A24: 1825 | B24: Storage Battery Equipment | E24: 0 | F24: =IF(D24=0,'App.2-CD_MIFRS_DepExp_2014'!K24,+'App.2-CD_MIFRS_DepExp_2014'!K24+((C24*0.5)/D24)) -> 0 | H24: 0 | I24: 0 | K24: =IF(ISERROR(+I24+'App.2-CD_MIFRS_DepExp_2014'!K24-J24), 0, +I24+'App.2-CD_MIFRS_DepExp_2014'!K24-J24) -> 0
A25: 1830 | B25: Poles, Towers & Fixtures | E25: 0 | F25: =IF(D25=0,'App.2-CD_MIFRS_DepExp_2014'!K25,+'App.2-CD_MIFRS_DepExp_2014'!K25+((C25*0.5)/D25)) -> 0 | H25: 0 | I25: 0 | K25: =IF(ISERROR(+I25+'App.2-CD_MIFRS_DepExp_2014'!K25-J25), 0, +I25+'App.2-CD_MIFRS_DepExp_2014'!K25-J25) -> 0
A26: 1835 | B26: Overhead Conductors & Devices | E26: 0 | F26: =IF(D26=0,'App.2-CD_MIFRS_DepExp_2014'!K26,+'App.2-CD_MIFRS_DepExp_2014'!K26+((C26*0.5)/D26)) -> 0 | H26: 0 | I26: 0 | K26: =IF(ISERROR(+I26+'App.2-CD_MIFRS_DepExp_2014'!K26-J26), 0, +I26+'App.2-CD_MIFRS_DepExp_2014'!K26-J26) -> 0
A27: 1840 | B27: Underground Conduit | E27: 0 | F27: =IF(D27=0,'App.2-CD_MIFRS_DepExp_2014'!K27,+'App.2-CD_MIFRS_DepExp_2014'!K27+((C27*0.5)/D27)) -> 0 | H27: 0 | I27: 0 | K27: =IF(ISERROR(+I27+'App.2-CD_MIFRS_DepExp_2014'!K27-J27), 0, +I27+'App.2-CD_MIFRS_DepExp_2014'!K27-J27) -> 0
A28: 1845 | B28: Underground Conductors & Devices | E28: 0 | F28: =IF(D28=0,'App.2-CD_MIFRS_DepExp_2014'!K28,+'App.2-CD_MIFRS_DepExp_2014'!K28+((C28*0.5)/D28)) -> 0 | H28: 0 | I28: 0 | K28: =IF(ISERROR(+I28+'App.2-CD_MIFRS_DepExp_2014'!K28-J28), 0, +I28+'App.2-CD_MIFRS_DepExp_2014'!K28-J28) -> 0
A29: 1850 | B29: Line Transformers | E29: 0 | F29: =IF(D29=0,'App.2-CD_MIFRS_DepExp_2014'!K29,+'App.2-CD_MIFRS_DepExp_2014'!K29+((C29*0.5)/D29)) -> 0 | H29: 0 | I29: 0 | K29: =IF(ISERROR(+I29+'App.2-CD_MIFRS_DepExp_2014'!K29-J29), 0, +I29+'App.2-CD_MIFRS_DepExp_2014'!K29-J29) -> 0
A30: 1855 | B30: Services (Overhead & Underground) | E30: 0 | F30: =IF(D30=0,'App.2-CD_MIFRS_DepExp_2014'!K30,+'App.2-CD_MIFRS_DepExp_2014'!K30+((C30*0.5)/D30)) -> 0 | H30: 0 | I30: 0 | K30: =IF(ISERROR(+I30+'App.2-CD_MIFRS_DepExp_2014'!K30-J30), 0, +I30+'App.2-CD_MIFRS_DepExp_2014'!K30-J30) -> 0
A31: 1860 | B31: Meters | E31: 0 | F31: =IF(D31=0,'App.2-CD_MIFRS_DepExp_2014'!K31,+'App.2-CD_MIFRS_DepExp_2014'!K31+((C31*0.5)/D31)) -> 0 | H31: 0 | I31: 0 | K31: =IF(ISERROR(+I31+'App.2-CD_MIFRS_DepExp_2014'!K31-J31), 0, +I31+'App.2-CD_MIFRS_DepExp_2014'!K31-J31) -> 0
A32: 1860 | B32: Meters (Smart Meters) | E32: 0 | F32: =IF(D32=0,'App.2-CD_MIFRS_DepExp_2014'!K32,+'App.2-CD_MIFRS_DepExp_2014'!K32+((C32*0.5)/D32)) -> 0 | H32: 0 | I32: 0 | K32: =IF(ISERROR(+I32+'App.2-CD_MIFRS_DepExp_2014'!K32-J32), 0, +I32+'App.2-CD_MIFRS_DepExp_2014'!K32-J32) -> 0
A33: 1905 | B33: Land | E33: 0 | F33: =IF(D33=0,'App.2-CD_MIFRS_DepExp_2014'!K33,+'App.2-CD_MIFRS_DepExp_2014'!K33+((C33*0.5)/D33)) -> 0 | H33: 0 | I33: 0 | K33: =IF(ISERROR(+I33+'App.2-CD_MIFRS_DepExp_2014'!K33-J33), 0, +I33+'App.2-CD_MIFRS_DepExp_2014'!K33-J33) -> 0
A34: 1908 | B34: Buildings & Fixtures | E34: 0 | F34: =IF(D34=0,'App.2-CD_MIFRS_DepExp_2014'!K34,+'App.2-CD_MIFRS_DepExp_2014'!K34+((C34*0.5)/D34)) -> 0 | H34: 0 | I34: 0 | K34: =IF(ISERROR(+I34+'App.2-CD_MIFRS_DepExp_2014'!K34-J34), 0, +I34+'App.2-CD_MIFRS_DepExp_2014'!K34-J34) -> 0
A35: 1910 | B35: Leasehold Improvements | E35: 0 | F35: =IF(D35=0,'App.2-CD_MIFRS_DepExp_2014'!K35,+'App.2-CD_MIFRS_DepExp_2014'!K35+((C35*0.5)/D35)) -> 0 | H35: 0 | I35: 0 | K35: =IF(ISERROR(+I35+'App.2-CD_MIFRS_DepExp_2014'!K35-J35), 0, +I35+'App.2-CD_MIFRS_DepExp_2014'!K35-J35) -> 0
A36: 1915 | B36: Office Furniture & Equipment (10 years) | E36: 0 | F36: =IF(D36=0,'App.2-CD_MIFRS_DepExp_2014'!K36,+'App.2-CD_MIFRS_DepExp_2014'!K36+((C36*0.5)/D36)) -> 0 | H36: 0 | I36: 0 | K36: =IF(ISERROR(+I36+'App.2-CD_MIFRS_DepExp_2014'!K36-J36), 0, +I36+'App.2-CD_MIFRS_DepExp_2014'!K36-J36) -> 0
A37: 1915 | B37: Office Furniture & Equipment (5 years) | E37: 0 | F37: =IF(D37=0,'App.2-CD_MIFRS_DepExp_2014'!K37,+'App.2-CD_MIFRS_DepExp_2014'!K37+((C37*0.5)/D37)) -> 0 | H37: 0 | I37: 0 | K37: =IF(ISERROR(+I37+'App.2-CD_MIFRS_DepExp_2014'!K37-J37), 0, +I37+'App.2-CD_MIFRS_DepExp_2014'!K37-J37) -> 0
A38: 1920 | B38: Computer Equipment - Hardware | E38: 0 | F38: =IF(D38=0,'App.2-CD_MIFRS_DepExp_2014'!K38,+'App.2-CD_MIFRS_DepExp_2014'!K38+((C38*0.5)/D38)) -> 0 | H38: 0 | I38: 0 | K38: =IF(ISERROR(+I38+'App.2-CD_MIFRS_DepExp_2014'!K38-J38), 0, +I38+'App.2-CD_MIFRS_DepExp_2014'!K38-J38) -> 0
A39: 1920 | B39: Computer Equip.-Hardware(Post Mar. 22/04) | E39: 0 | F39: =IF(D39=0,'App.2-CD_MIFRS_DepExp_2014'!K39,+'App.2-CD_MIFRS_DepExp_2014'!K39+((C39*0.5)/D39)) -> 0 | H39: 0 | I39: 0 | K39: =IF(ISERROR(+I39+'App.2-CD_MIFRS_DepExp_2014'!K39-J39), 0, +I39+'App.2-CD_MIFRS_DepExp_2014'!K39-J39) -> 0
A40: 1920 | B40: Computer Equip.-Hardware(Post Mar. 19/07) | E40: 0 | F40: =IF(D40=0,'App.2-CD_MIFRS_DepExp_2014'!K40,+'App.2-CD_MIFRS_DepExp_2014'!K40+((C40*0.5)/D40)) -> 0 | H40: 0 | I40: 0 | K40: =IF(ISERROR(+I40+'App.2-CD_MIFRS_DepExp_2014'!K40-J40), 0, +I40+'App.2-CD_MIFRS_DepExp_2014'!K40-J40) -> 0
A41: 1930 | B41: Transportation Equipment | E41: 0 | F41: =IF(D41=0,'App.2-CD_MIFRS_DepExp_2014'!K41,+'App.2-CD_MIFRS_DepExp_2014'!K41+((C41*0.5)/D41)) -> 0 | H41: 0 | I41: 0 | K41: =IF(ISERROR(+I41+'App.2-CD_MIFRS_DepExp_2014'!K41-J41), 0, +I41+'App.2-CD_MIFRS_DepExp_2014'!K41-J41) -> 0
A42: 1935 | B42: Stores Equipment | E42: 0 | F42: =IF(D42=0,'App.2-CD_MIFRS_DepExp_2014'!K42,+'App.2-CD_MIFRS_DepExp_2014'!K42+((C42*0.5)/D42)) -> 0 | H42: 0 | I42: 0 | K42: =IF(ISERROR(+I42+'App.2-CD_MIFRS_DepExp_2014'!K42-J42), 0, +I42+'App.2-CD_MIFRS_DepExp_2014'!K42-J42) -> 0
A43: 1940 | B43: Tools, Shop & Garage Equipment | E43: 0 | F43: =IF(D43=0,'App.2-CD_MIFRS_DepExp_2014'!K43,+'App.2-CD_MIFRS_DepExp_2014'!K43+((C43*0.5)/D43)) -> 0 | H43: 0 | I43: 0 | K43: =IF(ISERROR(+I43+'App.2-CD_MIFRS_DepExp_2014'!K43-J43), 0, +I43+'App.2-CD_MIFRS_DepExp_2014'!K43-J43) -> 0
A44: 1945 | B44: Measurement & Testing Equipment | E44: 0 | F44: =IF(D44=0,'App.2-CD_MIFRS_DepExp_2014'!K44,+'App.2-CD_MIFRS_DepExp_2014'!K44+((C44*0.5)/D44)) -> 0 | H44: 0 | I44: 0 | K44: =IF(ISERROR(+I44+'App.2-CD_MIFRS_DepExp_2014'!K44-J44), 0, +I44+'App.2-CD_MIFRS_DepExp_2014'!K44-J44) -> 0
A45: 1950 | B45: Power Operated Equipment | E45: 0 | F45: =IF(D45=0,'App.2-CD_MIFRS_DepExp_2014'!K45,+'App.2-CD_MIFRS_DepExp_2014'!K45+((C45*0.5)/D45)) -> 0 | H45: 0 | I45: 0 | K45: =IF(ISERROR(+I45+'App.2-CD_MIFRS_DepExp_2014'!K45-J45), 0, +I45+'App.2-CD_MIFRS_DepExp_2014'!K45-J45) -> 0
A46: 1955 | B46: Communications Equipment | E46: 0 | F46: =IF(D46=0,'App.2-CD_MIFRS_DepExp_2014'!K46,+'App.2-CD_MIFRS_DepExp_2014'!K46+((C46*0.5)/D46)) -> 0 | H46: 0 | I46: 0 | K46: =IF(ISERROR(+I46+'App.2-CD_MIFRS_DepExp_2014'!K46-J46), 0, +I46+'App.2-CD_MIFRS_DepExp_2014'!K46-J46) -> 0
A47: 1955 | B47: Communication Equipment (Smart Meters) | E47: 0 | F47: =IF(D47=0,'App.2-CD_MIFRS_DepExp_2014'!K47,+'App.2-CD_MIFRS_DepExp_2014'!K47+((C47*0.5)/D47)) -> 0 | H47: 0 | I47: 0 | K47: =IF(ISERROR(+I47+'App.2-CD_MIFRS_DepExp_2014'!K47-J47), 0, +I47+'App.2-CD_MIFRS_DepExp_2014'!K47-J47) -> 0
A48: 1960 | B48: Miscellaneous Equipment | E48: 0 | F48: =IF(D48=0,'App.2-CD_MIFRS_DepExp_2014'!K48,+'App.2-CD_MIFRS_DepExp_2014'!K48+((C48*0.5)/D48)) -> 0 | H48: 0 | I48: 0 | K48: =IF(ISERROR(+I48+'App.2-CD_MIFRS_DepExp_2014'!K48-J48), 0, +I48+'App.2-CD_MIFRS_DepExp_2014'!K48-J48) -> 0
A49: 1970 | B49: Load Management Controls Customer Premises | E49: 0 | F49: =IF(D49=0,'App.2-CD_MIFRS_DepExp_2014'!K49,+'App.2-CD_MIFRS_DepExp_2014'!K49+((C49*0.5)/D49)) -> 0 | H49: 0 | I49: 0 | K49: =IF(ISERROR(+I49+'App.2-CD_MIFRS_DepExp_2014'!K49-J49), 0, +I49+'App.2-CD_MIFRS_DepExp_2014'!K49-J49) -> 0
A50: 1975 | B50: Load Management Controls Utility Premises | E50: 0 | F50: =IF(D50=0,'App.2-CD_MIFRS_DepExp_2014'!K50,+'App.2-CD_MIFRS_DepExp_2014'!K50+((C50*0.5)/D50)) -> 0 | H50: 0 | I50: 0 | K50: =IF(ISERROR(+I50+'App.2-CD_MIFRS_DepExp_2014'!K50-J50), 0, +I50+'App.2-CD_MIFRS_DepExp_2014'!K50-J50) -> 0
A51: 1980 | B51: System Supervisor Equipment | E51: 0 | F51: =IF(D51=0,'App.2-CD_MIFRS_DepExp_2014'!K51,+'App.2-CD_MIFRS_DepExp_2014'!K51+((C51*0.5)/D51)) -> 0 | H51: 0 | I51: 0 | K51: =IF(ISERROR(+I51+'App.2-CD_MIFRS_DepExp_2014'!K51-J51), 0, +I51+'App.2-CD_MIFRS_DepExp_2014'!K51-J51) -> 0
A52: 1985 | B52: Miscellaneous Fixed Assets | E52: 0 | F52: =IF(D52=0,'App.2-CD_MIFRS_DepExp_2014'!K52,+'App.2-CD_MIFRS_DepExp_2014'!K52+((C52*0.5)/D52)) -> 0 | H52: 0 | I52: 0 | K52: =IF(ISERROR(+I52+'App.2-CD_MIFRS_DepExp_2014'!K52-J52), 0, +I52+'App.2-CD_MIFRS_DepExp_2014'!K52-J52) -> 0
A53: 1990 | B53: Other Tangible Property | E53: 0 | F53: =IF(D53=0,'App.2-CD_MIFRS_DepExp_2014'!K53,+'App.2-CD_MIFRS_DepExp_2014'!K53+((C53*0.5)/D53)) -> 0 | H53: 0 | I53: 0 | K53: =IF(ISERROR(+I53+'App.2-CD_MIFRS_DepExp_2014'!K53-J53), 0, +I53+'App.2-CD_MIFRS_DepExp_2014'!K53-J53) -> 0
A54: 1995 | B54: Contributions & Grants | E54: 0 | F54: =IF(D54=0,'App.2-CD_MIFRS_DepExp_2014'!K54,+'App.2-CD_MIFRS_DepExp_2014'!K54+((C54*0.5)/D54)) -> 0 | H54: 0 | I54: 0 | K54: =IF(ISERROR(+I54+'App.2-CD_MIFRS_DepExp_2014'!K54-J54), 0, +I54+'App.2-CD_MIFRS_DepExp_2014'!K54-J54) -> 0
B55: Total | C55: =SUM(C17:C54) -> 0 | F55: =SUM(F17:F54) -> 0 | G55: =SUM(G17:G54) -> 0 | H55: =SUM(H17:H54) -> 0 | I55: =SUM(I17:I54) -> 0 | J55: 0 | K55: =SUM(K17:K54) -> 0
B56: Depreciation exp. adj. from gain or loss on the retirement of assets (pool of like assets)
B57: Total Depreciation expense to be included in the test year revenue requirement | F57: =SUM(F55:F56) -> 0
A58: Notes:
A59: 1 | B59: Board policy of the "half-year" rule - the applicant must ensure that additions in the year attract a half-year depreciation expense in the first year. Deviations from this standard practice must be supported in the application.
A60: 2 | B60: The applicant must provide an explanation of material variances in evidence.
A61: 3 | B61: This column refers to the calculated full year depreciation but excludes the depreciation expense on assets fully depreciated during the year. This column is used for the purpose of calculating depreciation expense in the following year on the next worksheet.
A63: General: | B63: Applicants must provide a breakdown of depreciation and amortization expense in the above format for all relevant accounts. Asset Retirement Obligations (AROs), depreciation and accretion expense should be disclosed separately consistent with the Notes of historical Audited Financial Statements.

Sheet App.2-CF_MIFRS_DepExp_2016 (hidden)
G1: File Number: | H1: =EBNUMBER -> EB-2014-0105
G2: Exhibit:
G3: Tab:
G4: Schedule:
G5: Page:
G7: Date:
A9: Appendix 2-CF
A10: Depreciation and Amortization Expense
A11: Assumes the applicant made capitalization and depreciation expense accounting policy changes under CGAAP effective January 1, 2012 and has adopted IFRS for financial reporting purposes effective January 1, 2015.
C13: 2016 | D13: MIFRS
A15: Account | B15: Description | C15: Additions | D15: Years (new additions only) | E15: Depreciation Rate on New Additions | F15: 2016 Depreciation Expense 1 | G15: 2016 Depreciation Expense per Appendix 2-BA Fixed Assets, Column J (l) | H15: Variance 2
C16: (d) | D16: (f) | E16: (g) = 1 / (f) | F16: (h)=2015 Full Year Depreciation + ((d)*0.5)/(f) | H16: (m) = (h) - (l)
A17: 1611 | B17: Computer Software (Formally known as Account 1925) | E17: =IF(D17=0,0,1/D17) -> 0 | F17: =IF(D17=0,'App.2-CE_MIFRS_DepExp_2015'!K17,+'App.2-CE_MIFRS_DepExp_2015'!K17+((C17*0.5)/D17)) -> 0 | H17: =IF(ISERROR(+F17-G17), 0, +F17-G17) -> 0
A18: 1612 | B18: Land Rights (Formally known as Account 1906) | E18: 0 | F18: =IF(D18=0,'App.2-CE_MIFRS_DepExp_2015'!K18,+'App.2-CE_MIFRS_DepExp_2015'!K18+((C18*0.5)/D18)) -> 0 | H18: 0
A19: 1805 | B19: Land | E19: 0 | F19: =IF(D19=0,'App.2-CE_MIFRS_DepExp_2015'!K19,+'App.2-CE_MIFRS_DepExp_2015'!K19+((C19*0.5)/D19)) -> 0 | H19: 0
A20: 1808 | B20: Buildings | E20: 0 | F20: =IF(D20=0,'App.2-CE_MIFRS_DepExp_2015'!K20,+'App.2-CE_MIFRS_DepExp_2015'!K20+((C20*0.5)/D20)) -> 0 | H20: 0
A21: 1810 | B21: Leasehold Improvements | E21: 0 | F21: =IF(D21=0,'App.2-CE_MIFRS_DepExp_2015'!K21,+'App.2-CE_MIFRS_DepExp_2015'!K21+((C21*0.5)/D21)) -> 0 | H21: 0
A22: 1815 | B22: Transformer Station Equipment >50 kV | E22: 0 | F22: =IF(D22=0,'App.2-CE_MIFRS_DepExp_2015'!K22,+'App.2-CE_MIFRS_DepExp_2015'!K22+((C22*0.5)/D22)) -> 0 | H22: 0
A23: 1820 | B23: Distribution Station Equipment <50 kV | E23: 0 | F23: =IF(D23=0,'App.2-CE_MIFRS_DepExp_2015'!K23,+'App.2-CE_MIFRS_DepExp_2015'!K23+((C23*0.5)/D23)) -> 0 | H23: 0
A24: 1825 | B24: Storage Battery Equipment | E24: 0 | F24: =IF(D24=0,'App.2-CE_MIFRS_DepExp_2015'!K24,+'App.2-CE_MIFRS_DepExp_2015'!K24+((C24*0.5)/D24)) -> 0 | H24: 0
A25: 1830 | B25: Poles, Towers & Fixtures | E25: 0 | F25: =IF(D25=0,'App.2-CE_MIFRS_DepExp_2015'!K25,+'App.2-CE_MIFRS_DepExp_2015'!K25+((C25*0.5)/D25)) -> 0 | H25: 0
A26: 1835 | B26: Overhead Conductors & Devices | E26: 0 | F26: =IF(D26=0,'App.2-CE_MIFRS_DepExp_2015'!K26,+'App.2-CE_MIFRS_DepExp_2015'!K26+((C26*0.5)/D26)) -> 0 | H26: 0
A27: 1840 | B27: Underground Conduit | E27: 0 | F27: =IF(D27=0,'App.2-CE_MIFRS_DepExp_2015'!K27,+'App.2-CE_MIFRS_DepExp_2015'!K27+((C27*0.5)/D27)) -> 0 | H27: 0
A28: 1845 | B28: Underground Conductors & Devices | E28: 0 | F28: =IF(D28=0,'App.2-CE_MIFRS_DepExp_2015'!K28,+'App.2-CE_MIFRS_DepExp_2015'!K28+((C28*0.5)/D28)) -> 0 | H28: 0
A29: 1850 | B29: Line Transformers | E29: 0 | F29: =IF(D29=0,'App.2-CE_MIFRS_DepExp_2015'!K29,+'App.2-CE_MIFRS_DepExp_2015'!K29+((C29*0.5)/D29)) -> 0 | H29: 0
A30: 1855 | B30: Services (Overhead & Underground) | E30: 0 | F30: =IF(D30=0,'App.2-CE_MIFRS_DepExp_2015'!K30,+'App.2-CE_MIFRS_DepExp_2015'!K30+((C30*0.5)/D30)) -> 0 | H30: 0
A31: 1860 | B31: Meters | E31: 0 | F31: =IF(D31=0,'App.2-CE_MIFRS_DepExp_2015'!K31,+'App.2-CE_MIFRS_DepExp_2015'!K31+((C31*0.5)/D31)) -> 0 | H31: 0
A32: 1860 | B32: Meters (Smart Meters) | E32: 0 | F32: =IF(D32=0,'App.2-CE_MIFRS_DepExp_2015'!K32,+'App.2-CE_MIFRS_DepExp_2015'!K32+((C32*0.5)/D32)) -> 0 | H32: 0
A33: 1905 | B33: Land | E33: 0 | F33: =IF(D33=0,'App.2-CE_MIFRS_DepExp_2015'!K33,+'App.2-CE_MIFRS_DepExp_2015'!K33+((C33*0.5)/D33)) -> 0 | H33: 0
A34: 1908 | B34: Buildings & Fixtures | E34: 0 | F34: =IF(D34=0,'App.2-CE_MIFRS_DepExp_2015'!K34,+'App.2-CE_MIFRS_DepExp_2015'!K34+((C34*0.5)/D34)) -> 0 | H34: 0
A35: 1910 | B35: Leasehold Improvements | E35: 0 | F35: =IF(D35=0,'App.2-CE_MIFRS_DepExp_2015'!K35,+'App.2-CE_MIFRS_DepExp_2015'!K35+((C35*0.5)/D35)) -> 0 | H35: 0
A36: 1915 | B36: Office Furniture & Equipment (10 years) | E36: 0 | F36: =IF(D36=0,'App.2-CE_MIFRS_DepExp_2015'!K36,+'App.2-CE_MIFRS_DepExp_2015'!K36+((C36*0.5)/D36)) -> 0 | H36: 0
A37: 1915 | B37: Office Furniture & Equipment (5 years) | E37: 0 | F37: =IF(D37=0,'App.2-CE_MIFRS_DepExp_2015'!K37,+'App.2-CE_MIFRS_DepExp_2015'!K37+((C37*0.5)/D37)) -> 0 | H37: 0
A38: 1920 | B38: Computer Equipment - Hardware | E38: 0 | F38: =IF(D38=0,'App.2-CE_MIFRS_DepExp_2015'!K38,+'App.2-CE_MIFRS_DepExp_2015'!K38+((C38*0.5)/D38)) -> 0 | H38: 0
A39: 1920 | B39: Computer Equip.-Hardware(Post Mar. 22/04) | E39: 0 | F39: =IF(D39=0,'App.2-CE_MIFRS_DepExp_2015'!K39,+'App.2-CE_MIFRS_DepExp_2015'!K39+((C39*0.5)/D39)) -> 0 | H39: 0
A40: 1920 | B40: Computer Equip.-Hardware(Post Mar. 19/07) | E40: 0 | F40: =IF(D40=0,'App.2-CE_MIFRS_DepExp_2015'!K40,+'App.2-CE_MIFRS_DepExp_2015'!K40+((C40*0.5)/D40)) -> 0 | H40: 0
A41: 1930 | B41: Transportation Equipment | E41: 0 | F41: =IF(D41=0,'App.2-CE_MIFRS_DepExp_2015'!K41,+'App.2-CE_MIFRS_DepExp_2015'!K41+((C41*0.5)/D41)) -> 0 | H41: 0
A42: 1935 | B42: Stores Equipment | E42: 0 | F42: =IF(D42=0,'App.2-CE_MIFRS_DepExp_2015'!K42,+'App.2-CE_MIFRS_DepExp_2015'!K42+((C42*0.5)/D42)) -> 0 | H42: 0
A43: 1940 | B43: Tools, Shop & Garage Equipment | E43: 0 | F43: =IF(D43=0,'App.2-CE_MIFRS_DepExp_2015'!K43,+'App.2-CE_MIFRS_DepExp_2015'!K43+((C43*0.5)/D43)) -> 0 | H43: 0
A44: 1945 | B44: Measurement & Testing Equipment | E44: 0 | F44: =IF(D44=0,'App.2-CE_MIFRS_DepExp_2015'!K44,+'App.2-CE_MIFRS_DepExp_2015'!K44+((C44*0.5)/D44)) -> 0 | H44: 0
A45: 1950 | B45: Power Operated Equipment | E45: 0 | F45: =IF(D45=0,'App.2-CE_MIFRS_DepExp_2015'!K45,+'App.2-CE_MIFRS_DepExp_2015'!K45+((C45*0.5)/D45)) -> 0 | H45: 0
A46: 1955 | B46: Communications Equipment | E46: 0 | F46: =IF(D46=0,'App.2-CE_MIFRS_DepExp_2015'!K46,+'App.2-CE_MIFRS_DepExp_2015'!K46+((C46*0.5)/D46)) -> 0 | H46: 0
A47: 1955 | B47: Communication Equipment (Smart Meters) | E47: 0 | F47: =IF(D47=0,'App.2-CE_MIFRS_DepExp_2015'!K47,+'App.2-CE_MIFRS_DepExp_2015'!K47+((C47*0.5)/D47)) -> 0 | H47: 0
A48: 1960 | B48: Miscellaneous Equipment | E48: 0 | F48: =IF(D48=0,'App.2-CE_MIFRS_DepExp_2015'!K48,+'App.2-CE_MIFRS_DepExp_2015'!K48+((C48*0.5)/D48)) -> 0 | H48: 0
A49: 1970 | B49: Load Management Controls Customer Premises | E49: 0 | F49: =IF(D49=0,'App.2-CE_MIFRS_DepExp_2015'!K49,+'App.2-CE_MIFRS_DepExp_2015'!K49+((C49*0.5)/D49)) -> 0 | H49: 0
A50: 1975 | B50: Load Management Controls Utility Premises | E50: 0 | F50: =IF(D50=0,'App.2-CE_MIFRS_DepExp_2015'!K50,+'App.2-CE_MIFRS_DepExp_2015'!K50+((C50*0.5)/D50)) -> 0 | H50: 0
A51: 1980 | B51: System Supervisor Equipment | E51: 0 | F51: =IF(D51=0,'App.2-CE_MIFRS_DepExp_2015'!K51,+'App.2-CE_MIFRS_DepExp_2015'!K51+((C51*0.5)/D51)) -> 0 | H51: 0
A52: 1985 | B52: Miscellaneous Fixed Assets | E52: 0 | F52: =IF(D52=0,'App.2-CE_MIFRS_DepExp_2015'!K52,+'App.2-CE_MIFRS_DepExp_2015'!K52+((C52*0.5)/D52)) -> 0 | H52: 0
A53: 1990 | B53: Other Tangible Property | E53: 0 | F53: =IF(D53=0,'App.2-CE_MIFRS_DepExp_2015'!K53,+'App.2-CE_MIFRS_DepExp_2015'!K53+((C53*0.5)/D53)) -> 0 | H53: 0
A54: 1995 | B54: Contributions & Grants | E54: 0 | F54: =IF(D54=0,'App.2-CE_MIFRS_DepExp_2015'!K54,+'App.2-CE_MIFRS_DepExp_2015'!K54+((C54*0.5)/D54)) -> 0 | H54: 0
B55: Total | C55: =SUM(C17:C54) -> 0 | F55: =SUM(F17:F54) -> 0 | G55: =SUM(G17:G54) -> 0 | H55: =SUM(H17:H54) -> 0
B56: Depreciation exp. adj. from gain or loss on the retirement of assets (pool of like assets)
B57: Total Depreciation expense to be included in the test year revenue requirement | F57: =SUM(F55:F56) -> 0
A58: Notes:
A59: 1 | B59: Board policy of the "half-year" rule - the applicant must ensure that additions in the year attract a half-year depreciation expense in the first year. Deviations from this standard practice must be supported in the application.
A60: 2 | B60: The applicant must provide an explanation of material variances in evidence.
A63: General: | B63: Applicants must provide a breakdown of depreciation and amortization expense in the above format for all relevant accounts. Asset Retirement Obligations (AROs), depreciation and accretion expense should be disclosed separately consistent with the Notes of historical Audited Financial Statements.

Sheet App.2-CG_OldCGAAP_DepExp_2013 (hidden)
K1: File Number: | L1: =EBNUMBER -> EB-2014-0105
K2: Exhibit:
K3: Tab:
K4: Schedule:
K5: Page:
K7: Date:
A9: Appendix 2-CG
A10: Depreciation and Amortization Expense
B11: Assumes the applicant made capitalization and depreciation expense accounting policy changes under CGAAP effective January 1, 2013 and has adopted IFRS for financial reporting purposes effective January 1, 2015.
C13: Year | D13: 2013 | E13: Former CGAAP
A15: Account | B15: Description | C15: Opening Regulatory Gross PP&E as at Jan 1, 2013 | D15: Less Fully Depreciated | E15: Net for Depreciation | F15: Additions | G15: Total for Depreciation 1 | H15: Years | I15: Depreciation Rate | J15: Depreciation Expense | K15: 2013 Depreciation Expense per Appendix 2-BA Fixed Assets, Column J (l) | L15: Variance 2
C16: (a) | D16: (b) | E16: (c) | F16: (d) | G16: (e) = (c) + ½ x (d) | H16: (f) | I16: (g) = 1 / (f) | J16: (h) = (e) / (f) | L16: (m) = (h) - (l)
A17: 1611 | B17: Computer Software (Formally known as Account 1925) | E17: =C17-D17 -> 0 | G17: =E17+0.5*F17 -> 0 | I17: =IF(H17=0,0,1/H17) -> 0 | J17: =IF(H17=0,0,G17/H17) -> 0 | L17: =IF(ISERROR(+J17-K17), 0, +J17-K17) -> 0
A18: 1612 | B18: Land Rights (Formally known as Account 1906) | E18: =C18-D18 -> 0 | G18: =E18+0.5*F18 -> 0 | I18: 0 | J18: 0 | L18: 0
A19: 1805 | B19: Land | E19: 0 | G19: 0 | I19: 0 | J19: 0 | L19: 0
A20: 1808 | B20: Buildings | E20: 0 | G20: 0 | I20: 0 | J20: 0 | L20: 0
A21: 1810 | B21: Leasehold Improvements | E21: 0 | G21: 0 | I21: 0 | J21: 0 | L21: 0
A22: 1815 | B22: Transformer Station Equipment >50 kV | E22: 0 | G22: 0 | I22: 0 | J22: 0 | L22: 0
A23: 1820 | B23: Distribution Station Equipment <50 kV | E23: 0 | G23: 0 | I23: 0 | J23: 0 | L23: 0
A24: 1825 | B24: Storage Battery Equipment | E24: 0 | G24: 0 | I24: 0 | J24: 0 | L24: 0
A25: 1830 | B25: Poles, Towers & Fixtures | E25: 0 | G25: 0 | I25: 0 | J25: 0 | L25: 0
A26: 1835 | B26: Overhead Conductors & Devices | E26: 0 | G26: 0 | I26: 0 | J26: 0 | L26: 0
A27: 1840 | B27: Underground Conduit | E27: 0 | G27: 0 | I27: 0 | J27: 0 | L27: 0
A28: 1845 | B28: Underground Conductors & Devices | E28: 0 | G28: 0 | I28: 0 | J28: 0 | L28: 0
A29: 1850 | B29: Line Transformers | E29: 0 | G29: 0 | I29: 0 | J29: 0 | L29: 0
A30: 1855 | B30: Services (Overhead & Underground) | E30: 0 | G30: 0 | I30: 0 | J30: 0 | L30: 0
A31: 1860 | B31: Meters | E31: 0 | G31: 0 | I31: 0 | J31: 0 | L31: 0
A32: 1860 | B32: Meters (Smart Meters) | E32: 0 | G32: 0 | I32: 0 | J32: 0 | L32: 0
A33: 1905 | B33: Land | E33: 0 | G33: 0 | I33: 0 | J33: 0 | L33: 0
A34: 1908 | B34: Buildings & Fixtures | E34: 0 | G34: 0 | I34: 0 | J34: 0 | L34: 0
A35: 1910 | B35: Leasehold Improvements | E35: 0 | G35: 0 | I35: 0 | J35: 0 | L35: 0
A36: 1915 | B36: Office Furniture & Equipment (10 years) | E36: 0 | G36: 0 | I36: 0 | J36: 0 | L36: 0
A37: 1915 | B37: Office Furniture & Equipment (5 years) | E37: 0 | G37: 0 | I37: 0 | J37: 0 | L37: 0
A38: 1920 | B38: Computer Equipment - Hardware | E38: 0 | G38: 0 | I38: 0 | J38: 0 | L38: 0
A39: 1920 | B39: Computer Equip.-Hardware(Post Mar. 22/04) | E39: 0 | G39: 0 | I39: 0 | J39: 0 | L39: 0
A40: 1920 | B40: Computer Equip.-Hardware(Post Mar. 19/07) | E40: 0 | G40: 0 | I40: 0 | J40: 0 | L40: 0
A41: 1930 | B41: Transportation Equipment | E41: 0 | G41: 0 | I41: 0 | J41: 0 | L41: 0
A42: 1935 | B42: Stores Equipment | E42: 0 | G42: 0 | I42: 0 | J42: 0 | L42: 0
A43: 1940 | B43: Tools, Shop & Garage Equipment | E43: 0 | G43: 0 | I43: 0 | J43: 0 | L43: 0
A44: 1945 | B44: Measurement & Testing Equipment | E44: 0 | G44: 0 | I44: 0 | J44: 0 | L44: 0
A45: 1950 | B45: Power Operated Equipment | E45: 0 | G45: 0 | I45: 0 | J45: 0 | L45: 0
A46: 1955 | B46: Communications Equipment | E46: 0 | G46: 0 | I46: 0 | J46: 0 | L46: 0
A47: 1955 | B47: Communication Equipment (Smart Meters) | E47: 0 | G47: 0 | I47: 0 | J47: 0 | L47: 0
A48: 1960 | B48: Miscellaneous Equipment | E48: 0 | G48: 0 | I48: 0 | J48: 0 | L48: 0
A49: 1970 | B49: Load Management Controls - Customer Premises | E49: 0 | G49: 0 | I49: 0 | J49: 0 | L49: 0
A50: 1975 | B50: Load Management Controls Utility Premises | E50: 0 | G50: 0 | I50: 0 | J50: 0 | L50: 0
A51: 1980 | B51: System Supervisor Equipment | E51: 0 | G51: 0 | I51: 0 | J51: 0 | L51: 0
A52: 1985 | B52: Miscellaneous Fixed Assets | E52: 0 | G52: 0 | I52: 0 | J52: 0 | L52: 0
A53: 1990 | B53: Other Tangible Property | E53: 0 | G53: 0 | I53: 0 | J53: 0 | L53: 0
A54: 1995 | B54: Contributions & Grants | E54: 0 | G54: 0 | I54: 0 | J54: 0 | L54: 0
B55: Total | C55: =SUM(C17:C54) -> 0 | D55: =SUM(D17:D54) -> 0 | E55: =SUM(E17:E54) -> 0 | F55: =SUM(F17:F54) -> 0 | G55: =SUM(G17:G54) -> 0 | J55: =SUM(J17:J54) -> 0 | K55: =SUM(K17:K54) -> 0 | L55: =SUM(L17:L54) -> 0
A57: Notes:
A59: 1 | B59: Board policy of the "half-year" rule - the applicant must ensure that additions in the year attract a half-year depreciation expense in the first year. Deviations from this standard practice must be supported in the application.
A60: 2 | B60: The applicant must provide an explanation of material variances in evidence.
A62: General | B62: Applicants must provide a breakdown of depreciation and amortization expense in the above format for all relevant accounts. Asset Retirement Obligations (AROs), depreciation and accretion expense should be disclosed separately consistent with the Notes of historical Audited Financial Statements.

Sheet App.2-CH_NewCGAAP_DepExp_2013 (hidden)
N1: File Number: | O1: =EBNUMBER -> EB-2014-0105
N2: Exhibit:
N3: Tab:
N4: Schedule:
N5: Page:
N7: Date:
A9: Appendix 2-CH
A10: Depreciation and Amortization Expense
A11: Assumes the applicant made capitalization and depreciation expense accounting policy changes under CGAAP effective January 1, 2013 and has adopted IFRS for financial reporting purposes effective January 1, 2015.
C13: Year | D13: 2013 | E13: Revised CGAAP
A15: Account | B15: Description | C15: Opening NBV as at Jan 1, 2013 5 | D15: Additions | E15: Average Remaining Life of Opening NBV 4 | F15: Years (new additions only) 3 | G15: Depreciation Rate on New Additions | H15: Depreciation Expense on Opening NBV | I15: Depreciation Expense on Additions 1 | J15: 2013 Depreciation Expense | K15: 2013 Depreciation Expense per Appendix 2-BA Fixed Assets, Column J (l) | L15: Variance 2 | M15: Depreciation Expense on 2013 Full Year Additions | N15: Less Depreciation Expense on Assets Fully Depreciated during the year (o) | O15: 2013 Full Year Depreciation 6
C16: (a) | D16: (d) | E16: (i) | F16: (f) | G16: (g) = 1 / (f) | H16: (j) = (a) / (i) | I16: (h)=((d)*0.5)/(f) | J16: (k) = (j) + (h) | L16: (m) = (k) - (l) | M16: (n) = (d)/(f) | O16: (p) = (j) + (n) - (o)
A17: 1611 | B17: Computer Software (Formally known as Account 1925) | G17: =IF(F17=0,0,1/F17) -> 0 | H17: =IF(E17=0,0,+C17/E17) -> 0 | I17: =IF(F17=0,0,+(D17*0.5)/F17) -> 0 | J17: =IF(ISERROR(+H17+I17), 0, +H17+I17) -> 0 | L17: =IF(ISERROR(+J17-K17), 0, +J17-K17) -> 0 | M17: =IF(F17=0,0,+(D17)/F17) -> 0 | O17: =IF(ISERROR(+M17+H17-N17), 0, +M17+H17-N17) -> 0
A18: 1612 | B18: Land Rights (Formally known as Account 1906) | G18: 0 | H18: 0 | I18: 0 | J18: 0 | L18: 0 | M18: 0 | O18: =IF(ISERROR(+M18+H18-N18), 0, +M18+H18-N18) -> 0
A19: 1805 | B19: Land | G19: 0 | H19: 0 | I19: 0 | J19: 0 | L19: 0 | M19: 0 | O19: 0
A20: 1808 | B20: Buildings | G20: 0 | H20: 0 | I20: 0 | J20: 0 | L20: 0 | M20: 0 | O20: 0
A21: 1810 | B21: Leasehold Improvements | G21: 0 | H21: 0 | I21: 0 | J21: 0 | L21: 0 | M21: 0 | O21: 0
A22: 1815 | B22: Transformer Station Equipment >50 kV | G22: 0 | H22: 0 | I22: 0 | J22: 0 | L22: 0 | M22: 0 | O22: 0
A23: 1820 | B23: Distribution Station Equipment <50 kV | G23: 0 | H23: 0 | I23: 0 | J23: 0 | L23: 0 | M23: 0 | O23: 0
A24: 1825 | B24: Storage Battery Equipment | G24: 0 | H24: 0 | I24: 0 | J24: 0 | L24: 0 | M24: 0 | O24: 0
A25: 1830 | B25: Poles, Towers & Fixtures | G25: 0 | H25: 0 | I25: 0 | J25: 0 | L25: 0 | M25: 0 | O25: 0
A26: 1835 | B26: Overhead Conductors & Devices | G26: 0 | H26: 0 | I26: 0 | J26: 0 | L26: 0 | M26: 0 | O26: 0
A27: 1840 | B27: Underground Conduit | G27: 0 | H27: 0 | I27: 0 | J27: 0 | L27: 0 | M27: 0 | O27: 0
A28: 1845 | B28: Underground Conductors & Devices | G28: 0 | H28: 0 | I28: 0 | J28: 0 | L28: 0 | M28: 0 | O28: 0
A29: 1850 | B29: Line Transformers | G29: 0 | H29: 0 | I29: 0 | J29: 0 | L29: 0 | M29: 0 | O29: 0
A30: 1855 | B30: Services (Overhead & Underground) | G30: 0 | H30: 0 | I30: 0 | J30: 0 | L30: 0 | M30: 0 | O30: 0
A31: 1860 | B31: Meters | G31: 0 | H31: 0 | I31: 0 | J31: 0 | L31: 0 | M31: 0 | O31: 0
A32: 1860 | B32: Meters (Smart Meters) | G32: 0 | H32: 0 | I32: 0 | J32: 0 | L32: 0 | M32: 0 | O32: 0
A33: 1905 | B33: Land | G33: 0 | H33: 0 | I33: 0 | J33: 0 | L33: 0 | M33: 0 | O33: 0
A34: 1908 | B34: Buildings & Fixtures | G34: 0 | H34: 0 | I34: 0 | J34: 0 | L34: 0 | M34: 0 | O34: 0
A35: 1910 | B35: Leasehold Improvements | G35: 0 | H35: 0 | I35: 0 | J35: 0 | L35: 0 | M35: 0 | O35: 0
A36: 1915 | B36: Office Furniture & Equipment (10 years) | G36: 0 | H36: 0 | I36: 0 | J36: 0 | L36: 0 | M36: 0 | O36: 0
A37: 1915 | B37: Office Furniture & Equipment (5 years) | G37: 0 | H37: 0 | I37: 0 | J37: 0 | L37: 0 | M37: 0 | O37: 0
A38: 1920 | B38: Computer Equipment - Hardware | G38: 0 | H38: 0 | I38: 0 | J38: 0 | L38: 0 | M38: 0 | O38: 0
A39: 1920 | B39: Computer Equip.-Hardware(Post Mar. 22/04) | G39: 0 | H39: 0 | I39: 0 | J39: 0 | L39: 0 | M39: 0 | O39: 0
A40: 1920 | B40: Computer Equip.-Hardware(Post Mar. 19/07) | G40: 0 | H40: 0 | I40: 0 | J40: 0 | L40: 0 | M40: 0 | O40: 0
A41: 1930 | B41: Transportation Equipment | G41: 0 | H41: 0 | I41: 0 | J41: 0 | L41: 0 | M41: 0 | O41: 0
A42: 1935 | B42: Stores Equipment | G42: 0 | H42: 0 | I42: 0 | J42: 0 | L42: 0 | M42: 0 | O42: 0
A43: 1940 | B43: Tools, Shop & Garage Equipment | G43: 0 | H43: 0 | I43: 0 | J43: 0 | L43: 0 | M43: 0 | O43: 0
A44: 1945 | B44: Measurement & Testing Equipment | G44: 0 | H44: 0 | I44: 0 | J44: 0 | L44: 0 | M44: 0 | O44: 0
A45: 1950 | B45: Power Operated Equipment | G45: 0 | H45: 0 | I45: 0 | J45: 0 | L45: 0 | M45: 0 | O45: 0
A46: 1955 | B46: Communications Equipment | G46: 0 | H46: 0 | I46: 0 | J46: 0 | L46: 0 | M46: 0 | O46: 0
A47: 1955 | B47: Communication Equipment (Smart Meters) | G47: 0 | H47: 0 | I47: 0 | J47: 0 | L47: 0 | M47: 0 | O47: 0
A48: 1960 | B48: Miscellaneous Equipment | G48: 0 | H48: 0 | I48: 0 | J48: 0 | L48: 0 | M48: 0 | O48: 0
A49: 1970 | B49: Load Management Controls - Customer Premises | G49: 0 | H49: 0 | I49: 0 | J49: 0 | L49: 0 | M49: 0 | O49: 0
A50: 1975 | B50: Load Management Controls Utility Premises | G50: 0 | H50: 0 | I50: 0 | J50: 0 | L50: 0 | M50: 0 | O50: 0
A51: 1980 | B51: System Supervisor Equipment | G51: 0 | H51: 0 | I51: 0 | J51: 0 | L51: 0 | M51: 0 | O51: 0
A52: 1985 | B52: Miscellaneous Fixed Assets | G52: 0 | H52: 0 | I52: 0 | J52: 0 | L52: 0 | M52: 0 | O52: 0
A53: 1990 | B53: Other Tangible Property | G53: 0 | H53: 0 | I53: 0 | J53: 0 | L53: 0 | M53: 0 | O53: 0
A54: 1995 | B54: Contributions & Grants | G54: 0 | H54: 0 | I54: 0 | J54: 0 | L54: 0 | M54: 0 | O54: 0
B55: Total | C55: =SUM(C17:C54) -> 0 | D55: =SUM(D17:D54) -> 0 | H55: =SUM(H17:H54) -> 0 | I55: 0 | J55: 0 | K55: 0 | L55: 0 | M55: 0 | N55: 0 | O55: 0
A57: Notes:
A59: 1 | B59: Board policy of the "half-year" rule - the applicant must ensure that additions in the year attract a half-year depreciation expense in the first year. Deviations from this standard practice must be supported in the application.
A60: 2 | B60: The applicant must provide an explanation of material variances in evidence.
A61: 3 | B61: The applicant should ensure that the years for new additions of assets are the asset useful lives determined by management in accordance with the Board's regulatory accounting policies. The capitalization and depreciation expense accounting changes should be implemented consistent with the Board’s regulatory accounting policies as set out for MIFRS as contained in the Report of the Board, Transition to International Financial Reporting Standards, EB-2008-0408, the Kinectrics Report, and the Revised 2012 Accounting Procedures Handbook for Electricity Distributors.
A62: 4 | B62: A recalculation should be performed to determine the average remaining life of opening balance of assets (i.e. excluding 2013 additions) under the change in policies under CGAAP. For example, Asset A had a useful life of 20 years under CGAAP without the change in policies. On January 1, 2013, the effective date of the changes in policies, Asset A was 3 years depreciated. As a result, Asset A would have a remaining service life of 17 years (20 years less 3 years) as of January 1, 2013. Due to making the change in policies under CGAAP, management re-assessed the asset useful lives and concluded that the revised useful life of Asset A is now 30 years. Therefore, the average remaining useful life of the opening balance of Asset A is determined to be 27 years (30 years less 3 years) under the revised CGAAP as of January 1, 2013.
A63: 5 | B63: NBV must exclude assets still on the books but which have been fully amortized or depreciated.
A64: 6 | B64: This column refers to the calculated full year depreciation but excludes the depreciation expense on assets fully depreciated during the year. This column is used for the purpose of calculating depreciation expense in the following year on the next worksheet.
A66: General: | B66: Applicants must provide a breakdown of depreciation and amortization expense in the above format for all relevant accounts. Asset Retirement Obligations (AROs), depreciation and accretion expense should be disclosed separately consistent with the Notes of historical Audited Financial Statements.

Sheet App.2-CI_MIFRS_DepExp_2014 (hidden)
J1: File Number: | K1: =EBNUMBER -> EB-2014-0105
J2: Exhibit:
J3: Tab:
J4: Schedule:
J5: Page:
J7: Date:
A9: Appendix 2-CI
A10: Depreciation and Amortization Expense
A11: Assumes the applicant made capitalization and depreciation expense accounting policy changes under CGAAP effective January 1, 2013 and has adopted IFRS for financial reporting purposes effective January 1, 2015.
E13: 2014 | F13: MIFRS
A15: Account | B15: Description | C15: Additions | D15: Years (new additions only) | E15: Depreciation Rate on New Additions | F15: 2014 Depreciation Expense 1 | G15: 2014 Depreciation Expense per Apppendix 2-BA Fixed Assets, Column J (l) | H15: Variance 2 | I15: Depreciation Expense on 2014 Full Year Additions | J15: Less Depreciation Expense on Assets Fully Depreciated during the year (o) | K15: 2014 Full Year Depreciation 3
C16: (d) | D16: (f) | E16: (g) = 1 / (f) | F16: (h)=2013 Full Year Deprecation + ((d)*0.5)/(f) | H16: (m) = (h) - (l) | I16: (n)=((d))/(f) | K16: (p) = 2013 Full Year Depreciation + (n) - (o)
A17: 1611 | B17: Computer Software (Formally known as Account 1925) | E17: =IF(D17=0,0,1/D17) -> 0 | F17: =IF(D17=0,+'App.2-CH_NewCGAAP_DepExp_2013'!O17,+'App.2-CH_NewCGAAP_DepExp_2013'!O17+((C17*0.5)/D17)) -> 0 | H17: =IF(ISERROR(+F17-G17), 0, +F17-G17) -> 0 | I17: =IF(D17=0,0,+(C17)/D17) -> 0 | K17: =IF(ISERROR(+I17+'App.2-CH_NewCGAAP_DepExp_2013'!O17-J17), 0, +I17+'App.2-CH_NewCGAAP_DepExp_2013'!O17-J17) -> 0
A18: 1612 | B18: Land Rights (Formally known as Account 1906) | E18: 0 | F18: =IF(D18=0,+'App.2-CH_NewCGAAP_DepExp_2013'!O18,+'App.2-CH_NewCGAAP_DepExp_2013'!O18+((C18*0.5)/D18)) -> 0 | H18: 0 | I18: 0 | K18: =IF(ISERROR(+I18+'App.2-CH_NewCGAAP_DepExp_2013'!O18-J18), 0, +I18+'App.2-CH_NewCGAAP_DepExp_2013'!O18-J18) -> 0
A19: 1805 | B19: Land | E19: 0 | F19: =IF(D19=0,+'App.2-CH_NewCGAAP_DepExp_2013'!O19,+'App.2-CH_NewCGAAP_DepExp_2013'!O19+((C19*0.5)/D19)) -> 0 | H19: 0 | I19: 0 | K19: =IF(ISERROR(+I19+'App.2-CH_NewCGAAP_DepExp_2013'!O19-J19), 0, +I19+'App.2-CH_NewCGAAP_DepExp_2013'!O19-J19) -> 0
A20: 1808 | B20: Buildings | E20: 0 | F20: =IF(D20=0,+'App.2-CH_NewCGAAP_DepExp_2013'!O20,+'App.2-CH_NewCGAAP_DepExp_2013'!O20+((C20*0.5)/D20)) -> 0 | H20: 0 | I20: 0 | K20: =IF(ISERROR(+I20+'App.2-CH_NewCGAAP_DepExp_2013'!O20-J20), 0, +I20+'App.2-CH_NewCGAAP_DepExp_2013'!O20-J20) -> 0
A21: 1810 | B21: Leasehold Improvements | E21: 0 | F21: =IF(D21=0,+'App.2-CH_NewCGAAP_DepExp_2013'!O21,+'App.2-CH_NewCGAAP_DepExp_2013'!O21+((C21*0.5)/D21)) -> 0 | H21: 0 | I21: 0 | K21: =IF(ISERROR(+I21+'App.2-CH_NewCGAAP_DepExp_2013'!O21-J21), 0, +I21+'App.2-CH_NewCGAAP_DepExp_2013'!O21-J21) -> 0
A22: 1815 | B22: Transformer Station Equipment >50 kV | E22: 0 | F22: =IF(D22=0,+'App.2-CH_NewCGAAP_DepExp_2013'!O22,+'App.2-CH_NewCGAAP_DepExp_2013'!O22+((C22*0.5)/D22)) -> 0 | H22: 0 | I22: 0 | K22: =IF(ISERROR(+I22+'App.2-CH_NewCGAAP_DepExp_2013'!O22-J22), 0, +I22+'App.2-CH_NewCGAAP_DepExp_2013'!O22-J22) -> 0
A23: 1820 | B23: Distribution Station Equipment <50 kV | E23: 0 | F23: =IF(D23=0,+'App.2-CH_NewCGAAP_DepExp_2013'!O23,+'App.2-CH_NewCGAAP_DepExp_2013'!O23+((C23*0.5)/D23)) -> 0 | H23: 0 | I23: 0 | K23: =IF(ISERROR(+I23+'App.2-CH_NewCGAAP_DepExp_2013'!O23-J23), 0, +I23+'App.2-CH_NewCGAAP_DepExp_2013'!O23-J23) -> 0
A24: 1825 | B24: Storage Battery Equipment | E24: 0 | F24: =IF(D24=0,+'App.2-CH_NewCGAAP_DepExp_2013'!O24,+'App.2-CH_NewCGAAP_DepExp_2013'!O24+((C24*0.5)/D24)) -> 0 | H24: 0 | I24: 0 | K24: =IF(ISERROR(+I24+'App.2-CH_NewCGAAP_DepExp_2013'!O24-J24), 0, +I24+'App.2-CH_NewCGAAP_DepExp_2013'!O24-J24) -> 0
A25: 1830 | B25: Poles, Towers & Fixtures | E25: 0 | F25: =IF(D25=0,+'App.2-CH_NewCGAAP_DepExp_2013'!O25,+'App.2-CH_NewCGAAP_DepExp_2013'!O25+((C25*0.5)/D25)) -> 0 | H25: 0 | I25: 0 | K25: =IF(ISERROR(+I25+'App.2-CH_NewCGAAP_DepExp_2013'!O25-J25), 0, +I25+'App.2-CH_NewCGAAP_DepExp_2013'!O25-J25) -> 0
A26: 1835 | B26: Overhead Conductors & Devices | E26: 0 | F26: =IF(D26=0,+'App.2-CH_NewCGAAP_DepExp_2013'!O26,+'App.2-CH_NewCGAAP_DepExp_2013'!O26+((C26*0.5)/D26)) -> 0 | H26: 0 | I26: 0 | K26: =IF(ISERROR(+I26+'App.2-CH_NewCGAAP_DepExp_2013'!O26-J26), 0, +I26+'App.2-CH_NewCGAAP_DepExp_2013'!O26-J26) -> 0
A27: 1840 | B27: Underground Conduit | E27: 0 | F27: =IF(D27=0,+'App.2-CH_NewCGAAP_DepExp_2013'!O27,+'App.2-CH_NewCGAAP_DepExp_2013'!O27+((C27*0.5)/D27)) -> 0 | H27: 0 | I27: 0 | K27: =IF(ISERROR(+I27+'App.2-CH_NewCGAAP_DepExp_2013'!O27-J27), 0, +I27+'App.2-CH_NewCGAAP_DepExp_2013'!O27-J27) -> 0
A28: 1845 | B28: Underground Conductors & Devices | E28: 0 | F28: =IF(D28=0,+'App.2-CH_NewCGAAP_DepExp_2013'!O28,+'App.2-CH_NewCGAAP_DepExp_2013'!O28+((C28*0.5)/D28)) -> 0 | H28: 0 | I28: 0 | K28: =IF(ISERROR(+I28+'App.2-CH_NewCGAAP_DepExp_2013'!O28-J28), 0, +I28+'App.2-CH_NewCGAAP_DepExp_2013'!O28-J28) -> 0
A29: 1850 | B29: Line Transformers | E29: 0 | F29: =IF(D29=0,+'App.2-CH_NewCGAAP_DepExp_2013'!O29,+'App.2-CH_NewCGAAP_DepExp_2013'!O29+((C29*0.5)/D29)) -> 0 | H29: 0 | I29: 0 | K29: =IF(ISERROR(+I29+'App.2-CH_NewCGAAP_DepExp_2013'!O29-J29), 0, +I29+'App.2-CH_NewCGAAP_DepExp_2013'!O29-J29) -> 0
A30: 1855 | B30: Services (Overhead & Underground) | E30: 0 | F30: =IF(D30=0,+'App.2-CH_NewCGAAP_DepExp_2013'!O30,+'App.2-CH_NewCGAAP_DepExp_2013'!O30+((C30*0.5)/D30)) -> 0 | H30: 0 | I30: 0 | K30: =IF(ISERROR(+I30+'App.2-CH_NewCGAAP_DepExp_2013'!O30-J30), 0, +I30+'App.2-CH_NewCGAAP_DepExp_2013'!O30-J30) -> 0
A31: 1860 | B31: Meters | E31: 0 | F31: =IF(D31=0,+'App.2-CH_NewCGAAP_DepExp_2013'!O31,+'App.2-CH_NewCGAAP_DepExp_2013'!O31+((C31*0.5)/D31)) -> 0 | H31: 0 | I31: 0 | K31: =IF(ISERROR(+I31+'App.2-CH_NewCGAAP_DepExp_2013'!O31-J31), 0, +I31+'App.2-CH_NewCGAAP_DepExp_2013'!O31-J31) -> 0
A32: 1860 | B32: Meters (Smart Meters) | E32: 0 | F32: =IF(D32=0,+'App.2-CH_NewCGAAP_DepExp_2013'!O32,+'App.2-CH_NewCGAAP_DepExp_2013'!O32+((C32*0.5)/D32)) -> 0 | H32: 0 | I32: 0 | K32: =IF(ISERROR(+I32+'App.2-CH_NewCGAAP_DepExp_2013'!O32-J32), 0, +I32+'App.2-CH_NewCGAAP_DepExp_2013'!O32-J32) -> 0
A33: 1905 | B33: Land | E33: 0 | F33: =IF(D33=0,+'App.2-CH_NewCGAAP_DepExp_2013'!O33,+'App.2-CH_NewCGAAP_DepExp_2013'!O33+((C33*0.5)/D33)) -> 0 | H33: 0 | I33: 0 | K33: =IF(ISERROR(+I33+'App.2-CH_NewCGAAP_DepExp_2013'!O33-J33), 0, +I33+'App.2-CH_NewCGAAP_DepExp_2013'!O33-J33) -> 0
A34: 1908 | B34: Buildings & Fixtures | E34: 0 | F34: =IF(D34=0,+'App.2-CH_NewCGAAP_DepExp_2013'!O34,+'App.2-CH_NewCGAAP_DepExp_2013'!O34+((C34*0.5)/D34)) -> 0 | H34: 0 | I34: 0 | K34: =IF(ISERROR(+I34+'App.2-CH_NewCGAAP_DepExp_2013'!O34-J34), 0, +I34+'App.2-CH_NewCGAAP_DepExp_2013'!O34-J34) -> 0
A35: 1910 | B35: Leasehold Improvements | E35: 0 | F35: =IF(D35=0,+'App.2-CH_NewCGAAP_DepExp_2013'!O35,+'App.2-CH_NewCGAAP_DepExp_2013'!O35+((C35*0.5)/D35)) -> 0 | H35: 0 | I35: 0 | K35: =IF(ISERROR(+I35+'App.2-CH_NewCGAAP_DepExp_2013'!O35-J35), 0, +I35+'App.2-CH_NewCGAAP_DepExp_2013'!O35-J35) -> 0
A36: 1915 | B36: Office Furniture & Equipment (10 years) | E36: 0 | F36: =IF(D36=0,+'App.2-CH_NewCGAAP_DepExp_2013'!O36,+'App.2-CH_NewCGAAP_DepExp_2013'!O36+((C36*0.5)/D36)) -> 0 | H36: 0 | I36: 0 | K36: =IF(ISERROR(+I36+'App.2-CH_NewCGAAP_DepExp_2013'!O36-J36), 0, +I36+'App.2-CH_NewCGAAP_DepExp_2013'!O36-J36) -> 0
A37: 1915 | B37: Office Furniture & Equipment (5 years) | E37: 0 | F37: =IF(D37=0,+'App.2-CH_NewCGAAP_DepExp_2013'!O37,+'App.2-CH_NewCGAAP_DepExp_2013'!O37+((C37*0.5)/D37)) -> 0 | H37: 0 | I37: 0 | K37: =IF(ISERROR(+I37+'App.2-CH_NewCGAAP_DepExp_2013'!O37-J37), 0, +I37+'App.2-CH_NewCGAAP_DepExp_2013'!O37-J37) -> 0
A38: 1920 | B38: Computer Equipment - Hardware | E38: 0 | F38: =IF(D38=0,+'App.2-CH_NewCGAAP_DepExp_2013'!O38,+'App.2-CH_NewCGAAP_DepExp_2013'!O38+((C38*0.5)/D38)) -> 0 | H38: 0 | I38: 0 | K38: =IF(ISERROR(+I38+'App.2-CH_NewCGAAP_DepExp_2013'!O38-J38), 0, +I38+'App.2-CH_NewCGAAP_DepExp_2013'!O38-J38) -> 0
A39: 1920 | B39: Computer Equip.-Hardware(Post Mar. 22/04) | E39: 0 | F39: =IF(D39=0,+'App.2-CH_NewCGAAP_DepExp_2013'!O39,+'App.2-CH_NewCGAAP_DepExp_2013'!O39+((C39*0.5)/D39)) -> 0 | H39: 0 | I39: 0 | K39: =IF(ISERROR(+I39+'App.2-CH_NewCGAAP_DepExp_2013'!O39-J39), 0, +I39+'App.2-CH_NewCGAAP_DepExp_2013'!O39-J39) -> 0
A40: 1920 | B40: Computer Equip.-Hardware(Post Mar. 19/07) | E40: 0 | F40: =IF(D40=0,+'App.2-CH_NewCGAAP_DepExp_2013'!O40,+'App.2-CH_NewCGAAP_DepExp_2013'!O40+((C40*0.5)/D40)) -> 0 | H40: 0 | I40: 0 | K40: =IF(ISERROR(+I40+'App.2-CH_NewCGAAP_DepExp_2013'!O40-J40), 0, +I40+'App.2-CH_NewCGAAP_DepExp_2013'!O40-J40) -> 0
A41: 1930 | B41: Transportation Equipment | E41: 0 | F41: =IF(D41=0,+'App.2-CH_NewCGAAP_DepExp_2013'!O41,+'App.2-CH_NewCGAAP_DepExp_2013'!O41+((C41*0.5)/D41)) -> 0 | H41: 0 | I41: 0 | K41: =IF(ISERROR(+I41+'App.2-CH_NewCGAAP_DepExp_2013'!O41-J41), 0, +I41+'App.2-CH_NewCGAAP_DepExp_2013'!O41-J41) -> 0
A42: 1935 | B42: Stores Equipment | E42: 0 | F42: =IF(D42=0,+'App.2-CH_NewCGAAP_DepExp_2013'!O42,+'App.2-CH_NewCGAAP_DepExp_2013'!O42+((C42*0.5)/D42)) -> 0 | H42: 0 | I42: 0 | K42: =IF(ISERROR(+I42+'App.2-CH_NewCGAAP_DepExp_2013'!O42-J42), 0, +I42+'App.2-CH_NewCGAAP_DepExp_2013'!O42-J42) -> 0
A43: 1940 | B43: Tools, Shop & Garage Equipment | E43: 0 | F43: =IF(D43=0,+'App.2-CH_NewCGAAP_DepExp_2013'!O43,+'App.2-CH_NewCGAAP_DepExp_2013'!O43+((C43*0.5)/D43)) -> 0 | H43: 0 | I43: 0 | K43: =IF(ISERROR(+I43+'App.2-CH_NewCGAAP_DepExp_2013'!O43-J43), 0, +I43+'App.2-CH_NewCGAAP_DepExp_2013'!O43-J43) -> 0
A44: 1945 | B44: Measurement & Testing Equipment | E44: 0 | F44: =IF(D44=0,+'App.2-CH_NewCGAAP_DepExp_2013'!O44,+'App.2-CH_NewCGAAP_DepExp_2013'!O44+((C44*0.5)/D44)) -> 0 | H44: 0 | I44: 0 | K44: =IF(ISERROR(+I44+'App.2-CH_NewCGAAP_DepExp_2013'!O44-J44), 0, +I44+'App.2-CH_NewCGAAP_DepExp_2013'!O44-J44) -> 0
A45: 1950 | B45: Power Operated Equipment | E45: 0 | F45: =IF(D45=0,+'App.2-CH_NewCGAAP_DepExp_2013'!O45,+'App.2-CH_NewCGAAP_DepExp_2013'!O45+((C45*0.5)/D45)) -> 0 | H45: 0 | I45: 0 | K45: =IF(ISERROR(+I45+'App.2-CH_NewCGAAP_DepExp_2013'!O45-J45), 0, +I45+'App.2-CH_NewCGAAP_DepExp_2013'!O45-J45) -> 0
A46: 1955 | B46: Communications Equipment | E46: 0 | F46: =IF(D46=0,+'App.2-CH_NewCGAAP_DepExp_2013'!O46,+'App.2-CH_NewCGAAP_DepExp_2013'!O46+((C46*0.5)/D46)) -> 0 | H46: 0 | I46: 0 | K46: =IF(ISERROR(+I46+'App.2-CH_NewCGAAP_DepExp_2013'!O46-J46), 0, +I46+'App.2-CH_NewCGAAP_DepExp_2013'!O46-J46) -> 0
A47: 1955 | B47: Communication Equipment (Smart Meters) | E47: 0 | F47: =IF(D47=0,+'App.2-CH_NewCGAAP_DepExp_2013'!O47,+'App.2-CH_NewCGAAP_DepExp_2013'!O47+((C47*0.5)/D47)) -> 0 | H47: 0 | I47: 0 | K47: =IF(ISERROR(+I47+'App.2-CH_NewCGAAP_DepExp_2013'!O47-J47), 0, +I47+'App.2-CH_NewCGAAP_DepExp_2013'!O47-J47) -> 0
A48: 1960 | B48: Miscellaneous Equipment | E48: 0 | F48: =IF(D48=0,+'App.2-CH_NewCGAAP_DepExp_2013'!O48,+'App.2-CH_NewCGAAP_DepExp_2013'!O48+((C48*0.5)/D48)) -> 0 | H48: 0 | I48: 0 | K48: =IF(ISERROR(+I48+'App.2-CH_NewCGAAP_DepExp_2013'!O48-J48), 0, +I48+'App.2-CH_NewCGAAP_DepExp_2013'!O48-J48) -> 0
A49: 1970 | B49: Load Management Controls - Customer Premises | E49: 0 | F49: =IF(D49=0,+'App.2-CH_NewCGAAP_DepExp_2013'!O49,+'App.2-CH_NewCGAAP_DepExp_2013'!O49+((C49*0.5)/D49)) -> 0 | H49: 0 | I49: 0 | K49: =IF(ISERROR(+I49+'App.2-CH_NewCGAAP_DepExp_2013'!O49-J49), 0, +I49+'App.2-CH_NewCGAAP_DepExp_2013'!O49-J49) -> 0
A50: 1975 | B50: Load Management Controls Utility Premises | E50: 0 | F50: =IF(D50=0,+'App.2-CH_NewCGAAP_DepExp_2013'!O50,+'App.2-CH_NewCGAAP_DepExp_2013'!O50+((C50*0.5)/D50)) -> 0 | H50: 0 | I50: 0 | K50: =IF(ISERROR(+I50+'App.2-CH_NewCGAAP_DepExp_2013'!O50-J50), 0, +I50+'App.2-CH_NewCGAAP_DepExp_2013'!O50-J50) -> 0
A51: 1980 | B51: System Supervisor Equipment | E51: 0 | F51: =IF(D51=0,+'App.2-CH_NewCGAAP_DepExp_2013'!O51,+'App.2-CH_NewCGAAP_DepExp_2013'!O51+((C51*0.5)/D51)) -> 0 | H51: 0 | I51: 0 | K51: =IF(ISERROR(+I51+'App.2-CH_NewCGAAP_DepExp_2013'!O51-J51), 0, +I51+'App.2-CH_NewCGAAP_DepExp_2013'!O51-J51) -> 0
A52: 1985 | B52: Miscellaneous Fixed Assets | E52: 0 | F52: =IF(D52=0,+'App.2-CH_NewCGAAP_DepExp_2013'!O52,+'App.2-CH_NewCGAAP_DepExp_2013'!O52+((C52*0.5)/D52)) -> 0 | H52: 0 | I52: 0 | K52: =IF(ISERROR(+I52+'App.2-CH_NewCGAAP_DepExp_2013'!O52-J52), 0, +I52+'App.2-CH_NewCGAAP_DepExp_2013'!O52-J52) -> 0
A53: 1990 | B53: Other Tangible Property | E53: 0 | F53: =IF(D53=0,+'App.2-CH_NewCGAAP_DepExp_2013'!O53,+'App.2-CH_NewCGAAP_DepExp_2013'!O53+((C53*0.5)/D53)) -> 0 | H53: 0 | I53: 0 | K53: =IF(ISERROR(+I53+'App.2-CH_NewCGAAP_DepExp_2013'!O53-J53), 0, +I53+'App.2-CH_NewCGAAP_DepExp_2013'!O53-J53) -> 0
A54: 1995 | B54: Contributions & Grants | E54: =IF(D54=0,0,1/D54) -> 0 | F54: =IF(D54=0,+'App.2-CH_NewCGAAP_DepExp_2013'!O54,+'App.2-CH_NewCGAAP_DepExp_2013'!O54+((C54*0.5)/D54)) -> 0 | H54: 0 | I54: 0 | K54: =IF(ISERROR(+I54+'App.2-CH_NewCGAAP_DepExp_2013'!O54-J54), 0, +I54+'App.2-CH_NewCGAAP_DepExp_2013'!O54-J54) -> 0
B55: Total | C55: =SUM(C17:C54) -> 0 | F55: =SUM(F17:F54) -> 0 | G55: 0 | H55: 0 | I55: 0 | J55: 0 | K55: 0
B56: Depreciation exp. adj. from gain or loss on the retirement of assets (pool of like assets)
B57: Total Depreciation Expense | F57: =SUM(F55:F56) -> 0
A59: Notes:
A60: 1 | B60: Board policy of the "half-year" rule - the applicant must ensure that additions in the year attract a half-year depreciation expense in the first year. Deviations from this standard practice must be supported in the application.
A61: 2 | B61: The applicant must provide an explanation of material variances in evidence.
A62: 3 | B62: This column refers to the calculated full year depreciation but excludes the depreciation expense on assets fully depreciated during the year. This column is used for the purpose of calculating depreciation expense in the following year on the next worksheet.
A64: General: | B64: Applicants must provide a breakdown of depreciation and amortization expense in the above format for all relevant accounts. Asset Retirement Obligations (AROs), depreciation and accretion expense should be disclosed separately consistent with the Notes of historical Audited Financial Statements.

Sheet App.2-CJ MIFRS_DepExp_2015 (hidden)
G1: File Number: | H1: =EBNUMBER -> EB-2014-0105
G2: Exhibit:
G3: Tab:
G4: Schedule:
G5: Page:
G7: Date:
A9: Appendix 2-CJ
A10: Depreciation and Amortization Expense
A11: Assumes the applicant made capitalization and depreciation expense accounting policy changes under CGAAP effective January 1, 2013 and has adopted IFRS for financial reporting purposes effective January 1, 2015.
D13: 2015 | E13: MIFRS
A15: Account | B15: Description | C15: Additions | D15: Years (new additions only) | E15: Depreciation Rate on New Additions | F15: 2015 Depreciation Expense 1 | G15: 2015 Depreciation Expense per Appendix 2-BA Fixed Assets, Column J (l) | H15: Variance 2 | I15: Depreciation Expense on 2015 Full Year Additions | J15: Less Depreciation Expense on Assets Fully Depreciated during the year (o) | K15: 2015 Full Year Depreciation 3
C16: (d) | D16: (f) | E16: (g) = 1 / (f) | F16: (h)=2014 Full Year Depreciation + ((d)*0.5)/(f) | H16: (m) = (h) - (l) | I16: (n)=((d))/(f) | K16: (p) = 2014 Full Year Depreciation + (n) - (o)
A17: 1611 | B17: Computer Software (Formally known as Account 1925) | E17: =IF(D17=0,0,1/D17) -> 0 | F17: =IF(D17=0,'App.2-CI_MIFRS_DepExp_2014'!K17,+'App.2-CI_MIFRS_DepExp_2014'!K17+((C17*0.5)/D17)) -> 0 | H17: =IF(ISERROR(+F17-G17), 0, +F17-G17) -> 0 | I17: =IF(D17=0,0,+(C17)/D17) -> 0 | K17: =IF(ISERROR(+I17+'App.2-CI_MIFRS_DepExp_2014'!K17-J17), 0, +I17+'App.2-CI_MIFRS_DepExp_2014'!K17-J17) -> 0
A18: 1612 | B18: Land Rights (Formally known as Account 1906) | E18: 0 | F18: =IF(D18=0,'App.2-CI_MIFRS_DepExp_2014'!K18,+'App.2-CI_MIFRS_DepExp_2014'!K18+((C18*0.5)/D18)) -> 0 | H18: 0 | I18: =IF(D18=0,0,+(C18)/D18) -> 0 | K18: =IF(ISERROR(+I18+'App.2-CI_MIFRS_DepExp_2014'!K18-J18), 0, +I18+'App.2-CI_MIFRS_DepExp_2014'!K18-J18) -> 0
A19: 1805 | B19: Land | E19: 0 | F19: =IF(D19=0,'App.2-CI_MIFRS_DepExp_2014'!K19,+'App.2-CI_MIFRS_DepExp_2014'!K19+((C19*0.5)/D19)) -> 0 | H19: 0 | I19: 0 | K19: =IF(ISERROR(+I19+'App.2-CI_MIFRS_DepExp_2014'!K19-J19), 0, +I19+'App.2-CI_MIFRS_DepExp_2014'!K19-J19) -> 0
A20: 1808 | B20: Buildings | E20: 0 | F20: =IF(D20=0,'App.2-CI_MIFRS_DepExp_2014'!K20,+'App.2-CI_MIFRS_DepExp_2014'!K20+((C20*0.5)/D20)) -> 0 | H20: 0 | I20: 0 | K20: =IF(ISERROR(+I20+'App.2-CI_MIFRS_DepExp_2014'!K20-J20), 0, +I20+'App.2-CI_MIFRS_DepExp_2014'!K20-J20) -> 0
A21: 1810 | B21: Leasehold Improvements | E21: 0 | F21: =IF(D21=0,'App.2-CI_MIFRS_DepExp_2014'!K21,+'App.2-CI_MIFRS_DepExp_2014'!K21+((C21*0.5)/D21)) -> 0 | H21: 0 | I21: 0 | K21: =IF(ISERROR(+I21+'App.2-CI_MIFRS_DepExp_2014'!K21-J21), 0, +I21+'App.2-CI_MIFRS_DepExp_2014'!K21-J21) -> 0
A22: 1815 | B22: Transformer Station Equipment >50 kV | E22: 0 | F22: =IF(D22=0,'App.2-CI_MIFRS_DepExp_2014'!K22,+'App.2-CI_MIFRS_DepExp_2014'!K22+((C22*0.5)/D22)) -> 0 | H22: 0 | I22: 0 | K22: =IF(ISERROR(+I22+'App.2-CI_MIFRS_DepExp_2014'!K22-J22), 0, +I22+'App.2-CI_MIFRS_DepExp_2014'!K22-J22) -> 0
A23: 1820 | B23: Distribution Station Equipment <50 kV | E23: 0 | F23: =IF(D23=0,'App.2-CI_MIFRS_DepExp_2014'!K23,+'App.2-CI_MIFRS_DepExp_2014'!K23+((C23*0.5)/D23)) -> 0 | H23: 0 | I23: 0 | K23: =IF(ISERROR(+I23+'App.2-CI_MIFRS_DepExp_2014'!K23-J23), 0, +I23+'App.2-CI_MIFRS_DepExp_2014'!K23-J23) -> 0
A24: 1825 | B24: Storage Battery Equipment | E24: 0 | F24: =IF(D24=0,'App.2-CI_MIFRS_DepExp_2014'!K24,+'App.2-CI_MIFRS_DepExp_2014'!K24+((C24*0.5)/D24)) -> 0 | H24: 0 | I24: 0 | K24: =IF(ISERROR(+I24+'App.2-CI_MIFRS_DepExp_2014'!K24-J24), 0, +I24+'App.2-CI_MIFRS_DepExp_2014'!K24-J24) -> 0
A25: 1830 | B25: Poles, Towers & Fixtures | E25: 0 | F25: =IF(D25=0,'App.2-CI_MIFRS_DepExp_2014'!K25,+'App.2-CI_MIFRS_DepExp_2014'!K25+((C25*0.5)/D25)) -> 0 | H25: 0 | I25: 0 | K25: =IF(ISERROR(+I25+'App.2-CI_MIFRS_DepExp_2014'!K25-J25), 0, +I25+'App.2-CI_MIFRS_DepExp_2014'!K25-J25) -> 0
A26: 1835 | B26: Overhead Conductors & Devices | E26: 0 | F26: =IF(D26=0,'App.2-CI_MIFRS_DepExp_2014'!K26,+'App.2-CI_MIFRS_DepExp_2014'!K26+((C26*0.5)/D26)) -> 0 | H26: 0 | I26: 0 | K26: =IF(ISERROR(+I26+'App.2-CI_MIFRS_DepExp_2014'!K26-J26), 0, +I26+'App.2-CI_MIFRS_DepExp_2014'!K26-J26) -> 0
A27: 1840 | B27: Underground Conduit | E27: 0 | F27: =IF(D27=0,'App.2-CI_MIFRS_DepExp_2014'!K27,+'App.2-CI_MIFRS_DepExp_2014'!K27+((C27*0.5)/D27)) -> 0 | H27: 0 | I27: 0 | K27: =IF(ISERROR(+I27+'App.2-CI_MIFRS_DepExp_2014'!K27-J27), 0, +I27+'App.2-CI_MIFRS_DepExp_2014'!K27-J27) -> 0
A28: 1845 | B28: Underground Conductors & Devices | E28: 0 | F28: =IF(D28=0,'App.2-CI_MIFRS_DepExp_2014'!K28,+'App.2-CI_MIFRS_DepExp_2014'!K28+((C28*0.5)/D28)) -> 0 | H28: 0 | I28: 0 | K28: =IF(ISERROR(+I28+'App.2-CI_MIFRS_DepExp_2014'!K28-J28), 0, +I28+'App.2-CI_MIFRS_DepExp_2014'!K28-J28) -> 0
A29: 1850 | B29: Line Transformers | E29: 0 | F29: =IF(D29=0,'App.2-CI_MIFRS_DepExp_2014'!K29,+'App.2-CI_MIFRS_DepExp_2014'!K29+((C29*0.5)/D29)) -> 0 | H29: 0 | I29: 0 | K29: =IF(ISERROR(+I29+'App.2-CI_MIFRS_DepExp_2014'!K29-J29), 0, +I29+'App.2-CI_MIFRS_DepExp_2014'!K29-J29) -> 0
A30: 1855 | B30: Services (Overhead & Underground) | E30: 0 | F30: =IF(D30=0,'App.2-CI_MIFRS_DepExp_2014'!K30,+'App.2-CI_MIFRS_DepExp_2014'!K30+((C30*0.5)/D30)) -> 0 | H30: 0 | I30: 0 | K30: =IF(ISERROR(+I30+'App.2-CI_MIFRS_DepExp_2014'!K30-J30), 0, +I30+'App.2-CI_MIFRS_DepExp_2014'!K30-J30) -> 0
A31: 1860 | B31: Meters | E31: 0 | F31: =IF(D31=0,'App.2-CI_MIFRS_DepExp_2014'!K31,+'App.2-CI_MIFRS_DepExp_2014'!K31+((C31*0.5)/D31)) -> 0 | H31: 0 | I31: 0 | K31: =IF(ISERROR(+I31+'App.2-CI_MIFRS_DepExp_2014'!K31-J31), 0, +I31+'App.2-CI_MIFRS_DepExp_2014'!K31-J31) -> 0
A32: 1860 | B32: Meters (Smart Meters) | E32: 0 | F32: =IF(D32=0,'App.2-CI_MIFRS_DepExp_2014'!K32,+'App.2-CI_MIFRS_DepExp_2014'!K32+((C32*0.5)/D32)) -> 0 | H32: 0 | I32: 0 | K32: =IF(ISERROR(+I32+'App.2-CI_MIFRS_DepExp_2014'!K32-J32), 0, +I32+'App.2-CI_MIFRS_DepExp_2014'!K32-J32) -> 0
A33: 1905 | B33: Land | E33: 0 | F33: =IF(D33=0,'App.2-CI_MIFRS_DepExp_2014'!K33,+'App.2-CI_MIFRS_DepExp_2014'!K33+((C33*0.5)/D33)) -> 0 | H33: 0 | I33: 0 | K33: =IF(ISERROR(+I33+'App.2-CI_MIFRS_DepExp_2014'!K33-J33), 0, +I33+'App.2-CI_MIFRS_DepExp_2014'!K33-J33) -> 0
A34: 1908 | B34: Buildings & Fixtures | E34: 0 | F34: =IF(D34=0,'App.2-CI_MIFRS_DepExp_2014'!K34,+'App.2-CI_MIFRS_DepExp_2014'!K34+((C34*0.5)/D34)) -> 0 | H34: 0 | I34: 0 | K34: =IF(ISERROR(+I34+'App.2-CI_MIFRS_DepExp_2014'!K34-J34), 0, +I34+'App.2-CI_MIFRS_DepExp_2014'!K34-J34) -> 0
A35: 1910 | B35: Leasehold Improvements | E35: 0 | F35: =IF(D35=0,'App.2-CI_MIFRS_DepExp_2014'!K35,+'App.2-CI_MIFRS_DepExp_2014'!K35+((C35*0.5)/D35)) -> 0 | H35: 0 | I35: 0 | K35: =IF(ISERROR(+I35+'App.2-CI_MIFRS_DepExp_2014'!K35-J35), 0, +I35+'App.2-CI_MIFRS_DepExp_2014'!K35-J35) -> 0
A36: 1915 | B36: Office Furniture & Equipment (10 years) | E36: 0 | F36: =IF(D36=0,'App.2-CI_MIFRS_DepExp_2014'!K36,+'App.2-CI_MIFRS_DepExp_2014'!K36+((C36*0.5)/D36)) -> 0 | H36: 0 | I36: 0 | K36: =IF(ISERROR(+I36+'App.2-CI_MIFRS_DepExp_2014'!K36-J36), 0, +I36+'App.2-CI_MIFRS_DepExp_2014'!K36-J36) -> 0
A37: 1915 | B37: Office Furniture & Equipment (5 years) | E37: 0 | F37: =IF(D37=0,'App.2-CI_MIFRS_DepExp_2014'!K37,+'App.2-CI_MIFRS_DepExp_2014'!K37+((C37*0.5)/D37)) -> 0 | H37: 0 | I37: 0 | K37: =IF(ISERROR(+I37+'App.2-CI_MIFRS_DepExp_2014'!K37-J37), 0, +I37+'App.2-CI_MIFRS_DepExp_2014'!K37-J37) -> 0
A38: 1920 | B38: Computer Equipment - Hardware | E38: 0 | F38: =IF(D38=0,'App.2-CI_MIFRS_DepExp_2014'!K38,+'App.2-CI_MIFRS_DepExp_2014'!K38+((C38*0.5)/D38)) -> 0 | H38: 0 | I38: 0 | K38: =IF(ISERROR(+I38+'App.2-CI_MIFRS_DepExp_2014'!K38-J38), 0, +I38+'App.2-CI_MIFRS_DepExp_2014'!K38-J38) -> 0
A39: 1920 | B39: Computer Equip.-Hardware(Post Mar. 22/04) | E39: 0 | F39: =IF(D39=0,'App.2-CI_MIFRS_DepExp_2014'!K39,+'App.2-CI_MIFRS_DepExp_2014'!K39+((C39*0.5)/D39)) -> 0 | H39: 0 | I39: 0 | K39: =IF(ISERROR(+I39+'App.2-CI_MIFRS_DepExp_2014'!K39-J39), 0, +I39+'App.2-CI_MIFRS_DepExp_2014'!K39-J39) -> 0
A40: 1920 | B40: Computer Equip.-Hardware(Post Mar. 19/07) | E40: 0 | F40: =IF(D40=0,'App.2-CI_MIFRS_DepExp_2014'!K40,+'App.2-CI_MIFRS_DepExp_2014'!K40+((C40*0.5)/D40)) -> 0 | H40: 0 | I40: 0 | K40: =IF(ISERROR(+I40+'App.2-CI_MIFRS_DepExp_2014'!K40-J40), 0, +I40+'App.2-CI_MIFRS_DepExp_2014'!K40-J40) -> 0
A41: 1930 | B41: Transportation Equipment | E41: 0 | F41: =IF(D41=0,'App.2-CI_MIFRS_DepExp_2014'!K41,+'App.2-CI_MIFRS_DepExp_2014'!K41+((C41*0.5)/D41)) -> 0 | H41: 0 | I41: 0 | K41: =IF(ISERROR(+I41+'App.2-CI_MIFRS_DepExp_2014'!K41-J41), 0, +I41+'App.2-CI_MIFRS_DepExp_2014'!K41-J41) -> 0
A42: 1935 | B42: Stores Equipment | E42: 0 | F42: =IF(D42=0,'App.2-CI_MIFRS_DepExp_2014'!K42,+'App.2-CI_MIFRS_DepExp_2014'!K42+((C42*0.5)/D42)) -> 0 | H42: 0 | I42: 0 | K42: =IF(ISERROR(+I42+'App.2-CI_MIFRS_DepExp_2014'!K42-J42), 0, +I42+'App.2-CI_MIFRS_DepExp_2014'!K42-J42) -> 0
A43: 1940 | B43: Tools, Shop & Garage Equipment | E43: 0 | F43: =IF(D43=0,'App.2-CI_MIFRS_DepExp_2014'!K43,+'App.2-CI_MIFRS_DepExp_2014'!K43+((C43*0.5)/D43)) -> 0 | H43: 0 | I43: 0 | K43: =IF(ISERROR(+I43+'App.2-CI_MIFRS_DepExp_2014'!K43-J43), 0, +I43+'App.2-CI_MIFRS_DepExp_2014'!K43-J43) -> 0
A44: 1945 | B44: Measurement & Testing Equipment | E44: 0 | F44: =IF(D44=0,'App.2-CI_MIFRS_DepExp_2014'!K44,+'App.2-CI_MIFRS_DepExp_2014'!K44+((C44*0.5)/D44)) -> 0 | H44: 0 | I44: 0 | K44: =IF(ISERROR(+I44+'App.2-CI_MIFRS_DepExp_2014'!K44-J44), 0, +I44+'App.2-CI_MIFRS_DepExp_2014'!K44-J44) -> 0
A45: 1950 | B45: Power Operated Equipment | E45: 0 | F45: =IF(D45=0,'App.2-CI_MIFRS_DepExp_2014'!K45,+'App.2-CI_MIFRS_DepExp_2014'!K45+((C45*0.5)/D45)) -> 0 | H45: 0 | I45: 0 | K45: =IF(ISERROR(+I45+'App.2-CI_MIFRS_DepExp_2014'!K45-J45), 0, +I45+'App.2-CI_MIFRS_DepExp_2014'!K45-J45) -> 0
A46: 1955 | B46: Communications Equipment | E46: 0 | F46: =IF(D46=0,'App.2-CI_MIFRS_DepExp_2014'!K46,+'App.2-CI_MIFRS_DepExp_2014'!K46+((C46*0.5)/D46)) -> 0 | H46: 0 | I46: 0 | K46: =IF(ISERROR(+I46+'App.2-CI_MIFRS_DepExp_2014'!K46-J46), 0, +I46+'App.2-CI_MIFRS_DepExp_2014'!K46-J46) -> 0
A47: 1955 | B47: Communication Equipment (Smart Meters) | E47: 0 | F47: =IF(D47=0,'App.2-CI_MIFRS_DepExp_2014'!K47,+'App.2-CI_MIFRS_DepExp_2014'!K47+((C47*0.5)/D47)) -> 0 | H47: 0 | I47: 0 | K47: =IF(ISERROR(+I47+'App.2-CI_MIFRS_DepExp_2014'!K47-J47), 0, +I47+'App.2-CI_MIFRS_DepExp_2014'!K47-J47) -> 0
A48: 1960 | B48: Miscellaneous Equipment | E48: 0 | F48: =IF(D48=0,'App.2-CI_MIFRS_DepExp_2014'!K48,+'App.2-CI_MIFRS_DepExp_2014'!K48+((C48*0.5)/D48)) -> 0 | H48: 0 | I48: 0 | K48: =IF(ISERROR(+I48+'App.2-CI_MIFRS_DepExp_2014'!K48-J48), 0, +I48+'App.2-CI_MIFRS_DepExp_2014'!K48-J48) -> 0
A49: 1970 | B49: Load Management Controls - Customer Premises | E49: 0 | F49: =IF(D49=0,'App.2-CI_MIFRS_DepExp_2014'!K49,+'App.2-CI_MIFRS_DepExp_2014'!K49+((C49*0.5)/D49)) -> 0 | H49: 0 | I49: 0 | K49: =IF(ISERROR(+I49+'App.2-CI_MIFRS_DepExp_2014'!K49-J49), 0, +I49+'App.2-CI_MIFRS_DepExp_2014'!K49-J49) -> 0
A50: 1975 | B50: Load Management Controls Utility Premises | E50: 0 | F50: =IF(D50=0,'App.2-CI_MIFRS_DepExp_2014'!K50,+'App.2-CI_MIFRS_DepExp_2014'!K50+((C50*0.5)/D50)) -> 0 | H50: 0 | I50: 0 | K50: =IF(ISERROR(+I50+'App.2-CI_MIFRS_DepExp_2014'!K50-J50), 0, +I50+'App.2-CI_MIFRS_DepExp_2014'!K50-J50) -> 0
A51: 1980 | B51: System Supervisor Equipment | E51: 0 | F51: =IF(D51=0,'App.2-CI_MIFRS_DepExp_2014'!K51,+'App.2-CI_MIFRS_DepExp_2014'!K51+((C51*0.5)/D51)) -> 0 | H51: 0 | I51: 0 | K51: =IF(ISERROR(+I51+'App.2-CI_MIFRS_DepExp_2014'!K51-J51), 0, +I51+'App.2-CI_MIFRS_DepExp_2014'!K51-J51) -> 0
A52: 1985 | B52: Miscellaneous Fixed Assets | E52: 0 | F52: =IF(D52=0,'App.2-CI_MIFRS_DepExp_2014'!K52,+'App.2-CI_MIFRS_DepExp_2014'!K52+((C52*0.5)/D52)) -> 0 | H52: 0 | I52: 0 | K52: =IF(ISERROR(+I52+'App.2-CI_MIFRS_DepExp_2014'!K52-J52), 0, +I52+'App.2-CI_MIFRS_DepExp_2014'!K52-J52) -> 0
A53: 1990 | B53: Other Tangible Property | E53: 0 | F53: =IF(D53=0,'App.2-CI_MIFRS_DepExp_2014'!K53,+'App.2-CI_MIFRS_DepExp_2014'!K53+((C53*0.5)/D53)) -> 0 | H53: 0 | I53: 0 | K53: =IF(ISERROR(+I53+'App.2-CI_MIFRS_DepExp_2014'!K53-J53), 0, +I53+'App.2-CI_MIFRS_DepExp_2014'!K53-J53) -> 0
A54: 1995 | B54: Contributions & Grants | E54: 0 | F54: =IF(D54=0,'App.2-CI_MIFRS_DepExp_2014'!K54,+'App.2-CI_MIFRS_DepExp_2014'!K54+((C54*0.5)/D54)) -> 0 | H54: 0 | I54: 0 | K54: =IF(ISERROR(+I54+'App.2-CI_MIFRS_DepExp_2014'!K54-J54), 0, +I54+'App.2-CI_MIFRS_DepExp_2014'!K54-J54) -> 0
B55: Total | C55: =SUM(C17:C54) -> 0 | F55: =SUM(F17:F54) -> 0 | G55: =SUM(G17:G54) -> 0 | H55: =SUM(H17:H54) -> 0 | I55: =SUM(I17:I54) -> 0 | J55: 0 | K55: =SUM(K17:K54) -> 0
B56: Depreciation exp. adj. from gain or loss on the retirement of assets (pool of like assets)
B57: Total Depreciation expense to be included in the test year revenue requirement | F57: =SUM(F55:F56) -> 0
A58: Notes:
A59: 1 | B59: Board policy of the "half-year" rule - the applicant must ensure that additions in the year attract a half-year depreciation expense in the first year. Deviations from this standard practice must be supported in the application.
A60: 2 | B60: The applicant must provide an explanation of material variances in evidence.
A61: 3 | B61: This column refers to the calculated full year depreciation but excludes the depreciation expense on assets fully depreciated during the year. This column is used for the purpose of calculating depreciation expense in the following year on the next worksheet.
A64: General: | B64: Applicants must provide a breakdown of depreciation and amortization expense in the above format for all relevant accounts. Asset Retirement Obligations (AROs), depreciation and accretion expense should be disclosed separately consistent with the Notes of historical Audited Financial Statements.

Sheet App.2-CK MIFRS_DepExp_2016 (hidden)
G1: File Number: | H1: =EBNUMBER -> EB-2014-0105
G2: Exhibit:
G3: Tab:
G4: Schedule:
G5: Page:
G7: Date:
A9: Appendix 2-CK
A10: Depreciation and Amortization Expense
A11: Assumes the applicant made capitalization and depreciation expense accounting policy changes under CGAAP effective January 1, 2013 and has adopted IFRS for financial reporting purposes effective January 1, 2015.
D13: 2016 | E13: MIFRS
A15: Account | B15: Description | C15: Additions | D15: Years (new additions only) | E15: Depreciation Rate on New Additions | F15: 2016 Depreciation Expense 1 | G15: 2016 Depreciation Expense per Appendix 2-BA Fixed Assets, Column J (l) | H15: Variance 2
C16: (d) | D16: (f) | E16: (g) = 1 / (f) | F16: (h)=2015 Full Year Depreciation + ((d)*0.5)/(f) | H16: (m) = (h) - (l)
A17: 1611 | B17: Computer Software (Formally known as Account 1925) | E17: =IF(D17=0,0,1/D17) -> 0 | F17: =IF(D17=0,'App.2-CJ MIFRS_DepExp_2015'!K17,+'App.2-CJ MIFRS_DepExp_2015'!K17+((C17*0.5)/D17)) -> 0 | H17: =IF(ISERROR(+F17-G17), 0, +F17-G17) -> 0
A18: 1612 | B18: Land Rights (Formally known as Account 1906) | E18: 0 | F18: =IF(D18=0,'App.2-CJ MIFRS_DepExp_2015'!K18,+'App.2-CJ MIFRS_DepExp_2015'!K18+((C18*0.5)/D18)) -> 0 | H18: 0
A19: 1805 | B19: Land | E19: 0 | F19: =IF(D19=0,'App.2-CJ MIFRS_DepExp_2015'!K19,+'App.2-CJ MIFRS_DepExp_2015'!K19+((C19*0.5)/D19)) -> 0 | H19: 0
A20: 1808 | B20: Buildings | E20: 0 | F20: =IF(D20=0,'App.2-CJ MIFRS_DepExp_2015'!K20,+'App.2-CJ MIFRS_DepExp_2015'!K20+((C20*0.5)/D20)) -> 0 | H20: 0
A21: 1810 | B21: Leasehold Improvements | E21: 0 | F21: =IF(D21=0,'App.2-CJ MIFRS_DepExp_2015'!K21,+'App.2-CJ MIFRS_DepExp_2015'!K21+((C21*0.5)/D21)) -> 0 | H21: 0
A22: 1815 | B22: Transformer Station Equipment >50 kV | E22: 0 | F22: =IF(D22=0,'App.2-CJ MIFRS_DepExp_2015'!K22,+'App.2-CJ MIFRS_DepExp_2015'!K22+((C22*0.5)/D22)) -> 0 | H22: 0
A23: 1820 | B23: Distribution Station Equipment <50 kV | E23: 0 | F23: =IF(D23=0,'App.2-CJ MIFRS_DepExp_2015'!K23,+'App.2-CJ MIFRS_DepExp_2015'!K23+((C23*0.5)/D23)) -> 0 | H23: 0
A24: 1825 | B24: Storage Battery Equipment | E24: 0 | F24: =IF(D24=0,'App.2-CJ MIFRS_DepExp_2015'!K24,+'App.2-CJ MIFRS_DepExp_2015'!K24+((C24*0.5)/D24)) -> 0 | H24: 0
A25: 1830 | B25: Poles, Towers & Fixtures | E25: 0 | F25: =IF(D25=0,'App.2-CJ MIFRS_DepExp_2015'!K25,+'App.2-CJ MIFRS_DepExp_2015'!K25+((C25*0.5)/D25)) -> 0 | H25: 0
A26: 1835 | B26: Overhead Conductors & Devices | E26: 0 | F26: =IF(D26=0,'App.2-CJ MIFRS_DepExp_2015'!K26,+'App.2-CJ MIFRS_DepExp_2015'!K26+((C26*0.5)/D26)) -> 0 | H26: 0
A27: 1840 | B27: Underground Conduit | E27: 0 | F27: =IF(D27=0,'App.2-CJ MIFRS_DepExp_2015'!K27,+'App.2-CJ MIFRS_DepExp_2015'!K27+((C27*0.5)/D27)) -> 0 | H27: 0
A28: 1845 | B28: Underground Conductors & Devices | E28: 0 | F28: =IF(D28=0,'App.2-CJ MIFRS_DepExp_2015'!K28,+'App.2-CJ MIFRS_DepExp_2015'!K28+((C28*0.5)/D28)) -> 0 | H28: 0
A29: 1850 | B29: Line Transformers | E29: 0 | F29: =IF(D29=0,'App.2-CJ MIFRS_DepExp_2015'!K29,+'App.2-CJ MIFRS_DepExp_2015'!K29+((C29*0.5)/D29)) -> 0 | H29: 0
A30: 1855 | B30: Services (Overhead & Underground) | E30: 0 | F30: =IF(D30=0,'App.2-CJ MIFRS_DepExp_2015'!K30,+'App.2-CJ MIFRS_DepExp_2015'!K30+((C30*0.5)/D30)) -> 0 | H30: 0
A31: 1860 | B31: Meters | E31: 0 | F31: =IF(D31=0,'App.2-CJ MIFRS_DepExp_2015'!K31,+'App.2-CJ MIFRS_DepExp_2015'!K31+((C31*0.5)/D31)) -> 0 | H31: 0
A32: 1860 | B32: Meters (Smart Meters) | E32: 0 | F32: =IF(D32=0,'App.2-CJ MIFRS_DepExp_2015'!K32,+'App.2-CJ MIFRS_DepExp_2015'!K32+((C32*0.5)/D32)) -> 0 | H32: 0
A33: 1905 | B33: Land | E33: 0 | F33: =IF(D33=0,'App.2-CJ MIFRS_DepExp_2015'!K33,+'App.2-CJ MIFRS_DepExp_2015'!K33+((C33*0.5)/D33)) -> 0 | H33: 0
A34: 1908 | B34: Buildings & Fixtures | E34: 0 | F34: =IF(D34=0,'App.2-CJ MIFRS_DepExp_2015'!K34,+'App.2-CJ MIFRS_DepExp_2015'!K34+((C34*0.5)/D34)) -> 0 | H34: 0
A35: 1910 | B35: Leasehold Improvements | E35: 0 | F35: =IF(D35=0,'App.2-CJ MIFRS_DepExp_2015'!K35,+'App.2-CJ MIFRS_DepExp_2015'!K35+((C35*0.5)/D35)) -> 0 | H35: 0
A36: 1915 | B36: Office Furniture & Equipment (10 years) | E36: 0 | F36: =IF(D36=0,'App.2-CJ MIFRS_DepExp_2015'!K36,+'App.2-CJ MIFRS_DepExp_2015'!K36+((C36*0.5)/D36)) -> 0 | H36: 0
A37: 1915 | B37: Office Furniture & Equipment (5 years) | E37: 0 | F37: =IF(D37=0,'App.2-CJ MIFRS_DepExp_2015'!K37,+'App.2-CJ MIFRS_DepExp_2015'!K37+((C37*0.5)/D37)) -> 0 | H37: 0
A38: 1920 | B38: Computer Equipment - Hardware | E38: 0 | F38: =IF(D38=0,'App.2-CJ MIFRS_DepExp_2015'!K38,+'App.2-CJ MIFRS_DepExp_2015'!K38+((C38*0.5)/D38)) -> 0 | H38: 0
A39: 1920 | B39: Computer Equip.-Hardware(Post Mar. 22/04) | E39: 0 | F39: =IF(D39=0,'App.2-CJ MIFRS_DepExp_2015'!K39,+'App.2-CJ MIFRS_DepExp_2015'!K39+((C39*0.5)/D39)) -> 0 | H39: 0
A40: 1920 | B40: Computer Equip.-Hardware(Post Mar. 19/07) | E40: 0 | F40: =IF(D40=0,'App.2-CJ MIFRS_DepExp_2015'!K40,+'App.2-CJ MIFRS_DepExp_2015'!K40+((C40*0.5)/D40)) -> 0 | H40: 0
A41: 1930 | B41: Transportation Equipment | E41: 0 | F41: =IF(D41=0,'App.2-CJ MIFRS_DepExp_2015'!K41,+'App.2-CJ MIFRS_DepExp_2015'!K41+((C41*0.5)/D41)) -> 0 | H41: 0
A42: 1935 | B42: Stores Equipment | E42: 0 | F42: =IF(D42=0,'App.2-CJ MIFRS_DepExp_2015'!K42,+'App.2-CJ MIFRS_DepExp_2015'!K42+((C42*0.5)/D42)) -> 0 | H42: 0
A43: 1940 | B43: Tools, Shop & Garage Equipment | E43: 0 | F43: =IF(D43=0,'App.2-CJ MIFRS_DepExp_2015'!K43,+'App.2-CJ MIFRS_DepExp_2015'!K43+((C43*0.5)/D43)) -> 0 | H43: 0
A44: 1945 | B44: Measurement & Testing Equipment | E44: 0 | F44: =IF(D44=0,'App.2-CJ MIFRS_DepExp_2015'!K44,+'App.2-CJ MIFRS_DepExp_2015'!K44+((C44*0.5)/D44)) -> 0 | H44: 0
A45: 1950 | B45: Power Operated Equipment | E45: 0 | F45: =IF(D45=0,'App.2-CJ MIFRS_DepExp_2015'!K45,+'App.2-CJ MIFRS_DepExp_2015'!K45+((C45*0.5)/D45)) -> 0 | H45: 0
A46: 1955 | B46: Communications Equipment | E46: 0 | F46: =IF(D46=0,'App.2-CJ MIFRS_DepExp_2015'!K46,+'App.2-CJ MIFRS_DepExp_2015'!K46+((C46*0.5)/D46)) -> 0 | H46: 0
A47: 1955 | B47: Communication Equipment (Smart Meters) | E47: 0 | F47: =IF(D47=0,'App.2-CJ MIFRS_DepExp_2015'!K47,+'App.2-CJ MIFRS_DepExp_2015'!K47+((C47*0.5)/D47)) -> 0 | H47: 0
A48: 1960 | B48: Miscellaneous Equipment | E48: 0 | F48: =IF(D48=0,'App.2-CJ MIFRS_DepExp_2015'!K48,+'App.2-CJ MIFRS_DepExp_2015'!K48+((C48*0.5)/D48)) -> 0 | H48: 0
A49: 1970 | B49: Load Management Controls - Customer Premises | E49: 0 | F49: =IF(D49=0,'App.2-CJ MIFRS_DepExp_2015'!K49,+'App.2-CJ MIFRS_DepExp_2015'!K49+((C49*0.5)/D49)) -> 0 | H49: 0
A50: 1975 | B50: Load Management Controls Utility Premises | E50: 0 | F50: =IF(D50=0,'App.2-CJ MIFRS_DepExp_2015'!K50,+'App.2-CJ MIFRS_DepExp_2015'!K50+((C50*0.5)/D50)) -> 0 | H50: 0
A51: 1980 | B51: System Supervisor Equipment | E51: 0 | F51: =IF(D51=0,'App.2-CJ MIFRS_DepExp_2015'!K51,+'App.2-CJ MIFRS_DepExp_2015'!K51+((C51*0.5)/D51)) -> 0 | H51: 0
A52: 1985 | B52: Miscellaneous Fixed Assets | E52: 0 | F52: =IF(D52=0,'App.2-CJ MIFRS_DepExp_2015'!K52,+'App.2-CJ MIFRS_DepExp_2015'!K52+((C52*0.5)/D52)) -> 0 | H52: 0
A53: 1990 | B53: Other Tangible Property | E53: 0 | F53: =IF(D53=0,'App.2-CJ MIFRS_DepExp_2015'!K53,+'App.2-CJ MIFRS_DepExp_2015'!K53+((C53*0.5)/D53)) -> 0 | H53: 0
A54: 1995 | B54: Contributions & Grants | E54: 0 | F54: =IF(D54=0,'App.2-CJ MIFRS_DepExp_2015'!K54,+'App.2-CJ MIFRS_DepExp_2015'!K54+((C54*0.5)/D54)) -> 0 | H54: 0
B55: Total | C55: =SUM(C17:C54) -> 0 | F55: =SUM(F17:F54) -> 0 | G55: =SUM(G17:G54) -> 0 | H55: =SUM(H17:H54) -> 0
B56: Depreciation exp. adj. from gain or loss on the retirement of assets (pool of like assets)
B57: Total Depreciation expense to be included in the test year revenue requirement | F57: =SUM(F55:F56) -> 0
A58: Notes:
A59: 1 | B59: Board policy of the "half-year" rule - the applicant must ensure that additions in the year attract a half-year depreciation expense in the first year. Deviations from this standard practice must be supported in the application.
A60: 2 | B60: The applicant must provide an explanation of material variances in evidence.
A62: General: | B62: Applicants must provide a breakdown of depreciation and amortization expense in the above format for all relevant accounts. Asset Retirement Obligations (AROs), depreciation and accretion expense should be disclosed separately consistent with the Notes of historical Audited Financial Statements.

Sheet App.2-D_Overhead
F1: File Number: | G1: =EBNUMBER -> EB-2014-0105
F2: Exhibit:
F3: Tab:
F4: Schedule:
F5: Page:
F7: Date:
A9: Appendix 2-D
A10: Overhead Expense
A12: Applicants are to provide a breakdown of OM&A before capitalization in the below table. OM&A before capitalization may be broken down by cost center, program, drivers or another format best suited to focus on capitalized vs. uncapitalized OM&A.
A14: OM&A Before Capitalization
B15: 2012 | C15: 2013 | D15: 2014 | E15: 2015 | F15: 2016
B16: Historical Year | C16: Historical Year | D16: Historical Year | E16: Bridge Year | F16: Test Year
A27: Total OM&A Before Capitalization (B) | B27: =SUM(B17:B26) -> 0 | C27: =SUM(C17:C26) -> 0 | D27: 0 | E27: 0 | F27: 0
A29: Applicants are to provide a breakdown of capitalized OM&A in the below table. Capitalized OM&A may be broken down using the categories listed in the table below if possible. Otherwise, applicants are to provide its own break down of capitalized OM&A.
A31: Capitalized OM&A | G31: Directly | H31: Explanation for Change in Overhead Capitalized
B32: 2012 | C32: 2013 | D32: 2014 | E32: 2015 | F32: 2016 | G32: Attributable?
B33: Historical Year | C33: Historical Year | D33: Historical Year | E33: Bridge Year | F33: Test Year | G33: (Y/N)
A34: employee benefits
A35: costs of site preparation
A36: initial delivery and handling costs
A37: costs of testing whether the asset is functioning properly
A38: professional fees
A40: costs of opening a new facility
A41: costs of introducing a new product or service (including costs of advertising and promotional activities)
A42: costs of conducting business in a new location or with a new class of customer (including costs of staff training)
A43: administration and other general overhead costs
A45: Insert description of additional item(s) and new rows if needed
A47: Total Capitalized OM&A (A) | B47: =SUM(B34:B46) -> 0 | C47: =SUM(C34:C46) -> 0 | D47: =SUM(D34:D46) -> 0 | E47: =SUM(E34:E46) -> 0 | F47: =SUM(F34:F46) -> 0
A49: % of Capitalized OM&A (=A/B) | B49: =IF(ISERROR(B47/B27),"0%",B47/B27) -> 0% | C49: =IF(ISERROR(C47/C27),"0%",C47/C27) -> 0% | D49: 0% | E49: 0% | F49: 0%

Sheet App.2-EA_Account 1575 (2015) (hidden)
I1: File Number: | J1: =EBNUMBER -> EB-2014-0105
I2: Exhibit:
I3: Tab:
I4: Schedule:
I5: Page:
I7: Date:
A9: Appendix 2-EA
A10: Account 1575 - IFRS-CGAAP Transitional PP&E Amounts
A11: 2015 Adopters of IFRS for Financial Reporting Purposes
A13: For applicants that adopted IFRS on January 1, 2015 for financial reporting purposes
B17: =RebaseYear &" Rebasing Year" -> 2010 Rebasing Year | C17: 2012 | D17: 2013 | E17: 2014 | F17: 2015 | G17: 2016 Rebasing Year
A18: Reporting Basis | B18: CGAAP | C18: CGAAP | D18: CGAAP | E18: CGAAP | F18: MIFRS | G18: MIFRS
B19: Forecast | C19: Actual | D19: Actual | E19: Actual | F19: Forecast | G19: Forecast
E20: $ | F20: $
A21: PP&E Values under CGAAP
A22: Opening net PP&E - Note 1 | F22: =+E25 -> 0
A23: Net Additions - Note 4
A24: Net Depreciation (amounts should be negative) - Note 4
A25: Closing net PP&E (1) | E25: =E22+E23+E24 -> 0 | F25: =SUM(F22:F24) -> 0
A27: PP&E Values under MIFRS (Starts from 2014, the transition year)
A28: Opening net PP&E - Note 1 | F28: =+E31 -> 0
A29: Net Additions - Note 4
A30: Net Depreciation (amounts should be negative) - Note 4
A31: Closing net PP&E (2) | E31: =SUM(E28:E30) -> 0 | F31: =SUM(F28:F30) -> 0
A33: Difference in Closing net PP&E, former CGAAP vs. revised CGAAP | E33: =E25-E31 -> 0 | F33: =F25-F31 -> 0
A36: Effect on Deferral and Variance Account Rate Riders
A37: Closing balance in Account 1576 | G37: =IF(ISERROR(F33), 0, F33) -> 0 | I37: WACC
A38: Return on Rate Base Associated with Account 1576 balance at WACC - Note 2 | G38: =F33*J37*J38 -> 0 | H38: # of years of rate rider disposition period
A39: Amount included in Deferral and Variance Account Rate Rider Calculation | G39: =G37+G38 -> 0
A41: Notes:
A42: 1 For an applicant that adopted IFRS on January 1, 2015, the PP&E values as of January 1, 2014 under both CGAAP and MIFRS should be the same.
A43: 2 Return on rate base associated with deferred balance is calculated as:
A44: the deferral account closing balance as of 2015 rebasing year x WACC X # of years of rate rider disposition period
A45: * Please note that the calculation should be adjusted once WACC is updated and finalized in the rate application.
A46: 3 The PP&E deferral account is cleared by including the total balance in the deferral and variance account rate rider calculation.
A47: 4 Net additions are additions net of disposals; Net depreciation is additions to depreciation net of disposals.

Sheet App.2-EB_Account 1576 (2012) (hidden)
I1: File Number: | J1: =EBNUMBER -> EB-2014-0105
I2: Exhibit:
I3: Tab:
I4: Schedule:
I5: Page:
I7: Date:
A9: Appendix 2-EB
A10: Account 1576 - Accounting Changes under CGAAP
A11: 2012 Changes in Accounting Policies under CGAAP
A13: For applicants that made capitalization and depreciation expense accounting policy changes under CGAAP effective January 1, 2012
B17: =RebaseYear &" Rebasing Year" -> 2010 Rebasing Year | C17: 2012 | D17: 2013 | E17: 2014 | F17: 2015 | G17: 2016 Rebasing Year
A18: Reporting Basis | B18: CGAAP | C18: CGAAP | D18: CGAAP | E18: CGAAP | F18: MIFRS | G18: MIFRS
B19: Forecast | C19: Actual | D19: Actual | E19: Actual | F19: Forecast | G19: Forecast
C20: $ | D20: $ | E20: $ | F20: $
A21: PP&E Values under former CGAAP
A22: Opening net PP&E - Note 1 | D22: =+C25 -> 0 | E22: =+D25 -> 0 | F22: =+E25 -> 0
A23: Net Additions - Note 4
A24: Net Depreciation (amounts should be negative) - Note 4
A25: Closing net PP&E (1) | C25: =C22+C23+C24 -> 0 | D25: =D22+D23+D24 -> 0 | E25: =E22+E23+E24 -> 0 | F25: =F22+F23+F24 -> 0
A27: PP&E Values under revised CGAAP (Starts from 2012)
A28: Opening net PP&E - Note 1 | D28: =+C31 -> 0 | E28: =+D31 -> 0 | F28: =+E31 -> 0
A29: Net Additions - Note 4
A30: Net Depreciation (amounts should be negative) - Note 4
A31: Closing net PP&E (2) | C31: =SUM(C28:C30) -> 0 | D31: =SUM(D28:D30) -> 0 | E31: =SUM(E28:E30) -> 0 | F31: =SUM(F28:F30) -> 0
A33: Difference in Closing net PP&E, former CGAAP vs. revised CGAAP | C33: =C25-C31 -> 0 | D33: =D25-D31 -> 0 | E33: =E25-E31 -> 0 | F33: =F25-F31 -> 0
A36: Effect on Deferral and Variance Account Rate Riders
A37: Closing balance in Account 1576 | G37: =IF(ISERROR(F33), 0, F33) -> 0 | I37: WACC
A38: Return on Rate Base Associated with Account 1576 balance at WACC - Note 2 | G38: =F33*J37*J38 -> 0 | H38: # of years of rate rider disposition period
A39: Amount included in Deferral and Variance Account Rate Rider Calculation | G39: =G37+G38 -> 0
A41: Notes:
A42: 1 For an applicant that made the capitalization and depreciation expense accounting policy changes on January 1, 2012, the PP&E values as of January 1, 2012 under both former CGAAP and revised CGAAP should be the same.
A43: 2 Return on rate base associated with Account 1576 balance is calculated as:
A44: the variance account ending balance as of 2015 rebasing year x WACC X # of years of rate rider disposition period
A45: * Please note that the calculation should be adjusted once WACC is updated and finalized in the rate application.
A46: 3 Account 1576 is cleared by including the total balance in the deferral and variance account rate rider calculation.
A47: 4 Net additions are additions net of disposals; Net depreciation is additions to depreciation net of disposals.

Sheet App.2-EC_Account 1576 (2013) (hidden)
I1: File Number: | J1: =EBNUMBER -> EB-2014-0105
I2: Exhibit:
I3: Tab:
I4: Schedule:
I5: Page:
I7: Date:
A9: Appendix 2-EC
A10: Account 1576 - Accounting Changes under CGAAP
A11: 2013 Changes in Accounting Policies under CGAAP
A13: For applicants that made capitalization and depreciation expense accounting policy changes under CGAAP effective January 1, 2013
B17: =RebaseYear &" Rebasing Year" -> 2010 Rebasing Year | C17: 2012 | D17: 2013 | E17: 2014 | F17: 2015 | G17: 2016 Rebasing Year
A18: Reporting Basis | B18: CGAAP | C18: CGAAP | D18: CGAAP | E18: CGAAP | F18: MIFRS | G18: MIFRS
B19: Forecast | C19: Actual | D19: Actual | E19: Actual | F19: Forecast | G19: Forecast
D20: $ | E20: $ | F20: $
A21: PP&E Values under former CGAAP
A22: Opening net PP&E - Note 1 | E22: =+D25 -> 0 | F22: =+E25 -> 0
A23: Net Additions - Note 4
A24: Net Depreciation (amounts should be negative) - Note 4
A25: Closing net PP&E (1) | D25: =D22+D23+D24 -> 0 | E25: =E22+E23+E24 -> 0 | F25: =F22+F23+F24 -> 0
A27: PP&E Values under revised CGAAP (Starts from 2012)
A28: Opening net PP&E - Note 1 | E28: =+D31 -> 0 | F28: =+E31 -> 0
A29: Net Additions - Note 4
A30: Net Depreciation (amounts should be negative) - Note 4
A31: Closing net PP&E (2) | D31: =SUM(D28:D30) -> 0 | E31: =SUM(E28:E30) -> 0 | F31: =SUM(F28:F30) -> 0
A33: Difference in Closing net PP&E, former CGAAP vs. revised CGAAP | D33: =D25-D31 -> 0 | E33: =E25-E31 -> 0 | F33: =F25-F31 -> 0
A36: Effect on Deferral and Variance Account Rate Riders
A37: Closing balance in Account 1576 | G37: =IF(ISERROR(F33), 0, F33) -> 0 | I37: WACC
A38: Return on Rate Base Associated with Account 1576 balance at WACC - Note 2 | G38: =F33*J37*J38 -> 0 | H38: # of years of rate rider disposition period
A39: Amount included in Deferral and Variance Account Rate Rider Calculation | G39: =G37+G38 -> 0
A41: Notes:
A42: 1 For an applicant that made the capitalization and depreciation expense accounting policy changes on January 1, 2013, the PP&E values as of January 1, 2013 under both former CGAAP and revised CGAAP should be the same.
A43: 2 Return on rate base associated with Account 1576 balance is calculated as:
A44: the variance account ending balance as of 2015 rebasing year x WACC X # of years of rate rider disposition period
A45: * Please note that the calculation should be adjusted once WACC is updated and finalized in the rate application.
A46: 3 Account 1576 is cleared by including the total balance in the deferral and variance account rate rider calculation.
A47: 4 Net additions are additions net of disposals; Net depreciation is additions to depreciation net of disposals.

Sheet App.2-FA Proposed REG Invest.
J1: File Number: | K1: =EBNUMBER -> EB-2014-0105
J2: Exhibit:
J3: Tab:
J4: Schedule:
J5: Page:
J7: Date:
A9: Appendix 2-FA
A10: Renewable Generation Connection Investment Summary (past investments or over the future rate setting period)
A12: Enter the details of the Renewable Generation Connection projects as described in the appropriate section of the Filing Requirements.
A13: All costs entered on this page will be transferred to the appropriate cells in the appendices that follow.
A14: For Part A, Renewable Enabling Improvements (REI), these amounts will be transferred to Appendix 2 - FB
A15: For Part B, Expansions, these amounts will be transferred to Appendix 2 - FC
A17: If there are more than five projects proposed to be in-service in a certain year, please amend the tables below and ensure that the formulae for the Total Amounts in any given rate year are updated.
A18: Based on the current methodology and allocation, amounts allocated represent 6% for REI Connection Investments and 17% for Expansion Investments. (EB-2009-0349, 6-10-2010, p. 15, note 9)
A20: There are two scenarios described below. Separate sets of spreadsheets (2-FA, 2-FB, 2-FC) should be submited for each scenario as required.
A21: Scenario 1: Past Investments with No Recovery. The distributor has made investments in the past (during the IRM Years), but has not received approval for these projects and therefore did not receive
A22: revenue from the IESO under Regulation 330/09 and did not receive ratepayer revenue for the direct benefit portion of the investment.
A23: The WCA percentage, debt percentages, interest rates, kWh, tax rates, amortization period, CCA Class and percentage should correspond to the distributor's last Cost of Service approval.
A24: The Direct Benefit portion of the calculated Revenue Requirement for each year should be summed and can be applied for recovery from the distributor's ratepayers through a rate rider.
A25: The Provincial Recovery portion of the calculated Revenue Requirement for each year should be summed and can be applied for recovery from the IESO through a separate order.
A27: Scenario 2: Investments in the Test Year and Beyond. Distributor plans to make investments in 2016 and/or beyond. These investments should be added to 2-FA in the appropriate year.
A28: The WCA percentage, debt percentages, interest rates, kWh, tax rates, amortization period, CCA Class and percentage should correspond to the distributor's current application.
A30: Part A | G30: Test Year
A31: REI Investments (Direct Benefit at 6%) | C31: 2012 | D31: 2013 | E31: 2014 | F31: 2015 | G31: 2016 | H31: =G31+1 -> 2017 | I31: =H31+1 -> 2018 | J31: 2019 | K31: 2020
A32: Project 1
A33: Name: REI Connection Project
A34: Capital Costs | C34: 0 | D34: 0 | E34: 0 | F34: 0 | G34: 0 | H34: 0 | I34: 0 | J34: 0 | K34: 0
A35: OM&A (Start-Up) | C35: 0 | D35: 0 | E35: 0 | F35: 0 | G35: 0 | H35: 0 | I35: 0 | J35: 0 | K35: 0
A36: OM&A (Ongoing) | C36: 0 | D36: 0 | E36: 0 | F36: 0 | G36: 0 | H36: 0 | I36: 0 | J36: 0 | K36: 0
A38: Project 2
A39: Name: REI Connection Project
A40: Capital Costs | C40: 0 | D40: 0 | E40: 0 | F40: 0 | G40: 0 | H40: 0 | I40: 0 | J40: 0 | K40: 0
A41: OM&A (Start-Up) | C41: 0 | D41: 0 | E41: 0 | F41: 0 | G41: 0 | H41: 0 | I41: 0 | J41: 0 | K41: 0
A42: OM&A (Ongoing) | C42: 0 | D42: 0 | E42: 0 | F42: 0 | G42: 0 | H42: 0 | I42: 0 | J42: 0 | K42: 0
A44: Project 3
A45: Name: REI Connection Project
A46: Capital Costs | C46: 0 | D46: 0 | E46: 0 | F46: 0 | G46: 0 | H46: 0 | I46: 0 | J46: 0 | K46: 0
A47: OM&A (Start-Up) | C47: 0 | D47: 0 | E47: 0 | F47: 0 | G47: 0 | H47: 0 | I47: 0 | J47: 0 | K47: 0
A48: OM&A (Ongoing) | C48: 0 | D48: 0 | E48: 0 | F48: 0 | G48: 0 | H48: 0 | I48: 0 | J48: 0 | K48: 0
A50: Project 4
A51: Name: REI Connection Project
A52: Capital Costs | C52: 0 | D52: 0 | E52: 0 | F52: 0 | G52: 0 | H52: 0 | I52: 0 | J52: 0 | K52: 0
A53: OM&A (Start-Up) | C53: 0 | D53: 0 | E53: 0 | F53: 0 | G53: 0 | H53: 0 | I53: 0 | J53: 0 | K53: 0
A54: OM&A (Ongoing) | C54: 0 | D54: 0 | E54: 0 | F54: 0 | G54: 0 | H54: 0 | I54: 0 | J54: 0 | K54: 0
A56: Project 5
A57: Name: REI Connection Project
A58: Capital Costs | C58: 0 | D58: 0 | E58: 0 | F58: 0 | G58: 0 | H58: 0 | I58: 0 | J58: 0 | K58: 0
A59: OM&A (Start-Up) | C59: 0 | D59: 0 | E59: 0 | F59: 0 | G59: 0 | H59: 0 | I59: 0 | J59: 0 | K59: 0
A60: OM&A (Ongoing) | C60: 0 | D60: 0 | E60: 0 | F60: 0 | G60: 0 | H60: 0 | I60: 0 | J60: 0 | K60: 0
A62: Total Capital Costs | C62: =SUM(C58,C52,C46,C40,C34) -> 0 | D62: 0 | E62: 0 | F62: 0 | G62: =SUM(G58,G52,G46,G40,G34) -> 0 | H62: =SUM(H58,H52,H46,H40,H34) -> 0 | I62: 0 | J62: 0 | K62: 0
A63: Total OM&A (Start-Up) | C63: 0 | D63: 0 | E63: 0 | F63: 0 | G63: =SUM(G59,G53,G47,G41,G35) -> 0 | H63: 0 | I63: 0 | J63: 0 | K63: 0
A64: Total OM&A (Ongoing) | C64: 0 | D64: 0 | E64: 0 | F64: 0 | G64: =SUM(G60,G54,G48,G42,G36) -> 0 | H64: 0 | I64: 0 | J64: 0 | K64: 0
A67: Part B | G67: Test Year
A68: Expansion Investments (Direct Benefit at 17%) | C68: 2012 | D68: 2013 | E68: 2014 | F68: 2015 | G68: 2016 | H68: =G68+1 -> 2017 | I68: =H68+1 -> 2018 | J68: 2019 | K68: 2020
A69: Project 1
A70: Name: Expansion Connection Project
A71: Capital Costs | C71: 0 | D71: 0 | E71: 0 | F71: 0 | G71: 0 | H71: 0 | I71: 0 | J71: 0 | K71: 0
A72: OM&A (Start-Up) | C72: 0 | D72: 0 | E72: 0 | F72: 0 | G72: 0 | H72: 0 | I72: 0 | J72: 0 | K72: 0
A73: OM&A (Ongoing) | C73: 0 | D73: 0 | E73: 0 | F73: 0 | G73: 0 | H73: 0 | I73: 0 | J73: 0 | K73: 0
A75: Project 2
A76: Name: Expansion Connection Project
A77: Capital Costs | C77: 0 | D77: 0 | E77: 0 | F77: 0 | G77: 0 | H77: 0 | I77: 0 | J77: 0 | K77: 0
A78: OM&A (Start-Up) | C78: 0 | D78: 0 | E78: 0 | F78: 0 | G78: 0 | H78: 0 | I78: 0 | J78: 0 | K78: 0
A79: OM&A (Ongoing) | C79: 0 | D79: 0 | E79: 0 | F79: 0 | G79: 0 | H79: 0 | I79: 0 | J79: 0 | K79: 0
A81: Project 3
A82: Name: Expansion Connection Project
A83: Capital Costs | C83: 0 | D83: 0 | E83: 0 | F83: 0 | G83: 0 | H83: 0 | I83: 0 | J83: 0 | K83: 0
A84: OM&A (Start-Up) | C84: 0 | D84: 0 | E84: 0 | F84: 0 | G84: 0 | H84: 0 | I84: 0 | J84: 0 | K84: 0
A85: OM&A (Ongoing) | C85: 0 | D85: 0 | E85: 0 | F85: 0 | G85: 0 | H85: 0 | I85: 0 | J85: 0 | K85: 0
A87: Project 4
A88: Name: Expansion Connection Project
A89: Capital Costs | C89: 0 | D89: 0 | E89: 0 | F89: 0 | G89: 0 | H89: 0 | I89: 0 | J89: 0 | K89: 0
A90: OM&A (Start-Up) | C90: 0 | D90: 0 | E90: 0 | F90: 0 | G90: 0 | H90: 0 | I90: 0 | J90: 0 | K90: 0
A91: OM&A (Ongoing) | C91: 0 | D91: 0 | E91: 0 | F91: 0 | G91: 0 | H91: 0 | I91: 0 | J91: 0 | K91: 0
A93: Project 5
A94: Name: Expansion Connection Project
A95: Capital Costs | C95: 0 | D95: 0 | E95: 0 | F95: 0 | G95: 0 | H95: 0 | I95: 0 | J95: 0 | K95: 0
A96: OM&A (Start-Up) | C96: 0 | D96: 0 | E96: 0 | F96: 0 | G96: 0 | H96: 0 | I96: 0 | J96: 0 | K96: 0
A97: OM&A (Ongoing) | C97: 0 | D97: 0 | E97: 0 | F97: 0 | G97: 0 | H97: 0 | I97: 0 | J97: 0 | K97: 0
A99: Total Capital Costs | C99: =SUM(C95,C89,C83,C77,C71) -> 0 | D99: 0 | E99: 0 | F99: 0 | G99: =SUM(G95,G89,G83,G77,G71) -> 0 | H99: =SUM(H95,H89,H83,H77,H71) -> 0 | I99: 0 | J99: 0 | K99: 0
A100: Total OM&A (Start-Up) | C100: 0 | D100: 0 | E100: 0 | F100: 0 | G100: =SUM(G96,G90,G84,G78,G72) -> 0 | H100: 0 | I100: 0 | J100: 0 | K100: 0
A101: Total OM&A (Ongoing) | C101: 0 | D101: 0 | E101: 0 | F101: 0 | G101: =SUM(G97,G91,G85,G79,G73) -> 0 | H101: 0 | I101: 0 | J101: 0 | K101: 0

Sheet App.2-FB Calc of REG Improvemnt
N1: File Number: | O1: =EBNUMBER -> EB-2014-0105
N2: Exhibit:
N3: Tab:
N4: Schedule:
N5: Page:
N7: Date:
A9: Appendix 2-FB
A10: Calculation of Renewable Generation Connection Direct Benefits/Provincial Amount: Renewable Enabling Improvement Investments
A12: This table will calculate the distributor/provincial shares of the investments entered in Part A of Appendix 2-FA.
A13: Enter values in green shaded cells: WCA percentage, debt percentages, interest rates, kWh, tax rates, amortization period, CCA Class and percentage.
A14: For historical investments, enter these variables for your last cost of service test year. For 2016 and beyond, enter variables as in the application.
A15: Rate Riders are not calculated for Test Year as these assets and costs are already in the distributor's rate base/revenue requirement.
C17: 2012 | F17: 2013 | I17: 2014 | L17: 2015 | O17: 2016 Test Year | R17: 2017 | U17: 2018 | V17: 2016 | X17: 2019 | AA17: 2020
D18: Direct Benefit | E18: Provincial | G18: Direct Benefit | H18: Provincial | J18: Direct Benefit | K18: Provincial | M18: Direct Benefit | N18: Provincial | P18: Direct Benefit | Q18: Provincial | S18: Direct Benefit | T18: Provincial | V18: Direct Benefit | W18: Provincial | Y18: Direct Benefit | Z18: Provincial | AB18: Direct Benefit | AC18: Provincial
C19: Total | D19: 0.06 | E19: 0.94 | F19: Total | G19: 0.06 | H19: 0.94 | I19: Total | J19: 0.06 | K19: 0.94 | L19: Total | M19: 0.06 | N19: 0.94 | O19: Total | P19: 0.06 | Q19: 0.94 | R19: Total | S19: 0.06 | T19: 0.94 | U19: Total | V19: 0.06 | W19: 0.94 | X19: Total | Y19: 0.06 | Z19: 0.94 | AA19: Total | AB19: 0.06 | AC19: 0.94
A20: Net Fixed Assets (average) | C20: =D82 -> 0 | D20: =C20*D19 -> 0 | E20: =C20*E19 -> 0 | F20: =E82 -> 0 | G20: =F20*G19 -> 0 | H20: =F20*H19 -> 0 | I20: =F82 -> 0 | J20: =I20*J19 -> 0 | K20: =I20*K19 -> 0 | L20: =G82 -> 0 | M20: =L20*M19 -> 0 | N20: =L20*N19 -> 0 | O20: =H82 -> 0 | P20: =O20*P19 -> 0 | Q20: =O20*Q19 -> 0 | R20: =I82 -> 0 | S20: =R20*S19 -> 0 | T20: =R20*T19 -> 0 | U20: =J82 -> 0 | V20: =U20*V19 -> 0 | W20: =U20*W19 -> 0 | X20: =K82 -> 0 | Y20: =X20*Y19 -> 0 | Z20: =X20*Z19 -> 0 | AA20: =L82 -> 0 | AB20: =AA20*AB19 -> 0 | AC20: =AA20*AC19 -> 0
A21: Incremental OM&A (on-going, N/A for Provincial Recovery) | C21: ='App.2-FA Proposed REG Invest.'!C64 -> 0 | D21: =C21 -> 0 | F21: ='App.2-FA Proposed REG Invest.'!D64 -> 0 | G21: =F21 -> 0 | I21: ='App.2-FA Proposed REG Invest.'!E64 -> 0 | J21: =I21 -> 0 | L21: ='App.2-FA Proposed REG Invest.'!F64 -> 0 | M21: =L21 -> 0 | O21: ='App.2-FA Proposed REG Invest.'!G64 -> 0 | P21: =O21 -> 0 | R21: ='App.2-FA Proposed REG Invest.'!H64 -> 0 | S21: =R21 -> 0 | U21: ='App.2-FA Proposed REG Invest.'!I64 -> 0 | V21: =U21 -> 0 | X21: ='App.2-FA Proposed REG Invest.'!J64 -> 0 | Y21: =X21 -> 0 | AA21: ='App.2-FA Proposed REG Invest.'!K64 -> 0 | AB21: =AA21 -> 0
A22: Incremental OM&A (start-up, applicable for Provincial Recovery) | C22: ='App.2-FA Proposed REG Invest.'!C63 -> 0 | D22: =C22*D19 -> 0 | E22: =C22*E19 -> 0 | F22: ='App.2-FA Proposed REG Invest.'!D63 -> 0 | G22: =F22*G19 -> 0 | H22: =F22*H19 -> 0 | I22: ='App.2-FA Proposed REG Invest.'!E63 -> 0 | J22: =I22*J19 -> 0 | K22: =I22*K19 -> 0 | L22: ='App.2-FA Proposed REG Invest.'!F63 -> 0 | M22: =L22*M19 -> 0 | N22: =L22*N19 -> 0 | O22: ='App.2-FA Proposed REG Invest.'!G63 -> 0 | P22: =O22*P19 -> 0 | Q22: =O22*Q19 -> 0 | R22: ='App.2-FA Proposed REG Invest.'!H63 -> 0 | S22: =R22*S19 -> 0 | T22: =R22*T19 -> 0 | U22: ='App.2-FA Proposed REG Invest.'!I63 -> 0 | V22: =U22*V19 -> 0 | W22: =U22*W19 -> 0 | X22: ='App.2-FA Proposed REG Invest.'!J63 -> 0 | Y22: =X22*Y19 -> 0 | Z22: =X22*Z19 -> 0 | AA22: ='App.2-FA Proposed REG Invest.'!K63 -> 0 | AB22: =AA22*AB19 -> 0 | AC22: =AA22*AC19 -> 0
A23: WCA | D23: =(D21+D22)*$B$23 -> 0 | E23: =E22*$B$23 -> 0 | G23: =(G21+G22)*$B$23 -> 0 | H23: =H22*$B$23 -> 0 | J23: =(J21+J22)*$B$23 -> 0 | K23: =K22*$B$23 -> 0 | M23: =(M21+M22)*$B$23 -> 0 | N23: =N22*$B$23 -> 0 | P23: =(P21+P22)*$B$23 -> 0 | Q23: =Q22*$B$23 -> 0 | S23: =(S21+S22)*$B$23 -> 0 | T23: =T22*$B$23 -> 0 | V23: =(V21+V22)*$B$23 -> 0 | W23: =W22*$B$23 -> 0 | Y23: =(Y21+Y22)*$B$23 -> 0 | Z23: =Z22*$B$23 -> 0 | AB23: =(AB21+AB22)*$B$23 -> 0 | AC23: =AC22*$B$23 -> 0
A24: Rate Base | D24: =SUM(D20+D23) -> 0 | E24: =SUM(E20+E23) -> 0 | G24: =SUM(G20+G23) -> 0 | H24: =SUM(H20+H23) -> 0 | J24: =SUM(J20+J23) -> 0 | K24: =SUM(K20+K23) -> 0 | M24: =SUM(M20+M23) -> 0 | N24: =SUM(N20+N23) -> 0 | P24: =SUM(P20+P23) -> 0 | Q24: =SUM(Q20+Q23) -> 0 | S24: =SUM(S20+S23) -> 0 | T24: =SUM(T20+T23) -> 0 | V24: =SUM(V20+V23) -> 0 | W24: =SUM(W20+W23) -> 0 | Y24: =SUM(Y20+Y23) -> 0 | Z24: =SUM(Z20+Z23) -> 0 | AB24: =SUM(AB20+AB23) -> 0 | AC24: =SUM(AC20+AC23) -> 0
A27: Deemed ST Debt | D27: =D24*$B$27 -> 0 | E27: =E24*$B$27 -> 0 | G27: =G24*$B$27 -> 0 | H27: =H24*$B$27 -> 0 | J27: =J24*$B$27 -> 0 | K27: =K24*$B$27 -> 0 | M27: =M24*$B$27 -> 0 | N27: =N24*$B$27 -> 0 | P27: =P24*$B$27 -> 0 | Q27: =Q24*$B$27 -> 0 | S27: =S24*$B$27 -> 0 | T27: =T24*$B$27 -> 0 | V27: =V24*$B$27 -> 0 | W27: =W24*$B$27 -> 0 | Y27: =Y24*$B$27 -> 0 | Z27: =Z24*$B$27 -> 0 | AB27: =AB24*$B$27 -> 0 | AC27: =AC24*$B$27 -> 0
A28: Deemed LT Debt | D28: =D24*$B$28 -> 0 | E28: =E24*$B$28 -> 0 | G28: =G24*$B$28 -> 0 | H28: =H24*$B$28 -> 0 | J28: =J24*$B$28 -> 0 | K28: =K24*$B$28 -> 0 | M28: =M24*$B$28 -> 0 | N28: =N24*$B$28 -> 0 | P28: =P24*$B$28 -> 0 | Q28: =Q24*$B$28 -> 0 | S28: =S24*$B$28 -> 0 | T28: =T24*$B$28 -> 0 | V28: =V24*$B$28 -> 0 | W28: =W24*$B$28 -> 0 | Y28: =Y24*$B$28 -> 0 | Z28: =Z24*$B$28 -> 0 | AB28: =AB24*$B$28 -> 0 | AC28: =AC24*$B$28 -> 0
A29: Deemed Equity | D29: =D24*$B$29 -> 0 | E29: =E24*$B$29 -> 0 | G29: =G24*$B$29 -> 0 | H29: =H24*$B$29 -> 0 | J29: =J24*$B$29 -> 0 | K29: =K24*$B$29 -> 0 | M29: =M24*$B$29 -> 0 | N29: =N24*$B$29 -> 0 | P29: =P24*$B$29 -> 0 | Q29: =Q24*$B$29 -> 0 | S29: =S24*$B$29 -> 0 | T29: =T24*$B$29 -> 0 | V29: =V24*$B$29 -> 0 | W29: =W24*$B$29 -> 0 | Y29: =Y24*$B$29 -> 0 | Z29: =Z24*$B$29 -> 0 | AB29: =AB24*$B$29 -> 0 | AC29: =AC24*$B$29 -> 0
A31: ST Interest | D31: =D27*$B31 -> 0 | E31: =E27*$B31 -> 0 | G31: =G27*$B31 -> 0 | H31: =H27*$B31 -> 0 | J31: =J27*$B31 -> 0 | K31: =K27*$B31 -> 0 | M31: =M27*$B31 -> 0 | N31: =N27*$B31 -> 0 | P31: =P27*$B31 -> 0 | Q31: =Q27*$B31 -> 0 | S31: =S27*$B31 -> 0 | T31: =T27*$B31 -> 0 | V31: =V27*$B31 -> 0 | W31: =W27*$B31 -> 0 | Y31: =Y27*$B31 -> 0 | Z31: =Z27*$B31 -> 0 | AB31: =AB27*$B31 -> 0 | AC31: =AC27*$B31 -> 0
A32: LT Interest | D32: =D28*$B32 -> 0 | E32: 0 | G32: =G28*$B32 -> 0 | H32: 0 | J32: =J28*$B32 -> 0 | K32: 0 | M32: =M28*$B32 -> 0 | N32: 0 | P32: =P28*$B32 -> 0 | Q32: 0 | S32: =S28*$B32 -> 0 | T32: 0 | V32: =V28*$B32 -> 0 | W32: 0 | Y32: =Y28*$B32 -> 0 | Z32: 0 | AB32: =AB28*$B32 -> 0 | AC32: 0
A33: ROE | D33: 0 | E33: 0 | G33: 0 | H33: 0 | J33: 0 | K33: 0 | M33: 0 | N33: 0 | P33: 0 | Q33: 0 | S33: 0 | T33: 0 | V33: 0 | W33: 0 | Y33: 0 | Z33: 0 | AB33: 0 | AC33: 0
A34: Cost of Capital Total | D34: =SUM(D31:D33) -> 0 | E34: =SUM(E31:E33) -> 0 | G34: =SUM(G31:G33) -> 0 | H34: =SUM(H31:H33) -> 0 | J34: =SUM(J31:J33) -> 0 | K34: =SUM(K31:K33) -> 0 | M34: =SUM(M31:M33) -> 0 | N34: =SUM(N31:N33) -> 0 | P34: =SUM(P31:P33) -> 0 | Q34: =SUM(Q31:Q33) -> 0 | S34: =SUM(S31:S33) -> 0 | T34: =SUM(T31:T33) -> 0 | V34: =SUM(V31:V33) -> 0 | W34: =SUM(W31:W33) -> 0 | Y34: =SUM(Y31:Y33) -> 0 | Z34: =SUM(Z31:Z33) -> 0 | AB34: =SUM(AB31:AB33) -> 0 | AC34: =SUM(AC31:AC33) -> 0
A36: OM&A | D36: =D21+D22 -> 0 | E36: =E22 -> 0 | G36: =G21+G22 -> 0 | H36: =H22 -> 0 | J36: =J21+J22 -> 0 | K36: =K22 -> 0 | M36: =M21+M22 -> 0 | N36: =N22 -> 0 | P36: =P21+P22 -> 0 | Q36: =Q22 -> 0 | S36: =S21+S22 -> 0 | T36: =T22 -> 0 | V36: =V21+V22 -> 0 | W36: =W22 -> 0 | Y36: =Y21+Y22 -> 0 | Z36: =Z22 -> 0 | AB36: =AB21+AB22 -> 0 | AC36: =AC22 -> 0
A37: Amortization | C37: =D77 -> 0 | D37: =C37*D$19 -> 0 | E37: =C37*E$19 -> 0 | F37: =E77 -> 0 | G37: =F37*G$19 -> 0 | H37: =F37*H$19 -> 0 | I37: =F77 -> 0 | J37: =I37*J$19 -> 0 | K37: =I37*K$19 -> 0 | L37: =G77 -> 0 | M37: =L37*M$19 -> 0 | N37: =L37*N$19 -> 0 | O37: =H77 -> 0 | P37: =O37*P$19 -> 0 | Q37: =O37*Q$19 -> 0 | R37: =I76+I77 -> 0 | S37: =R37*S$19 -> 0 | T37: =R37*T$19 -> 0 | U37: =J76+J77 -> 0 | V37: =U37*V$19 -> 0 | W37: =U37*W$19 -> 0 | X37: =K76+K77 -> 0 | Y37: =X37*Y$19 -> 0 | Z37: =X37*Z$19 -> 0 | AA37: =L76+L77 -> 0 | AB37: =AA37*AB$19 -> 0 | AC37: =AA37*AC$19 -> 0
A38: Grossed-up PILs | D38: =D65 -> 0 | E38: =E65 -> 0 | G38: =G65 -> 0 | H38: =H65 -> 0 | J38: =J65 -> 0 | K38: =K65 -> 0 | M38: =M65 -> 0 | N38: =N65 -> 0 | P38: =P65 -> 0 | Q38: =Q65 -> 0 | S38: =S65 -> 0 | T38: =T65 -> 0 | V38: =V65 -> 0 | W38: =W65 -> 0 | Y38: =Y65 -> 0 | Z38: =Z65 -> 0 | AB38: =AB65 -> 0 | AC38: =AC65 -> 0
A40: Revenue Requirement | D40: =SUM(D34:D38) -> 0 | E40: =SUM(E34:E38) -> 0 | G40: =SUM(G34:G38) -> 0 | H40: =SUM(H34:H38) -> 0 | J40: =SUM(J34:J38) -> 0 | K40: =SUM(K34:K38) -> 0 | M40: =SUM(M34:M38) -> 0 | N40: =SUM(N34:N38) -> 0 | P40: =SUM(P34:P38) -> 0 | Q40: =SUM(Q34:Q38) -> 0 | S40: =SUM(S34:S38) -> 0 | T40: =SUM(T34:T38) -> 0 | V40: =SUM(V34:V38) -> 0 | W40: =SUM(W34:W38) -> 0 | Y40: =SUM(Y34:Y38) -> 0 | Z40: =SUM(Z34:Z38) -> 0 | AB40: =SUM(AB34:AB38) -> 0 | AC40: =SUM(AC34:AC38) -> 0
A43: Provincial Rate Protection | E43: =E40 -> 0 | H43: =H40 -> 0 | K43: =K40 -> 0 | N43: =N40 -> 0 | Q43: =Q40 -> 0 | T43: =T40 -> 0 | W43: =W40 -> 0 | Z43: =Z40 -> 0 | AC43: =AC40 -> 0
A45: Monthly Amount Paid by IESO | E45: =E43/12 -> 0 | H45: =H43/12 -> 0 | K45: =K43/12 -> 0 | N45: =N43/12 -> 0 | Q45: =Q43/12 -> 0 | T45: =T43/12 -> 0 | W45: =W43/12 -> 0 | Z45: =Z43/12 -> 0 | AC45: =AC43/12 -> 0
A47: Note 1: The difference between the actual costs of approved eligible investments and revenue received from the IESO should be recorded in a variance account. The Board may provide
A48: regulatory accounting guidance regarding a variance account either in an individual proceeding or on a generic basis.
A49: Note 2: For the 2016 Test Year, Costs and Revenues of the Direct Benefit are to be included in the test year applicant Rate Base and Revenues.
A51: PILs Calculation
D52: 2012 | G52: 2013 | J52: 2014 | M52: 2015 | P52: 2016 | S52: =P52+1 -> 2017 | V52: =S52+1 -> 2018 | Y52: =V52+1 -> 2019 | AB52: =Y52+1 -> 2020
A53: Income Tax | D53: Direct Benefit | E53: Provincial | G53: Direct Benefit | H53: Provincial | J53: Direct Benefit | K53: Provincial | M53: Direct Benefit | N53: Provincial | P53: Direct Benefit | Q53: Provincial | S53: Direct Benefit | T53: Provincial | V53: Direct Benefit | W53: Provincial | Y53: Direct Benefit | Z53: Provincial | AB53: Direct Benefit | AC53: Provincial
X54: Total | AA54: Total
A55: Net Income - ROE on Rate Base | D55: =D33 -> 0 | E55: =E33 -> 0 | G55: =G33 -> 0 | H55: =H33 -> 0 | J55: =J33 -> 0 | K55: =K33 -> 0 | M55: =M33 -> 0 | N55: =N33 -> 0 | P55: =P33 -> 0 | Q55: =Q33 -> 0 | S55: =S33 -> 0 | T55: =T33 -> 0 | V55: =V33 -> 0 | W55: =W33 -> 0 | Y55: =Y33 -> 0 | Z55: =Z33 -> 0 | AB55: =AB33 -> 0 | AC55: =AC33 -> 0
A56: Amortization (6% DB and 94% P) | D56: =D37 -> 0 | E56: =E37 -> 0 | G56: =G37 -> 0 | H56: =H37 -> 0 | J56: =J37 -> 0 | K56: =K37 -> 0 | M56: =M37 -> 0 | N56: =N37 -> 0 | P56: =P37 -> 0 | Q56: =Q37 -> 0 | S56: =S37 -> 0 | T56: =T37 -> 0 | V56: =V37 -> 0 | W56: =W37 -> 0 | Y56: =Y37 -> 0 | Z56: =Z37 -> 0 | AB56: =AB37 -> 0 | AC56: =AC37 -> 0
A57: CCA (6% DB and 94% P) | D57: =-D94*D$19 -> 0 | E57: =-D94*E$19 -> 0 | G57: =-E94*G19 -> 0 | H57: =-E94*H$19 -> 0 | J57: =-F94*J$19 -> 0 | K57: =-F94*K$19 -> 0 | M57: =-G94*M$19 -> 0 | N57: =-G94*N$19 -> 0 | P57: =-H94*P$19 -> 0 | Q57: =-H94*Q$19 -> 0 | S57: =-I94*S$19 -> 0 | T57: =-I94*T$19 -> 0 | V57: =-J94*V$19 -> 0 | W57: =-J94*W$19 -> 0 | Y57: =-K94*Y$19 -> 0 | Z57: =-K94*Z$19 -> 0 | AB57: =-L94*AB$19 -> 0 | AC57: =-L94*AC$19 -> 0
A58: Taxable income | D58: =SUM(D55:D57) -> 0 | E58: =SUM(E55:E57) -> 0 | G58: =SUM(G55:G57) -> 0 | H58: =SUM(H55:H57) -> 0 | J58: =SUM(J55:J57) -> 0 | K58: =SUM(K55:K57) -> 0 | M58: =SUM(M55:M57) -> 0 | N58: =SUM(N55:N57) -> 0 | P58: =SUM(P55:P57) -> 0 | Q58: =SUM(Q55:Q57) -> 0 | S58: =SUM(S55:S57) -> 0 | T58: =SUM(T55:T57) -> 0 | V58: =SUM(V55:V57) -> 0 | W58: =SUM(W55:W57) -> 0 | Y58: =SUM(Y55:Y57) -> 0 | Z58: =SUM(Z55:Z57) -> 0 | AB58: =SUM(AB55:AB57) -> 0 | AC58: =SUM(AC55:AC57) -> 0
A60: Tax Rate (to be entered)
A62: Income Taxes Payable | D62: =D58*D60 -> 0 | E62: =E58*E60 -> 0 | G62: =G58*G60 -> 0 | H62: =H58*H60 -> 0 | J62: =J58*J60 -> 0 | K62: =K58*K60 -> 0 | M62: =M58*M60 -> 0 | N62: =N58*N60 -> 0 | P62: =P58*P60 -> 0 | Q62: =Q58*Q60 -> 0 | S62: =S58*S60 -> 0 | T62: =T58*T60 -> 0 | V62: =V58*V60 -> 0 | W62: =W58*W60 -> 0 | Y62: =Y58*Y60 -> 0 | Z62: =Z58*Z60 -> 0 | AB62: =AB58*AB60 -> 0 | AC62: =AC58*AC60 -> 0
A63: Gross Up
A64: Income Taxes Payable | D64: =D62/(1-D60) -> 0 | E64: =E62/(1-E60) -> 0 | G64: =G62/(1-G60) -> 0 | H64: =H62/(1-H60) -> 0 | J64: =J62/(1-J60) -> 0 | K64: =K62/(1-K60) -> 0 | M64: =M62/(1-M60) -> 0 | N64: =N62/(1-N60) -> 0 | P64: =P62/(1-P60) -> 0 | Q64: =Q62/(1-Q60) -> 0 | S64: =S62/(1-S60) -> 0 | T64: =T62/(1-T60) -> 0 | V64: =V62/(1-V60) -> 0 | W64: =W62/(1-W60) -> 0 | Y64: =Y62/(1-Y60) -> 0 | Z64: =Z62/(1-Z60) -> 0 | AB64: =AB62/(1-AB60) -> 0 | AC64: =AC62/(1-AC60) -> 0
A65: Grossed Up PILs | D65: =SUM(D64:D64) -> 0 | E65: =SUM(E64:E64) -> 0 | G65: =SUM(G64:G64) -> 0 | H65: =SUM(H64:H64) -> 0 | J65: =SUM(J64:J64) -> 0 | K65: =SUM(K64:K64) -> 0 | M65: =SUM(M64:M64) -> 0 | N65: =SUM(N64:N64) -> 0 | P65: =SUM(P64:P64) -> 0 | Q65: =SUM(Q64:Q64) -> 0 | S65: =SUM(S64:S64) -> 0 | T65: =SUM(T64:T64) -> 0 | V65: =SUM(V64:V64) -> 0 | W65: =SUM(W64:W64) -> 0 | Y65: =SUM(Y64:Y64) -> 0 | Z65: =SUM(Z64:Z64) -> 0 | AB65: =SUM(AB64:AB64) -> 0 | AC65: =SUM(AC64:AC64) -> 0
D68: 2012 | E68: 2013 | F68: 2014 | G68: 2015 | H68: 2016 | I68: =H68+1 -> 2017 | J68: =I68+1 -> 2018 | K68: 2019 | L68: 2020
A69: Net Fixed Assets
B70: Enter applicable amortization in years: | C70: 25
A71: Opening Gross Fixed Assets | E71: =D73 -> 0 | F71: 0 | G71: 0 | H71: 0 | I71: =H73 -> 0 | J71: =I73 -> 0 | K71: =J73 -> 0 | L71: =K73 -> 0
A72: Gross Capital Additions | D72: ='App.2-FA Proposed REG Invest.'!C62 -> 0 | E72: ='App.2-FA Proposed REG Invest.'!D62 -> 0 | F72: ='App.2-FA Proposed REG Invest.'!E62 -> 0 | G72: ='App.2-FA Proposed REG Invest.'!F62 -> 0 | H72: ='App.2-FA Proposed REG Invest.'!G62 -> 0 | I72: ='App.2-FA Proposed REG Invest.'!H62 -> 0 | J72: ='App.2-FA Proposed REG Invest.'!I62 -> 0 | K72: ='App.2-FA Proposed REG Invest.'!J62 -> 0 | L72: ='App.2-FA Proposed REG Invest.'!K62 -> 0
A73: Closing Gross Fixed Assets | D73: =SUM(D71:D72) -> 0 | E73: 0 | F73: 0 | G73: 0 | H73: =SUM(H71:H72) -> 0 | I73: =SUM(I71:I72) -> 0 | J73: 0 | K73: 0 | L73: 0
A75: Opening Accumulated Amortization | E75: =+D78 -> 0 | F75: =E78 -> 0 | G75: 0 | H75: 0 | I75: 0 | J75: 0 | K75: 0 | L75: 0
A76: Current Year Amortization (before additions) | D76: =IF(ISERROR(D71/$C$70), 0, D71/$C$70) -> 0 | E76: 0 | F76: 0 | G76: 0 | H76: 0 | I76: =IF(ISERROR(I71/$C$70), 0, I71/$C$70) -> 0 | J76: =IF(ISERROR(J71/$C$70), 0, J71/$C$70) -> 0 | K76: =IF(ISERROR(K71/$C$70), 0, K71/$C$70) -> 0 | L76: =IF(ISERROR(L71/$C$70), 0, L71/$C$70) -> 0
A77: Additions (half year) | D77: =D72/$C$70/2 -> 0 | E77: =E72/$C$70/2 -> 0 | F77: =F72/$C$70/2 -> 0 | G77: 0 | H77: =H72/$C$70/2 -> 0 | I77: =I72/C70/2 -> 0 | J77: =J72/C70/2 -> 0 | K77: =K72/C70/2 -> 0 | L77: =L72/C70/2 -> 0
A78: Closing Accumulated Amortization | D78: =SUM(D75+D76+D77) -> 0 | E78: =SUM(E75+E76+E77) -> 0 | F78: =SUM(F75+F76+F77) -> 0 | G78: =SUM(G75+G76+G77) -> 0 | H78: =SUM(H75+H76+H77) -> 0 | I78: =SUM(I75:I77) -> 0 | J78: =SUM(J75:J77) -> 0 | K78: =SUM(K75:K77) -> 0 | L78: =SUM(L75:L77) -> 0
A80: Opening Net Fixed Assets | D80: =D71-D75 -> 0 | E80: 0 | F80: =F71-F75 -> 0 | G80: 0 | H80: =H71-H75 -> 0 | I80: =H81 -> 0 | J80: =I81 -> 0 | K80: =J81 -> 0 | L80: =K81 -> 0
A81: Closing Net Fixed Assets | D81: =D73-D78 -> 0 | E81: =E73-E78 -> 0 | F81: 0 | G81: 0 | H81: =H73-H78 -> 0 | I81: =I73-I78 -> 0 | J81: =J73-J78 -> 0 | K81: =K73-K78 -> 0 | L81: =L73-L78 -> 0
A82: Average Net Fixed Assets | D82: =SUM(D80:D81)/2 -> 0 | E82: 0 | F82: 0 | G82: 0 | H82: =SUM(H80:H81)/2 -> 0 | I82: =SUM(I80:I81)/2 -> 0 | J82: =SUM(J80:J81)/2 -> 0 | K82: =SUM(K80:K81)/2 -> 0 | L82: =SUM(L80:L81)/2 -> 0
A84: UCC for PILs Calculation
D85: 2012 | E85: 2013 | F85: 2014 | G85: 2015 | H85: 2016 | I85: =H85+1 -> 2017 | J85: =I85+1 -> 2018 | K85: 2019 | L85: 2020
A87: Opening UCC | E87: =D95 -> 0 | F87: 0 | G87: 0 | H87: 0 | I87: 0 | J87: 0 | K87: 0 | L87: 0
A88: Capital Additions (from Appendix 2-FA) | D88: =D72 -> 0 | E88: 0 | F88: 0 | G88: 0 | H88: =H72 -> 0 | I88: =I72 -> 0 | J88: 0 | K88: 0 | L88: 0
A89: UCC Before Half Year Rule | D89: =SUM(D87:D88) -> 0 | E89: 0 | F89: 0 | G89: 0 | H89: =SUM(H87:H88) -> 0 | I89: =SUM(I87:I88) -> 0 | J89: =SUM(J87:J88) -> 0 | K89: =SUM(K87:K88) -> 0 | L89: =SUM(L87:L88) -> 0
A90: Half Year Rule (1/2 Additions - Disposals) | D90: =D88/2 -> 0 | E90: 0 | F90: 0 | G90: 0 | H90: =H88/2 -> 0 | I90: =I88/2 -> 0 | J90: =J88/2 -> 0 | K90: =K88/2 -> 0 | L90: =L88/2 -> 0
A91: Reduced UCC | D91: =D89-D90 -> 0 | E91: 0 | F91: 0 | G91: 0 | H91: =H89-H90 -> 0 | I91: =I89-I90 -> 0 | J91: =J89-J90 -> 0 | K91: =K89-K90 -> 0 | L91: =L89-L90 -> 0
A92: CCA Rate Class (to be entered) | C92: 47 | D92: =C92 -> 47 | E92: =D92 -> 47 | F92: 47 | G92: 47 | H92: 47 | I92: 47 | J92: 47 | K92: 47 | L92: 47
A93: CCA Rate (to be entered) | C93: 0.08 | D93: =C93 -> 0.08 | E93: 0.08 | F93: 0.08 | G93: 0.08 | H93: 0.08 | I93: 0.08 | J93: 0.08 | K93: 0.08 | L93: 0.08
A94: CCA | D94: =D91*D93 -> 0 | E94: 0 | F94: 0 | G94: 0 | H94: =H91*H93 -> 0 | I94: =I91*I93 -> 0 | J94: 0 | K94: 0 | L94: =L91*L93 -> 0
A95: Closing UCC | D95: =D89-D94 -> 0 | E95: 0 | F95: 0 | G95: 0 | H95: =H89-H94 -> 0 | I95: =I89-I94 -> 0 | J95: =J89-J94 -> 0 | K95: =K89-K94 -> 0 | L95: =L89-L94 -> 0

Sheet App.2-FC Calc of REG Expansion
N1: File Number: | O1: =EBNUMBER -> EB-2014-0105
N2: Exhibit:
N3: Tab:
N4: Schedule:
N5: Page:
N7: Date:
A9: Appendix 2-FC
A10: Calculation of Renewable Generation Connection Direct Benefits/Provincial Amount: Renewable Expansion Investments
A12: This table will calculate the distributor/provincial shares of the investments entered in Part B of Appendix 2-FA.
A13: Enter values in green shaded cells: WCA percentage, debt percentages, interest rates, kWh, tax rates, amortization period, CCA Class and percentage.
A14: For historical investments, enter these variables for your last cost of service test year. For 2016 and beyond, enter variables as in the application.
A15: Rate Riders are not calculated for Test Year as these assets and costs are already in the distributor's rate base.
D18: 2012 | G18: 2013 | J18: 2014 | M18: 2015 | P18: 2016 TEST YEAR | S18: 2017 | T18: 2016 | V18: 2018 | Y18: 2019 | AB18: 2020
E19: Direct Benefit | F19: Provincial | H19: Direct Benefit | I19: Provincial | K19: Direct Benefit | L19: Provincial | N19: Direct Benefit | O19: Provincial | Q19: Direct Benefit | R19: Provincial | T19: Direct Benefit | U19: Provincial | W19: Direct Benefit | X19: Provincial | Z19: Direct Benefit | AA19: Provincial | AC19: Direct Benefit | AD19: Provincial
D20: Total | E20: 0.17 | F20: 0.83 | G20: Total | H20: 0.17 | I20: 0.83 | J20: Total | K20: 0.17 | L20: 0.83 | M20: Total | N20: 0.17 | O20: 0.83 | P20: Total | Q20: 0.17 | R20: 0.83 | S20: Total | T20: 0.17 | U20: 0.83 | V20: Total | W20: 0.17 | X20: 0.83 | Y20: Total | Z20: 0.17 | AA20: 0.83 | AB20: Total | AC20: 0.17 | AD20: 0.83
A21: Net Fixed Assets (average) | D21: =D82 -> 0 | E21: =D21*E20 -> 0 | F21: =D21*F20 -> 0 | G21: =E82 -> 0 | H21: =G21*H20 -> 0 | I21: =G21*I20 -> 0 | J21: =F82 -> 0 | K21: =J21*K20 -> 0 | L21: =J21*L20 -> 0 | M21: =G82 -> 0 | N21: =M21*N20 -> 0 | O21: =M21*O20 -> 0 | P21: =H82 -> 0 | Q21: =P21*Q20 -> 0 | R21: =P21*R20 -> 0 | S21: =I82 -> 0 | T21: =S21*T20 -> 0 | U21: =S21*U20 -> 0 | V21: =J82 -> 0 | W21: =V21*W20 -> 0 | X21: =V21*X20 -> 0 | Y21: =K82 -> 0 | Z21: =Y21*Z20 -> 0 | AA21: =Y21*AA20 -> 0 | AB21: =L82 -> 0 | AC21: =AB21*AC20 -> 0 | AD21: =AB21*AD20 -> 0
A22: Incremental OM&A (on-going, N/A for Provincial Recovery) | D22: ='App.2-FA Proposed REG Invest.'!C101 -> 0 | E22: =D22 -> 0 | G22: ='App.2-FA Proposed REG Invest.'!D$101 -> 0 | H22: =G22 -> 0 | J22: ='App.2-FA Proposed REG Invest.'!E$101 -> 0 | K22: =J22 -> 0 | M22: ='App.2-FA Proposed REG Invest.'!F$101 -> 0 | N22: =M22 -> 0 | P22: ='App.2-FA Proposed REG Invest.'!G$101 -> 0 | Q22: =P22 -> 0 | S22: ='App.2-FA Proposed REG Invest.'!H$101 -> 0 | T22: =S22 -> 0 | V22: ='App.2-FA Proposed REG Invest.'!I$101 -> 0 | W22: =V22 -> 0 | Y22: ='App.2-FA Proposed REG Invest.'!J$101 -> 0 | Z22: =Y22 -> 0 | AB22: ='App.2-FA Proposed REG Invest.'!K$101 -> 0 | AC22: =AB22 -> 0
A23: Incremental OM&A (start-up, applicable for Provincial Recovery) | D23: ='App.2-FA Proposed REG Invest.'!C100 -> 0 | E23: =D23*E20 -> 0 | F23: =D23*F20 -> 0 | G23: ='App.2-FA Proposed REG Invest.'!D$100 -> 0 | H23: =G23*H20 -> 0 | I23: =G23*I20 -> 0 | J23: ='App.2-FA Proposed REG Invest.'!E$100 -> 0 | K23: =J23*K20 -> 0 | L23: =J23*L20 -> 0 | M23: ='App.2-FA Proposed REG Invest.'!F$100 -> 0 | N23: =M23*N20 -> 0 | O23: =M23*O20 -> 0 | P23: ='App.2-FA Proposed REG Invest.'!G$100 -> 0 | Q23: =P23*Q20 -> 0 | R23: =P23*R20 -> 0 | S23: ='App.2-FA Proposed REG Invest.'!H$100 -> 0 | T23: =S23*T20 -> 0 | U23: =S23*U20 -> 0 | V23: ='App.2-FA Proposed REG Invest.'!I$100 -> 0 | W23: =V23*W20 -> 0 | X23: =V23*X20 -> 0 | Y23: ='App.2-FA Proposed REG Invest.'!J$100 -> 0 | Z23: =Y23*Z20 -> 0 | AA23: =Y23*AA20 -> 0 | AB23: ='App.2-FA Proposed REG Invest.'!K$100 -> 0 | AC23: =AB23*AC20 -> 0 | AD23: =AB23*AD20 -> 0
A24: WCA | E24: =(E22+E23)*$B$24 -> 0 | F24: =F23*$B$24 -> 0 | H24: =(H22+H23)*$B$24 -> 0 | I24: =I23*$B$24 -> 0 | K24: =(K22+K23)*$B$24 -> 0 | L24: =L23*$B$24 -> 0 | N24: =(N22+N23)*$B$24 -> 0 | O24: =O23*$B$24 -> 0 | Q24: =(Q22+Q23)*$B$24 -> 0 | R24: =R23*$B$24 -> 0 | T24: =(T22+T23)*$B$24 -> 0 | U24: =U23*$B$24 -> 0 | W24: =(W22+W23)*$B$24 -> 0 | X24: =X23*$B$24 -> 0 | Z24: =(Z22+Z23)*$B$24 -> 0 | AA24: =AA23*$B$24 -> 0 | AC24: =(AC22+AC23)*$B$24 -> 0 | AD24: =AD23*$B$24 -> 0
A25: Rate Base | E25: =SUM(E21+E24) -> 0 | F25: =SUM(F21+F24) -> 0 | H25: =SUM(H21+H24) -> 0 | I25: =SUM(I21+I24) -> 0 | K25: =SUM(K21+K24) -> 0 | L25: =SUM(L21+L24) -> 0 | N25: =SUM(N21+N24) -> 0 | O25: =SUM(O21+O24) -> 0 | Q25: =SUM(Q21+Q24) -> 0 | R25: =SUM(R21+R24) -> 0 | T25: =SUM(T21+T24) -> 0 | U25: =SUM(U21+U24) -> 0 | W25: =SUM(W21+W24) -> 0 | X25: =SUM(X21+X24) -> 0 | Z25: =SUM(Z21+Z24) -> 0 | AA25: =SUM(AA21+AA24) -> 0 | AC25: =SUM(AC21+AC24) -> 0 | AD25: =SUM(AD21+AD24) -> 0
A28: Deemed ST Debt | E28: =E25*$B$28 -> 0 | F28: =F25*$B$28 -> 0 | H28: =H25*$B$28 -> 0 | I28: =I25*$B$28 -> 0 | K28: =K25*$B$28 -> 0 | L28: =L25*$B$28 -> 0 | N28: =N25*$B$28 -> 0 | O28: =O25*$B$28 -> 0 | Q28: =Q25*$B$28 -> 0 | R28: =R25*$B$28 -> 0 | T28: =T25*$B$28 -> 0 | U28: =U25*$B$28 -> 0 | W28: =W25*$B$28 -> 0 | X28: =X25*$B$28 -> 0 | Z28: =Z25*$B$28 -> 0 | AA28: =AA25*$B$28 -> 0 | AC28: =AC25*$B$28 -> 0 | AD28: =AD25*$B$28 -> 0
A29: Deemed LT Debt | E29: =E25*$B$29 -> 0 | F29: =F25*$B$29 -> 0 | H29: =H25*$B$29 -> 0 | I29: =I25*$B$29 -> 0 | K29: =K25*$B$29 -> 0 | L29: =L25*$B$29 -> 0 | N29: =N25*$B$29 -> 0 | O29: =O25*$B$29 -> 0 | Q29: =Q25*$B$29 -> 0 | R29: =R25*$B$29 -> 0 | T29: =T25*$B$29 -> 0 | U29: =U25*$B$29 -> 0 | W29: =W25*$B$29 -> 0 | X29: =X25*$B$29 -> 0 | Z29: =Z25*$B$29 -> 0 | AA29: =AA25*$B$29 -> 0 | AC29: =AC25*$B$29 -> 0 | AD29: =AD25*$B$29 -> 0
A30: Deemed Equity | E30: =E25*$B$30 -> 0 | F30: =F25*$B$30 -> 0 | H30: =H25*$B$30 -> 0 | I30: =I25*$B$30 -> 0 | K30: =K25*$B$30 -> 0 | L30: =L25*$B$30 -> 0 | N30: =N25*$B$30 -> 0 | O30: =O25*$B$30 -> 0 | Q30: =Q25*$B$30 -> 0 | R30: =R25*$B$30 -> 0 | T30: =T25*$B$30 -> 0 | U30: =U25*$B$30 -> 0 | W30: =W25*$B$30 -> 0 | X30: =X25*$B$30 -> 0 | Z30: =Z25*$B$30 -> 0 | AA30: =AA25*$B$30 -> 0 | AC30: =AC25*$B$30 -> 0 | AD30: =AD25*$B$30 -> 0
A32: ST Interest | E32: =E28*$B$32 -> 0 | F32: =F28*$B$32 -> 0 | H32: =H28*$B$32 -> 0 | I32: =I28*$B$32 -> 0 | K32: =K28*$B$32 -> 0 | L32: =L28*$B$32 -> 0 | N32: =N28*$B$32 -> 0 | O32: =O28*$B$32 -> 0 | Q32: =Q28*$B$32 -> 0 | R32: =R28*$B$32 -> 0 | T32: =T28*$B$32 -> 0 | U32: =U28*$B$32 -> 0 | W32: =W28*$B$32 -> 0 | X32: =X28*$B$32 -> 0 | Z32: =Z28*$B$32 -> 0 | AA32: =AA28*$B$32 -> 0 | AC32: =AC28*$B$32 -> 0 | AD32: =AD28*$B$32 -> 0
A33: LT Interest | E33: =E29*$B$33 -> 0 | F33: =F29*$B$33 -> 0 | H33: =H29*$B$33 -> 0 | I33: =I29*$B$33 -> 0 | K33: =K29*$B$33 -> 0 | L33: =L29*$B$33 -> 0 | N33: =N29*$B$33 -> 0 | O33: =O29*$B$33 -> 0 | Q33: =Q29*$B$33 -> 0 | R33: =R29*$B$33 -> 0 | T33: =T29*$B$33 -> 0 | U33: =U29*$B$33 -> 0 | W33: =W29*$B$33 -> 0 | X33: =X29*$B$33 -> 0 | Z33: =Z29*$B$33 -> 0 | AA33: =AA29*$B$33 -> 0 | AC33: =AC29*$B$33 -> 0 | AD33: =AD29*$B$33 -> 0
A34: ROE | E34: =E30*$B$34 -> 0 | F34: =F30*$B$34 -> 0 | H34: =H30*$B$34 -> 0 | I34: =I30*$B$34 -> 0 | K34: =K30*$B$34 -> 0 | L34: =L30*$B$34 -> 0 | N34: =N30*$B$34 -> 0 | O34: =O30*$B$34 -> 0 | Q34: =Q30*$B$34 -> 0 | R34: =R30*$B$34 -> 0 | T34: =T30*$B$34 -> 0 | U34: =U30*$B$34 -> 0 | W34: =W30*$B$34 -> 0 | X34: =X30*$B$34 -> 0 | Z34: =Z30*$B$34 -> 0 | AA34: =AA30*$B$34 -> 0 | AC34: =AC30*$B$34 -> 0 | AD34: =AD30*$B$34 -> 0
A35: Cost of Capital Total | E35: =SUM(E32:E34) -> 0 | F35: =SUM(F32:F34) -> 0 | H35: =SUM(H32:H34) -> 0 | I35: =SUM(I32:I34) -> 0 | K35: =SUM(K32:K34) -> 0 | L35: =SUM(L32:L34) -> 0 | N35: =SUM(N32:N34) -> 0 | O35: =SUM(O32:O34) -> 0 | Q35: =SUM(Q32:Q34) -> 0 | R35: =SUM(R32:R34) -> 0 | T35: =SUM(T32:T34) -> 0 | U35: =SUM(U32:U34) -> 0 | W35: =SUM(W32:W34) -> 0 | X35: =SUM(X32:X34) -> 0 | Z35: =SUM(Z32:Z34) -> 0 | AA35: =SUM(AA32:AA34) -> 0 | AC35: =SUM(AC32:AC34) -> 0 | AD35: =SUM(AD32:AD34) -> 0
A37: OM&A | E37: =E22+E23 -> 0 | F37: =F23 -> 0 | H37: =H22+H23 -> 0 | I37: =I23 -> 0 | K37: =K22+K23 -> 0 | L37: =L23 -> 0 | N37: =N22+N23 -> 0 | O37: =O23 -> 0 | Q37: =Q22+Q23 -> 0 | R37: =R23 -> 0 | T37: =T22+T23 -> 0 | U37: =U23 -> 0 | W37: =W22+W23 -> 0 | X37: =X23 -> 0 | Z37: =Z22+Z23 -> 0 | AA37: =AA23 -> 0 | AC37: =AC22+AC23 -> 0 | AD37: =AD23 -> 0
A38: Amortization | D38: =D78 -> 0 | E38: =D38*E$20 -> 0 | F38: =D38*F$20 -> 0 | G38: =E78 -> 0 | H38: =G38*H$20 -> 0 | I38: =G38*I$20 -> 0 | J38: =F78 -> 0 | K38: =J38*K$20 -> 0 | L38: =J38*L$20 -> 0 | M38: =G78 -> 0 | N38: =M38*N$20 -> 0 | O38: =M38*O$20 -> 0 | P38: =H76+H77 -> 0 | Q38: =P38*Q$20 -> 0 | R38: =P38*R$20 -> 0 | S38: =I76+I77 -> 0 | T38: =S38*T$20 -> 0 | U38: =S38*U$20 -> 0 | V38: =J76+J77 -> 0 | W38: =V38*W$20 -> 0 | X38: =V38*X$20 -> 0 | Y38: =K76+K77 -> 0 | Z38: =Y38*Z$20 -> 0 | AA38: =Y38*AA$20 -> 0 | AB38: =L76+L77 -> 0 | AC38: =AB38*AC$20 -> 0 | AD38: =AB38*AD$20 -> 0
A39: Grossed-up PILs | E39: =E66 -> 0 | F39: =F66 -> 0 | H39: =H66 -> 0 | I39: =I66 -> 0 | K39: =K66 -> 0 | L39: =L66 -> 0 | N39: =N66 -> 0 | O39: =O66 -> 0 | Q39: =Q66 -> 0 | R39: =R66 -> 0 | T39: =T66 -> 0 | U39: =U66 -> 0 | W39: =W66 -> 0 | X39: =X66 -> 0 | Z39: =Z66 -> 0 | AA39: =AA66 -> 0 | AC39: =AC66 -> 0 | AD39: =AD66 -> 0
A41: Revenue Requirement | E41: =SUM(E35:E39) -> 0 | F41: =SUM(F35:F39) -> 0 | H41: =SUM(H35:H39) -> 0 | I41: =SUM(I35:I39) -> 0 | K41: =SUM(K35:K39) -> 0 | L41: =SUM(L35:L39) -> 0 | N41: =SUM(N35:N39) -> 0 | O41: =SUM(O35:O39) -> 0 | Q41: =SUM(Q35:Q39) -> 0 | R41: =SUM(R35:R39) -> 0 | T41: =SUM(T35:T39) -> 0 | U41: =SUM(U35:U39) -> 0 | W41: =SUM(W35:W39) -> 0 | X41: =SUM(X35:X39) -> 0 | Z41: =SUM(Z35:Z39) -> 0 | AA41: =SUM(AA35:AA39) -> 0 | AC41: =SUM(AC35:AC39) -> 0 | AD41: =SUM(AD35:AD39) -> 0
A44: Provincial Rate Protection | F44: =F41 -> 0 | I44: =I41 -> 0 | L44: =L41 -> 0 | O44: =O41 -> 0 | R44: =R41 -> 0 | U44: =U41 -> 0 | X44: =X41 -> 0 | AA44: =AA41 -> 0 | AD44: =AD41 -> 0
A46: Monthly Amount Paid by IESO | F46: =F44/12 -> 0 | I46: =I44/12 -> 0 | L46: =L44/12 -> 0 | O46: =O44/12 -> 0 | R46: =R44/12 -> 0 | U46: =U44/12 -> 0 | X46: =X44/12 -> 0 | AA46: =AA44/12 -> 0 | AD46: =AD44/12 -> 0
A48: Note 1: The difference between the actual costs of approved eligible investments and revenue received from the IESO should be recorded in a variance account. The Board may provide
A49: regulatory accounting guidance regarding a variance account either in an individual proceeding or on a generic basis.
A50: Note 2: For the 2016 Test Year, Costs and Revenues of the Direct Benefit are to be included in the test year applicant Rate Base and Revenues.
A52: PILs Calculation
E53: 2012 | H53: 2013 | K53: 2014 | N53: 2015 | Q53: 2016 TEST YEAR | T53: 2017 | W53: 2018 | Z53: 2019 | AC53: 2020
A54: Income Tax | E54: Direct Benefit | F54: Provincial | H54: Direct Benefit | I54: Provincial | K54: Direct Benefit | L54: Provincial | N54: Direct Benefit | O54: Provincial | Q54: Direct Benefit | R54: Provincial | T54: Direct Benefit | U54: Provincial | W54: Direct Benefit | X54: Provincial | Z54: Direct Benefit | AA54: Provincial | AC54: Direct Benefit | AD54: Provincial
V55: Total | Y55: Total | AB55: Total
A56: Net Income - ROE on Rate Base | E56: =E34 -> 0 | F56: =F34 -> 0 | H56: =H34 -> 0 | I56: =I34 -> 0 | K56: =K34 -> 0 | L56: =L34 -> 0 | N56: =N34 -> 0 | O56: =O34 -> 0 | Q56: =Q34 -> 0 | R56: =R34 -> 0 | T56: =T34 -> 0 | U56: =U34 -> 0 | W56: =W34 -> 0 | X56: =X34 -> 0 | Z56: =Z34 -> 0 | AA56: =AA34 -> 0 | AC56: =AC34 -> 0 | AD56: =AD34 -> 0
A57: Amortization (17% DB and 83% P) | E57: =E38 -> 0 | F57: =F38 -> 0 | H57: =H38 -> 0 | I57: =I38 -> 0 | K57: =K38 -> 0 | L57: =L38 -> 0 | N57: =N38 -> 0 | O57: =O38 -> 0 | Q57: =Q38 -> 0 | R57: =R38 -> 0 | T57: =T38 -> 0 | U57: =U38 -> 0 | W57: =W38 -> 0 | X57: =X38 -> 0 | Z57: =Z38 -> 0 | AA57: =AA38 -> 0 | AC57: =AC38 -> 0 | AD57: =AD38 -> 0
A58: CCA (17% DB and 83% P) | E58: =-D94*E$20 -> 0 | F58: =-D94*F$20 -> 0 | H58: =-E94*H$20 -> 0 | I58: =-E94*I$20 -> 0 | K58: =-F94*K$20 -> 0 | L58: =-F94*L$20 -> 0 | N58: =-G94*N$20 -> 0 | O58: =-G94*O$20 -> 0 | Q58: =-H94*Q$20 -> 0 | R58: =-H94*R$20 -> 0 | T58: =-I94*T$20 -> 0 | U58: =-I94*U$20 -> 0 | W58: =-J94*W$20 -> 0 | X58: =-J94*X$20 -> 0 | Z58: =-K94*Z$20 -> 0 | AA58: =-K94*AA$20 -> 0 | AC58: =-L94*AC$20 -> 0 | AD58: =-L94*AD$20 -> 0
A59: Taxable income | E59: =SUM(E56:E58) -> 0 | F59: =SUM(F56:F58) -> 0 | H59: =SUM(H56:H58) -> 0 | I59: =SUM(I56:I58) -> 0 | K59: =SUM(K56:K58) -> 0 | L59: =SUM(L56:L58) -> 0 | N59: =SUM(N56:N58) -> 0 | O59: =SUM(O56:O58) -> 0 | Q59: =SUM(Q56:Q58) -> 0 | R59: =SUM(R56:R58) -> 0 | T59: =SUM(T56:T58) -> 0 | U59: =SUM(U56:U58) -> 0 | W59: =SUM(W56:W58) -> 0 | X59: =SUM(X56:X58) -> 0 | Z59: =SUM(Z56:Z58) -> 0 | AA59: =SUM(AA56:AA58) -> 0 | AC59: =SUM(AC56:AC58) -> 0 | AD59: =SUM(AD56:AD58) -> 0
A61: Tax Rate (to be entered)
A63: Income Taxes Payable | E63: =E59*E61 -> 0 | F63: =F59*F61 -> 0 | H63: =H59*H61 -> 0 | I63: =I59*I61 -> 0 | K63: =K59*K61 -> 0 | L63: =L59*L61 -> 0 | N63: =N59*N61 -> 0 | O63: =O59*O61 -> 0 | Q63: =Q59*Q61 -> 0 | R63: =R59*R61 -> 0 | T63: =T59*T61 -> 0 | U63: =U59*U61 -> 0 | W63: =W59*W61 -> 0 | X63: =X59*X61 -> 0 | Z63: =Z59*Z61 -> 0 | AA63: =AA59*AA61 -> 0 | AC63: =AC59*AC61 -> 0 | AD63: =AD59*AD61 -> 0
A64: Gross Up
A65: Income Taxes Payable | E65: =E63/(1-E61) -> 0 | F65: =F63/(1-F61) -> 0 | H65: =H63/(1-H61) -> 0 | I65: =I63/(1-I61) -> 0 | K65: =K63/(1-K61) -> 0 | L65: =L63/(1-L61) -> 0 | N65: =N63/(1-N61) -> 0 | O65: =O63/(1-O61) -> 0 | Q65: =Q63/(1-Q61) -> 0 | R65: =R63/(1-R61) -> 0 | T65: =T63/(1-T61) -> 0 | U65: =U63/(1-U61) -> 0 | W65: =W63/(1-W61) -> 0 | X65: =X63/(1-X61) -> 0 | Z65: =Z63/(1-Z61) -> 0 | AA65: =AA63/(1-AA61) -> 0 | AC65: =AC63/(1-AC61) -> 0 | AD65: =AD63/(1-AD61) -> 0
A66: Grossed Up PILs | E66: =SUM(E65:E65) -> 0 | F66: =SUM(F65:F65) -> 0 | H66: =SUM(H65:H65) -> 0 | I66: =SUM(I65:I65) -> 0 | K66: =SUM(K65:K65) -> 0 | L66: =SUM(L65:L65) -> 0 | N66: =SUM(N65:N65) -> 0 | O66: =SUM(O65:O65) -> 0 | Q66: =SUM(Q65:Q65) -> 0 | R66: =SUM(R65:R65) -> 0 | T66: =SUM(T65:T65) -> 0 | U66: =SUM(U65:U65) -> 0 | W66: =SUM(W65:W65) -> 0 | X66: =SUM(X65:X65) -> 0 | Z66: =SUM(Z65:Z65) -> 0 | AA66: =SUM(AA65:AA65) -> 0 | AC66: =SUM(AC65:AC65) -> 0 | AD66: =SUM(AD65:AD65) -> 0
A69: Net Fixed Assets | D69: 2011 | E69: 2012 | F69: 2013 | G69: 2014 | H69: 2015 | I69: 2016 | J69: 2017 | K69: 2018 | L69: 2019
B70: Enter applicable amortization in years: | C70: 25
A71: Opening Gross Fixed Assets | E71: =D73 -> 0 | F71: 0 | G71: 0 | H71: 0 | I71: 0 | J71: 0 | K71: 0 | L71: 0
A72: Gross Capital Additions | D72: ='App.2-FA Proposed REG Invest.'!C99 -> 0 | E72: ='App.2-FA Proposed REG Invest.'!D99 -> 0 | F72: ='App.2-FA Proposed REG Invest.'!E99 -> 0 | G72: ='App.2-FA Proposed REG Invest.'!F99 -> 0 | H72: ='App.2-FA Proposed REG Invest.'!G99 -> 0 | I72: ='App.2-FA Proposed REG Invest.'!H99 -> 0 | J72: ='App.2-FA Proposed REG Invest.'!I99 -> 0 | K72: ='App.2-FA Proposed REG Invest.'!J99 -> 0 | L72: ='App.2-FA Proposed REG Invest.'!K99 -> 0
A73: Closing Gross Fixed Assets | D73: =SUM(D71:D72) -> 0 | E73: 0 | F73: 0 | G73: 0 | H73: 0 | I73: 0 | J73: 0 | K73: 0 | L73: 0
A75: Opening Accumulated Amortization | E75: =+D78 -> 0 | F75: =E78 -> 0 | G75: 0 | H75: =G78 -> 0 | I75: =H78 -> 0 | J75: =I78 -> 0 | K75: =J78 -> 0 | L75: =K78 -> 0
A76: Current Year Amortization (before additions) | E76: =IF(ISERROR(E71/$C$70), 0, E71/$C$70) -> 0 | F76: 0 | G76: 0 | H76: =H71/$C$70 -> 0 | I76: =I71/$C$70 -> 0 | J76: =J71/$C$70 -> 0 | K76: =K71/$C$70 -> 0 | L76: =L71/$C$70 -> 0
A77: Additions (half year) | D77: =D72/C70/2 -> 0 | E77: =E72/C70/2 -> 0 | F77: =F72/C70/2 -> 0 | G77: =G72/C70/2 -> 0 | H77: =H72/C70/2 -> 0 | I77: =I72/C70/2 -> 0 | J77: =J72/C70/2 -> 0 | K77: =K72/C70/2 -> 0 | L77: =L72/C70/2 -> 0
A78: Closing Accumulated Amortization | D78: =SUM(D75+D77) -> 0 | E78: =SUM(E75:E77) -> 0 | F78: 0 | G78: 0 | H78: 0 | I78: 0 | J78: 0 | K78: 0 | L78: 0
A80: Opening Net Fixed Assets | D80: =D71-D75 -> 0 | E80: =E71-E75 -> 0 | F80: =F71-F75 -> 0 | G80: =G71-G75 -> 0 | H80: =G81 -> 0 | I80: =H81 -> 0 | J80: =I81 -> 0 | K80: =J81 -> 0 | L80: =K81 -> 0
A81: Closing Net Fixed Assets | D81: =D73-D78 -> 0 | E81: 0 | F81: 0 | G81: 0 | H81: 0 | I81: 0 | J81: 0 | K81: 0 | L81: 0
A82: Average Net Fixed Assets | D82: =SUM(D80:D81)/2 -> 0 | E82: 0 | F82: 0 | G82: 0 | H82: 0 | I82: 0 | J82: 0 | K82: 0 | L82: 0
A84: UCC for PILs Calculation
D85: 2014 | E85: 2014 | F85: 2014 | G85: 2014 | H85: 2015 | I85: 2016 | J85: 2017 | K85: 2018 | L85: 2019
A87: Opening UCC | E87: =D95 -> 0 | F87: 0 | G87: 0 | H87: 0 | I87: 0 | J87: 0 | K87: 0 | L87: 0
A88: Capital Additions (from Appendix 2-FA) | D88: =D72 -> 0 | E88: 0 | F88: 0 | G88: 0 | H88: 0 | I88: 0 | J88: 0 | K88: 0 | L88: 0
A89: UCC Before Half Year Rule | D89: =SUM(D87:D88) -> 0 | E89: 0 | F89: 0 | G89: 0 | H89: 0 | I89: 0 | J89: 0 | K89: 0 | L89: 0
A90: Half Year Rule (1/2 Additions - Disposals) | D90: =D88/2 -> 0 | E90: 0 | F90: 0 | G90: 0 | H90: 0 | I90: 0 | J90: 0 | K90: 0 | L90: 0
A91: Reduced UCC | D91: =D89-D90 -> 0 | E91: 0 | F91: 0 | G91: 0 | H91: 0 | I91: 0 | J91: 0 | K91: 0 | L91: 0
A92: CCA Rate Class (to be entered) | C92: 47 | D92: =$C$92 -> 47 | E92: =$C$92 -> 47 | F92: 47 | G92: 47 | H92: 47 | I92: 47 | J92: 47 | K92: 47 | L92: 47
A93: CCA Rate (to be entered) | C93: 0.08 | D93: =$C$93 -> 0.08 | E93: =$C$93 -> 0.08 | F93: 0.08 | G93: 0.08 | H93: 0.08 | I93: 0.08 | J93: 0.08 | K93: 0.08 | L93: 0.08
A94: CCA | D94: =D91*D$93 -> 0 | E94: =E91*E$93 -> 0 | F94: =F91*F$93 -> 0 | G94: =G91*G$93 -> 0 | H94: =H91*H$93 -> 0 | I94: 0 | J94: 0 | K94: 0 | L94: 0
A95: Closing UCC | D95: =D89-D94 -> 0 | E95: 0 | F95: 0 | G95: 0 | H95: 0 | I95: 0 | J95: 0 | K95: 0 | L95: 0

Sheet App.2-G SQI
I1: File Number: | K1: =EBNUMBER -> EB-2014-0105
I2: Exhibit:
I3: Tab:
I4: Schedule:
I5: Page:
I7: Date:
A9: Appendix 2-G
A10: Service Reliability Indicators
A11: 2010 - 2014
A13: Index | B13: Including outages caused by loss of supply | G13: Excluding outages caused by loss of supply
B14: 2010 | C14: 2011 | D14: 2012 | E14: 2013 | F14: 2014 | G14: 2010 | H14: 2011 | I14: 2012 | J14: 2013 | K14: 2014
A15: SAIDI | B15: 1.21 | C15: 10.69 | D15: 3.31 | E15: 3.97 | F15: 1.74 | G15: 0.71 | H15: 2.39 | I15: 1.69 | J15: 0.91 | K15: 1.24
A16: SAIFI | B16: 1.4 | C16: 6.01 | D16: 2.25 | E16: 3.04 | F16: 3.99 | G16: 0.79 | H16: 1.43 | I16: 1.08 | J16: 0.81 | K16: 0.79
A18: 5 Year Historical Average
A19: SAIDI | F19: =IF(ISERROR(AVERAGE(B15:F15)), "", AVERAGE(B15:F15)) -> 4.184 | K19: =IF(ISERROR(AVERAGE(G15:K15)), "", AVERAGE(G15:K15)) -> 1.388
A20: SAIFI | F20: =IF(ISERROR(AVERAGE(B16:F16)), "", AVERAGE(B16:F16)) -> 3.338 | K20: =IF(ISERROR(AVERAGE(G16:K16)), "", AVERAGE(G16:K16)) -> 0.98
A22: SAIDI = System Average Interruption Duration Index
A23: SAIFI = System Average Interruption Frequency Index
A26: Indicator | C26: OEB Minimum Standard | D26: 2010 | E26: 2011 | F26: 2012 | G26: 2013 | H26: 2014
A27: Low Voltage Connections | C27: 0.9 | D27: 1 | E27: 1 | F27: 1 | G27: 1 | H27: 2
A28: High Voltage Connections | C28: 0.9 | D28: n/a | E28: n/a | F28: n/a | G28: n/a | H28: n/a
A29: Telephone Accessibility | C29: 0.65 | D29: 1 | E29: 1 | F29: 1 | G29: 1 | H29: 1
A30: Appointments Met | C30: 0.9 | D30: 1 | E30: 1 | F30: 1 | G30: 1 | H30: 1
A31: Written Response to Enquires | C31: 0.8 | D31: 0.998 | E31: 0.998 | F31: 0.999 | G31: 0.999 | H31: 0.999
A32: Emergency Urban Response | C32: 0.8 | D32: n/a | E32: n/a | F32: n/a | G32: n/a | H32: n/a
A33: Emergency Rural Response | C33: 0.8 | D33: 0 | E33: 0 | F33: 0 | G33: 0 | H33: 0
A34: Telephone Call Abandon Rate | C34: 0.1 | D34: 1 | E34: 1 | F34: 1 | G34: 1 | H34: 1
A35: Appointment Scheduling | C35: 0.9 | D35: 1 | E35: 1 | F35: 1 | G35: 1 | H35: 1
A36: Rescheduling a Missed Appointment | C36: 1 | D36: n/a | E36: n/a | F36: n/a | G36: n/a | H36: n/a
A37: Reconnection Performance Standard | C37: 0.85 | D37: n/a | E37: 1 | F37: 1 | G37: 1 | H37: 1

Sheet App.2-H_Other_Oper_Rev
J1: File Number: | K1: =EBNUMBER -> EB-2014-0105
J2: Exhibit:
J3: Tab:
J4: Schedule:
J5: Page:
J7: Date:
A9: Appendix 2-H
A10: Other Operating Revenue
A12: USoA # | B12: USoA Description | C12: 2010 Board Appr | D12: =G13-3 & " Actual" -> 2010 Actual | E12: =H13-3 & " Actual" -> 2011 Actual | F12: =H13-2 & " Actual" -> 2012 Actual | G12: =H13-1 & " Actual" & CHAR(178) -> 2013 Actual² | H12: ="Actual Year" & CHAR(178) -> Actual Year² | I12: Prelim | J12: ="Bridge Year" & CHAR(178) -> Bridge Year² | K12: Test Year
C13: 2010 | D13: 2010 | E13: 2011 | F13: 2012 | G13: 2013 | H13: =J13-1 -> 2014 | I13: 2015 | J13: =BridgeYear -> 2015 | K13: =TestYear -> 2016
B14: Reporting Basis
A15: 4235 | B15: 4235-Miscellaneous Service Revenues | C15: -47325 | D15: -66957.57 | E15: -66879.21 | F15: -59549.08 | G15: -60513.62 | H15: -63916.32 | I15: -68952 | J15: -65000 | K15: -67000
A16: 4225 | B16: 4225-Late Payment Charges | C16: -45000 | D16: -47760.43 | E16: -42874.09 | F16: -35687.51 | G16: -44430.37 | H16: -58339.17 | I16: -62276 | J16: -55000 | K16: -55000
A17: 4082 | B17: 4082-Retail Services Revenues | C17: -15105 | D17: -14209.8 | E17: -11929.8 | F17: -10140.8 | G17: -9216.01 | H17: -8606 | I17: -8582 | J17: -7000 | K17: -6000
A18: 4084 | B18: 4084-Service Transaction Requests (STR) Revenues | C18: -22.5 | D18: -27.75 | E18: -91.75 | F18: -24 | G18: -34.5 | H18: -11.5 | I18: -30 | J18: -10 | K18: -10
A19: 4086 | B19: 4086-SSS Administration Revenue | C19: 0 | D19: -27987.85 | E19: -29416.82 | F19: -29918.42 | G19: -30391.34 | H19: -30987 | I19: -32295 | J19: -32000 | K19: -33000
A20: 4205 | B20: 4205-Interdepartmental Rents | C20: 0 | D20: 0 | E20: 0 | F20: 0 | G20: 0 | H20: 0 | J20: 0 | K20: 0
A21: 4210 | B21: 4210-Rent from Electric Property | C21: -42000 | D21: -59879.58 | E21: -55910.54 | F21: -55810.53 | G21: -55867.79 | H21: -56353.94 | I21: -57775 | J21: -57000 | K21: -58000
A22: 4215 | B22: 4215-Other Utility Operating Income | C22: 0 | D22: 0 | E22: 0 | F22: 0 | G22: 0 | H22: 0 | J22: 0 | K22: 0
A23: 4220 | B23: 4220-Other Electric Revenues | C23: 0 | D23: 0 | E23: 0 | F23: 0 | G23: 0 | H23: 0 | J23: 0 | K23: 0
A24: 4240 | B24: 4240-Provision for Rate Refunds | C24: 0 | D24: 0 | E24: 0 | F24: 0 | G24: 0 | H24: 0 | J24: 0 | K24: 0
A25: 4245 | B25: 4245-Government Assistance Directly Credited to Income | C25: 0 | D25: 0 | E25: 0 | F25: 0 | G25: 0 | H25: 0 | J25: 0 | K25: 0
C26: 0 | D26: 0 | E26: 0 | F26: 0 | G26: 0 | H26: 0 | J26: 0 | K26: 0
A27: 4305 | B27: 4305-Regulatory Debits | C27: 0 | D27: 0 | E27: 0 | F27: 0 | G27: 51604.75 | H27: 40483.1 | I27: 55121.8 | J27: 46000 | K27: 0
A28: 4310 | B28: 4310-Regulatory Credits | C28: 0 | D28: 0 | E28: 0 | F28: 0 | G28: 0 | H28: 0 | J28: 0 | K28: 0
A29: 4315 | B29: 4315-Revenues from Electric Plant Leased to Others | C29: 0 | D29: 0 | E29: 0 | F29: 0 | G29: 0 | H29: 0 | I29: -146 | J29: 0 | K29: 0
A30: 4320 | B30: 4320-Expenses of Electric Plant Leased to Others | C30: 0 | D30: 0 | E30: 0 | F30: 0 | G30: 0 | H30: 0 | J30: 0 | K30: 0
A31: 4324 | B31: 4324-Special Purpose Charge Recovery | C31: 0 | D31: 0 | E31: 0 | F31: -2615.07 | G31: 0 | H31: 0 | J31: 0 | K31: 0
A32: 4325 | B32: 4325-Revenues from Merchandise Jobbing, Etc. | C32: -70000 | D32: -44134.2 | E32: -45072.67 | F32: -65743.12 | G32: -109897.65 | H32: -50100.8 | I32: -54624.57 | J32: -40000 | K32: -30000
A33: 4330 | B33: 4330-Costs and Expenses of Merchandising Jobbing, Etc. | C33: 0 | D33: 0 | E33: 0 | F33: 0 | G33: 0 | H33: 0 | J33: 0 | K33: 0
A34: 4335 | B34: 4335-Profits and Losses from Financial Instrument Hedges | C34: 0 | D34: 0 | E34: 0 | F34: 0 | G34: 0 | H34: 0 | J34: 0 | K34: 0
A35: 4340 | B35: 4340-Profits and Losses from Financial Instrument Investments | C35: 0 | D35: 0 | E35: 0 | F35: 0 | G35: 0 | H35: 0 | J35: 0 | K35: 0
A36: 4345 | B36: 4345-Gains from Disposition of Future Use Utility Plant | C36: 0 | D36: 0 | E36: 0 | F36: 0 | G36: 0 | H36: 0 | J36: 0 | K36: 0
A37: 4350 | B37: 4350-Losses from Disposition of Future Use Utility Plant | C37: 0 | D37: 0 | E37: 0 | F37: 0 | G37: 0 | H37: 0 | J37: 0 | K37: 0
A38: 4355 | B38: 4355-Gain on Disposition of Utility and Other Property | C38: -12000 | D38: -12000 | E38: -2500 | F38: -9500 | G38: -1050 | H38: -300 | J38: 0 | K38: 0
A39: 4360 | B39: 4360-Loss on Disposition of Utility and Other Property | C39: 0 | D39: 0 | E39: 0 | F39: 0 | G39: 0 | H39: 7588.64 | J39: 0 | K39: 0
A40: 4365 | B40: 4365-Gains from Disposition of Allowances for Emission | C40: 0 | D40: 0 | E40: 0 | F40: 0 | G40: 0 | H40: 0 | J40: 0 | K40: 0
A41: 4370 | B41: 4370-Losses from Disposition of Allowances for Emission | C41: 0 | D41: 0 | E41: 0 | F41: 0 | G41: 0 | H41: 0 | J41: 0 | K41: 0
A42: 4375 | B42: 4375-Revenues from Non-Utility Operations | C42: 0 | D42: 0 | E42: 0 | F42: 0 | G42: 0 | H42: 0 | J42: 0 | K42: 0
A43: 4375 | B43: 4375-Sub-account Generation Facility Revenues | C43: 0 | D43: 0 | E43: 0 | F43: 0 | G43: 0 | H43: 0 | J43: 0 | K43: 0
A44: 4380 | B44: 4380-Expenses of Non-Utility Operations | C44: 0 | D44: 0 | E44: 0 | F44: 0 | G44: 0 | H44: 0 | J44: 0 | K44: 0
A45: 4380 | B45: 4380-Sub-account Generation Facility Expenses | C45: 0 | D45: 0 | E45: 0 | F45: 0 | G45: 0 | H45: 0 | J45: 0 | K45: 0
A46: 4385 | B46: 4385-Non-Utility Rental Income | C46: 0 | D46: 0 | E46: 0 | F46: 0 | G46: 0 | H46: 0 | J46: 0 | K46: 0
A47: 4390 | B47: 4390-Miscellaneous Non-Operating Income | C47: -15000 | D47: -19746.29 | E47: -27946.74 | F47: -26865.27 | G47: -22528.99 | H47: -10182.96 | I47: -7972 | J47: -12000 | K47: -15000
A48: 4395 | B48: 4395-Rate-Payer Benefit Including Interest | C48: 0 | D48: 0 | E48: 0 | F48: 0 | G48: 0 | H48: 0 | J48: 0 | K48: 0
A49: 4398 | B49: 4398-Foreign Exchange Gains and Losses, Including Amortization | C49: 0 | D49: 0 | E49: 0 | F49: 0 | G49: 0 | H49: 0 | J49: 0 | K49: 0
A50: 4405 | B50: 4405-Interest and Dividend Income | C50: -90396 | D50: -97032.45 | E50: -151258.4 | F50: -158924.87 | G50: -134875.02 | H50: -75333.88 | I50: -6854 | J50: -20000 | K50: -20000
A51: 4415 | B51: 4415-Equity in Earnings of Subsidiary Companies | C51: 0 | D51: 0 | E51: 0 | F51: 0 | G51: 0 | H51: 0 | J51: 0 | K51: 0
A52: othe | B52: other | C52: 0 | D52: 0 | E52: 0 | F52: 0 | G52: 0 | H52: 0 | J52: 0 | K52: 0
A53: othe | B53: other | C53: 0 | D53: 0 | E53: 0 | F53: 0 | G53: 0 | H53: 0 | J53: 0 | K53: 0
B54: Total | C54: -336848.5 | D54: -389735.92 | E54: -433880.02 | F54: -454778.67 | G54: -417200.54 | H54: -306059.83 | I54: -244384.77 | J54: -242010 | K54: -284010
A59: Specific Service Charges | C59: =C15 -> -47325 | D59: -66957.57 | E59: =E15 -> -66879.21 | F59: -59549.08 | G59: -60513.62 | H59: -63916.32 | I59: =I15 -> -68952 | J59: -65000 | K59: -67000
A60: Late Payment Charges | C60: =C16 -> -45000 | D60: -47760.43 | E60: -42874.09 | F60: -35687.51 | G60: -44430.37 | H60: -58339.17 | I60: =I16 -> -62276 | J60: -55000 | K60: -55000
A61: Other Operating Revenues | C61: =SUM(C17:C25) -> -57127.5 | D61: =SUM(D17:D25) -> -102104.98 | E61: -97348.91 | F61: -95893.75 | G61: -95509.64 | H61: -95958.44 | I61: =SUM(I17:I25) -> -98682 | J61: -96010 | K61: -97010
A62: Other Income or Deductions | C62: =SUM(C27:C53) -> -187396 | D62: =SUM(D27:D53) -> -172912.94 | E62: -226777.81 | F62: -263648.33 | G62: -216746.91 | H62: -87845.9 | I62: =SUM(I27:I53) -> -14474.77 | J62: -26000 | K62: -65000
A63: Total | C63: =SUM(C59:C62) -> -336848.5 | D63: -389735.92 | E63: -433880.02 | F63: -454778.67 | G63: -417200.54 | H63: -306059.83 | I63: =SUM(I59:I62) -> -244384.77 | J63: -242010 | K63: -284010
A65: Description | E65: Account(s)
A66: Specific Service Charges: | E66: 4235
A67: Late Payment Charges: | E67: 4225
A68: Other Distribution Revenues: | E68: 4080, 4082, 4084, 4090, 4205, 4210, 4215, 4220, 4240, 4245
A69: Other Income and Expenses: | E69: 4305, 4310, 4315, 4320, 4325, 4330, 4335, 4340, 4345, 4350, 4355, 4360, 4365, 4370, 4375, 4380, 4385, 4390, 4395, 4398, 4405, 4415
A72: Note: Add all applicable accounts listed above to the table and include all relevant information.
A74: Account Breakdown Details
A76: For each "Other Operating Revenue" and "Other Income or Deductions" Account, a detailed breakdown of the account components is required. See the example below for Account 4405, Interest and Dividend Income.
A79: Account 4405 - Interest and Dividend Income
E80: =E12 -> 2011 Actual | F80: =F12 -> 2012 Actual | G80: 2013 Actual² | H80: Actual Year² | J80: =J12 -> Bridge Year² | K80: Test Year
H81: =H13 -> 2014 | J81: =J13 -> 2015 | K81: =K13 -> 2016
A82: Reporting Basis | E82: =IF(E14=0, "", E14) ->  | F82: =IF(F14=0, "", F14) -> 
A83: Short-term Investment Interest | E83: 105067 | F83: 101787 | G83: 79126 | H83: 16185 | J83: 0 | K83: 0
A84: Bank Deposit Interest | E84: 13253 | F84: 5713 | G84: 14509 | H84: 14084
A85: Miscellaneous Interest Revenue
A86: Carrying Chgs | E86: 32938 | F86: 51425.24 | G86: 41240.16 | H86: 45065.44 | J86: 20000 | K86: 20000
A88: Total | E88: =SUM(E83:E87) -> 151258 | F88: 158925.24 | G88: 134875.16 | H88: 75334.44 | J88: 20000 | K88: 20000
A91: Notes:
A92: 1 | B92: List and specify any other interest revenue.
A93: 2 | B93: In the transition year to IFRS, the applicant is to present information in both MIFRS and CGAAP. For the typical applicant that adopted IFRS on January 1, 2015, 2014 must be presented in both a CGAAP and MIFRS basis.

Sheet App_2-I LF_CDM
A2: Appendix 2-I (Revised for IRs)
A3: Load Forecast CDM Adjustment Work Form (2016)
A5: 2014 is the last year of the current four year (2011-2014) CDM program, and 2015 is the first year of a new six year (2015-2020) CDM program, per the Ministerial directives of March 31, 2014. With 2016, there is a need to recognize the full year impact of the current 2011-2014 CDM program, as well as to estimate reasonable impacts for each year for the new 2015-2020 CDM program. These are combined to estimate the adjustment for CDM program impacts on the 2016 load forecast.
A7: Appendix 2-I was developed to help determine what would be the amount of CDM savings needed in each year to cumulatively achieve the four year 2011-2014 CDM target. This then determined the amount of kWh (and with translation, kW of demand) savings that were converted in dollars balances for the LRAMVA, and also to determine the related adjustment to the load forecast to account for OPA-reported savings. Beginning for the 2015 year, it has been adjusted because of the persistence of 2011-2014 CDM programs will be an adjustment to the load forecast in addition to the estimated savings for the first year (2015) for the new 2015-2020 CDM plan.
A9: It is assumed that the new six year (2015-2020) CDM program will work similar to the existing 2011-2014 CDM program, meaning that distributors will offer programs each year that, cumulatively over the six years (from January 1, 2015 to December 31, 2020) will cumulatively achieve the new six year CDM target. This is the approach contemplated in the Ministerial directive letters of March 31, 2014 to the Board and to the OPA. Thus, distributors will be able to offer programs on a basis so that cumulatively over the period, the impacts, including persistence, of the CDM programs will accumulate towards achieving each distributor's 2015-2020 CDM target.
A11: With this approach, it is necessary to account for estimated savings for the last year of the current program, particularly the estimated savings for new CDM programs offered in 2014, as well as the estimated savings for new CDM programs that the distributor will offer in 2015 towards achievement of the new six year (2015-2020) CDM program. This necessitates expansion of this Appendix 2-I to deal with both the 2011-2014 and 2015-2020 CDM plans. It is expected that this approach will be updated each year.
A13: 2011-2014 CDM Program - 2014, last year of the current CDM plan
A15: Input the 2011-2014 CDM target in Cell B21.
A17: Input the measured results for 2011 CDM programs for each of the years 2011 and persistence into 2012, 2013 and 2014 into cells B31 to E31. These results are taken from the final 2011 CDM Report issued by the OPA for that distributor in the fall of 2012.
A19: Measured results for 2012 CDM programs for each of the years 2012 and persistence into 2013 and 2014 are input into cells C32 to E32. These results are taken from the final 2012 CDM Report issued by the OPA for that distributor in the fall of 2013.
A21: Measured results for 2013 CDM programs for each of the years 2013 and persistence into 2014 are input into cells C33 to E33. These results are taken from the final 2013 CDM Report issued by the OPA for that distributor in the fall of 2014. Until that report is issued, the distributor should use the results from the preliminary 2013 CDM Report issued in the spring of 2014.
A23: Measured results for 2014 CDM programs for each of the years 2013 and persistence into 2014 are input into cells C33 to E33. These results are taken from the final 2013 CDM Report issued by the OPA for that distributor in the fall of 2014. Until that report is issued, the distributor should use the results from the preliminary 2013 CDM Report issued in the spring of 2014. The distributor also needs to input the persistence of 2014 CDM programs into 2015 and 2016 in cells G45 and G46.
A26: 4 Year (2011-2014) kWh Target: | G26: Persistence of 2014 CDM Program into 2015 and 2016
A27: 8970000
B28: 2011 | C28: 2012 | D28: 2013 | E28: 2014 | F28: Total | G28: 2015 | H28: 2016 | K28: =B28 -> 2011 | L28: =C28 -> 2012 | M28: =D28 -> 2013 | N28: =E28 -> 2014
A29: 2011 CDM Programs | B29: =B35/$F$39 -> 0.08472236968 | C29: =C35/$F$39 -> 0.08472236968 | D29: 0.08376685423 | E29: 0.07442403652 | F29: =SUM(B29:E29) -> 0.3276356301 | J29: =A29 -> 2011 CDM Programs | K29: =50% -> 0.5 | L29: 1 | M29: 1 | N29: 1
A30: 2012 CDM Programs | C30: 0.08238666525 | D30: 0.08238666525 | E30: 0.08185582334 | F30: =SUM(B30:E30) -> 0.2466291538 | N30: 1
A31: 2013 CDM Programs | D31: 0.07729058286 | E31: 0.07729058286 | F31: 0.1545811657 | N31: 1
A32: 2014 CDM Programs | E32: 0.1881303748 | F32: 0.1881303748 | N32: 0.5
A33: Total in Year | B33: =SUM(B29:B32) -> 0.08472236968 | C33: =SUM(C29:C32) -> 0.1671090349 | D33: 0.2434441023 | E33: 0.4217008175 | F33: =SUM(B33:E33) -> 0.9169763245
A34: kWh
A35: 2011 CDM Programs | B35: =0.798*1000000 -> 798000 | C35: =0.798*1000000 -> 798000 | D35: =0.789*1000000 -> 789000 | E35: =0.701*1000000 -> 701000 | F35: =SUM(B35:E35) -> 3086000
A36: 2012 CDM Programs | B36: =-0.016*1000000 -> -16000 | C36: =0.776*1000000 -> 776000 | D36: =0.776*1000000 -> 776000 | E36: =0.771*1000000 -> 771000 | F36: =SUM(B36:E36) -> 2307000
A37: 2013 CDM Programs | B37: 0 | C37: =0.101*1000000 -> 101000 | D37: =0.728*1000000 -> 728000 | E37: =0.728*1000000 -> 728000 | F37: 1557000
A38: 2014 CDM Programs | B38: 0 | C38: =0.326*1000000 -> 326000 | D38: =0.371*1000000 -> 371000 | E38: =1.772*1000000 -> 1772000 | F38: 2469000 | G38: =E38*0.99 -> 1754280 | H38: =E38*0.88 -> 1559360
A39: Total in Year | B39: =SUM(B35:B38) -> 782000 | C39: =SUM(C35:C38) -> 2001000 | D39: 2664000 | E39: 3972000 | F39: =SUM(F35:F38) -> 9419000
D41: Persistence Factor
B42: 2011 | D42: =C35/B35 -> 1 | E42: =D35/B35 -> 0.9887218045 | F42: =E35/B35 -> 0.8784461153
B43: 2012 | E43: =D36/C36 -> 1 | F43: =E36/C36 -> 0.993556701
B44: 2013 | F44: =E37/D37 -> 1
A46: 2015-2020 CDM Program - 2016, second year of the current CDM plan
A48: For the first year of the new 2015-2020 CDM plan, it is assumed that each year's program will achieve an equal amount of new CDM savings. The new targets for 2015-2020 do not take into account persistence beyond the first year, but the IESO will encourage distributors to promote and implement CDM plans that will have longer term persistence of savings. This results in each year's program being about 1/6 (18.67%) of the cumulative 2015-2020 CDM target for kWh savings. A distributor may propose an alternative approach but would be expected to document in its application why it believes that its proposal is more reasonable. In its proposal, the distributor should ensure that the sum of the results for each year's CDM program from 2015 to 2020 add up to its 2015-2020 CDM target as established by the IESO.
A50: 6 Year (2015-2020) kWh Target:
A51: 10000000
B52: 2015 | C52: 2016 | D52: 2017 | E52: 2018 | F52: 2019 | G52: 2020 | H52: Total
A53: %
A54: 2015 CDM Programs | B54: =B62/$H$68 -> 0.1666666667 | H54: =SUM(B54:G54) -> 0.1666666667
A55: 2016 CDM Programs | C55: =C63/$H$68 -> 0.1666666667 | H55: =SUM(B55:G55) -> 0.1666666667
A56: 2017 CDM Programs | D56: 0.1666666667 | H56: =SUM(B56:G56) -> 0.1666666667
A57: 2018 CDM Programs | E57: 0.1666666667 | H57: =SUM(E57:G57) -> 0.1666666667
A58: 2019 CDM Programs | F58: 0.1666666667 | H58: =SUM(F58:G58) -> 0.1666666667
A59: 2020 CDM Programs | G59: =G67/$H$68 -> 0.1666666667 | H59: =SUM(B59:G59) -> 0.1666666667
A60: Total in Year | B60: =SUM(B54:B59) -> 0.1666666667 | C60: =SUM(C54:C59) -> 0.1666666667 | D60: =SUM(D54:D59) -> 0.1666666667 | E60: =SUM(E54:E57) -> 0.1666666667 | F60: =SUM(F54:F58) -> 0.1666666667 | G60: =SUM(G54:G59) -> 0.1666666667 | H60: =SUM(B60:G60) -> 1
A61: kWh
A62: =A54 -> 2015 CDM Programs | B62: =1/6*A51 -> 1666666.667 | C62: =B62 -> 1666666.667 | H62: =SUM(B62:G62) -> 3333333.333
A63: 2016 CDM Programs | C63: =B62 -> 1666666.667 | H63: =SUM(B63:G63) -> 1666666.667
A64: 2017 CDM Programs | D64: =C63 -> 1666666.667 | H64: =SUM(B64:G64) -> 1666666.667
A65: 2018 CDM Programs | E65: =D64 -> 1666666.667 | H65: =SUM(E65:G65) -> 1666666.667
A66: 2019 CDM Programs | F66: =E65 -> 1666666.667 | H66: =SUM(F66:G66) -> 1666666.667
A67: 2020 CDM Programs | G67: =F66 -> 1666666.667 | H67: =SUM(B67:G67) -> 1666666.667
A68: Total in Year | B68: =SUM(B62:B67) -> 1666666.667 | C68: =SUM(C62:C67) -> 3333333.333 | D68: 1666666.667 | E68: =SUM(E62:E65) -> 1666666.667 | F68: =SUM(F62:F66) -> 1666666.667 | G68: =SUM(G62:G67) -> 1666666.667 | H68: =A51 -> 10000000
A71: Determination of 2016 Load Forecast Adjustment
A73: The Board has determined that the "net" number should be used in its Decision and Order with respect to Centre Wellington Hydro Ltd.'s 2013 Cost of Service rates (EB-2012-0113). This approach has also been used in Settlement Agreements accepted by the Board in other 2013 and 2-14 applications. The distributor should select whether the adjustment is done on a "net" or "gross" basis, but must support a proposal for the adjustment being done on a "gross" basis. Sheet 2-I defaults to the adjustment being done on a "net" basis consistent with Board policy and practice.
A75: From each of the 2006-2010 CDM Final Report, and the 2011, 2012, 2013 and 2014 CDM Final Reports, issued by the OPA (now IESO) for the distributor, the distributor should input the "gross" and "net" results of the cumulative CDM savings for 2014 into cells D84 to E88. The model will calculate the cumulative savings for all programs from 2006 to 2012 and determine the "net" to "gross" factor "g".
A77: Net-to-Gross Conversion
A79: Is CDM adjustment being done on a "net" or "gross" basis? | F79: net
C81: "Gross" | D81: "Net" | E81: Difference | F81: "Net-to-Gross" Conversion Factor
A82: Persistence of Historical CDM programs to 2014 | C82: kWh | D82: kWh | E82: kWh | F82: ('g')
A83: 2006-2010 CDM programs
A84: 2011 CDM program
A85: 2012 CDM program
A86: 2013 CDM program
A87: 2014 CDM program
A88: 2006 to 2014 OPA CDM programs: Persistence to 2016 | C88: =SUM(C83:C87) -> 0 | D88: =SUM(D83:D87) -> 0 | E88: =C88-D88 -> 0 | F88: =IF(D88=0,0,IF(F79="net",0,E88/D88)) -> 0
A90: The default values represent the factor that each year's CDM program is factored into the manual CDM adjustment. Distributors can choose alternative weights of "0", "0.5" or "1" from the drop-down menu for each cell, but must support its alternatives.
A92: These factors do not mean that CDM programs are excluded, but the assumption that impacts of previous year CDM programs are already implicitly reflected in the actual data for the historical years that are the basis for the load forecast prior to any manual CDM adjustment for the 2016 test year.
A94: Weight Factor for Inclusion in CDM Adjustment to 2014 Load Forecast
B95: 2011 | C95: 2012 | D95: 2013 | E95: 2014 | F95: 2015 | G95: 2016
A96: Weight Factor for each year's CDM program impact on 2014 load forecast | B96: 0 | C96: 0 | D96: 0 | E96: 0 | F96: 1 | G96: 0.5 | H96: Distributor can select "0", "0.5", or "1" from drop-down list
